Workbook

Sheet CAPA
B1: SPARTA | C1: Ver. | R1: DF | S1: Sudeste/Centro Oeste
B2: Helenístico | C2: 0.93 | M2: =C23 -> 152 | N2: 6612
C3: Macro Ver.
C4: 3.45
B6: ENF | L6: CodigoSamp | M6: Empresa | N6: Nome Completo | O6: IdSgtAg | P6: CodigoSamp | Q6: Coluna1 | R6: Financeiro 243 (TUSD) | S6: Databse Fin. 243 | U6: Sim
B7: =VLOOKUP(B6,TabEmpresas[],2,FALSE) -> ENF - Energisa Nova Friburgo - Distribuidora de Energia S.A. | C7: Reajuste | G7: Últ. Atualização | L7: 396 | M7: AES SUL | N7: AES-SUL - AES SUL Distribuidora Gaúcha de Energia S/A. | O7: 101 | P7: 396 | U7: Não
B8: CÓDIGO DA EMPRESA | C8: ="D" & TEXT(C23-100,"00") -> D52 | F8: Info iniciais | G8: 2020-05-14T16:02:08 | L8: 7019 | M8: AME | N8: Amazonas Distribuidora de Energia S/A | O8: 102 | P8: 7019
B9: Data do Reajuste/Revisão Anterior | C9: 43638 | F9: Energia do ano anterior (CM compra, MWh Mercado, R$ Mercado) | L9: 383 | M9: AMPLA | N9: AMPLA - Ampla Energia e Serviços S/A | O9: 103 | P9: 383
B10: Data de Reajuste/Revisão em Processamento | C10: 44004 | F10: Perda de RB /Perdas Regulatórias /TUSDgONS-RB | L10: 391 | M10: BANDEIRANTE | N10: BANDEIRANTE - Bandeirante Energia S/A. | O10: 104 | P10: 391
F11: Financeiros ano anterior (CVA 5º dia útil, RTE restante) | L11: 370 | M11: BOAVISTA | N11: Boa Vista - Boa Vista Energia S/A | O11: 105 | P11: 370
F12: Encargos ano anterior (não RTE) | L12: 386 | M12: BRAGANTINA | N12: BRAGANTINA- Empresa Elétrica Bragantina S/A. | O12: 142 | P12: 386
F13: Dados da Revisão, Fator X e DecFec | L13: 5216 | M13: CAIUA | N13: CAIUÁ-D - Caiuá Distribuição de Energia S/A | O13: 106 | P13: 5216
F14: Previsão de Subsidios dos Processos Anteriores | L14: 31 | M14: CEA | N14: CEA - Companhia de Eletricidade do Amapá | O14: 107 | P14: 31
B15: Período de Referencia final | C15: =DATE(YEAR($C$10),MONTH($C$10)-1,1) -> 43952 | F15: Conexão ano anterior | L15: 44 | M15: CEAL | N15: CEAL - Companhia Energética de Alagoas | O15: 108 | P15: 44
B16: Período de Referencia inicial | C16: =DATE(YEAR($C$10)-1,MONTH($C$10),1) -> 43617 | F16: Energia (CCEAR, Bil., Itaipu) | G16: 2020-05-14T16:03:20 | L16: 5160 | M16: CEB | N16: CEB-DIS - CEB Distribuição S/A | O16: 109 | P16: 5160
B17: Índice IGPM na data Revisão/Reajuste | C17: =VLOOKUP(C15,Índices!$B$7:$F$500,2,FALSE) -> 780.28 | F17: CCEAR | L17: 5707 | M17: CEEE | N17: CEEE-D - Companhia Estadual de Distribuição de Energia Elétrica | O17: 110 | P17: 5707
B18: Índice IPCA na data Revisão/Reajuste | C18: =VLOOKUP(C15,Índices!$B$7:$F$500,3,FALSE) -> 5311.65 | L18: 5697 | M18: CELESC | N18: CELESC-DIS - Celesc Distribuição S.A. | O18: 111 | P18: 5697
B19: IGPM para o período de Referência | C19: =VLOOKUP(DATE(YEAR($C$10),MONTH($C$10)-1,1),Índices!$B$7:$F$500,2,FALSE)/VLOOKUP(DATE(YEAR($C$9),MONTH($C$9)-1,1),Índices!$B$7:$F$500,2,FALSE)-1 -> 0.06509053433 | F19: Itaipu (Energia, Transporte, MUST) | L19: 6072 | M19: CELG | N19: CELG-D - Celg Distribuição S.A. | O19: 112 | P19: 6072
B20: IPCA para o período de Referência | C20: =VLOOKUP(DATE(YEAR(C10),MONTH(C10)-1,1),Índices!$B$7:$F$500,3,FALSE)/VLOOKUP(DATE(YEAR($C$9),MONTH($C$9)-1,1),Índices!$B$7:$F$500,3,FALSE)-1 -> 0.01877727164 | F20: Cotas Lei/Angra | L20: 371 | M20: CELPA | N20: CELPA - Centrais Elétricas do Pará S/A. | O20: 113 | P20: 371
B21: Dados Gerenciais | F21: Encargos DRP | G21: 2020-05-14T16:04:01 | L21: 43 | M21: CELPE | N21: CELPE - Companhia Energética de Pernambuco | O21: 114 | P21: 43
B22: IdAgente | C22: =VLOOKUP(B6,TabEmpresas[],4,FALSE) -> 6612 | F22: Indicadores Econômicos / Dólar | G22: 2020-06-10T11:37:05 | L22: 32 | M22: CELTINS | N22: CELTINS - Companhia de Energia Elétrica do Estado do Tocantins | O22: 115 | P22: 32
B23: ID Concessão | C23: =VLOOKUP(B6,TabEmpresas[],3,FALSE) -> 152 | F23: Tudo de Mercado | G23: 2020-05-29T21:45:21 | L23: 37 | M23: CEMAR | N23: CEMAR - Companhia Energética do Maranhão | O23: 116 | P23: 37
F24: Rede Básica e Conexão | G24: 2020-05-27T09:49:35 | L24: 405 | M24: CEMAT | N24: CEMAT - Centrais Elétricas Matogrossenses S/A. | O24: 117 | P24: 405
B25: Quadro para vínculos | F25: Histórico de Tarifas B1 Residencial | G25: 2020-05-14T16:06:00 | L25: 4950 | M25: CEMIG | N25: CEMIG-D - CEMIG Distribuição S/A | O25: 118 | P25: 4950
B26: Descrição | C26: valor | F26: CVA | G26: 2020-05-29T21:40:10 | L26: 38 | M26: CEPISA | N26: CEPISA - Companhia Energética do Piauí | O26: 119 | P26: 38
B27: (Exemplo) Efeito Consumidor Geral | C27: =LnkTxtEfeito -> 0.02392070862 | L27: 369 | M27: CERON | N27: CERON - Centrais Elétricas de Rondônia S/A. | O27: 120 | P27: 369
B28: Contrato de concessão | C28: 042/1999 | L28: 28 | M28: CERR | N28: CERR - Companhia Energética de Roraima | O28: 121 | P28: 28
C29: 48500.007058/2019-98 | L29: 103 | M29: CHESP | N29: CHESP - Companhia Hidroelétrica São Patrício | O29: 123 | P29: 103
B30: Período de Referencia | C30: =TEXT(C16,"mmmm/aaaa")& " a "&TEXT(C15,"mmmm/aaaa") -> junho/2019 a maio/2020 | L30: 75 | M30: CNEE | N30: CNEE - Companhia Nacional de Energia Elétrica | O30: 127 | P30: 75
B31: Neutralidade Total | L31: 82 | M31: COCEL | N31: COCEL - Companhia Campolarguense de Energia | O31: 128 | P31: 82
B32: CVA Saldo a Compensar | C32: =SUM(Financeiros!D27:D43) -> 84930.32504 | L32: 47 | M32: COELBA | N32: COELBA - Companhia de Eletricidade do Estado da Bahia | O32: 129 | P32: 47
B33: Reversão CDE | L33: 39 | M33: COELCE | N33: COELCE - Companhia Energética do Ceará | O33: 130 | P33: 39
L34: 2904 | M34: COOPERALIANÇA | N34: COOPERALIANÇA - Cooperativa Aliança | O34: 131 | P34: 2904
L35: 2866 | M35: COPEL | N35: COPEL-DIS - Copel Distribuição S/A | O35: 132 | P35: 2866
L36: 40 | M36: COSERN | N36: COSERN - Companhia Energética do Rio Grande do Norte | O36: 133 | P36: 40
L37: 69 | M37: CPFL Jaguari | N37: CPFL Jaguari - Companhia Jaguari de Energia | O37: 124 | P37: 69
L38: 71 | M38: CPFL Leste Paulista | N38: =TabEmpresas[[#This Row],[Empresa]]&" - Companhia Leste Paulista de Energia " -> CPFL Leste Paulista - Companhia Leste Paulista de Energia | O38: 134 | P38: 71
L39: 70 | M39: CPFL Mococa | N39: =TabEmpresas[[#This Row],[Empresa]]&" - Companhia Luz e Força de Mococa " -> CPFL Mococa - Companhia Luz e Força de Mococa | O39: 125 | P39: 70
L40: 72 | M40: CPFL Santa Cruz | N40: =TabEmpresas[[#This Row],[Empresa]]&" - Companhia Luz e Força Santa Cruz " -> CPFL Santa Cruz - Companhia Luz e Força Santa Cruz | O40: 126 | P40: 72
L41: 73 | M41: CPFL Sul Paulista | N41: =TabEmpresas[[#This Row],[Empresa]]&" - Companhia Sul Paulista de Energia " -> CPFL Sul Paulista - Companhia Sul Paulista de Energia | O41: 137 | P41: 73
L42: 63 | M42: CPFL Paulista | N42: CPFL-Paulista - Companhia Paulista de Força e Luz | O42: 136 | P42: 63
L43: 2937 | M43: CPFL Piratininga | N43: CPFL- Piratininga - Companhia Piratininga de Força e Luz | O43: 135 | P43: 2937
L44: 95 | M44: DEMEI | N44: DEMEI - Departamento Municipal de Energia de Ijuí | O44: 138 | P44: 95
L45: 51 | M45: DMED | N45: =TabEmpresas[[#This Row],[Empresa]]&" - DME Distribuição S.A" -> DMED - DME Distribuição S.A | O45: 139 | P45: 51
L46: 6611 | M46: EBO | N46: EBO - Energisa Borborema – Distribuidora de Energia S.A. | O46: 140 | P46: 6611
B47: Deslocar mercado | C47: Não | L47: 5217 | M47: EDEVP | N47: EDEVP - Empresa de Distribuição de Energia Vale Paranapanema S/A | O47: 141 | P47: 5217
B48: Data de processamento em simulação | C48: 43811 | L48: 385 | M48: ELEKTRO | N48: ELEKTRO - Elektro Eletricidade e Serviços S/A. | O48: 145 | P48: 385
L49: 26 | M49: ELETROACRE | N49: ELETROACRE - Companhia de Eletricidade do Acre | O49: 146 | P49: 26
L50: 398 | M50: ELETROCAR | N50: ELETROCAR - Centrais Elétricas de Carazinho S/A. | O50: 147 | P50: 398
L51: 390 | M51: ELETROPAULO | N51: ELETROPAULO - Eletropaulo Metropolitana Eletricidade de São Paulo S/A | O51: 148 | P51: 390
L52: 6585 | M52: EMG | N52: EMG - Energisa Minas Gerais - Distribuidora de Energia S.A. | O52: 150 | P52: 6585
L53: 404 | M53: ENERSUL | N53: ENERSUL - Empresa Energética de Mato Grosso do Sul S/A. | O53: 151 | P53: 404
L54: 6612 | M54: ENF | N54: ENF - Energisa Nova Friburgo - Distribuidora de Energia S.A. | O54: 152 | P54: 6612
L55: 6600 | M55: EPB | N55: EPB - Energisa Paraíba - Distribuidora de Energia | O55: 153 | P55: 6600
L56: 380 | M56: ESCELSA | N56: ESCELSA - Espírito Santo Centrais Elétricas S/A. | O56: 154 | P56: 380
L57: 6587 | M57: ESE | N57: ESE - Energisa Sergipe - Distribuidora de Energia S.A. | O57: 155 | P57: 6587
L58: 83 | M58: FORCEL | N58: FORCEL - Força e Luz Coronel Vivida Ltda | O58: 156 | P58: 83
L59: 399 | M59: HIDROPAN | N59: HIDROPAN - Hidroelétrica Panambi S/A. | O59: 157 | P59: 399
L60: 87 | M60: IENERGIA | N60: IENERGIA - Iguaçu Distribuidora de Energia Elétrica Ltda | O60: 158 | P60: 87
L61: 213 | M61: JARI | N61: JARI - Jari Celulose S/A | O61: 159 | P61: 213
L62: 88 | M62: JOÃO CESA | N62: JOÃO CESA - Empresa Força e Luz João Cesa Ltda | O62: 143 | P62: 88
L63: 382 | M63: LIGHT | N63: LIGHT - Light Serviços de Eletricidade S/A. | O63: 160 | P63: 382
L64: 401 | M64: MUX Energia | N64: MUX Energia - Muxfeldt Marin & Cia. Ltda | O64: 161 | P64: 401
L65: 84 | M65: OESTE | N65: CFLO - Companhia Força e Luz do Oeste | O65: 122 | P65: 84
L66: 397 | M66: RGE | N66: RGE - Rio Grande Energia S/A. | O66: 162 | P66: 397
L67: 381 | M67: SANTA MARIA | N67: SANTA MARIA - Empresa Luz e Força Santa Maria S/A. | O67: 149 | P67: 381
L68: 46 | M68: SULGIPE | N68: SULGIPE - Companhia Sul Sergipana de Eletricidade | O68: 163 | P68: 46
L69: 400 | M69: UHENPAL | N69: UHENPAL - Usina Hidroelétrica Nova Palma Ltda. | O69: 164 | P69: 400
L70: 86 | M70: URUSSANGA | N70: URUSSANGA - Empresa Força e Luz Urussanga Ltda | O70: 144 | P70: 86
L71: 1000040 | M71: ENERGISA Sul Sudeste | N71: ENERGISA SUL SUDESTE | O71: 165 | P71: 1000040
L72: 1000041 | M72: NOVA SANTA CRUZ | N72: NOVA SANTA CRUZ | O72: 166 | P72: 1000041

Sheet SPARTA ADMIN (hidden)
A1: ABA RESERVADA AO DESENVOLVEDORES DO SPARTA Sabemos que você ia aparecer por aqui. Saciou sua curiosidade? Melhor não fuçar mais, ou poderá prejudicar seriamente sua análise. Então, oculte essa aba e volte a trabalhar!! | AD1: Matrix Alternativa
AD2: Matrix Oficial
A4: O que deseja?? | I4: Versão
A5: Matrix Oficial | I5: 3.1
A6: Endereço da Matrix Alternativa | I6: 20.02.20
A7: \\corporativo\SGT\Gestão da Informação\Sistemas\SPARTA\Matrix\dev
A8: Nome da Matrix Alternativa
A9: SPARTAMatrixNC.xlsm
A10: Estado do Direcionamento

Sheet Entrada
A1: Entrada de parâmetros para cálculo tarifário
B4: Energia | D4: Últ. Atulização | F4: Parâmetros para Revisão | P4: ="Caso de OR para a empresa é: " &IF(BD!C53=4,"caso 1","caso 3") -> Caso de OR para a empresa é: caso 1
D6: 43964 | F6: CAPEX - Ativos de Distribuição | J6: Custo Operacional Real do(s) último(s) ano(s) | P6: Outras Receitas - Caso 1 e 2
B7: Montante de Geração Própria | D7: 43964 | F7: (1) Ativo Imobilizado em Serviço (Valor Novo de Reposição) | H7: 43964 | J7: Ano do Custo Operacional | P7: Tipo de Receita | Q7: =UDEROR!G12 -> 2020-05-01 | R7: =UDEROR!H12 -> 2020-04-01 | S7: =UDEROR!I12 -> 2020-03-01 | T7: =UDEROR!J12 -> 2020-02-01 | U7: =UDEROR!K12 -> 2020-01-01 | V7: =UDEROR!L12 -> 2019-12-01 | W7: =UDEROR!M12 -> 2019-11-01 | X7: =UDEROR!N12 -> 2019-10-01 | Y7: =UDEROR!O12 -> 2019-09-01 | Z7: =UDEROR!P12 -> 2019-08-01 | AA7: =UDEROR!Q12 -> 2019-07-01 | AB7: =UDEROR!R12 -> 2019-06-01 | AC7: =UDEROR!S12 -> 00:00:00 | AD7: =UDEROR!T12 -> 00:00:00 | AE7: =UDEROR!U12 -> 00:00:00 | AF7: =UDEROR!V12 -> 00:00:00 | AG7: =UDEROR!W12 -> 00:00:00 | AH7: =UDEROR!X12 -> 00:00:00 | AI7: =UDEROR!Y12 -> 00:00:00 | AJ7: =UDEROR!Z12 -> 00:00:00 | AK7: =UDEROR!AA12 -> 00:00:00 | AL7: =UDEROR!AB12 -> 00:00:00 | AM7: =UDEROR!AC12 -> 00:00:00 | AN7: =UDEROR!AD12 -> 00:00:00 | AO7: =UDEROR!AE12 -> 00:00:00 | AP7: =UDEROR!AF12 -> 00:00:00 | AQ7: =UDEROR!AG12 -> 00:00:00 | AR7: =UDEROR!AH12 -> 00:00:00 | AS7: =UDEROR!AI12 -> 00:00:00 | AT7: =UDEROR!AJ12 -> 00:00:00 | AU7: =UDEROR!AK12 -> 00:00:00 | AV7: =UDEROR!AL12 -> 00:00:00 | AW7: =UDEROR!AM12 -> 00:00:00 | AX7: =UDEROR!AN12 -> 00:00:00 | AY7: =UDEROR!AO12 -> 00:00:00 | AZ7: =UDEROR!AP12 -> 00:00:00 | BA7: =UDEROR!AQ12 -> 00:00:00 | BB7: =UDEROR!AR12 -> 00:00:00 | BC7: =UDEROR!AS12 -> 00:00:00 | BD7: =UDEROR!AT12 -> 00:00:00
B8: Custo médio da Geração Própria | D8: 43964 | F8: (2) Índice de Aproveitamento Integral | H8: 43964 | J8: CONTA PESSOAL | P8: Serviços Cobráveis | Q8: 3473.92 | R8: 3473.92 | S8: 11439.83 | T8: 12645.2 | U8: 15542.01 | V8: 20134.3 | W8: 15654.37 | X8: 22040.34 | Y8: 17996.01 | Z8: 18465.22 | AA8: 20395.99 | AB8: 20211.71
D9: 43964 | F9: (3) Obrigações Especiais Bruta | H9: 43964 | J9: BMP - 610530501; 610550501; 610532501; 610552501 | K9: Remuneração | P9: Arrecadação de convênios ou valores pela fatura | Q9: 29982.81 | R9: 29982.81 | S9: 2880.35 | T9: 17383.76 | U9: 17607.4 | V9: 16366.52 | W9: 15215.73 | X9: 14673.57 | Y9: 14722.16 | Z9: 15459.61 | AA9: 14090.89 | AB9: 15352.97
D10: 43964 | F10: (4) Bens Totalmente Depreciados | H10: 43964 | J10: BMP - 610530502; 610550502; 610532502; 610552502 | K10: Encargos | P10: Arrecadação de faturas de terceiros por estrutura própria
F11: (5) Base de Remuneração Bruta = (1)-(2)-(3)-(4) | H11: 43964 | J11: BMP - 610530503; 610550503; 610532503; 610552503 | K11: Previdência Privada - Corrente | P11: Veiculação de publicidade
F12: (6) Depreciação Acumulada | H12: 43964 | J12: BMP - 610530508; 610550508; 610532508; 610552508 | K12: Outros Benefícios | P12: Aluguel ou cessão onerosa de imóveis e espaços físicos
F13: (7) AIS Líquido (Valor de Mercado em Uso) | H13: 43964 | J13: BMP - 610530506; 610550506; 610532506; 610552506 | K13: Despesas Rescisórias | P13: Compartilhamento de infraestrutura | Q13: 292064.67 | R13: 292064.67 | S13: 352476.85 | T13: 309100.65 | U13: 247691.37 | V13: 325450.33 | W13: 325450.33 | X13: 328202.69 | Y13: 312685.97 | Z13: 316626.57 | AA13: 311764.98 | AB13: 349810.24
F14: (8) Índice de Aproveitamento Depreciado | H14: 43964 | J14: BMP - 610530507; 610550507; 610532507; 610552507 | K14: Participação nos Lucros e Resultados - PLR | P14: Serviços de avaliação técnica e aferição de medidores.
F15: (9) Valor da Base de Remuneração (VBR) | H15: 43964 | J15: BMP - 610530599; 610550599; 610532599; 610552599 | K15: Outros | P15: Operacionalização de serviço de créditos tributários
F16: (10) Almoxarifado em Operação | H16: 43964 | J16: BMP - 610530510; 610550510; 610532510; 610552510 | K16: (-) Créditos de Tributos Recuperáveis | P16: Elaboração de projeto, construção, operação, manutenção ou reforma de:
F17: (11) Ativo Diferido | H17: 43964 | J17: BMP - 6105306; 6105506; 6105326; 6105526 | K17: Administradores | P17: (1) redes de distribuição de energia elétrica destinadas à regularização fundiária de interesse específico e ao atendimento dos empreendimentos de múltiplas unidades consumidoras;
F18: (12) Obrigações Especiais Líquida | H18: 43964 | K18: Subtotal | P18: (2) redes de energia elétrica destinadas ao acesso dos sistemas de distribuição ou transmissão;
F19: (13) Terrenos e Servidões | H19: 43964 | J19: CONTA MATERIAIS | P19: (3) subestações de energia;
F20: (14) Base de Rem. Líquida Total = (1)-(6)-(8)+(10)+(11)-(12)+(13) | H20: 43964 | J20: BMP - 610530701; 610550701; 610532701; 610552701 | K20: Materiais | P20: (4) instalações elétricas internas de unidades consumidoras;
F21: (15) Saldo RGR PLPT | H21: 43964 | J21: BMP - 610530799; 610550799; 610532799; 610552799 | K21: Outros | P21: (5) banco de capacitores:
F22: (16) Saldo RGR Demais Investimentos | H22: 43964 | J22: BMP - 610530710; 610550710; 610532710; 610552710 | K22: (-) Créditos de Tributos Recuperáveis | P22: (6) padrões de entrada de unidades consumidoras atendidas em baixa tensão;
F23: (17) Taxa de Depreciação | H23: 43964 | K23: Subtotal | P23: (7) sistemas de medição de energia elétrica;
F24: (18) Quota de Reintegração Regulatória = (5) * (17) | H24: 43964 | J24: CONTA TERCEIROS | P24: (8) geradores, incluindo-se unidades de microgeração e minigeração distribuída;
J25: RIT - RP 800 - Célula F20 | K25: Manut. e Conserv. Bens e Instalações vinculadas ao Serviço Concedido | P25: (9) sistemas de iluminação pública.
F26: Gasto do Conselho de Consumidores | J26: RIT - RP 800 - Célula F21 | K26: Auditoria e Consultoria | P26: Eficientização do consumo de energia elétrica e instalação de cogeração qualificada, desde que não enquadráveis nos projetos de Pesquisa e Desenvolvimento (P&D) ou de Eficiência Energética estabelecidos em lei
F27: =Indexador!D132 -> Despesa 2019 | J27: RIT - RP 800 - Célula F22 | K27: Serviços Jurídicos | P27: Serviços de comunicação de dados
F28: =Indexador!E132 -> Despesa 2018 | J28: RIT - RP 800 - Célula F23 | K28: Serviços de Informática | P28: Serviços de consultoria
F29: =Indexador!F132 -> Despesa 2017 | J29: RIT - RP 800 - Célula F26 | K29: Viagens (Passagens Aéreas, etc) | P29: Receita proveniente da comercialização de resultados de projetos de P&D
F30: =Indexador!G132 -> Despesa 2016 | J30: RIT - RP 800 - Célula F27 | K30: Transportes (inclui Fretes)
J31: RIT - RP 800 - Célula F28 | K31: Propaganda e Publicidade (exceto Publicações Oficiais) | P31: Outras Receitas - Caso 3
F32: Perdas Regulatórias | J32: RIT - RP 800 - Célula F29 | K32: Publicações Oficiais | P32: Alíquota ISS
F33: Perdas Não Técnicas | J33: RIT - RP 800 - Célula F30 | K33: Serviço de Engenharia e Supervisão de Obras
F34: Perdas Técnicas | J34: RIT - RP 800 - Célula F31 | K34: Gestão Comercial | P34: Tipo de Receita | Q34: =Q7 -> 2020-05-01 | R34: 2020-04-01 | S34: 2020-03-01 | T34: 2020-02-01 | U34: 2020-01-01 | V34: 2019-12-01 | W34: 2019-11-01 | X34: 2019-10-01 | Y34: 2019-09-01 | Z34: 2019-08-01 | AA34: 2019-07-01 | AB34: 2019-06-01
J35: RIT - RP 800 - Célula F32 | K35: Outros Serviços Terceirizados | P35: Serviços Cobráveis
F36: Dados da Revisão Anterior - Componente Pd | J36: RIT - RP 800 - Célula F33 | K36: (-) Créditos de Tributos Recuperáveis | P36: Encargos de Conexão
F37: Data Base Ativos e Consumidores | J37: RIT - RP 800 - Célula F34 | K37: Transferências da Administração Central | P37: Compartilhamento de Infraestrutura
F38: Mercado AT (MWh) | K38: Subtotal | P38: Sistemas de Comunicação (PLC)
F39: Mercado MT (MWh) | J39: CONTA SEGUROS | P39: Serviços de Consultoria
F40: Mercado BT (MWh) | J40: BMP - 610531001; 610551001; 610533001; 610553001 | K40: Seguros | P40: Serviços de O&M
F41: Número de unidades consumidoras | J41: BMP - 610531099; 610551099; 610533099; 610553099 | K41: Outros | P41: Serviços de Comunicação
J42: BMP - 610531010; 610551010; 610533010; 610553010 | K42: (-) Créditos de Tributos Recuperáveis | P42: Serviços de Engenharia
F43: OPEX | K43: Subtotal | P43: Convênios
F44: Extensão de redes subterrâneas (Km) | J44: CONTA TRIBUTOS
F45: Extensão de rede de distribuição aérea (Km) | J45: BMP - 6105316; 6105516; 6105336; 6105536 | K45: Tributos | Q45: =Q34 -> 2020-05-01 | R45: =R34 -> 2020-04-01 | S45: 2020-03-01 | T45: 2020-02-01 | U45: 2020-01-01 | V45: 2019-12-01 | W45: 2019-11-01 | X45: 2019-10-01 | Y45: 2019-09-01 | Z45: 2019-08-01 | AA45: 2019-07-01 | AB45: 2019-06-01
F46: Extensão de rede de alta tensão (Km) | K46: (+) Créditos de Tributos Recuperáveis | P46: Ultrapassagem de Demanda | Q46: 35519.74 | R46: 35519.74 | S46: 25985.92 | T46: 52135.49 | U46: 54074.84 | V46: 56968.72 | W46: 80304.95 | X46: 55577.03 | Y46: 68812.89 | Z46: 31987.71 | AA46: 22754.95 | AB46: 16965.33
F47: ="% PNT / BT Real de "&IF(MONTH(LnkTxtDRPData)>6,YEAR(LnkTxtDRPData)-1,YEAR(LnkTxtDRPData)-2) & " (Medido)" -> % PNT / BT Real de 2018 (Medido) | J47: CONTA OUTROS | P47: Excedente Reativo | Q47: 50849.15 | R47: 50849.15 | S47: 54067.62 | T47: 57490.07 | U47: 59987.19 | V47: 55873.9 | W47: 55272.99 | X47: 55491.47 | Y47: 56062.69 | Z47: 54479.18 | AA47: 60244.46 | AB47: 55302.1
F48: ="% PNT / BT Real de "&IF(MONTH(LnkTxtDRPData)>6,YEAR(LnkTxtDRPData)-1,YEAR(LnkTxtDRPData)-2)-1 & " (Medido)" -> % PNT / BT Real de 2017 (Medido) | J48: BMP - 610531901; 610551901; 610533901; 610553901 | K48: Indenização por Perdas e Danos
F49: ="% PNT / BT Real de "&IF(MONTH(LnkTxtDRPData)>6,YEAR(LnkTxtDRPData)-1,YEAR(LnkTxtDRPData)-2)-2 & " (Medido)" -> % PNT / BT Real de 2016 (Medido) | J49: BMP - 610531902; 610551902; 610533902; 610553902 | K49: Consumo Próprio de Energia
F50: ="DEC Apurado "&IF(MONTH(LnkTxtDRPData)>3,YEAR(LnkTxtDRPData)-1,YEAR(LnkTxtDRPData)-2) -> DEC Apurado 2019 | J50: BMP - 610531905 | K50: Despesas com Conselho de Consumidores
F51: ="DEC Apurado "&IF(MONTH(LnkTxtDRPData)>3,YEAR(LnkTxtDRPData)-1,YEAR(LnkTxtDRPData)-2)-1 -> DEC Apurado 2018 | J51: BMP - 610531903; 610551903; 610533903; 610553903 | K51: Taxa de Arrecadação
F52: ="DEC Apurado "&IF(MONTH(LnkTxtDRPData)>3,YEAR(LnkTxtDRPData)-1,YEAR(LnkTxtDRPData)-2)-2 -> DEC Apurado 2017 | J52: BMP - 610531904; 610551904; 610533904; 610553904 | K52: Taxas Bancárias | U52: 108296
F53: Meta de % PNT / BT (Medido) | J53: BMP - 610531910; 610551910; 610533910; 610553910 | K53: (-) Créditos de Tributos Recuperáveis
F54: DEC 8 anos (Limite V8) | K54: Subtotal
J55: Demais
K56: Condenações Trabalhistas
F57: Dados da última Revisão Tarifária | K57: Gastos com CCEE
F58: Custos Operacionais (CO3) | J58: BMP - 611511401 | K58: Perdas na Alienação e Desativação
F59: Receitas Irrecuperáveis - Encargos Setoriais (Vi) | J59: BMP - 611112103 | K59: Ganhos na Alienação de Materiais
F60: Demais Receitas Irrecuperáveis (Vse)
F61: Remuneração do Capital (RC)
F62: Quota de Reintegração Regulatória (QRR)
F63: Custo anual das instalações móveis e imóveis (CAIMI)
F64: Ajuste em função dos investimentos realizados (valor negativo)
F65: Índice de Produtividade da Parcela B
F66: Outras Receitas (OR) (inserir o valor positivo)
F67: Componente T - Última Revisão

Sheet BD
B1: Banco de Dados | M1: Anexo II | N1: =Resultado!$D$6 -> 0.05706991424
B2: =CAPA!B6 -> ENF | M2: Anexo I | N2: =Resultado!$D$8 -> 0.08877156918
B5: Informações do ano anterior | G5: Dados de abertura (Neutralidade e CVA saldo a compensar) | L5: Dados de Energia | S5: Dados para Revisão
B7: Encargos | G7: Encargo | H7: Valor | I7: Norma | L7: Cotas | M7: Valor da "Cota" | N7: Ano | O7: Custo Médio da Cota | S7: item | T7: Descrição | U7: Detalhe | V7: Valor
B8: CDE Energia: Conta ACR | C8: 2096843.46 | G8: CCC | S8: 201 | T8: Financeiro de RTP | U8: Conselho de Consumidor | V8: 0.001
B9: CDE Energia: Decreto | C9: 0 | G9: CDE | H9: 17572820.8 | I9: ReH 2.664/2019 | S9: 202 | T9: Financeiro de RTP | U9: Conselho de Consumidor | V9: 0.159
B10: TFSEE | C10: 252492.7064 | G10: CFURH | S10: 203 | T10: Financeiro de RTP | U10: Conselho de Consumidor | V10: 0.84
B11: CDE | C11: 14655286.45 | G11: ESS/EER | L11: Ano | M11: Cota Itaipu
G12: PROINFA | H12: 2341580.068 | I12: ReH 2.653/2019
B13: ESS/ERR | C13: 0 | G13: ONS | H13: 0 | I13: Não se aplica
B14: PROINFA | C14: 2923255.821 | G14: TFSEE
B15: P&D | C15: 1706318.126 | G15: EER
B16: ONS | C16: 0 | G16: TFSEE Fator de Carga | H16: 0.724771143
B17: Energia
B18: Pmix | C18: 247.1645289
B19: PN2019 | C19: 0
B20: PN2020 | C20: 0
B21: PT2016 | C21: 0.0584 | G21: Informações de Postergação
B22: Perda RB total | C22: 0 | L22: 2021 | M22: 0,102 | N22: Tarifa | O22: Perdas | P22: Energia
B23: PT2013 | G23: Tipo | H23: Valor
B24: CVA RB | C24: 0 | G24: Data Postergada | H24: 44004
B25: CVA CCC | C25: 0 | G25: Data Anterior | H25: 44000
B26: CVA CDE | C26: 3138877.374 | G26: Diferença de Dias | H26: 4
B27: CVA CFURH | G27: MesesAdin | H27: 0
B28: CVA ESS/ERR | C28: 0 | G28: Reversão Subvenção CDE
B29: CVA PROINFA | C29: 185357.4284 | G29: Data 4CRT | H29: 42543
B30: CVA TRANS. ITAIPU | C30: 0
B31: CVA ENERGIA | C31: 7539459.08
B32: CVA CDE E | C32: 234776.4722
G35: Nome | H35: Valor
G36: TUSDg Export DRP | H36: 0 | L36: Mês | M36: Potência | N36: Tarifa DRA | O36: Tarifa DRP | P36: Colunas1
G37: TUSDg ONS DRP | H37: 0
G38: TUSDg ONS DRA | H38: 0
B39: Rede Básica
C40: 0
G42: Fator X | H42: Valor
G43: fatorx_t | H43: 0
B44: Mercado | G44: fatorx_pd | H44: 0.0097
C45: 372243.325
C46: 180860397.4 | G46: DecFec Processo Anterior | H46: Valor
G47: DEC A-2 | H47: 0
B48: 2020 | C48: 7240.762673 | G48: DEC A-1 | H48: 0
B49: Detalhamento de Encargos ESS e CDE | G49: FEC A-2 | H49: 0
G50: FEC A-1 | H50: 0 | L50: Dado | M50: Valor | N50: Início | O50: Fim
L51: MUST | M51: 5313 | N51: 43282 | O51: 43646
G52: Dados de dólar | H52: Valor | L52: MUST | M52: 6496 | N52: 43282 | O52: 43646
B53: Ciclo de Revisão | C53: 4 | F53: 4 | G53: Dólar médio | H53: 5.524047619 | L53: Potência Max | M53: 11215 | N53: 43466 | O53: 43830
G54: Data Inicial | H54: 43959 | L54: Potência Max | M54: 11215 | N54: 43831 | O54: 44196
G55: Data Final | H55: 43987
G56: Último Dado Diponível | H56: 43991 | L56: Dados de perda | M56: Valor | O56: Agente | P56: Ressarcimento P&D
B57: Subsídios Concedidos (sem ajuste) | L57: Perdas RB
B58: Mês de Início | C58: Carga Fonte | D58: Geração | E58: Distribuição | F58: Água, Esgoto e Saneamento | G58: Rural | H58: Irrigante/Aquicultor | L58: Perdas DITs
B59: 2019-06-01 | C59: 161549.8158 | D59: 1758.020833 | E59: 0 | F59: 50856.955 | G59: 64748.74667 | H59: 6364.406667
L62: Informações de DR1
L63: Fator PB1 | M63: 1.061290765
L64: Informações de RI
B65: Data | C65: Tipo | D65: Valor | E65: Valor IGPM | F65: Valor IPCA | G65: EixoRef
B66: 2020-05-01 | L66: Tipo | M66: % RI | O66: Data | P66: Fat Bandeiras
B67: 2017-06-01 | C67: 0 | D67: 524.75 | E67: 552.7173941 | F67: 542.3415412 | L67: PctRIResidencial | M67: 0.00077 | O67: 43617 | P67: 133455.87
B68: 2017-04-01 | C68: 0 | D68: 549.36 | E68: 564.0967553 | F68: 539.909441 | L68: PctRIIndustrial | M68: 1e-05 | O68: 43647 | P68: 212003.3
B69: 2016-06-01 | C69: 0 | D69: 555.17 | E69: 544.1593761 | F69: 523.5095611 | L69: PctRICOMERCIAL | M69: 0.00052 | O69: 43678 | P69: 723678.17
B70: 2015-06-01 | C70: 0 | D70: 520.54 | E70: 489.8535996 | F70: 478.8729088 | L70: PctRIRURAL | M70: 0.00014 | O70: 43709 | P70: 984993.94
B71: 2015-03-01 | C71: -1 | D71: 459.44 | E71: 477.5656846 | F71: 465.8546783 | L71: PctRILUMPUBLICA | M71: 0 | O71: 43739 | P71: 629194.68
B72: 2014-06-01 | C72: 0 | D72: 368.2 | E72: 470.5165602 | F72: 441.4676113 | L72: PctRIPODERPUBLICO | M72: 0 | O72: 43770 | P72: 714079.93
B73: 2013-06-01 | C73: 0 | D73: 324.01 | E73: 436.3251319 | F73: 415.0112436 | L73: PctRISERVPUBLICO | M73: 0 | O73: 43800 | P73: 637912.03
B74: 2013-01-01 | C74: -1 | D74: 285.24 | E74: 432.0516267 | F74: 403.3859839 | O74: 43831 | P74: 323993.75
B75: 2012-06-01 | C75: 0 | D75: 348.18 | E75: 410.7882501 | F75: 389.6667891 | L75: Tipo | M75: % RI Anterior | N75: Colunas1 | O75: 43862 | P75: 149486.81
B76: 2011-06-01 | C76: 0 | D76: 375.82 | E76: 393.9982097 | F76: 371.1505789 | L76: PctRIResidencial | M76: 0.00077 | O76: 43891 | P76: 0
B77: 2010-06-01 | C77: 0 | D77: 333.11 | E77: 358.9210896 | F77: 348.3255652 | L77: PctRIIndustrial | M77: 1e-05 | O77: 43922 | P77: 0
B78: 2009-06-01 | C78: 0 | D78: 328.33 | E78: 344.5264813 | F78: 331.0500397 | L78: PctRICOMERCIAL | M78: 0.00052 | O78: 43952 | P78: 0
B79: 2008-06-01 | C79: 0 | D79: 324.34 | E79: 332.4240027 | F79: 314.6904709 | L79: PctRIRURAL | M79: 0.00014
B80: 2007-06-01 | C80: 0 | D80: 298.07 | E80: 298.07 | F80: 298.07 | L80: PctRILUMPUBLICA | M80: 0
L81: PctRIPODERPUBLICO | M81: 0
L82: PctRISERVPUBLICO | M82: 0
B84: Tabela de Resumo de Montante DRP ano anterior/ Montante Apurado pelo Mercado
B85: detalhe_grupo | C85: GrupoTarifa | D85: tipoBase | E85: tipofatura | F85: ValorCTAnterior_Sum | G85: ValorAnt_Sum | L85: Prcesso Anterior | N85: RTE
D86: Base | E86: Econômico | F86: 0 | G86: 0 | L86: MWh | M86: R$ | N86: MWh | O86: R$ | S86: DthEfetivaPagamento | T86: VlrGarantiaFinanceira
B87: CCC | C87: ENCARGO | D87: Base | E87: Econômico | F87: 0 | G87: 0 | I87: BILATERAL | K87: valor | L87: 312215.5613 | M87: 78996781.31
B88: CDE | C88: ENCARGO | D88: Base | E88: Econômico | F88: 14655286.45 | G88: 14435788.37 | I88: PROINFA | K88: valor | L88: 7396.567755
B89: CDE | C89: ENCARGO | D89: Base | E89: RTE 2015 | F89: 0 | G89: 0 | I89: SOBRA/EXPOSIÇÃO | K89: valor | L89: 2.644432243e-06 | M89: 0.0006690919399
B90: CDE Energia | C90: ENCARGO | D90: Base | E90: Econômico | F90: 0 | G90: 2072204.666
B91: CDE Energia | C91: ENCARGO | D91: Base | E91: RTE 2015 | F91: 0 | G91: 0
B92: CDE Energia: Conta ACR | C92: ENCARGO | D92: Base | E92: Econômico | F92: 2096843.46 | G92: 0
B93: CDE Energia: Decreto | C93: ENCARGO | D93: Base | E93: Econômico | F93: 0 | G93: 0
B94: CFURH | C94: ENCARGO | D94: Base | E94: Econômico | F94: 0 | G94: 0
B95: ESS/ERR | C95: ENCARGO | D95: Base | E95: Econômico | F95: 0 | G95: 0
B96: ONS | C96: ENCARGO | D96: Base | E96: Econômico | F96: 0 | G96: 0
B97: P&D | C97: ENCARGO | D97: Base | E97: Econômico | F97: 1706318.126 | G97: 1695182.675
B98: P&D | C98: ENCARGO | D98: Base | E98: RTE 2015 | F98: 0 | G98: 0
B99: PROINFA | C99: ENCARGO | D99: Base | E99: Econômico | F99: 2923255.821 | G99: 2876620.121
B100: RGR | C100: ENCARGO | D100: Base | E100: Econômico | F100: 0 | G100: 0 | S100: iddet1 | T100: valor
B101: TFSEE | C101: ENCARGO | D101: Base | E101: Econômico | F101: 252492.7064 | G101: 250597.906 | S101: 56 | T101: 43980
C102: ENERGIA | D102: Base | E102: Econômico | F102: 78996781.31 | G102: 78121788.55
C103: ENERGIA | D103: Base | E103: RTE 2015 | F103: 0 | G103: 0
B104: CDE Energia: Conta ACR | C104: ENERGIA | D104: Base | E104: Econômico | F104: 0 | G104: 0
C105: Parcela B | D105: Base | E105: Econômico | F105: 48587358.6 | G105: 48663307.49 | V105: Empresa | W105: AT | X105: MT | Y105: BT
C106: Receita Irrecuperável | D106: Base | E106: Econômico | F106: 156282.098 | G106: 0 | V106: 167 | W106: 0.02134 | X106: 0.35825 | Y106: 0.62041
B107: CONEXÃO D | C107: TRANSPORTE TERCEIROS | D107: Base | E107: Econômico | F107: 0 | G107: 0 | V107: 102 | W107: 0.064 | X107: 0.32003 | Y107: 0.61596
B108: CONEXÃO T | C108: TRANSPORTE TERCEIROS | D108: Base | E108: Econômico | F108: 0 | G108: 0 | V108: 103 | W108: 0.02996 | X108: 0.27106 | Y108: 0.69898
B109: EUSD | C109: TRANSPORTE TERCEIROS | D109: Base | E109: Econômico | F109: 31485778.78 | G109: 31591481.3 | V109: 104 | W109: 0.07171 | X109: 0.2909 | Y109: 0.63739
B110: EUSD | C110: TRANSPORTE TERCEIROS | D110: Base | E110: RTE 2015 | F110: 0 | G110: 0 | S110: Nível | T110: Mercado Faturado A-6 | V110: 105 | W110: 0.00823 | X110: 0.24677 | Y110: 0.745
B111: EUST - CI | C111: TRANSPORTE TERCEIROS | D111: Base | E111: Econômico | F111: 1e-06 | G111: 0 | I111: Agente | J111: idagente | K111: indexador | L111: database | M111: RAP do ciclo | N111: Colunas1 | O111: RAP atualizada | S111: BT | T111: 260763.056 | V111: 165 | W111: 0.00795 | X111: 0.22554 | Y111: 0.76651
B112: EUST - FR | C112: TRANSPORTE TERCEIROS | D112: Base | E112: Econômico | F112: 0 | G112: 0 | O112: =M112*VLOOKUP(CAPA!C15,Índices!$B$6:$F$626,IF(BD!K112="IPCA",3,2),FALSE)/VLOOKUP(L112,Índices!$B$6:$F$626,IF(BD!K112="IPCA",3,2),FALSE) ->  | S112: MT | T112: 98332.79437 | V112: 108 | W112: 0.06098 | X112: 0.1711 | Y112: 0.76792
B113: EUST - ITAIPU | C113: TRANSPORTE TERCEIROS | D113: Base | E113: Econômico | F113: 0 | G113: 0 | O113: =M113*VLOOKUP(CAPA!C16,Índices!$B$6:$F$626,IF(BD!K113="IPCA",3,2),FALSE)/VLOOKUP(L113,Índices!$B$6:$F$626,IF(BD!K113="IPCA",3,2),FALSE) ->  | S113: AT | T113: 11561.097 | V113: 109 | W113: 0.01034 | X113: 0.24366 | Y113: 0.746
B114: EUST - RB | C114: TRANSPORTE TERCEIROS | D114: Base | E114: Econômico | F114: 0 | G114: 0 | O114: =M114*VLOOKUP(CAPA!C17,Índices!$B$6:$F$626,IF(BD!K114="IPCA",3,2),FALSE)/VLOOKUP(L114,Índices!$B$6:$F$626,IF(BD!K114="IPCA",3,2),FALSE) ->  | V114: 110 | W114: 0.01165 | X114: 0.24322 | Y114: 0.74513
B115: TRANSPORTE ITAIPU | C115: TRANSPORTE TERCEIROS | D115: Base | E115: Econômico | F115: 0 | G115: 0 | O115: =M115*VLOOKUP(CAPA!C18,Índices!$B$6:$F$626,IF(BD!K115="IPCA",3,2),FALSE)/VLOOKUP(L115,Índices!$B$6:$F$626,IF(BD!K115="IPCA",3,2),FALSE) ->  | V115: 111 | W115: 0.03791 | X115: 0.37961 | Y115: 0.58248
B116: TUSDg EXPORTADORAS (A2) | C116: TRANSPORTE TERCEIROS | D116: Base | E116: Econômico | F116: 0 | G116: 0 | O116: =M116*VLOOKUP(CAPA!C19,Índices!$B$6:$F$626,IF(BD!K116="IPCA",3,2),FALSE)/VLOOKUP(L116,Índices!$B$6:$F$626,IF(BD!K116="IPCA",3,2),FALSE) ->  | V116: 112 | W116: 0.02273 | X116: 0.26361 | Y116: 0.71367
B117: TUSDg ONS (A2) | C117: TRANSPORTE TERCEIROS | D117: Base | E117: Econômico | F117: 0 | G117: 0 | O117: =M117*VLOOKUP(CAPA!C20,Índices!$B$6:$F$626,IF(BD!K117="IPCA",3,2),FALSE)/VLOOKUP(L117,Índices!$B$6:$F$626,IF(BD!K117="IPCA",3,2),FALSE) ->  | V117: 113 | W117: 0.01263 | X117: 0.23345 | Y117: 0.75392
B118: TUSDg T (A2) | C118: TRANSPORTE TERCEIROS | D118: Base | E118: Econômico | F118: 0 | G118: 0 | O118: =M118*VLOOKUP(CAPA!C21,Índices!$B$6:$F$626,IF(BD!K118="IPCA",3,2),FALSE)/VLOOKUP(L118,Índices!$B$6:$F$626,IF(BD!K118="IPCA",3,2),FALSE) ->  | V118: 114 | W118: 0.01726 | X118: 0.23794 | Y118: 0.7448
O119: =M119*VLOOKUP(CAPA!C22,Índices!$B$6:$F$626,IF(BD!K119="IPCA",3,2),FALSE)/VLOOKUP(L119,Índices!$B$6:$F$626,IF(BD!K119="IPCA",3,2),FALSE) ->  | V119: 115 | W119: 0.00993 | X119: 0.23087 | Y119: 0.7592
O120: =M120*VLOOKUP(CAPA!C23,Índices!$B$6:$F$626,IF(BD!K120="IPCA",3,2),FALSE)/VLOOKUP(L120,Índices!$B$6:$F$626,IF(BD!K120="IPCA",3,2),FALSE) ->  | V120: 116 | W120: 0.00806 | X120: 0.16835 | Y120: 0.82359
O121: =M121*VLOOKUP(CAPA!C24,Índices!$B$6:$F$626,IF(BD!K121="IPCA",3,2),FALSE)/VLOOKUP(L121,Índices!$B$6:$F$626,IF(BD!K121="IPCA",3,2),FALSE) ->  | V121: 117 | W121: 0.03028 | X121: 0.29131 | Y121: 0.67841
O122: =M122*VLOOKUP(CAPA!C25,Índices!$B$6:$F$626,IF(BD!K122="IPCA",3,2),FALSE)/VLOOKUP(L122,Índices!$B$6:$F$626,IF(BD!K122="IPCA",3,2),FALSE) ->  | V122: 118 | W122: 0.04215 | X122: 0.2081 | Y122: 0.74975
O123: =M123*VLOOKUP(CAPA!C26,Índices!$B$6:$F$626,IF(BD!K123="IPCA",3,2),FALSE)/VLOOKUP(L123,Índices!$B$6:$F$626,IF(BD!K123="IPCA",3,2),FALSE) ->  | V123: 119 | W123: 0.01807 | X123: 0.11713 | Y123: 0.8648
O124: =M124*VLOOKUP(CAPA!C27,Índices!$B$6:$F$626,IF(BD!K124="IPCA",3,2),FALSE)/VLOOKUP(L124,Índices!$B$6:$F$626,IF(BD!K124="IPCA",3,2),FALSE) ->  | V124: 120 | W124: - | X124: 0.17688 | Y124: 0.82312
O125: =M125*VLOOKUP(CAPA!C28,Índices!$B$6:$F$626,IF(BD!K125="IPCA",3,2),FALSE)/VLOOKUP(L125,Índices!$B$6:$F$626,IF(BD!K125="IPCA",3,2),FALSE) ->  | V125: 123 | W125: - | X125: 0.13612 | Y125: 0.86388
O126: =M126*VLOOKUP(CAPA!C29,Índices!$B$6:$F$626,IF(BD!K126="IPCA",3,2),FALSE)/VLOOKUP(L126,Índices!$B$6:$F$626,IF(BD!K126="IPCA",3,2),FALSE) ->  | V126: 166 | W126: 0.04257 | X126: 0.29652 | Y126: 0.66092
O127: =M127*VLOOKUP(CAPA!C30,Índices!$B$6:$F$626,IF(BD!K127="IPCA",3,2),FALSE)/VLOOKUP(L127,Índices!$B$6:$F$626,IF(BD!K127="IPCA",3,2),FALSE) ->  | V127: 128 | W127: - | X127: 0.40427 | Y127: 0.59573
O128: =M128*VLOOKUP(CAPA!C31,Índices!$B$6:$F$626,IF(BD!K128="IPCA",3,2),FALSE)/VLOOKUP(L128,Índices!$B$6:$F$626,IF(BD!K128="IPCA",3,2),FALSE) ->  | V128: 129 | W128: 0.02905 | X128: 0.24895 | Y128: 0.722
O129: =M129*VLOOKUP(CAPA!C32,Índices!$B$6:$F$626,IF(BD!K129="IPCA",3,2),FALSE)/VLOOKUP(L129,Índices!$B$6:$F$626,IF(BD!K129="IPCA",3,2),FALSE) ->  | V129: 130 | W129: 0.0175 | X129: 0.14397 | Y129: 0.83853
O130: =M130*VLOOKUP(CAPA!C33,Índices!$B$6:$F$626,IF(BD!K130="IPCA",3,2),FALSE)/VLOOKUP(L130,Índices!$B$6:$F$626,IF(BD!K130="IPCA",3,2),FALSE) ->  | V130: 131 | W130: - | X130: 0.30099 | Y130: 0.69901
O131: =M131*VLOOKUP(CAPA!C34,Índices!$B$6:$F$626,IF(BD!K131="IPCA",3,2),FALSE)/VLOOKUP(L131,Índices!$B$6:$F$626,IF(BD!K131="IPCA",3,2),FALSE) ->  | V131: 132 | W131: 0.02757 | X131: 0.26424 | Y131: 0.70819
O132: =M132*VLOOKUP(CAPA!C35,Índices!$B$6:$F$626,IF(BD!K132="IPCA",3,2),FALSE)/VLOOKUP(L132,Índices!$B$6:$F$626,IF(BD!K132="IPCA",3,2),FALSE) ->  | V132: 133 | W132: 0.01856 | X132: 0.19536 | Y132: 0.78608
V133: 135 | W133: 0.04788 | X133: 0.27054 | Y133: 0.68158
V134: 136 | W134: 0.06732 | X134: 0.35547 | Y134: 0.57721
V135: 138 | W135: - | X135: 0.07651 | Y135: 0.92349
V136: 139 | W136: - | X136: 0.35483 | Y136: 0.64517
V137: 140 | W137: 0.01004 | X137: 0.21058 | Y137: 0.77938
V138: 143 | W138: - | X138: 0.20409 | Y138: 0.79591
V139: 144 | W139: - | X139: 0.48131 | Y139: 0.51869
A140: NumBar | B140: Nome Conexão | C140: Tensão | D140: Posto Tarifário | E140: Tarifas RB - DRA | F140: Tarifa RB - DRP | G140: Tarifas Fronteira - DRA | H140: Tarifa Fronteira - DRP | I140: M01 | J140: M02 | K140: M03 | L140: M04 | M140: M05 | N140: M06 | O140: M07 | P140: M08 | Q140: M09 | R140: M10 | S140: M11 | T140: M12 | V140: 145 | W140: 0.03725 | X140: 0.29306 | Y140: 0.66969
W141: - | X141: 0.14124 | Y141: 0.85876
V142: 147 | W142: - | X142: 0.20977 | Y142: 0.79023
V143: 148 | W143: 0.03455 | X143: 0.23757 | Y143: 0.72788
V144: 149 | W144: - | X144: 0.17399 | Y144: 0.82601
V145: 150 | W145: 0.03635 | X145: 0.17413 | Y145: 0.78952
V146: 151 | W146: 0.02735 | X146: 0.28351 | Y146: 0.68915
V147: 152 | W147: 0.00215 | X147: 0.1412 | Y147: 0.85665
V148: 153 | W148: 0.03606 | X148: 0.17601 | Y148: 0.78793
V149: 154 | W149: 0.12913 | X149: 0.26626 | Y149: 0.60462
V150: 155 | W150: 0.04008 | X150: 0.23225 | Y150: 0.72768
V151: 156 | W151: - | X151: 0.35985 | Y151: 0.64015
V152: 157 | W152: - | X152: 0.15963 | Y152: 0.84037
V153: 158 | W153: - | X153: 0.33049 | Y153: 0.66951
V154: 160 | W154: 0.1013 | X154: 0.22818 | Y154: 0.67051
V155: 161 | W155: - | X155: 0.28355 | Y155: 0.71645
V156: 163 | W156: 0.03507 | X156: 0.1664 | Y156: 0.79853
V157: 164 | W157: - | X157: 0.12897 | Y157: 0.87103
B441: Transmissora | C441: Indice de atualização | D441: ENCARGO DE CONEXÃO repassável | E441: Instalações com Estabelecimento de RAP que entraram em operação | F441: PA para repasse a tarifa | G441: PA Qualidade DIT | H441: ENCARGO DE CONEXÃO ou PA não rapassável a tarifa (REN 67/2004 ou 68/2004) | I441: PA Empreendimento Autorizado sem estabelecimento prévio de RAP | J441: Estimativa | K441: Estimativa Total do Encargo de Conexão
B452: Empresa | C452: idsgtag | D452: dtConv | E452: VlrMontante | F452: VlrTarOutros | G452: VlrTarB4a | H452: VlrTarB4b
B453: ENF - ENERGISA NF | C453: 152 | D453: 20627 | E453: 0
C454: 118 | F454: 1.71 | G454: 0.94 | H454: 1.02
B457: Tabela de Financeiros para o cálculo da Neutralidade | G457: Tabela de Financeiros para o cálculo da Neutralidade de RB
B458: Grupo Tarifa | C458: Detalhe Grupo | D458: Valor | E458: Percentual | G458: Tipo | H458: Detalhe | I458: Posto | J458: Unidade | K458: Valor
B459: ENCARGO | C459: CDE | D459: -50166.72003 | G459: CUSTO | H459: CONEXÃO D | J459: R$ | K459: 0
B460: ENCARGO | C460: CDE Energia | D460: 155055.9099 | G460: CUSTO | H460: CONEXÃO T | J460: R$ | K460: 0
B461: ENCARGO | C461: P&D | D461: -15253.91491 | G461: CUSTO | H461: EUSD | J461: R$ | K461: 31485778.78
B462: ENCARGO | C462: PROINFA | D462: -12877.01151 | G462: CUSTO | H462: EUST - FR | J462: R$ | K462: 0
B463: ENCARGO | C463: TFSEE | D463: -1208.974596 | G463: CUSTO | H463: EUST - ITAIPU | J463: R$ | K463: 0
B464: ENERGIA | C464: ENERGIA REQUERIDA SEM PERDAS | D464: 111844.1086 | G464: CUSTO | H464: EUST - RB | J464: R$ | K464: 0
B465: ENERGIA | C465: PERDAS NÃO TÉCNICAS | D465: 9.391871067e-07 | G465: CUSTO | H465: TRANSPORTE ITAIPU | J465: R$ | K465: 0
B466: ENERGIA | C466: PERDAS TÉCNICAS | D466: 8708.139498 | G466: CUSTO | H466: TUSDg ONS (A2) | J466: R$ | K466: 0
B467: ENERGIA | C467: reservado para energia | D467: -104112.6414 | G467: CUSTO | H467: TUSDg T (A2) | J467: R$ | K467: 0
B468: Receita Irrecuperável | D468: 1550.379272 | G468: PARÂMETRO | I468: FORA PONTA | J468: MW | K468: 0
B469: TRANSPORTE TERCEIROS | C469: EUSD | D469: 238431.1435 | G469: PARÂMETRO | I469: PONTA | J469: MW | K469: 0
G470: PARÂMETRO | H470: EUST - FR | I470: FORA PONTA | J470: R$ | K470: 0
G471: PARÂMETRO | H471: EUST - FR | I471: PONTA | J471: R$ | K471: 0
G472: PARÂMETRO | H472: EUST - RB | I472: FORA PONTA | J472: R$ | K472: 0
G473: PARÂMETRO | H473: EUST - RB | I473: PONTA | J473: R$ | K473: 0
J481: =GTIFPastaBD -> 
G488: =GTIFPastaBD -> 

Sheet Resultado
A1: =CAPA!C7&" "&CAPA!#REF!&"/"&YEAR(CAPA!$C$10) -> 
B2: Resultado | F2: Parâmetros a serem considerados para os Reajustes subsequentes
B4: RA1 | D4: =D40+D45 -> 190127549.8 | F4: FATOR X | K4: Última versão enviada: | L4: 20 | O4: 18
B5: RA0 | D5: =Mercado!D24 -> 179862795.5 | F5: Componente T do Fator X | G5: ='VPB e Fator X'!C36 ->  | K5: Data de envio | L5: 2020-06-10T12:37:47 | O5: 2020-05-29T22:16:39
B6: Índice de Reposição/Reajuste (Anexo II) | D6: =D4/D5-1 -> 0.05706991424 | F6: Componente Pd do Fator X | G6: ='VPB e Fator X'!C33 -> -0.0006824112069
B7: Componentes Financeiros | D7: =Financeiros!E8 -> 0.03170165494 | K7: Efeito Consumidor
B8: Índice de Reposição/Reajuste com Financeiros (Anexo I) | D8: =D6+D7 -> 0.08877156918 | F8: PERDAS | K8: Efeito Grupo A - Alta tensão | L8: 0.03680834114 | O8: 0.03611091514
F9: Perdas Não Técnicas | G9: =Entrada!G33 -> 0 | K9: Efeito Grupo B - Baixa tensão | L9: 0.02111947174 | O9: 0.02040956111
C10: DRA | D10: DRP | F10: Perdas Técnicas | G10: =Entrada!G34 -> 0 | K10: Efeito tarifário médio AT+BT | L10: 0.02392070862 | O10: 0.02321302712
B11: TOTAL (Parcela A + Parcela B) | D11: =D45+D40 -> 190127549.8 | G11: =G5+G6 ->  | K11: Tarifa B1 - Residencial (R$) | L11: 662.4463947 | O11: 661.9875087
D12: =D11+Financeiros!D8 -> 195829498.1
K13: Subvenção da CDE para descontos tarifários (Valores anuais)
K14: Subsídio Carga Fonte Incentivada | L14: 2047740.217 | O14: 2048106.778
K15: Subsídio Geração Fonte Incentivada | L15: 21627.82529 | O15: 21636.3724
B16: Parcela A | F16: Formação da Parcela B e Reposicionamento (Resumo) | K16: Subsídio Distribuição | L16: 0 | O16: 0
K17: Subsídio Água, Esgoto e Saneamento | L17: 462766.8266 | O17: 462469.4141
D18: DRP | K18: Subsídio Rural | L18: 607546.0156 | O18: 607125.1665
B19: ENCARGOS | D19: =SUM(D20:D28) -> 21922803.7 | F19: Custo de Administração, Operação e Manutenção (CAOM) | G19: =SUM(G20:G20) ->  | K19: Subsídio Irrigante/Aquicultor | L19: 81956.46887 | O19: 81899.69646
B20: Reserva Global de Reversão – RGR | D20: =Encargos!C16 -> 0 | F20: Custos Operacionais (CO) | G20: ='VPB e Fator X'!C121+Encargos!C14 -> 
B21: Conta de Consumo de Combustíveis – CCC | D21: =Encargos!C9 -> 0 | F21: Custo Anual dos Ativos (CAA) | G21: =SUM(G22:G24) ->  | K21: Versão de Mercado
B22: Taxa de Fisc. de Serviços de E.E. – TFSEE | D22: =Encargos!C17 -> 259114.327 | F22: Remuneração do Capital (RC) | G22: ='VPB e Fator X'!C95 ->  | K22: Status de Sincronização de BDL | L22: Trabalha na pasta de rede
B23: Conta de Desenvolvimento Energético – CDE | D23: =Encargos!C10 -> 17572820.8 | F23: Quota de Reintegração Regulatória (QRR) | G23: ='VPB e Fator X'!C77 -> 0 | K23: Última Sincronização
B24: Compensação financeira - CFURH | D24: =Encargos!C11 -> 0 | F24: Custo anual das instalações móveis e imóveis (CAIMI) | G24: ='VPB e Fator X'!C67 -> 0
B25: Encargos Serv. Sist. - ESS e Energ. Reserv. - EER | D25: =Encargos!C12 -> 0 | F25: Parcela B (VPB) | G25: =SUM(G21,G19) -> 
B26: PROINFA | D26: =Encargos!C13 -> 2341580.068 | F26: Índice de Produtividade da Parcela B | G26: ='VPB e Fator X'!C33 -> -0.0006824112069
B27: P&D e Eficiência Energética | D27: =Encargos!C15 -> 1749288.498 | F27: Mecanismo de Incentivo à Qualidade | G27: ='VPB1'!F42 -> -0.004130939735
F28: Parcela B com ajustes | G28: =(1-G26-G27)*G25 -> 
B29: TRANSPORTE | D29: =SUM(D30:D37) -> 36051364.8 | F29: Outras Receitas (OR) | G29: =UDEROR!C2 -> 2508515.577
B30: Rede Básica | D30: ='RB e Conexão'!E6 -> 0 | F30: Excedente de Reativos (ER) | G30: =UDEROR!C6 -> 220197.9423
B31: Rede Básica Fronteira | D31: ='RB e Conexão'!E7 -> 0 | F31: Ultrapassagem de Demanda (UD) | G31: =UDEROR!C7 -> 274002.7482
B32: Rede Básica ONS (A2) | D32: =VLOOKUP("TUSDg ONS DRP",TUSDG[],2,FALSE) -> 0 | F32: Parcela B deduzidas as outras receitas | G32: =G28-SUM(G29:G31) -> 
B33: Rede Básica Export. (A2) | D33: =VLOOKUP("TUSDg Export DRP",TUSDG[],2,FALSE) -> 0
B34: MUST Itaipu | D34: ='RB e Conexão'!E8 -> 0 | F34: 1. Receita Requerida (RR) | G34: =G28+D40 -> 
B35: Transporte de Itaipu | D35: =SUMPRODUCT(itaiputransporte[Potência],itaiputransporte[Tarifa DRP]) -> 0 | F35: 2. Outras Receitas (OR) | G35: =G29 -> 2508515.577
B36: Conexão | D36: ='RB e Conexão'!E9 -> 0 | F36: 3. Receita Verificada (RV) | G36: =Mercado!D24 -> 179862795.5
B37: Uso do sistema de distribuição e CCD | D37: =CUSD!D14+CUSD!E14 -> 36051364.8
B38: ENERGIA | D38: =Energia!D15 -> 82135670.66
B39: RECEITA IRRECUPERÁVEL | D39: =Mercado!H38 -> 156148.6834
B40: VPA (ENCARGO + TRANSPORTE + ENERGIA+RI) | D40: =D19+D29+D38+D39 -> 140265987.8
B42: Parcela B
D44: VPB1
B45: ="Parcela B "&IF(CAPA!C7="Revisão","(menos Outras Receitas)",) -> Parcela B | D45: =IF(CAPA!$C$7="Revisão",Resultado!$G$32,'VPB1'!$C$43) -> 49861561.95

Sheet Apresentação (hidden)
B9: Impacto da RTA na Tarifa
B10: Encargos Setoriais | C10: ='Votos e NTs'!H24 -> 0.003293221371
B11: Custos de Transmissão | C11: ='Votos e NTs'!H25 -> 0.02479535644
B12: Custos de Aquisição de Energia | C12: ='Votos e NTs'!H26 -> 0.02231468682
B13: Receitas Irrecuperáveis | C13: ='Votos e NTs'!H27 -> 5.641809804e-06
B14: Distribuição | C14: ='Votos e NTs'!H28 -> 0.006661007798
B15: Componentes Financeiros | C15: ='Votos e NTs'!H29 -> 0.03170165494
B16: Efeito da Retirada dos Financeiros Anteriores | C16: ='Votos e NTs'!H30 -> -0.06485086056
B17: Efeito Médio Consumidor | C17: ='Votos e NTs'!H31 -> 0.02392070862 | D17: ='[14]Votos e NTs'!BP295 -> 0.002014546158
E20: SUBGRUPO | F20: EFEITO | AA20: ='[14]Votos e NTs'!O24 -> Custo de Distribuição | AB20: ='Votos e NTs'!Q24 -> 0.182200582 | AC20: ='[14]Votos e NTs'!U24 -> Custo de Distribuição | AD20: ='Votos e NTs'!W24 -> 49861561.95
E21: Grupo A | F21: =LnkTxtEfeitoAT -> 0.03680834114 | AA21: ='[14]Votos e NTs'!O25 -> Custo de Energia | AB21: ='Votos e NTs'!Q25 -> 0.3001343402 | AC21: ='[14]Votos e NTs'!U25 -> Custo de Energia | AD21: ='Votos e NTs'!W25 -> 82135670.66
E22: Grupo B | F22: =LnkTxtEfeitoBT -> 0.02111947174 | AA22: ='[14]Votos e NTs'!O26 -> Custo de Transmissão | AB22: ='Votos e NTs'!Q26 -> 0.1317363394 | AC22: ='[14]Votos e NTs'!U26 -> Custo de Transmissão | AD22: ='Votos e NTs'!W27 -> 36051364.8
E23: Grupos A+B | F23: =Resultado!L10 -> 0.02392070862 | AA23: ='[14]Votos e NTs'!O27 -> Encargos Setoriais | AB23: ='Votos e NTs'!Q27 -> 0.08010875384 | AC23: ='[14]Votos e NTs'!U27 -> Receitas Irrecuperáveis | AD23: ='Votos e NTs'!W26 -> 156148.6834
AA24: ='[14]Votos e NTs'!O28 -> Receitas Irrecuperáveis | AB24: ='Votos e NTs'!Q28 -> 0.0005705874401 | AC24: ='[14]Votos e NTs'!U28 -> PROINFA | AD24: ='Votos e NTs'!W28 -> 2341580.068
AA25: ='[14]Votos e NTs'!O29 -> ICMS | AB25: ='Votos e NTs'!Q29 -> 0.2546960432 | AC25: ='[14]Votos e NTs'!U29 -> CDE | AD25: ='Votos e NTs'!W29 -> 17572820.8
H26: Contratos | I26: Montantes (GWh) | L26: Preço (R$/MWh) | O26: Impacto Processo | AA26: ='[14]Votos e NTs'!O30 -> PIS/COFINS | AB26: ='Votos e NTs'!Q30 -> 0.05055335391 | AC26: ='[14]Votos e NTs'!U30 -> ESS/EER | AD26: ='Votos e NTs'!W30 -> 0
I27: Processo Anterior | J27: Processo Atual | K27: Variação | L27: Processo Anterior | M27: Processo Atual | N27: Variação | AC27: ='[14]Votos e NTs'!U31 -> Outros | AD27: ='Votos e NTs'!W31 -> 2008402.825
H28: CCEAR | I28: =(SUM('Votos e NTs'!BX311:BX314)+'Votos e NTs'!BX$324*SUM('Votos e NTs'!BX311:BX314)/SUM('Votos e NTs'!BX311:BX322))/1000 -> 0 | J28: =(SUM('Votos e NTs'!BY311:BY314)+'Votos e NTs'!BY$324*SUM('Votos e NTs'!BY311:BY314)/SUM('Votos e NTs'!BY311:BY322))/1000 -> 0 | K28: =IFERROR(J28/I28-1,"") ->  | L28: =IFERROR(SUM('Votos e NTs'!CD311:CD314)/SUM('Votos e NTs'!BX311:BX314),"") ->  | M28: =IFERROR(SUM('Votos e NTs'!CE311:CE314)/SUM('Votos e NTs'!BY311:BY314),"") ->  | N28: =IFERROR(M28/L28-1,"") ->  | O28: =SUM('Votos e NTs'!CG351:CG354) -> 0
H29: Madeira/Belo Monte | I29: =('Votos e NTs'!BX315+'Votos e NTs'!BX$324*'Votos e NTs'!BX315/SUM('Votos e NTs'!BX$311:BX$322))/1000 -> 0 | J29: =('Votos e NTs'!BY315+'Votos e NTs'!BY$324*'Votos e NTs'!BY315/SUM('Votos e NTs'!BY$311:BY$322))/1000 -> 0 | K29: =IFERROR(J29/I29-1,"") ->  | L29: =IFERROR('Votos e NTs'!CD315/'Votos e NTs'!BX315,"") ->  | M29: =IFERROR('Votos e NTs'!CE315/'Votos e NTs'!BY315,"") ->  | N29: =IFERROR(M29/L29-1,"") ->  | O29: ='Votos e NTs'!CG355 -> 0
H30: Cota Angra I e II | I30: =('Votos e NTs'!BX316+'Votos e NTs'!BX$324*'Votos e NTs'!BX316/SUM('Votos e NTs'!BX$311:BX$322))/1000 -> 0 | J30: =('Votos e NTs'!BY316+'Votos e NTs'!BY$324*'Votos e NTs'!BY316/SUM('Votos e NTs'!BY$311:BY$322))/1000 -> 0 | K30: =IFERROR(J30/I30-1,"") ->  | L30: =IFERROR('Votos e NTs'!CD316/'Votos e NTs'!BX316,"") ->  | M30: =IFERROR('Votos e NTs'!CE316/'Votos e NTs'!BY316,"") ->  | N30: =IFERROR(M30/L30-1,"") ->  | O30: ='Votos e NTs'!CG356 -> 0
H31: Cotas Lei 12.783/2013 | I31: =('Votos e NTs'!BX317+'Votos e NTs'!BX$324*'Votos e NTs'!BX317/SUM('Votos e NTs'!BX$311:BX$322))/1000 -> 0 | J31: =('Votos e NTs'!BY317+'Votos e NTs'!BY$324*'Votos e NTs'!BY317/SUM('Votos e NTs'!BY$311:BY$322))/1000 -> 0 | K31: =IFERROR(J31/I31-1,"") ->  | L31: =IFERROR('Votos e NTs'!CD317/'Votos e NTs'!BX317,"") ->  | M31: =IFERROR('Votos e NTs'!CE317/'Votos e NTs'!BY317,"") ->  | N31: =IFERROR(M31/L31-1,"") ->  | O31: ='Votos e NTs'!CG357 -> 0
H32: Ajuste - CCEAR | I32: =('Votos e NTs'!BX318+'Votos e NTs'!BX$324*'Votos e NTs'!BX318/SUM('Votos e NTs'!BX$311:BX$322))/1000 -> 0 | J32: =('Votos e NTs'!BY318+'Votos e NTs'!BY$324*'Votos e NTs'!BY318/SUM('Votos e NTs'!BY$311:BY$322))/1000 -> 0 | K32: =IFERROR(J32/I32-1,"") ->  | L32: =IFERROR('Votos e NTs'!CD318/'Votos e NTs'!BX318,"") ->  | M32: =IFERROR('Votos e NTs'!CE318/'Votos e NTs'!BY318,"") ->  | N32: =IFERROR(M32/L32-1,"") ->  | O32: ='Votos e NTs'!CG358 -> 0
H33: Itaipu | I33: =('Votos e NTs'!BX319+'Votos e NTs'!BX$324*'Votos e NTs'!BX319/SUM('Votos e NTs'!BX$311:BX$322))/1000 -> 0 | J33: =('Votos e NTs'!BY319+'Votos e NTs'!BY$324*'Votos e NTs'!BY319/SUM('Votos e NTs'!BY$311:BY$322))/1000 -> 0 | L33: =IFERROR('Votos e NTs'!CD319/'Votos e NTs'!BX319,"") ->  | M33: =IFERROR('Votos e NTs'!CE319/'Votos e NTs'!BY319,"") ->  | O33: ='Votos e NTs'!CG359 -> 0
H34: Bilateral | I34: =('Votos e NTs'!BX320+'Votos e NTs'!BX$324*'Votos e NTs'!BX320/SUM('Votos e NTs'!BX$311:BX$322))/1000 -> 308.676653 | J34: =('Votos e NTs'!BY320+'Votos e NTs'!BY$324*'Votos e NTs'!BY320/SUM('Votos e NTs'!BY$311:BY$322))/1000 -> 307.9356303 | K34: -0.00240064384 | L34: =IFERROR('Votos e NTs'!CD320/'Votos e NTs'!BX320,"") -> 253.02 | M34: =IFERROR('Votos e NTs'!CE320/'Votos e NTs'!BY320,"") -> 266.73 | N34: 0.05418543989 | O34: ='Votos e NTs'!CG360 -> 0.02212930745
H35: Geração Própria | I35: =('Votos e NTs'!BX321+'Votos e NTs'!BX$324*'Votos e NTs'!BX321/SUM('Votos e NTs'!BX$311:BX$322))/1000 -> 0 | J35: =('Votos e NTs'!BY321+'Votos e NTs'!BY$324*'Votos e NTs'!BY321/SUM('Votos e NTs'!BY$311:BY$322))/1000 -> 0 | L35: =IFERROR('Votos e NTs'!CD321/'Votos e NTs'!BX321,"") ->  | M35: =IFERROR('Votos e NTs'!CE321/'Votos e NTs'!BY321,"") ->  | O35: ='Votos e NTs'!CG361 -> 0
H36: Montante de Reposição | I36: =('Votos e NTs'!BX322+'Votos e NTs'!BX$324*'Votos e NTs'!BX322/SUM('Votos e NTs'!BX$311:BX$322))/1000 -> 0 | J36: =('Votos e NTs'!BY322+'Votos e NTs'!BY$324*'Votos e NTs'!BY322/SUM('Votos e NTs'!BY$311:BY$322))/1000 -> 0 | L36: =IFERROR('Votos e NTs'!CD322/'Votos e NTs'!BX322,"") ->  | M36: =IFERROR('Votos e NTs'!CE322/'Votos e NTs'!BY322,"") ->  | O36: ='Votos e NTs'!CG362 -> 0
H37: Proinfa | I37: ='Votos e NTs'!BX323/1000 -> 7.396567755 | J37: ='Votos e NTs'!BY323/1000 -> 7.240762673 | K37: =IFERROR(J37/I37-1,"") -> -0.02106451086 | L37: =IFERROR('Votos e NTs'!CD323/'Votos e NTs'!BX323,"") -> 0 | M37: =IFERROR('Votos e NTs'!CE323/'Votos e NTs'!BY323,"") -> 0 | O37: ='Votos e NTs'!CG363 -> 0.0001853793661
H38: Total | I38: =SUM(I28:I37) -> 316.0732207 | J38: =SUM(J28:J37) -> 315.1763929 | L38: ='Votos e NTs'!CA325 -> 247.1645289 | M38: ='Votos e NTs'!CB325 -> 260.6022294 | N38: 0.05436743105 | O38: ='Votos e NTs'!CG350 -> 0.02231468682
Q41: Encargos Setoriais | R41: Processo Anterior (mil R$) | S41: Processo Atual (mil R$) | T41: Impacto Processo
Q42: TFSEE | R42: ='Votos e NTs'!BM232/1000 -> 250.5988689 | S42: ='Votos e NTs'!BN232/1000 -> 259.114327 | T42: ='Votos e NTs'!BP232 -> 4.734418842e-05
Q43: CDE (USO) | R43: ='Votos e NTs'!BM233/1000 -> 14435.84384 | S43: ='Votos e NTs'!BN233/1000 -> 17572.8208 | T43: ='Votos e NTs'!BP233 -> 0.01744094413
Q44: CDE (Decr. 7945/2013) | R44: ='Votos e NTs'!BM234/1000 -> 0 | S44: ='Votos e NTs'!BN234/1000 -> 0 | T44: ='Votos e NTs'!BP234 -> 0
Q45: CDE (Conta-ACR) | R45: ='Votos e NTs'!BM235/1000 -> 2072.212628 | S45: ='Votos e NTs'!BN235/1000 -> 0 | T45: ='Votos e NTs'!BP235 -> -0.01152107429
Q46: Compensação financeira - CFURH | R46: ='Votos e NTs'!BM236/1000 -> 0 | S46: ='Votos e NTs'!BN236/1000 -> 0 | T46: ='Votos e NTs'!BP236 -> 0
Q47: ESS/EER | R47: ='Votos e NTs'!BM237/1000 -> 0 | S47: ='Votos e NTs'!BN237/1000 -> 0 | T47: ='Votos e NTs'!BP237 -> 0
Q48: PROINFA | R48: ='Votos e NTs'!BM238/1000 -> 2876.631173 | S48: ='Votos e NTs'!BN238/1000 -> 2341.580068 | T48: ='Votos e NTs'!BP238 -> -0.002974773654
Q49: P&D | R49: ='Votos e NTs'!BM239/1000 -> 1695.189188 | S49: ='Votos e NTs'!BN239/1000 -> 1749.288498 | T49: ='Votos e NTs'!BP239 -> 0.0003007809958
Q50: ONS | R50: 0 | S50: 0 | T50: ='Votos e NTs'!BP240 -> 0
Q51: Total de Encargos | R51: =SUM(R42:R50) -> 21330.47569 | S51: =SUM(S42:S50) -> 21922.8037 | T51: ='Votos e NTs'!BP231 -> 0.003293221371
V54: Custos de Transporte | W54: Processo Anterior (mil R$) | X54: Processo Atual (mil R$) | Y54: Impacto Processo
V55: Rede Básica | W55: ='Votos e NTs'!BM242/1000 -> 0 | X55: ='Votos e NTs'!BN242/1000 -> 0 | Y55: ='Votos e NTs'!BP242 -> 0
V56: Rede Básica Fronteira | W56: ='Votos e NTs'!BM243/1000 -> 0 | X56: ='Votos e NTs'!BN243/1000 -> 0 | Y56: ='Votos e NTs'!BP243 -> 0
V57: Rede Básica ONS (A2) | W57: ='Votos e NTs'!BM244/1000 -> 0 | X57: ='Votos e NTs'!BN244/1000 -> 0 | Y57: ='Votos e NTs'!BP244 -> 0
V58: Rede Básica Export. (A2) | W58: ='Votos e NTs'!BM245/1000 -> 0 | X58: ='Votos e NTs'!BN245/1000 -> 0 | Y58: ='Votos e NTs'!BP245 -> 0
V59: MUST Itaipu | W59: ='Votos e NTs'!BM246/1000 -> 0 | X59: ='Votos e NTs'!BN246/1000 -> 0 | Y59: ='Votos e NTs'!BP246 -> 0
V60: Transporte de Itaipu | W60: ='Votos e NTs'!BM247/1000 -> 0 | X60: ='Votos e NTs'!BN247/1000 -> 0 | Y60: ='Votos e NTs'!BP247 -> 0
V61: Conexão | W61: ='Votos e NTs'!BM248/1000 -> 0 | X61: ='Votos e NTs'!BN248/1000 -> 0 | Y61: ='Votos e NTs'!BP248 -> 0
V62: Uso do sistema de distribuição | W62: ='Votos e NTs'!BM249/1000 -> 31591.60268 | X62: ='Votos e NTs'!BN249/1000 -> 36051.3648 | Y62: ='Votos e NTs'!BP249 -> 0.02479535644
V63: Total do Transporte | W63: =SUM(W55:W62) -> 31591.60268 | X63: =SUM(X55:X62) -> 36051.3648 | Y63: ='Votos e NTs'!BP241 -> 0.02479535644 | Z63: =LnkTxtAvalEfeitoTrans -> 0.01840425712
AA66: Descrição | AB66: Valor | AC66: Referência
AA67: (1) Parcela B - DRA (mil R$) | AB67: ='Votos e NTs'!AQ141/1000 -> 48663.30749 | AC67: ='Votos e NTs'!AR141 -> TUSD fio B aplicada ao Mercado
AA68: (2) Fator DR1/Fator PB | AB68: ='Votos e NTs'!AQ142 -> 1.061290765 | AC68: ='Votos e NTs'!AR142 -> SGT/ANEEL
AA69: (3) Parcela B econômica = (1)*(2) | AB69: ='Votos e NTs'!AQ143/1000 -> 51645.91884 | AC69: ='Votos e NTs'!AR143 -> SGT/ANEEL
AA70: (4) IPCA | AB70: ='Votos e NTs'!AQ144 -> 0.01877727164 | AC70: ='Votos e NTs'!AR144 -> Indicador econômico oficial
AA71: (5) Fator X | AB71: ='Votos e NTs'!AQ145 -> -0.004813350941 | AC71: ='Votos e NTs'!AR145 -> 0
AA72: (5.1) Componente Pd do Fator X | AB72: ='Votos e NTs'!AQ146 -> -0.0006824112069 | AC72: ='Votos e NTs'!AR146 -> Pd Expost (PRORET 2.5 A)
AA73: (5.2) Componente T do Fator X | AB73: ='Votos e NTs'!AQ147 -> 0 | AC73: ='Votos e NTs'!AR147 -> REH nº 2.091/2016
AA74: (5.3) Componente Q do Fator X | AB74: ='Votos e NTs'!AQ148 -> -0.004130939735 | AC74: ='Votos e NTs'!AR148 -> PRORET 2.5 A
AA75: (6) ONS | AB75: ='Votos e NTs'!AQ149 -> 0 | AC75: ='Votos e NTs'!AR149 -> REA nº 6.981/2018
AA76: (6) UDEROR | AB76: ='Votos e NTs'!AQ150/1000 -> 3002.716267 | AC76: ='Votos e NTs'!AR150 -> 0
AA77: (6.1) Outras Receitas (OR) | AB77: ='Votos e NTs'!AQ151/1000 -> 2508.515577 | AC77: ='Votos e NTs'!AR151 -> Valores fiscalizados - SFF
AA78: (6.2) Excedente de Reativos (ER) | AB78: ='Votos e NTs'!AQ152/1000 -> 274.0027482 | AC78: ='Votos e NTs'!AR152 -> Valores fiscalizados - SFF
AA79: (6.3) Ultrapassagem de Demanda (UD) | AB79: ='Votos e NTs'!AQ153/1000 -> 220.1979423 | AC79: ='Votos e NTs'!AR153 -> Valores fiscalizados - SFF
AA80: Parcela B-DRP (mil R$) = (3)*[(1)+(4)-(5)]-(6) | AB80: ='Votos e NTs'!AQ154/1000 -> 49861.56195
AE83: Descrição | AF83: Valor (mil R$) | AG83: Impacto
AD84: preencher valor conforme aba "NT" da planilha de CVA | AE84: CVA Energia - Efeito CCEAR-D | AF84: ='Votos e NTs'!CK368/1000 -> 0 | AG84: =AF84/('Votos e NTs'!$BM$253/1000) -> 0
AD85: preencher valor conforme aba "NT" da planilha de CVA | AE85: CVA Energia - Risco Hidrológico das usinas repactuadas | AF85: ='Votos e NTs'!CK369/1000 -> 0 | AG85: =AF85/('Votos e NTs'!$BM$253/1000) -> 0
AD86: preencher valor conforme aba "NT" da planilha de CVA | AE86: CVA Energia - Risco Hidrológico das usinas cotistas | AF86: ='Votos e NTs'!CK370/1000 -> 0 | AG86: =AF86/('Votos e NTs'!$BM$253/1000) -> 0
AD87: preencher valor conforme aba "NT" da planilha de CVA | AE87: CVA Energia - Risco Hidrológico da UHE Itaipu | AF87: ='Votos e NTs'!CK371/1000 -> 0 | AG87: =AF87/('Votos e NTs'!$BM$253/1000) -> 0
AE88: CVA ESS/EER (sem bandeiras) | AF88: =CVA!E17/1000 -> 0 | AG88: =AF88/('Votos e NTs'!$BM$253/1000) -> 0
AD89: preencher valor conforme aba "NT" da planilha de CVA | AE89: Resultado do Mercado de Curto Prazo | AF89: ='Votos e NTs'!CK373/1000 -> 0 | AG89: =AF89/('Votos e NTs'!$BM$253/1000) -> 0
AE90: Custo total - Itens observados nas Bandeiras Tarifárias | AF90: =SUM(AF84:AF89) -> 0 | AG90: =AF90/('Votos e NTs'!$BM$253/1000) -> 0
AD91: preencher valor conforme aba "NT" da planilha de CVA | AE91: Receita das Bandeiras Tarifárias (Energia, ESS e MCP) | AF91: ='Votos e NTs'!CK375/1000 -> 0 | AG91: =AF91/('Votos e NTs'!$BM$253/1000) -> 0
AE92: Reversão da Previsão do Risco Hidrológico | AF92: ='Votos e NTs'!AZ185/1000 -> 0 | AG92: =AF92/('Votos e NTs'!$BM$253/1000) -> 0
AE93: Custo não coberto antecipadamente | AF93: =SUM(AF91:AF92) -> 0 | AG93: =AF93/('Votos e NTs'!$BM$253/1000) -> 0
AD94: preencher valor conforme aba "NT" da planilha de CVA | AE94: CVA Energia - Itens não coberto pelas bandeiras | AG94: =AF94/('Votos e NTs'!$BM$253/1000) -> 0
AE95: CVA Transporte | AF95: ='Votos e NTs'!AZ172/1000 -> 0 | AG95: =AF95/('Votos e NTs'!$BM$253/1000) -> 0
AE96: CVA Encargos (desconsiderando ESS/EER) | AF96: =('Votos e NTs'!AZ173-CVA!E17)/1000 -> 1010.467957 | AG96: =AF96/('Votos e NTs'!$BM$253/1000) -> 0.005617993175
AE97: Sobrecontratação | AF97: ='Votos e NTs'!AZ180/1000 -> 0 | AG97: =AF97/('Votos e NTs'!$BM$253/1000) -> 0
AE98: Neutralidade | AF98: =SUM('Votos e NTs'!AZ175:AZ178)/1000 -> 196.261558 | AG98: =AF98/('Votos e NTs'!$BM$253/1000) -> 0.001091173733
AE99: Previsão do Risco Hidrológico | AF99: ='Votos e NTs'!AZ184/1000 -> 0 | AG99: =AF99/('Votos e NTs'!$BM$253/1000) -> 0
AD100: preencher caso acha financeiro extraordinário | AE100: Financeiro importante | AG100: =AF100/('Votos e NTs'!$BM$253/1000) -> 0
AE101: Demais Itens | AF101: =AF102-SUM(AF93:AF100) -> 4495.218763 | AG101: =AF101/('Votos e NTs'!$BM$253/1000) -> 0.02499248803
AE102: Total de Financeiros | AF102: ='Votos e NTs'!AZ209/1000 -> 5701.948279 | AG102: =AF102/('Votos e NTs'!$BM$253/1000) -> 0.03170165494
AJ105: Variação
AI106: IGP-M | AJ106: ='Votos e NTs'!AE38 -> 0.8407822876
AI107: IPCA | AJ107: ='Votos e NTs'!AF38 -> 0.7075197541
AI108: Tarifa B1 | AJ108: ='Votos e NTs'!AD38 -> 0.9886715942
AL120: Enel RJ | AM120: 683.87 | AO120: 1 | AP120: Enel RJ | AR120: =AM120 -> 683.87
AL121: Celpa | AM121: 683.6 | AO121: 2 | AP121: Celpa | AR121: 683.6
AL122: AmE | AM122: 664.84 | AO122: =AO121+1 -> 3 | AP122: AmE | AR122: 664.84
AL123: Light | AM123: 663.1 | AO123: =AO122+1 -> 4 | AP123: Light | AR123: 663.1
AL124: ENF | AM124: 649.89 | AO124: 5 | AP124: ENF | AR124: 649.89
AL125: Eflul | AM125: 648.12 | AO125: 6 | AP125: Eflul | AR125: 648.12
AL126: EFLJC | AM126: 639.05 | AO126: 7 | AP126: EFLJC | AR126: 639.05
AL127: Sulgipe | AM127: 636.31 | AO127: 8 | AP127: Sulgipe | AR127: 636.31
AL128: Cemar | AM128: 630.18 | AO128: 9 | AP128: Cemar | AR128: 630.18
AL129: Cemig-D | AM129: 628.33 | AO129: 10 | AP129: Cemig-D | AR129: 628.33
AL130: EMT | AM130: 626.84 | AO130: 11 | AP130: EMT | AR130: 626.84
AL131: Forcel | AM131: 619.01 | AO131: 12 | AP131: Forcel | AR131: 619.01
AL132: Roraima Energia | AM132: 617.77 | AO132: 13 | AP132: Roraima Energia | AR132: 617.77
AL133: EMS | AM133: 608.65 | AO133: 14 | AP133: EMS | AR133: 608.65
AL134: Hidropan | AM134: 600.74 | AO134: 15 | AP134: Hidropan | AR134: 600.74
AL135: ETO | AM135: 600.08 | AO135: 16 | AP135: ETO | AR135: 600.08
AL136: EMG | AM136: 595.83 | AO136: 17 | AP136: EMG | AR136: 595.83
AL137: Ceron | AM137: 576.82 | AO137: 18 | AP137: Ceron | AR137: 576.82
AL138: Chesp | AM138: 573.14 | AO138: 19 | AP138: Chesp | AR138: 573.14
AL139: Uhenpal | AM139: 572.49 | AO139: 20 | AP139: Uhenpal | AR139: 572.49
AL140: Eletroacre | AM140: 569.84 | AO140: 21 | AP140: Eletroacre | AR140: 569.84
AL141: Cepisa | AM141: 569.48 | AO141: 22 | AP141: Cepisa | AR141: 569.48
AL142: RGE | AM142: 560.27 | AO142: 23 | AP142: RGE | AR142: 560.27
AL143: Cocel | AM143: 557.12 | AO143: 24 | AP143: Cocel | AR143: 557.12
AL144: Coelba | AM144: 552.13 | AO144: 25 | AP144: Coelba | AR144: 552.13
AL145: Celpe | AM145: 549.33 | AO145: 26 | AP145: Celpe | AR145: 549.33
AL146: CPFL Santa Cruz (nova) | AM146: 547.69 | AO146: 27 | AP146: CPFL Santa Cruz (nova) | AQ146: Santa Cruz 2019 | AR146: 547.69
AL147: EPB | AM147: 545.4 | AO147: 27 | AP147: EPB | AR147: 545.4
AL148: Eletrocar | AM148: 541.57 | AO148: 28 | AP148: Eletrocar | AR148: 541.57
AL149: CEA | AM149: 537.18 | AO149: 29 | AP149: CPFL Santa Cruz (nova) | AQ149: Santa Cruz 2020 | AR149: =[14]Resultado!L11 -> 541.15
AL150: Ceal | AM150: 535.25 | AO150: 30 | AP150: CEA | AR150: =AM149 -> 537.18
AL151: Celg-D | AM151: 533.68 | AO151: 31 | AP151: Ceal | AR151: 535.25
AL152: Elektro | AM152: 531.87 | AO152: 32 | AP152: Celg-D | AR152: 533.68
AL153: ESE | AM153: 530.72 | AO153: 33 | AP153: Elektro | AR153: 531.87
AL154: Enel CE | AM154: 529.49 | AO154: 34 | AP154: ESE | AR154: 530.72
AL155: EDP ES | AM155: 525.81 | AO155: 35 | AP155: Enel CE | AR155: 529.49
AL156: EDP SP | AM156: 525.73 | AO156: 36 | AP156: EDP ES | AR156: 525.81
AL157: CPFL Paulista | AM157: 523.02 | AO157: 37 | AP157: EDP SP | AR157: 525.73
AL158: CEB-DIS | AM158: 518.01 | AO158: 38 | AP158: CPFL Paulista | AR158: 523.02
AL159: ELFSM | AM159: 517.96 | AO159: 39 | AP159: CEB-DIS | AR159: 518.01
AL160: Copel-DIS | AM160: 517.61 | AO160: 40 | AP160: ELFSM | AR160: 517.96
AL161: Eletropaulo | AM161: 515.59 | AO161: 41 | AP161: Copel-DIS | AR161: 517.61
AL162: CEEE-D | AM162: 515.07 | AO162: 42 | AP162: Eletropaulo | AR162: 515.59
AL163: Ienergia | AM163: 510.62 | AO163: 43 | AP163: CEEE-D | AR163: 515.07
AL164: DMED | AM164: 507.42 | AO164: 44 | AP164: Ienergia | AR164: 510.62
AL165: Demei | AM165: 507.03 | AO165: 45 | AP165: DMED | AR165: 507.42
AL166: Cosern | AM166: 505.53 | AO166: 46 | AP166: Demei | AR166: 507.03
AL167: EBO | AM167: 497.66 | AO167: =AO166+1 -> 47 | AP167: Cosern | AR167: 505.53
AL168: Sul Sudeste | AM168: 497.35 | AO168: 48 | AP168: EBO | AR168: 497.66
AL169: CPFL Piratininga | AM169: 490.18 | AO169: 49 | AP169: Sul Sudeste | AR169: 497.35
AL170: MuxEnergia | AM170: 485.22 | AO170: 50 | AP170: CPFL Piratininga | AR170: 490.18
AL171: Celesc-DIS | AM171: 469.78 | AO171: 51 | AP171: MuxEnergia | AR171: 485.22
AL172: Cooperaliança | AM172: 467.6 | AO172: 52 | AP172: Celesc-DIS | AR172: 469.78
AO173: 53 | AP173: Cooperaliança | AR173: 467.6

Sheet Votos e NTs
B2: Tabelas | D2: Gráficos
AE3: =AD37/AD24-1 -> 0.9886715942 | AF3: =AE37/AE24-1 -> 0.8407822876 | AG3: =AF37/AF24-1 -> 0.7075197541
B4: Consumidores | D4: Análise de Impacto da RTA na Tarfia | K4: Composição da Receita | O4: Composição da Receita com Tributos | U4: Composição da Receita com detalhamento de Encargos | AB4: Evolução da Tarifa B1 Residencial
B5: Mercado
B6: Encargos
B7: Custo do Transporte de Energia
B8: Perdas
B9: Energia Requerida
B10: Energia na DRA
B11: Contratos
B12: Fator X
B13: Parcela B
B14: CVA em Processamento
B15: Financeiros
B16: Subsídios
B17: Efeito Médio AT + BT
B18: Avaliação RTA
B19: Variação do Custo de Energia
E23: Impacto da RTA na Tarifa | K23: Composição da Receita | O23: Composição da Receita com Tributos | U23: Composição da Receita com detalhamento de Encargos | AB23: Tipo | AC23: Tipo | AD23: B1 - Residencial | AE23: IGPM | AF23: IPCA | AG23: Data
E24: Encargos Setoriais | H24: =BP231 -> 0.003293221371 | K24: Custo de Distribuição | M24: =Resultado!D45 -> 49861561.95 | O24: Custo de Distribuição | Q24: =M24/$Q$33 -> 0.182200582 | U24: Custo de Distribuição | W24: =Resultado!D45 -> 49861561.95 | AB24: 2010 | AC24: 0 | AD24: 333.11 | AE24: =AD24 -> 333.11 | AF24: =AD24 -> 333.11 | AG24: 2010-05-01 | AH24: 2010 | AI24: 0 | AJ24: 333.11 | AK24: 2010-05-01
E25: Custos de Transmissão | H25: =BP241 -> 0.02479535644 | K25: Custo de Energia | M25: =Resultado!D38 -> 82135670.66 | O25: Custo de Energia | Q25: =M25/$Q$33 -> 0.3001343402 | U25: Custo de Energia | W25: =Resultado!D38 -> 82135670.66 | AB25: 2011 | AC25: 0 | AD25: 375.82 | AE25: =AE24*VLOOKUP(AG25,Índices!$B$147:$D$495,2,0)/VLOOKUP(AG24,Índices!$B$147:$D$495,2,0) -> 365.6646194 | AF25: =AF24*VLOOKUP(AG25,Índices!$B$147:$D$495,3,0)/VLOOKUP(AG24,Índices!$B$147:$D$495,3,0) -> 354.937971 | AG25: 2011-05-01 | AH25: 2011 | AI25: 0 | AJ25: 375.82 | AK25: 2011-05-01
E26: Custos de Aquisição de Energia | H26: =BP250 -> 0.02231468682 | K26: Custo de Transmissão | M26: =Resultado!D29 -> 36051364.8 | O26: Custo de Transmissão | Q26: =M26/Q33 -> 0.1317363394 | U26: Receitas Irrecuperáveis | W26: =LnkTxtRI -> 156148.6834 | AB26: 2012 | AC26: Revisão | AD26: 348.18 | AE26: =AE25*VLOOKUP(AG26,Índices!$B$147:$D$495,2,0)/VLOOKUP(AG25,Índices!$B$147:$D$495,2,0) -> 381.2472378 | AF26: =AF25*VLOOKUP(AG26,Índices!$B$147:$D$495,3,0)/VLOOKUP(AG25,Índices!$B$147:$D$495,3,0) -> 372.6453556 | AG26: 2012-05-01 | AH26: 2012 | AI26: Revisão | AJ26: 348.18 | AK26: 2012-05-01
E27: Receitas Irrecuperáveis | H27: =LnkTxTEfeitoRecIrr -> 5.641809804e-06 | K27: Encargos Setoriais | M27: =Resultado!D19 -> 21922803.7 | O27: Encargos Setoriais | Q27: =M27/$Q$33 -> 0.08010875384 | U27: Custo de Transmissão | W27: =Resultado!D29 -> 36051364.8 | AB27: 2013 | AC27: -1 | AD27: 285.24 | AE27: =AE26*VLOOKUP(AG27,Índices!$B$147:$D$495,2,0)/VLOOKUP(AG26,Índices!$B$147:$D$495,2,0) -> 400.9815014 | AF27: =AF26*VLOOKUP(AG27,Índices!$B$147:$D$495,3,0)/VLOOKUP(AG26,Índices!$B$147:$D$495,3,0) -> 385.7652683 | AG27: 2012-12-01 | AH27: 2013 | AI27: -1 | AJ27: 285.24 | AK27: 2012-12-01
E28: Custos de Distribuição | H28: =BP252 -> 0.006661007798 | K28: Receitas Irrecuperáveis | M28: =LnkTxtRI -> 156148.6834 | O28: Receitas Irrecuperáveis | Q28: =M28/$Q$33 -> 0.0005705874401 | U28: PROINFA | W28: =Resultado!D26 -> 2341580.068 | AB28: 2013 | AC28: 0 | AD28: 324.01 | AE28: =AE27*VLOOKUP(AG28,Índices!$B$147:$D$495,2,0)/VLOOKUP(AG27,Índices!$B$147:$D$495,2,0) -> 404.947686 | AF28: =AF27*VLOOKUP(AG28,Índices!$B$147:$D$495,3,0)/VLOOKUP(AG27,Índices!$B$147:$D$495,3,0) -> 396.8827131 | AG28: 2013-05-01 | AH28: 2013 | AI28: 0 | AJ28: 324.01 | AK28: 2013-05-01
E29: Componentes Financeiros | H29: =BP255 -> 0.03170165494 | O29: ICMS | Q29: =Mercado!G9 -> 0.2546960432 | U29: CDE | W29: =Resultado!D23 -> 17572820.8 | AB29: 2014 | AC29: 0 | AD29: 368.2 | AE29: =AE28*VLOOKUP(AG29,Índices!$B$147:$D$495,2,0)/VLOOKUP(AG28,Índices!$B$147:$D$495,2,0) -> 436.6803064 | AF29: =AF28*VLOOKUP(AG29,Índices!$B$147:$D$495,3,0)/VLOOKUP(AG28,Índices!$B$147:$D$495,3,0) -> 422.1834131 | AG29: 2014-05-01 | AH29: 2014 | AI29: 0 | AJ29: 368.2 | AK29: 2014-05-01
E30: Efeito da Retirada dos Financeiros Anteriores | H30: =BP293 -> -0.06485086056 | O30: PIS/COFINS | Q30: =Mercado!$G$10 -> 0.05055335391 | U30: ESS/EER | W30: =Resultado!D25 -> 0 | AB30: 2015 | AC30: -1 | AD30: 459.44 | AE30: =AE29*VLOOKUP(AG30,Índices!$B$147:$D$495,2,0)/VLOOKUP(AG29,Índices!$B$147:$D$495,2,0) -> 443.2225071 | AF30: =AF29*VLOOKUP(AG30,Índices!$B$147:$D$495,3,0)/VLOOKUP(AG29,Índices!$B$147:$D$495,3,0) -> 445.5052037 | AG30: 2015-02-01 | AH30: 2015 | AI30: -1 | AJ30: 459.44 | AK30: 2015-02-01
E31: Efeito Médio Consumidor | H31: =BP294 -> 0.02392070862 | O31: Imposto Total por Fora | Q31: =1/(1-Q29-Q30)-1 -> 0.4393654296 | U31: Outros | W31: =Resultado!D27+Resultado!D28+Resultado!D24+Resultado!D22 -> 2008402.825 | AB31: 2015 | AC31: 0 | AD31: 520.54 | AE31: =AE30*VLOOKUP(AG31,Índices!$B$147:$D$495,2,0)/VLOOKUP(AG30,Índices!$B$147:$D$495,2,0) -> 454.6267614 | AF31: =AF30*VLOOKUP(AG31,Índices!$B$147:$D$495,3,0)/VLOOKUP(AG30,Índices!$B$147:$D$495,3,0) -> 457.9547715 | AG31: 2015-05-01 | AH31: 2015 | AI31: 0 | AJ31: 520.54 | AK31: 2015-05-01
O32: Imposto por dentro | Q32: =LnkTxtPisCofins+LnkTxtICMS -> 0.3052493971 | AB32: 2016 | AC32: Revisão | AD32: 555.17 | AE32: =AE31*VLOOKUP(AG32,Índices!$B$147:$D$495,2,0)/VLOOKUP(AG31,Índices!$B$147:$D$495,2,0) -> 505.027247 | AF32: =AF31*VLOOKUP(AG32,Índices!$B$147:$D$495,3,0)/VLOOKUP(AG31,Índices!$B$147:$D$495,3,0) -> 500.6416047 | AG32: 2016-05-01 | AH32: 2016 | AI32: Revisão | AJ32: 555.17 | AK32: 2016-05-01
O33: Receita com Impostos | Q33: =SUM(W24:W31)/(1-Q29-Q30) -> 273663022.4 | AB33: 2017 | AC33: RTE | AD33: 549.36 | AE33: =AE32*VLOOKUP(AG33,Índices!$B$147:$D$495,2,0)/VLOOKUP(AG32,Índices!$B$147:$D$495,2,0) -> 523.5308696 | AF33: =AF32*VLOOKUP(AG33,Índices!$B$147:$D$495,3,0)/VLOOKUP(AG32,Índices!$B$147:$D$495,3,0) -> 516.3251046 | AG33: 2017-03-01 | AH33: 2017 | AI33: RTE | AJ33: 549.36 | AK33: 2017-03-01
AB34: 2017 | AC34: 0 | AD34: 524.75 | AE34: =AE33*VLOOKUP(AG34,Índices!$B$147:$D$495,2,0)/VLOOKUP(AG33,Índices!$B$147:$D$495,2,0) -> 512.9698323 | AF34: =AF33*VLOOKUP(AG34,Índices!$B$147:$D$495,3,0)/VLOOKUP(AG33,Índices!$B$147:$D$495,3,0) -> 518.6509657 | AG34: 2017-05-01 | AH34: 2017 | AI34: 0 | AJ34: 524.75 | AK34: 2017-05-01
AB35: 2018 | AC35: 0 | AD35: 595.67 | AE35: =AE34*VLOOKUP(AG35,Índices!$B$147:$D$495,2,0)/VLOOKUP(AG34,Índices!$B$147:$D$495,2,0) -> 534.8329634 | AF35: =AF34*VLOOKUP(AG35,Índices!$B$147:$D$495,3,0)/VLOOKUP(AG34,Índices!$B$147:$D$495,3,0) -> 533.4585198 | AG35: 2018-05-01 | AH35: 2018 | AI35: 0 | AJ35: 595.67 | AK35: 2018-05-01
AB36: 2019 | AC36: 0 | AD36: 649.885117 | AE36: =AE35*VLOOKUP(AG36,Índices!$B$147:$D$495,2,0)/VLOOKUP(AG35,Índices!$B$147:$D$495,2,0) -> 575.7097337 | AF36: =AF35*VLOOKUP(AG36,Índices!$B$147:$D$495,3,0)/VLOOKUP(AG35,Índices!$B$147:$D$495,3,0) -> 558.3083969 | AG36: 2019-05-01 | AH36: 2019 | AI36: 0 | AJ36: 649.885117 | AK36: 2019-05-01
AB37: =YEAR(CAPA!C10) -> 2020 | AC37: =IF(CAPA!C7="Revisão",1,0) -> 0 | AD37: =Resultado!L11 -> 662.4463947 | AE37: =AE36*VLOOKUP(AG37,Índices!$B$147:$D$495,2,0)/VLOOKUP(AG36,Índices!$B$147:$D$495,2,0) -> 613.1829878 | AF37: =AF36*VLOOKUP(AG37,Índices!$B$147:$D$495,3,0)/VLOOKUP(AG36,Índices!$B$147:$D$495,3,0) -> 568.7919053 | AG37: =DATE(YEAR(CAPA!C10),MONTH(CAPA!C10)-1,1) -> 2020-05-01
AD38: =AD37/AD24-1 -> 0.9886715942 | AE38: =AE37/AE24-1 -> 0.8407822876 | AF38: =AF37/AF24-1 -> 0.7075197541
B39: Classe de Consumo | C39: Nº de Unidades Consumidoras* | D39: Consumo de Energia (MWh) | E39: Participação no Consumo (%)
B40: Residencial | C40: =Mercado!E30 -> 96146 | D40: =Mercado!F30 -> 13877.766 | E40: =D40/$D$48 -> 0.5041828298
B41: Industrial | C41: =Mercado!E31 -> 725 | D41: =Mercado!F31 -> 3399.563 | E41: 0.1235070035
B42: Comercial | C42: =Mercado!E32 -> 10285 | D42: =Mercado!F32 -> 4221.566 | E42: 0.1533705852
B43: Rural | C43: =Mercado!E33 -> 1263 | D43: =Mercado!F33 -> 405.745 | E43: 0.01474082084
B44: Iluminação Pública | C44: =Mercado!E34 -> 13 | D44: =Mercado!F34 -> 1553.595 | E44: 0.05644250836
B45: Poder Público | C45: =Mercado!E35 -> 389 | D45: =Mercado!F35 -> 442.66 | E45: 0.01608195234
B46: Serviço Público | C46: =Mercado!E36 -> 131 | D46: =Mercado!F36 -> 669.797 | E46: 0.02433389833
B47: Demais classes | C47: =Mercado!E37 -> 20 | D47: =Mercado!F37 -> 2954.573 | E47: 0.1073404016
B48: Total | C48: =SUM(C40:C47) -> 108972 | D48: =SUM(D40:D47) -> 27525.265 | E48: =SUM(E40:E47) -> 1
B49: Nota: dados do último mês informado pela empresa
G50: TabMercado | I50: Voltar
G51: Subgrupos | H51: Mercado (MWh) | I51: Receita (R$) | J51: Colunas1
G52: Fornecimento | H52: =SUM(H53:H59) -> 292946.011 | I52: =SUM(I53:I59) -> 168480147.6 | J52: =IF(ABS(H52)+ABS(I52)>0,1,0) -> 1
G53: A1 (230 kV ou mais) | H53: =Mercado!C10 -> 0 | I53: =Mercado!D10 -> 0 | J53: 0
G54: A2 (88 a 138 kV) | H54: =Mercado!C11 -> 0 | I54: =Mercado!D11 -> 0 | J54: 0
G55: A3 (69 kV) | H55: =Mercado!C12 -> 0 | I55: =Mercado!D12 -> 0 | J55: 0
G56: A3a (30 kV a 44 kV) | H56: =Mercado!C13 -> 0 | I56: =Mercado!D13 -> 0 | J56: 0
G57: A4 (2,3 kV a 25 kV) | H57: =Mercado!C14 -> 42945.231 | I57: =Mercado!D14 -> 22054845.9 | J57: 1
G58: As | H58: =Mercado!C15 -> 0 | I58: =Mercado!D15 -> 0 | J58: 0
G59: BT (menor que 2,3 kV) | H59: =Mercado!C16 -> 250000.78 | I59: =Mercado!D16 -> 146425301.7 | J59: 1
G60: Suprimento | H60: =Mercado!C17 -> 0 | I60: =Mercado!D17 -> 0 | J60: 0
G61: Livres A1 | H61: =Mercado!C18 -> 0 | I61: =Mercado!D18 -> 0 | J61: 0
G62: Demais Livres | H62: =Mercado!C19 -> 27470.114 | I62: =Mercado!D19 -> 5697733.844 | J62: 1
G63: Distribuição | H63: =Mercado!C20 -> 38010.718 | I63: =Mercado!D20 -> 5642725.838 | J63: 1
G64: Geração | H64: =Mercado!C21 -> 0 | I64: =Mercado!D21 -> 42188.16 | J64: 1
G65: Total | H65: =SUM(H53:H64) -> 358426.843 | I65: =SUM(I53:I64) -> 179862795.5
K67: TabEnc | N67: Voltar
K68: Encargos Setoriais | L68: DRA (R$) | M68: DRP (R$) | N68: Dispositivo Legal | O68: Colunas1
K69: Taxa de Fisc. de Serviços de E.E. – TFSEE | L69: =Resultado!C22 -> 0 | M69: =Resultado!D22 -> 259114.327 | N69: =Encargos!D17 -> Conforme módulo 5.5 do PRORET | O69: =IF(ABS(L69)+ABS(M69)>0,1,0) -> 1
K70: Conta de Desenvolvimento Energético – CDE | L70: =Resultado!C23 -> 0 | M70: =Resultado!D23 -> 17572820.8 | N70: =Encargos!D10 -> ReH 2.664/2019 | O70: 1
K71: Compensação financeira - CFURH | L71: =Resultado!C24 -> 0 | M71: =Resultado!D24 -> 0 | N71: =Encargos!D11 -> 0 | O71: 0
K72: Encargos Serv. Sist. - ESS e Energ. Reserv. - EER | L72: =Resultado!C25 -> 0 | M72: =Resultado!D25 -> 0 | N72: =Encargos!D12 -> 0 | O72: 0
K73: PROINFA | L73: =Resultado!C26 -> 0 | M73: =Resultado!D26 -> 2341580.068 | N73: =Encargos!$D$13 -> ReH 2.653/2019 | O73: 1
K74: P&D e Eficiência Energética | L74: =Resultado!C27 -> 0 | M74: =Resultado!D27 -> 1749288.498 | N74: Res. Normativa nº 316/2008 | O74: 1
K75: Contribuição ONS | L75: =Resultado!C28 -> 0 | M75: =Resultado!D28 -> 0 | N75: =Encargos!$D$14 -> 0 | O75: 0
K76: Total de Encargos Tarifários | L76: =SUM(L69:L75) -> 0 | M76: =SUM(M69:M75) -> 21922803.7
P78: TabTrans | R78: Voltar
P79: Componente | Q79: DRA (R$) | R79: DRP (R$) | S79: Colunas1
P80: Rede Básica | Q80: =BM242 -> 0 | R80: =Resultado!D30 -> 0 | S80: =IF(ABS(Q80)+ABS(R80)>0,1,0) -> 0
P81: Rede Básica Fronteira | Q81: =BM243 -> 0 | R81: =Resultado!D31 -> 0 | S81: 0
P82: Rede Básica ONS (A2) | Q82: 0 | R82: =Resultado!D32 -> 0 | S82: 0
P83: Rede Básica Export. (A2) | Q83: 0 | R83: =Resultado!D33 -> 0 | S83: 0
P84: MUST Itaipu | Q84: 0 | R84: =Resultado!D34 -> 0 | S84: 0
P85: Transporte de Itaipu | Q85: 0 | R85: =Resultado!D35 -> 0 | S85: 0
P86: Conexão | Q86: 0 | R86: =Resultado!D36 -> 0 | S86: 0
P87: Uso do sistema de distribuição | Q87: 31591602.68 | R87: =Resultado!D37 -> 36051364.8 | S87: 1
P88: Total dos Custos de Transporte | Q88: =SUM(Q80:Q87) -> 31591602.68 | R88: =SUM(R80:R87) -> 36051364.8
T90: TabPerdas | W90: Voltar
T91: Perdas | U91: DRA | V91: DRP | W91: Referência
T92: Não Técnica (s/ Baixa Tensão) | U92: =Neutralidade!H14 -> 0 | V92: =Energia!H13 -> 0 | W92: REH 2.091/2016
T93: Técnica (s/ merc. injetado) | U93: =Neutralidade!H15 -> 0.0584 | V93: =Energia!H14 -> 0.0584 | W93: =W92 -> REH 2.091/2016
T94: Rede Básica (s/ merc. Injetado) | U94: =Neutralidade!H16 -> 0 | V94: =Energia!H15 -> 0 | W94: CCEE (últimos 12 meses)
T95: Mercado Baixa Tensão (MWh) | U95: =Mercado!$C$16 -> 250000.78 | V95: =Mercado!$C$16 -> 250000.78 | W95: SAMP
Y97: TabEnergia | AA97: Voltar
Y98: Descrição | Z98: DRA (MWh) | AA98: DRP (MWh)
Y99: Mercado Total | Z99: =AA99 -> 292946.011 | AA99: =Z100+Z101 -> 292946.011 | AB99: Colunas1
Y100: Fornecimento | Z100: =Energia!H5 -> 292946.011 | AA100: =Z100 -> 292946.011 | AB100: =IF(Z100<>0,1,0) -> 1
Y101: Suprimento | Z101: =Energia!C8 -> 0 | AA101: =Z101 -> 0 | AB101: =IF(Z101<>0,1,0) -> 0
Y102: Consumidores Livres | Z102: =Energia!H7 -> 65480.832 | AA102: =Z102 -> 65480.832 | AB102: =IF(Z102<>0,1,0) -> 1
Y103: Consumidores Rede Básica | Z103: =Energia!H8 -> 0 | AA103: =Z103 -> 0 | AB103: =IF(Z103<>0,1,0) -> 0
Y104: Perdas Totais | Z104: =Z105+Z106 -> 22230.38194 | AA104: =AA105+AA106 -> 22230.38194
Y105: Perdas Rede Básica | Z105: =SUM(Neutralidade!H19:H20) -> 0 | AA105: =SUM(Energia!H18:H19) -> 0
Y106: Perdas na Distribuição | Z106: =SUM(Z107:Z108) -> 22230.38194 | AA106: =SUM(AA107:AA108) -> 22230.38194
Y107: Perda Não Técnica | Z107: =Neutralidade!H17 -> 0 | AA107: =Energia!H16 -> 0
Y108: Perda Técnica | Z108: =Neutralidade!H18 -> 22230.38194 | AA108: =Energia!H17 -> 22230.38194
Y109: Energia Requerida | Z109: =Z99+Z104 -> 315176.3929 | AA109: =AA99+AA104 -> 315176.3929
AC111: TabEDRA | AE111: Voltar
AC112: Energia Requerida (MWh) | AD112: Tarifa Média (R$/MWh) | AE112: Energia Requerida (R$)
AC113: ='Votos e NTs'!Z109 -> 315176.3929 | AD113: =Energia!C14 -> 247.1645289 | AE113: =AD113*AC113 -> 77900424.69
AG115: TabContratos | AK115: Voltar
AG116: Contratos | AH116: Montante Contratado (MWh) | AI116: Montante Considerado (MWh) | AJ116: Tarifa (R$/MWh) | AK116: Despesa (R$) | AL116: Colunas1
AG117: Ambiente Regulado - CCEAR | AH117: =SUM(AH118:AH122) -> 0 | AI117: =SUM(AI118:AI122) -> 0 | AJ117: =AK117/AI117 ->  | AK117: =SUM(AK118:AK122) ->  | AL117: =IF(AH117=0,0,1) -> 0
AG118: =BW311 -> Existente - CCEAR-DSP | AH118: =SUMPRODUCT((Energia!$J$49:$J$140),(Energia!$T$49:$T$140=18)*(INT(Energia!$S$49:$S$140/10000)=2)) -> 0 | AI118: =SUMPRODUCT((Energia!$K$49:$K$140),(Energia!$T$49:$T$140=18)*(INT(Energia!$S$49:$S$140/10000)=2)) -> 0 | AJ118: =IFERROR(AK118/AI118,0) -> 0 | AK118: =IFERROR(SUMPRODUCT((Energia!$U$49:$U$140),(Energia!$T$49:$T$140=18)*(INT(Energia!$S$49:$S$140/10000)=2))*AI118/AH118,0) -> 0 | AL118: 0
AG119: =BW312 -> Existente - CCEAR-QTD | AH119: =SUMPRODUCT((Energia!$J$49:$J$140),(Energia!$T$49:$T$140=1)*(INT(Energia!$S$49:$S$140/10000)=2)) -> 0 | AI119: =SUMPRODUCT((Energia!$K$49:$K$140),(Energia!$T$49:$T$140=1)*(INT(Energia!$S$49:$S$140/10000)=2)) -> 0 | AJ119: =IFERROR(AK119/AI119,0) -> 0 | AK119: =IFERROR(SUMPRODUCT((Energia!$U$49:$U$140),(Energia!$T$49:$T$140=1)*(INT(Energia!$S$49:$S$140/10000)=2))*AI119/AH119,0) -> 0 | AL119: 0
AG120: =BW313 -> Nova e Alternativa- CCEAR-DSP | AH120: =SUMPRODUCT((Energia!$J$49:$J$140),(Energia!$T$49:$T$140=18)*(INT(Energia!$S$49:$S$140/10000)=1))+SUMPRODUCT((Energia!$J$49:$J$140),(Energia!$T$49:$T$140=18)*(INT(Energia!$S$49:$S$140/10000)=3)) -> 0 | AI120: =SUMPRODUCT((Energia!$K$49:$K$140),(Energia!$T$49:$T$140=18)*(INT(Energia!$S$49:$S$140/10000)=1))+SUMPRODUCT((Energia!$K$49:$K$140),(Energia!$T$49:$T$140=18)*(INT(Energia!$S$49:$S$140/10000)=3)) -> 0 | AJ120: =AK120/AI120 ->  | AK120: =(SUMPRODUCT((Energia!$U$49:$U$140),(Energia!$T$49:$T$140=18)*(INT(Energia!$S$49:$S$140/10000)=1))+SUMPRODUCT((Energia!$U$49:$U$140),(Energia!$T$49:$T$140=18)*(INT(Energia!$S$49:$S$140/10000)=3)))*AI120/AH120 ->  | AL120: 0
AG121: =BW314 -> Nova e Alternativa- CCEAR-QTD | AH121: =SUMPRODUCT((Energia!J50:J141),(Energia!T50:T141=1)*(INT(Energia!S50:S141/10000)=1))+SUMPRODUCT((Energia!J50:J141),(Energia!T50:T141=1)*(INT(Energia!S50:S141/10000)=3)) -> 0 | AI121: =SUMPRODUCT((Energia!$K$49:$K$140),(Energia!$T$49:$T$140=1)*(INT(Energia!$S$49:$S$140/10000)=1))+SUMPRODUCT((Energia!$K$49:$K$140),(Energia!$T$49:$T$140=1)*(INT(Energia!$S$49:$S$140/10000)=3)) -> 0 | AK121: =(SUMPRODUCT((Energia!$U$49:$U$140),(Energia!$T$49:$T$140=1)*(INT(Energia!$S$49:$S$140/10000)=1))+SUMPRODUCT((Energia!$U$49:$U$140),(Energia!$T$49:$T$140=1)*(INT(Energia!$S$49:$S$140/10000)=3)))*AI121/AH121 ->  | AL121: 0
AG122: Madeira e Belo Monte | AH122: =SUMPRODUCT((Energia!$J$49:$J$140)*(INT(Energia!$S$49:$S$140/10000)=5)) -> 0 | AI122: =SUMPRODUCT((Energia!$K$49:$K$140)*(INT(Energia!$S$49:$S$140/10000)=5)) -> 0 | AK122: =(SUMPRODUCT((Energia!U49:U140)*(INT(Energia!S49:S140/10000)=5)))*AI122/AH122 ->  | AL122: 0
AG123: =Energia!B20 -> Energia Base | AH123: =SUM(AH124:AH128) -> 7240.762673 | AI123: =SUM(AI124:AI128) -> 7240.762673 | AJ123: =AK123/AI123 -> 0 | AK123: =SUM(AK124:AK128) -> 0 | AL123: 1
AG124: =Energia!B21 -> Geração Própria | AH124: =Energia!H33 -> 0 | AI124: =Energia!C21 -> 0 | AJ124: =Energia!D21 -> 0 | AK124: =AJ124*AI124 -> 0 | AL124: 0
AG125: =Energia!B22 -> Cota Angra I/Angra II | AH125: =Energia!H34 -> 0 | AI125: =Energia!C22 -> 0 | AJ125: =Energia!D22 -> 0 | AK125: =AJ125*AI125 -> 0 | AL125: 0
AG126: =Energia!B23 -> Cotas Lei n º 12783/2013 | AH126: =Energia!H35 -> 0 | AI126: =Energia!C23 -> 0 | AJ126: =Energia!D23 -> 0 | AK126: =AJ126*AI126 -> 0 | AL126: 0
AG127: =Energia!B24 -> Itaipu (tirando as perdas) | AH127: =Energia!H36 -> 0 | AI127: =Energia!C24 -> 0 | AJ127: =Energia!D24 -> 0 | AK127: =AJ127*AI127 -> 0 | AL127: 0
AG128: =Energia!B25 -> PROINFA | AH128: =Energia!C25 -> 7240.762673 | AI128: =Energia!C25 -> 7240.762673 | AJ128: =Energia!D25 -> 0 | AK128: =AJ128*AI128 -> 0 | AL128: 1
AG129: Bilaterais | AH129: =SUM(Energia!H145:H191) -> 307935.6303 | AI129: =SUM(Energia!M145:M191) -> 307935.6303 | AJ129: =AK129/AI129 -> 266.73 | AK129: =SUMPRODUCT(Energia!H145:H191,Energia!L145:L191)*AI129/AH129 -> 82135670.66 | AL129: 1
AG130: Total | AH130: =SUM(AH117,AH129,AH124:AH128) -> 315176.3929 | AI130: =SUM(AI117,AI129,AI124:AI128) -> 315176.3929 | AJ130: =AK130/AI130 -> 260.6022294 | AK130: =AK129 -> 82135670.66 | AL130: 1
AM132: TabFatorX | AN132: Voltar
AM133: Componentes | AN133: Valor
AM134: Componente Pd do Fator X | AN134: ='VPB1'!F40 -> -0.0006824112069
AM135: Componente T do Fator X | AN135: ='VPB1'!F41 -> 0
AM136: Componente Q do Fator X | AN136: ='VPB1'!F42 -> -0.004130939735
AM137: Fator X | AN137: ='VPB1'!F43 -> -0.004813350941
AP139: TabParcelaB | AR139: Voltar
AP140: Descrição | AQ140: Valores | AR140: Referência
AP141: (1) Parcela B Ano Anterior | AQ141: =+'VPB1'!C37 -> 48663307.49 | AR141: TUSD fio B aplicada ao Mercado
AP142: (2) Fator DR1/Fator PB | AQ142: =+'VPB1'!C38 -> 1.061290765 | AR142: SGT/ANEEL
AP143: (3) Parcela B econômica = (1)*(2) | AQ143: =+'VPB1'!C39 -> 51645918.84 | AR143: SGT/ANEEL
AP144: (4) IPCA | AQ144: =+LnkTxtIPCA -> 0.01877727164 | AR144: Indicador econômico oficial
AP145: (5) Fator X | AQ145: =LnkTxtFatorX -> -0.004813350941
AP146: (5.1) Componente Pd do Fator X | AQ146: =LnkTxtFatorPd -> -0.0006824112069 | AR146: Pd Expost (PRORET 2.5 A) | AS146: <-cuidado para verificar se é Reajuste depois de revisão. Se for reajuste pós revisão, deve se aplicar o Pd Expost.
AP147: (5.2) Componente T do Fator X | AQ147: =LnkTxtFatorT -> 0 | AR147: REH nº 2.091/2016 | AS147: <-atualizar conforme distribuidora
AP148: (5.3) Componente Q do Fator X | AQ148: =LnkTxtFatorQ -> -0.004130939735 | AR148: PRORET 2.5 A
AP149: (6) ONS | AQ149: =LnkTxtONS -> 0 | AR149: REA nº 6.981/2018
AP150: (7) UDEROR | AQ150: =AQ151+AQ152+AQ153 -> 3002716.267
AP151: (7.1) Outras Receitas (OR) | AQ151: =+'VPB1'!C40 -> 2508515.577 | AR151: Valores fiscalizados - SFF
AP152: (7.2) Excedente de Reativos (ER) | AQ152: =+'VPB1'!C41 -> 274002.7482 | AR152: Valores fiscalizados - SFF
AP153: (7.3) Ultrapassagem de Demanda (UD) | AQ153: =+'VPB1'!C42 -> 220197.9423 | AR153: Valores fiscalizados - SFF
AP154: Parcela B-DRP (R$) = (3)*[1+(4)-(5)]+(6)-(7) | AQ154: =AQ143*(1+AQ144-AQ145)+AQ149-AQ150 -> 49861561.95
AT156: TabCVA | AW156: Voltar
AT157: Descrição | AU157: Delta (R$) | AV157: 5° Dia Útil Anterior (R$) | AW157: 12 Meses Subseqüentes (R$) | AX157: Colunas1
AT158: ="CVA "&CVA!B9 -> CVA CCC | AU158: =CVA!C9 -> 0 | AV158: =CVA!D9 -> 0 | AW158: =CVA!E9 -> 0 | AX158: =IF(AU158<>0,1,0) -> 0
AT159: ="CVA "&CVA!B10 -> CVA CDE | AU159: =CVA!C10 -> 1430322.449 | AV159: =CVA!D10 -> 1451177.132 | AW159: =CVA!E10 -> 1473773.472 | AX159: 1
AT160: ="CVA "&CVA!B11 -> CVA CDE Energia | AU160: =CVA!C11 -> -200076.8508 | AV160: =CVA!D11 -> -176979.8913 | AW160: =CVA!E11 -> -179735.6527 | AX160: 1
AT161: ="CVA "&CVA!B12 -> CVA Rede Básica | AU161: =CVA!C12 -> 0 | AV161: =CVA!D12 -> 0 | AW161: =CVA!E12 -> 0 | AX161: 0
AT162: ="CVA "&CVA!B13 -> CVA Compra Energia | AU162: =CVA!C13 -> 3328119.407 | AV162: =CVA!D13 -> 3435766.569 | AW162: =CVA!E13 -> 3489265.035 | AX162: 1
AT163: ="CVA "&CVA!B14 -> CVA CFURH | AU163: =CVA!C14 -> 0 | AV163: =CVA!D14 -> 0 | AW163: =CVA!E14 -> 0 | AX163: 0
AT164: ="CVA "&CVA!B15 -> CVA Transporte Itaipu | AU164: =CVA!C15 -> 0 | AV164: =CVA!D15 -> 0 | AW164: =CVA!E15 -> 0 | AX164: 0
AT165: ="CVA "&CVA!B16 -> CVA Proinfa | AU165: =CVA!C16 -> -276296.0075 | AV165: =CVA!D16 -> -279222.083 | AW165: =CVA!E16 -> -283569.8618 | AX165: 1
AT166: ="CVA "&CVA!B17 -> CVA ESS/ERR | AU166: =CVA!C17 -> 0 | AV166: =CVA!D17 -> 0 | AW166: =CVA!E17 -> 0 | AX166: 0
AT167: Total | AU167: =SUM(AU158:AU166) -> 4282068.998 | AV167: =SUM(AV158:AV166) -> 4430741.726 | AW167: =SUM(AW158:AW166) -> 4499732.993
AY169: TabFin | BA169: Voltar
AY170: Componentes Financeiros | AZ170: Valor (R$) | BA170: Participação | BB170: Colunas1
AY171: CVA em processamento - Energia | AZ171: =SUMIFS(Financeiros[Valor],Financeiros[idDet1],19,Financeiros[idDet2],60,Financeiros[idDet3],999,Financeiros[id_Grupo_TARIFA],2) -> 3489265.035 | BA171: =AZ171/Financeiros!$D$5 -> 0.01939959304 | BB171: =IF(AZ171<>0,1,0) -> 1
AY172: CVA em processamento -Transporte | AZ172: =SUMIFS(Financeiros[Valor],Financeiros[idDet1],19,Financeiros[idDet2],60,Financeiros[idDet3],999,Financeiros[id_Grupo_TARIFA],1) -> 0 | BA172: =AZ172/Financeiros!$D$5 -> 0 | BB172: 0
AY173: CVA em processamento - Encargos Setoriais | AZ173: =SUMIFS(Financeiros[Valor],Financeiros[idDet1],19,Financeiros[idDet2],60,Financeiros[idDet3],999,Financeiros[id_Grupo_TARIFA],3) -> 1010467.957 | BA173: =AZ173/Financeiros!$D$5 -> 0.005617993175 | BB173: 1
AY174: Saldo a Compensar CVA-Ano Anterior + Ajustes | AZ174: =SUMIFS(Financeiros[Valor],Financeiros[idDet1],19,Financeiros[idDet2],64,Financeiros[idDet3],999) -> 84930.32504 | BA174: =AZ174/Financeiros!$D$5 -> 0.0004721950686 | BB174: 1
AY175: Neutralidade de Parcela A- Energia | AZ175: =SUMIFS(Financeiros[Valor],Financeiros[idDet1],20,Financeiros[idDet2],60,Financeiros[idDet3],999,Financeiros[id_Grupo_TARIFA],2) -> -225457.6705 | BA175: =AZ175/Financeiros!$D$5 -> -0.00125349809 | BB175: 1
AY176: Neutralidade de Parcela A - Transporte | AZ176: =SUMIFS(Financeiros[Valor],Financeiros[idDet1],20,Financeiros[idDet2],60,Financeiros[idDet3],999,Financeiros[id_Grupo_TARIFA],1) -> 124859.1561 | BA176: =AZ176/Financeiros!$D$5 -> 0.0006941911237 | BB176: 1
AY177: Neutralidade de Parcela A - Encargos Setoriais | AZ177: =SUMIFS(Financeiros[Valor],Financeiros[idDet1],20,Financeiros[idDet2],60,Financeiros[idDet3],999,Financeiros[id_Grupo_TARIFA],3) -> 299093.0163 | BA177: =AZ177/Financeiros!$D$5 -> 0.001662895406 | BB177: 1
AY178: Neutralidade da Parcela A - Receita Irrecuperável | AZ178: =SUMIFS(Financeiros[Valor],Financeiros[idDet1],20,Financeiros[idDet2],60,Financeiros[idDet3],999,Financeiros[id_Grupo_TARIFA],5) -> -2232.943875 | BA178: =AZ178/Financeiros!$D$5 -> -1.241470683e-05 | BB178: 1
AY179: Neutralidade da Parcela A - Liminar | AZ179: =SUMIFS(Financeiros[Valor],Financeiros[idDet1],22,Financeiros[idDet2],85,Financeiros[idDet3],85,Financeiros[id_Grupo_TARIFA],3) -> 0 | BA179: =AZ179/Financeiros!$D$5 -> 0 | BB179: 0
AY180: Sobrecontratação/exposição de energia | AZ180: =SUMIFS(Financeiros[Valor],Financeiros[idDet1],22,Financeiros[idDet2],60, Financeiros[idDet3],106,Financeiros[id_Grupo_TARIFA],2) -> 0 | BA180: =AZ180/Financeiros!$D$5 -> 0 | BB180: 0
AY181: Recálculo Exposição CCEAR entre Submercados de Energia | AZ181: =SUMIFS(Financeiros[Valor],Financeiros[idDet1],22,Financeiros[idDet2],60, Financeiros[idDet3],101,Financeiros[id_Grupo_TARIFA],2) -> 0 | BA181: =AZ181/Financeiros!$D$5 -> 0 | BB181: 0
AY182: Garantias financeiras na contratação regulada de energia (CCEAR) | AZ182: =SUMIFS(Financeiros[Valor],Financeiros[idDet1],22,Financeiros[idDet2],60, Financeiros[idDet3],102,Financeiros[id_Grupo_TARIFA],2) -> 0 | BA182: =AZ182/Financeiros!$D$5 -> 0 | BB182: 0
AY183: Compensação ref. acordos bilaterais de CCEAR | AZ183: =SUMIFS(Financeiros[Valor],Financeiros[idDet1],22,Financeiros[idDet2],60, Financeiros[idDet3],230,Financeiros[id_Grupo_TARIFA],2) -> 0 | BA183: =AZ183/Financeiros!$D$5 -> 0 | BB183: 0
AY184: Previsão de Risco Hidrológico | AZ184: =SUMIFS(Financeiros[Valor],Financeiros[idDet1],22,Financeiros[idDet2],60, Financeiros[idDet3],220,Financeiros[id_Grupo_TARIFA],2) -> 0 | BA184: =AZ184/Financeiros!$D$5 -> 0 | BB184: 0
AY185: Reversão do Risco Hidrológico | AZ185: =SUMIFS(Financeiros[Valor],Financeiros[idDet1],22,Financeiros[idDet2],62, Financeiros[idDet3],220,Financeiros[id_Grupo_TARIFA],2) -> 0 | BA185: =AZ185/Financeiros!$D$5 -> 0 | BB185: 0
AY186: Reversão de Angra III - Supridora (ESS/EER) | AZ186: =SUMIFS(Financeiros[Valor],Financeiros[idDet1],19,Financeiros[idDet2],60, Financeiros[idDet3],221,Financeiros[id_Grupo_TARIFA],3) -> 0 | BA186: =AZ186/Financeiros!$D$5 -> 0 | BB186: 0
AY187: Ressarcimento de P&D | AZ187: =SUMIFS(Financeiros[Valor],Financeiros[idDet1],22,Financeiros[idDet2],60, Financeiros[idDet3],231,Financeiros[id_Grupo_TARIFA],3) -> 0 | BA187: =AZ187/Financeiros!$D$5 -> 0 | BB187: 0
AY188: Repasse de ultrapassagem de Supridas/Permissionárias de Energia | AZ188: =SUMIFS(Financeiros[Valor],Financeiros[idDet1],22,Financeiros[idDet2],60, Financeiros[idDet3],187,Financeiros[id_Grupo_TARIFA],2) -> 0 | BA188: =AZ188/Financeiros!$D$5 -> 0 | BB188: 0
AY189: Repasse de compensação DIC/FIC | AZ189: =SUMIFS(Financeiros[Valor],Financeiros[idDet1],22,Financeiros[idDet2],60, Financeiros[idDet3],178,Financeiros[id_Grupo_TARIFA],1) -> 0 | BA189: =AZ189/Financeiros!$D$5 -> 0 | BB189: 0
AY190: Ajuste CUSD | AZ190: =SUMIFS(Financeiros[Valor],Financeiros[idDet1],22,Financeiros[idDet2],60, Financeiros[idDet3],119,Financeiros[id_Grupo_TARIFA],1) -> 921023.4031 | BA190: =AZ190/Financeiros!$D$5 -> 0.005120699924 | BB190: 1
AY191: Conselho de consumidores | AZ191: =SUMIFS(Financeiros[Valor],Financeiros[idDet1],22,Financeiros[idDet2],60, Financeiros[idDet3],188,Financeiros[id_Grupo_TARIFA],4) -> 0 | BA191: =AZ191/Financeiros!$D$5 -> 0 | BB191: 0
AY192: Ajuste ref. equilíbrio econômico-financeiro TUSDg | AZ192: =SUMIFS(Financeiros[Valor],Financeiros[idDet1],22,Financeiros[idDet2],60, Financeiros[idDet3],137,Financeiros[id_Grupo_TARIFA],4) -> 0 | BA192: =AZ192/Financeiros!$D$5 -> 0 | BB192: 0
AY193: Cálculo extraordinário de Neutralidade -Postergação da Data de Aniversário | AZ193: =SUMIFS(Financeiros[Valor],Financeiros[idDet1],22,Financeiros[idDet2],60, Financeiros[idDet3],999) -> 0 | BA193: =AZ193/Financeiros!$D$5 -> 0 | BB193: 0
AY194: Componente Conexão - Despacho nº 1.771/2018 | AZ194: =SUMIFS(Financeiros[Valor],Financeiros[idDet1],22,Financeiros[idDet2],60, Financeiros[idDet3],127,Financeiros[id_Grupo_TARIFA],1) -> 0 | BA194: =AZ194/Financeiros!$D$5 -> 0 | BB194: 0
BA195: =AZ195/Financeiros!$D$5 -> 0 | BB195: 0
BA196: =AZ196/Financeiros!$D$5 -> 0 | BB196: 0
BA197: =AZ197/Financeiros!$D$5 -> 0 | BB197: 0
BB198: 0
BB199: 0
BB200: 0
BB201: 0
BB202: 0
BB203: 0
BB204: 0
BB205: 0
BB206: 0
BB207: 0
BB208: 0
AY209: Total | AZ209: =SUM(AZ171:AZ190) -> 5701948.279 | BA209: =SUM(BA171:BA199) -> 0.03170165494
BC211: TabSubsidios | BF211: Voltar
BC212: TIPO | BD212: Ajuste (R$) | BE212: Previsão (R$) | BF212: Valor Mensal (R$) | BG212: Colunas1
BC213: =Aj.Subsidio!J6 -> Subsídio Carga Fonte Incentivada | BD213: =Aj.Subsidio!M6 -> -3412.353412 | BE213: =Aj.Subsidio!N6 -> 170645.0183 | BF213: =Aj.Subsidio!O6 -> 167232.6649 | BG213: =IF(ABS(BD213)+ABS(BE213)+ABS(BF213)=0,0,1) -> 1
BC214: =Aj.Subsidio!J7 -> Subsídio Geração Fonte Incentivada | BD214: =Aj.Subsidio!M7 -> -0.1881179549 | BE214: =Aj.Subsidio!N7 -> 1802.319167 | BF214: =Aj.Subsidio!O7 -> 1802.131049 | BG214: 1
BC215: =Aj.Subsidio!J8 -> Subsídio Distribuição | BD215: =Aj.Subsidio!M8 -> 0 | BE215: =Aj.Subsidio!N8 -> 0 | BF215: =Aj.Subsidio!O8 -> 0 | BG215: 0
... 152 more rows

Sheet Mercado
B2: DADOS DE MERCADO DE ENERGIA E RECEITA VERIFICADA | G2: Anexo II | H2: =Resultado!$D$6 -> 0.05706991424
G3: Anexo I | H3: =Resultado!$D$8 -> 0.08877156918
M5: TipoMercado | R5: AnoMes
B6: Dados de Mercado | M6: Regular | R6: =DATE(YEAR(R8),MONTH(R8)-1,1) -> 43617
R7: AnoMes
B8: Descrição | C8: MERCADO (MWh) | D8: RECEITA (R$) | F8: DESCRIÇÃO | G8: POR DENTRO | J8: Critérios | L8: Para º de consumidores | R8: =DATE(YEAR(R10),MONTH(R10)-1,1) -> 43647
B9: FORNECIMENTO | C9: =SUM(C10:C16) -> 292946.011 | D9: =SUM(D10:D16) -> 168480147.6 | F9: ICMS | G9: =SUM(INDIRECT("DADOS_MercadoBase[ICMS]"))/SUM(INDIRECT("DADOS_MercadoBase[ICMS]"),INDIRECT("DADOS_MercadoBase[PisPasep]"),INDIRECT("DADOS_MercadoBase[Cofins]"),INDIRECT("DADOS_MercadoBase[FinTotAj]")) -> 0.2546960432 | J9: Subgrupo | K9: OPÇÃO | M9: AnoMes | N9: Subgrupo | O9: OPÇÃO | R9: AnoMes
B10: A1 | C10: =DSUM(Mercado_Receita!A:AAA,"TUSD_E",J9:K10) -> 0 | D10: =DSUM(Mercado_Receita!A:AAA,"total",J9:K10) -> 0 | F10: PIS/COFINS | G10: =SUM( INDIRECT("DADOS_MercadoBase[Cofins]"), INDIRECT("DADOS_MercadoBase[PisPasep]"))/SUM( INDIRECT("DADOS_MercadoBase[ICMS]"), INDIRECT("DADOS_MercadoBase[PisPasep]"), INDIRECT("DADOS_MercadoBase[Cofins]"), INDIRECT("DADOS_MercadoBase[FinTotAj]")) -> 0.05055335391 | J10: A1 | K10: Cativo | M10: =DMAX(MercadoBase,"AnoMes",M5:M6) -> 43922 | N10: A1 | O10: Suprimento | R10: =DATE(YEAR(R12),MONTH(R12)-1,1) -> 43678
B11: A2 | C11: =DSUM(Mercado_Receita!A:AAA,"TUSD_E",J11:K12) -> 0 | D11: =DSUM(Mercado_Receita!A:AAA,"total",J11:K12) -> 0 | J11: Subgrupo | K11: OPÇÃO | M11: AnoMes | N11: Subgrupo | O11: OPÇÃO | P11: Subgrupo | R11: AnoMes
B12: A3 | C12: =DSUM(Mercado_Receita!A:AAA,"TUSD_E",J13:K14) -> 0 | D12: =DSUM(Mercado_Receita!A:AAA,"total",J13:K14) -> 0 | F12: MWh Ano Anterior | G12: =BD!C45 -> 372243.325 | J12: A2 | K12: Cativo | M12: =$M$10 -> 43922 | N12: A2 | O12: Livre | P12: A1 | R12: =DATE(YEAR(R14),MONTH(R14)-1,1) -> 43709
B13: A3a | C13: =DSUM(Mercado_Receita!A:AAA,"TUSD_E",J15:K16) -> 0 | D13: =DSUM(Mercado_Receita!A:AAA,"total",J15:K16) -> 0 | F13: Variação | G13: 0 | H13: =C24/G12-1 -> -0.03711680256 | J13: Subgrupo | K13: OPÇÃO | M13: AnoMes | N13: Subgrupo | O13: OPÇÃO | R13: AnoMes
B14: A4 | C14: =DSUM(Mercado_Receita!A:AAA,"TUSD_E",J17:K18) -> 42945.231 | D14: =DSUM(Mercado_Receita!A:AAA,"total",J17:K18) -> 22054845.9 | F14: R$ Ano Anterior | G14: =BD!C46 -> 180860397.4 | J14: ="=A3" -> =A3 | K14: Cativo | M14: =$M$10 -> 43922 | N14: ="=A3" -> =A3 | O14: Distribuição | R14: =DATE(YEAR(R16),MONTH(R16)-1,1) -> 43739
B15: As | C15: =DSUM(Mercado_Receita!A:AAA,"TUSD_E",J19:K20) -> 0 | D15: =DSUM(Mercado_Receita!A:AAA,"total",J19:K20) -> 0 | F15: Variação | G15: =D24/G14-1 -> -0.005515866877 | J15: Subgrupo | K15: OPÇÃO | M15: AnoMes | N15: Subgrupo | O15: OPÇÃO | R15: AnoMes
B16: BT | C16: =DSUM(Mercado_Receita!A:AAA,"TUSD_E",J21:K22) -> 250000.78 | D16: =DSUM(Mercado_Receita!A:AAA,"total",J21:K22) -> 146425301.7 | J16: ="=A3a" -> =A3a | K16: Cativo | M16: =$M$10 -> 43922 | N16: ="=A3a" -> =A3a | O16: Geração | R16: =DATE(YEAR(R18),MONTH(R18)-1,1) -> 43770
B17: SUPRIMENTO (Mercado TE) | C17: =DSUM(Mercado_Receita!A:AAA,"TE_E",O9:P10) -> 0 | D17: =DSUM(Mercado_Receita!A:AAA,"total",O9:P10) -> 0 | F17: Parâmetros de cálculo de RI | J17: Subgrupo | K17: OPÇÃO | M17: AnoMes | N17: Subgrupo | O17: OPÇÃO | R17: AnoMes
B18: LIVRES A1 | C18: =DSUM(Mercado_Receita!A:AAA,"TUSD_E",O11:P12) -> 0 | D18: =DSUM(Mercado_Receita!A:AAA,"total",O11:P12) -> 0 | F18: RR sem RI | G18: =SUM(Resultado!D19,Resultado!D29,Resultado!D38,Resultado!D45) -> 189971401.1 | J18: A4 | K18: Cativo | M18: =$M$10 -> 43922 | N18: A4 | O18: Livre | R18: =DATE(YEAR(R20),MONTH(R20)-1,1) -> 43800
B19: DEMAIS LIVRES | C19: =DSUM(Mercado_Receita!A:AAA,"TUSD_E",O19:P20)+DSUM(Mercado_Receita!A:AAA,"TUSD_E",O17:P18)-C18 -> 27470.114 | D19: =DSUM(Mercado_Receita!A:AAA,"total",O19:P20)+DSUM(Mercado_Receita!A:AAA,"TOTAL",O17:P18)-D18 -> 5697733.844 | F19: Financeiros | G19: =Financeiros!D8 -> 5701948.279 | J19: Subgrupo | K19: OPÇÃO | M19: AnoMes | N19: Subgrupo | O19: OPÇÃO | R19: AnoMes
B20: DISTRIBUIÇÃO | C20: =DSUM(Mercado_Receita!A:AAA,"TUSD_E",O13:P14) -> 38010.718 | D20: =DSUM(Mercado_Receita!A:AAA,"total",O13:P14) -> 5642725.838 | F20: Receita Bandeiras | G20: =SUM(TabBand[Fat Bandeiras]) -> 4508798.48 | J20: AS | K20: Cativo | M20: =$M$10 -> 43922 | N20: AS | O20: erc | R20: =DATE(YEAR(R22),MONTH(R22)-1,1) -> 43831
B21: GERADOR | D21: =DSUM(Mercado_Receita!A:AAA,"total",O15:P16) -> 42188.16 | J21: Subgrupo | K21: OPÇÃO | M21: AnoMes | N21: Subgrupo | R21: AnoMes
B22: CDE Baixa Renda | J22: ="=B*" -> =B* | K22: Cativo | M22: =$M$10 -> 43922 | N22: ="=B*" -> =B* | R22: =DATE(YEAR(R24),MONTH(R24)-1,1) -> 43862
B23: AJUSTE ECONÔMICO - BOLHA | J23: Subclasse | K23: OPÇÃO | R23: AnoMes
B24: TOTAL | C24: =SUM(C10:C23) -> 358426.843 | D24: =SUM(D10:D23) -> 179862795.5 | J24: ="=Residencial baixa renda*" -> =Residencial baixa renda* | K24: Cativo | R24: =DATE(YEAR(R26),MONTH(R26)-1,1) -> 43891 | T24: 119414.803
B25: ENERGIA DESTINADA APE/PIE | J25: Classe | L25: AnoMes | R25: AnoMes
B26: MERCADO TOTAL BAIXA RENDA | C26: =DSUM(Mercado_Receita!A:AAA,"TUSD_E",J23:K24) -> 11010.904 | J26: Residencial | L26: =$M$10 -> 43922 | R26: =DATE(YEAR(R28),MONTH(R28)-1,1) -> 43922
J27: Classe | L27: AnoMes | R27: AnoMes
B28: ="Fonte: SAMP - "&TEXT(L26,"mmmm/aa") -> Fonte: SAMP - abril/20 | J28: Industrial | L28: =$M$10 -> 43922 | R28: =B65 -> 43952
B29: DESCRIÇÃO - Tipo | C29: RECEITA (R$) | D29: % Total | E29: nº de consumidores | F29: MWh mensal | G29: Percentual RI | H29: Reais RI (c/tributos) | J29: Classe | L29: AnoMes
B30: Residencial | C30: =DSUM(Mercado_Receita!A:AAA,"total",J25:K26) -> 100668983.1 | D30: =IFERROR(C30/$C$38,0) -> 0.559698757 | E30: =DSUM(Mercado_Receita!$A:$AAA,"UC",$J$25:$L$26) -> 96146 | F30: =DSUM(Mercado_Receita!$A:$AAA,"TUSD_E",$J$25:$L$26) -> 13877.766 | G30: =BD!M67 -> 0.00077 | H30: =G30*C30/$D$24*SUM($G$18:$G$20)/(1-SUM($G$9:$G$10)) -> 124177.0905 | J30: Comercial | L30: =$M$10 -> 43922
B31: Industrial | C31: =DSUM(Mercado_Receita!A:AAA,"total",J27:K28) -> 17607920.95 | D31: 0.09789640435 | E31: =DSUM(Mercado_Receita!$A:$AAA,"UC",$J$27:$L$28) -> 725 | F31: =DSUM(Mercado_Receita!$A:$AAA,"TUSD_E",$J$27:$L$28) -> 3399.563 | G31: =BD!M68 -> 1e-05 | H31: =G31*C31/$D$24*SUM($G$18:$G$20)/(1-SUM($G$9:$G$10)) -> 282.0740624 | J31: Classe | L31: AnoMes
B32: Comercial | C32: =DSUM(Mercado_Receita!A:AAA,"total",J29:K30) -> 37175621.45 | D32: 0.2066887782 | E32: =DSUM(Mercado_Receita!$A:$AAA,"UC",$J$29:$L$30) -> 10285 | F32: =DSUM(Mercado_Receita!$A:$AAA,"TUSD_E",$J$29:$L$30) -> 4221.566 | G32: =BD!M69 -> 0.00052 | H32: 30968.24927 | J32: Rural | L32: =$M$10 -> 43922
B33: Rural | C33: =DSUM(Mercado_Receita!A:AAA,"total",J31:K32) -> 3215988.521 | D33: 0.01788023205 | E33: =DSUM(Mercado_Receita!$A:$AAA,"UC",$J$31:$L$32) -> 1263 | F33: =DSUM(Mercado_Receita!$A:$AAA,"TUSD_E",$J$31:$L$32) -> 405.745 | G33: =BD!M70 -> 0.00014 | H33: 721.2695517 | J33: Classe | L33: AnoMes
B34: Iluminação Pública | C34: =DSUM(Mercado_Receita!A:AAA,"total",J33:K34) -> 6395432.76 | D34: 0.03555728545 | E34: =DSUM(Mercado_Receita!$A:$AAA,"UC",$J$33:$L$34) -> 13 | F34: =DSUM(Mercado_Receita!$A:$AAA,"TUSD_E",$J$33:$L$34) -> 1553.595 | G34: =BD!M71 -> 0 | H34: 0 | J34: Iluminação Pública | L34: =$M$10 -> 43922
B35: Poder Público | C35: =DSUM(Mercado_Receita!A:AAA,"total",J35:K36) -> 4211908.219 | D35: 0.02341733991 | E35: =DSUM(Mercado_Receita!$A:$AAA,"UC",$J$35:$L$36) -> 389 | F35: =DSUM(Mercado_Receita!$A:$AAA,"TUSD_E",$J$35:$L$36) -> 442.66 | G35: =BD!M72 -> 0 | H35: 0 | J35: Classe | L35: AnoMes
B36: Serviço Público | C36: =DSUM(Mercado_Receita!A:AAA,"total",J37:K38) -> 4732447.79 | D36: 0.02631143243 | E36: =DSUM(Mercado_Receita!$A:$AAA,"UC",$J$37:$L$38) -> 131 | F36: =DSUM(Mercado_Receita!$A:$AAA,"TUSD_E",$J$37:$L$38) -> 669.797 | G36: =BD!M73 -> 0 | H36: 0 | J36: Poder Público | L36: =$M$10 -> 43922
B37: Demais | C37: =D24-SUM(C30:C36) -> 5854492.726 | D37: 0.03254977057 | E37: =DSUM(Mercado_Receita!A:AAA,"UC",$J$39:$L$40)-SUM(E$30:E$36) -> 20 | F37: =DSUM(Mercado_Receita!B:AAB,"TUSD_E",$J$39:$L$40)-SUM(F$30:F$36) -> 2954.573 | G37: =BD!M74 -> 0 | H37: 0 | J37: Classe | L37: AnoMes
B38: TOTAL | C38: =SUM(C30:C37) -> 179862795.5 | D38: =SUM(D30:D37) -> 1 | E38: =SUM(E30:E37) -> 108972 | F38: =SUM(F30:F37) -> 27525.265 | H38: =SUM(H30:H37) -> 156148.6834 | J38: Serviço público | L38: =$M$10 -> 43922
J39: Classe | L39: AnoMes
B40: nº de consumidores | J40: * | L40: =$M$10 -> 43922
B41: A1 | C41: =DSUM(Mercado_Receita!A:AAA,"UC",L9:N10) -> 0
B42: A2 | C42: =DSUM(Mercado_Receita!A:AAA,"UC",L11:N12) -> 0
B43: A3 | C43: =DSUM(Mercado_Receita!A:AAA,"UC",L13:N14) -> 0
B44: A3a | C44: =DSUM(Mercado_Receita!A:AAA,"UC",L15:N16) -> 0
B45: A4 | C45: =DSUM(Mercado_Receita!A:AAA,"UC",L17:N18) -> 154
B46: As | C46: =DSUM(Mercado_Receita!A:AAA,"UC",L19:N20) -> 0
B47: BT | C47: =DSUM(Mercado_Receita!A:AAA,"UC",L21:N22) -> 108818 | D47: 29231
D48: =D47-C47 -> -79587
B52: Arrecadação dos Encargos
B53: Competência | D53: PeD | E53: ONS | F53: ESSERR | G53: PROINFA | H53: CDE | I53: TFSEE | J53: CFURH | K53: CVA_Energia | L53: CVA_RB | M53: CVA_CDE | N53: CVA_CFURH | O53: CVA_TranItaipu | P53: CVA_ESSERR | Q53: CVA_PROINFA | R53: Fator Selic | S53: RTE_Energia | T53: RTE_CDE_USO | U53: RTE_CDE_E | V53: RTE_CUSD | W53: RTE_PeD | X53: CVA_CDE_E | Y53: CVA_CCC | Z53: DISTRIBUICAO | AA53: cDE_E_ACR | AB53: CDE_E_Dec
B54: =DATE(YEAR(B55),MONTH(B55)-1,1) -> 43617 | D54: =DSUM(MercadoBase,D$53,INDIRECT("r"&5+2*(ROW()-54)&":r"&6+2*(ROW()-54))) -> 141555.8139 | E54: 0 | F54: 0 | G54: 242888.4545 | H54: 1217891.605 | I54: 21051.5933 | J54: 0 | K54: 643832.733 | L54: 0 | M54: 269719.8464 | N54: 0 | O54: 0 | P54: 0 | Q54: 15924.81048 | R54: =VLOOKUP(CAPA!$C$15,Índices!B:F,5,FALSE)/VLOOKUP(DATE(YEAR(B54),MONTH(B54),1),Índices!B:F,5,FALSE) -> 1.043814758 | S54: =DSUM(MercadoBase,S$53,INDIRECT("r"&5+2*(ROW()-54)&":r"&6+2*(ROW()-54))) -> 0 | T54: 0 | U54: 0 | V54: 0 | W54: 0 | X54: 20040.02344 | Y54: 0 | Z54: =DSUM(MercadoBase,Z$53,INDIRECT("r"&5+2*(ROW()-54)&":r"&6+2*(ROW()-54))) -> 4053981.983 | AA54: =DSUM(MercadoBase,AA$53,INDIRECT("r"&5+2*(ROW()-54)&":r"&6+2*(ROW()-54))) -> 173095.3628 | AB54: 0
B55: 43647 | D55: 145663.4178 | E55: 0 | F55: 0 | G55: 242982.6974 | H55: 1220768.474 | I55: 21274.57033 | J55: 0 | K55: 664756.7689 | L55: 0 | M55: 270356.971 | N55: 0 | O55: 0 | P55: 0 | Q55: 15930.98945 | R55: =VLOOKUP(CAPA!$C$15,Índices!B:F,5,FALSE)/VLOOKUP(DATE(YEAR(B55),MONTH(B55),1),Índices!B:F,5,FALSE) -> 1.037921479 | S55: 0 | T55: 0 | U55: 0 | V55: 0 | W55: 0 | X55: 20704.3382 | Y55: 0 | Z55: 4149953.299 | AA55: 178833.3703 | AB55: 0
B56: 43678 | D56: 143227.4931 | E56: 0 | F56: 0 | G56: 243511.869 | H56: 1221260.476 | I56: 21142.71234 | J56: 0 | K56: 654372.5584 | L56: 0 | M56: 270465.932 | N56: 0 | O56: 0 | P56: 0 | Q56: 15965.68421 | R56: =VLOOKUP(CAPA!$C$15,Índices!B:F,5,FALSE)/VLOOKUP(DATE(YEAR(B56),MONTH(B56),1),Índices!B:F,5,FALSE) -> 1.032740021 | S56: 0 | T56: 0 | U56: 0 | V56: 0 | W56: 0 | X56: 20375.75135 | Y56: 0 | Z56: 4090665.633 | AA56: 175995.2069 | AB56: 0
B57: 43709 | D57: 143694.0206 | E57: 0 | F57: 0 | G57: 245556.3623 | H57: 1230637.705 | I57: 21284.56886 | J57: 0 | K57: 656985.4917 | L57: 0 | M57: 272542.6561 | N57: 0 | O57: 0 | P57: 0 | Q57: 16099.72997 | R57: =VLOOKUP(CAPA!$C$15,Índices!B:F,5,FALSE)/VLOOKUP(DATE(YEAR(B57),MONTH(B57),1),Índices!B:F,5,FALSE) -> 1.027972695 | S57: 0 | T57: 0 | U57: 0 | V57: 0 | W57: 0 | X57: 20463.36097 | Y57: 0 | Z57: 4103662.506 | AA57: 176751.9336 | AB57: 0
B58: 43739 | D58: 146453.6794 | E58: 0 | F58: 0 | G58: 249750.6659 | H58: 1252291.896 | I58: 21662.76252 | J58: 0 | K58: 668163.5271 | L58: 0 | M58: 277338.2923 | N58: 0 | O58: 0 | P58: 0 | Q58: 16374.72654 | R58: =VLOOKUP(CAPA!$C$15,Índices!B:F,5,FALSE)/VLOOKUP(DATE(YEAR(B58),MONTH(B58),1),Índices!B:F,5,FALSE) -> 1.023069491 | S58: 0 | T58: 0 | U58: 0 | V58: 0 | W58: 0 | X58: 20805.7074 | Y58: 0 | Z58: 4176945.142 | AA58: 179708.945 | AB58: 0
B59: 43770 | D59: 141370.6302 | E59: 0 | F59: 0 | G59: 245313.4589 | H59: 1228039.971 | I59: 21119.46754 | J59: 0 | K59: 646492.2836 | L59: 0 | M59: 271967.3501 | N59: 0 | O59: 0 | P59: 0 | Q59: 16083.80418 | R59: =VLOOKUP(CAPA!$C$15,Índices!B:F,5,FALSE)/VLOOKUP(DATE(YEAR(B59),MONTH(B59),1),Índices!B:F,5,FALSE) -> 1.019192629 | S59: 0 | T59: 0 | U59: 0 | V59: 0 | W59: 0 | X59: 20134.75724 | Y59: 0 | Z59: 4039626.204 | AA59: 173913.6244 | AB59: 0
B60: 43800 | D60: 146341.2425 | E60: 0 | F60: 0 | G60: 248386.2208 | H60: 1246428.293 | I60: 21655.15087 | J60: 0 | K60: 664832.0132 | L60: 0 | M60: 276039.7118 | N60: 0 | O60: 0 | P60: 0 | Q60: 16285.26765 | R60: =VLOOKUP(CAPA!$C$15,Índices!B:F,5,FALSE)/VLOOKUP(DATE(YEAR(B60),MONTH(B60),1),Índices!B:F,5,FALSE) -> 1.015387931 | S60: 0 | T60: 0 | U60: 0 | V60: 0 | W60: 0 | X60: 20685.73266 | Y60: 0 | Z60: 4183741.127 | AA60: 178672.6652 | AB60: 0
B61: 43831 | D61: 140919.3497 | E61: 0 | F61: 0 | G61: 236920.8221 | H61: 1189578.751 | I61: 20686.11709 | J61: 0 | K61: 643167.7324 | L61: 0 | M61: 263449.5523 | N61: 0 | O61: 0 | P61: 0 | Q61: 15533.54687 | R61: =VLOOKUP(CAPA!$C$15,Índices!B:F,5,FALSE)/VLOOKUP(DATE(YEAR(B61),MONTH(B61),1),Índices!B:F,5,FALSE) -> 1.01157799 | S61: 0 | T61: 0 | U61: 0 | V61: 0 | W61: 0 | X61: 20024.83554 | Y61: 0 | Z61: 4040934.957 | AA61: 172964.1776 | AB61: 0
B62: 43862 | D62: 143325.9992 | E62: 0 | F62: 0 | G62: 244528.8434 | H62: 1226295.239 | I62: 21233.98052 | J62: 0 | K62: 652971.4296 | L62: 0 | M62: 271580.9536 | N62: 0 | O62: 0 | P62: 0 | Q62: 16032.36143 | R62: =VLOOKUP(CAPA!$C$15,Índices!B:F,5,FALSE)/VLOOKUP(DATE(YEAR(B62),MONTH(B62),1),Índices!B:F,5,FALSE) -> 1.008615398 | S62: 0 | T62: 0 | U62: 0 | V62: 0 | W62: 0 | X62: 20332.8345 | Y62: 0 | Z62: =DSUM(MercadoBase,Z$53,INDIRECT("r"&5+2*(ROW()-54)&":r"&6+2*(ROW()-54))) -> 4095626.121 | AA62: 175624.5134 | AB62: 0
B63: 43891 | D63: 140235.1381 | E63: 0 | F63: 0 | G63: 237008.0389 | H63: 1190519.625 | I63: 20731.16293 | J63: 0 | K63: =DSUM(MercadoBase,K$53,INDIRECT("r"&5+2*(ROW()-54)&":r"&6+2*(ROW()-54)))*IF(VLOOKUP("MesesAdin",TabPostergacao[#All],2,FALSE)>2,0,1) -> 633900.9347 | L63: =DSUM(MercadoBase,L$53,INDIRECT("r"&5+2*(ROW()-54)&":r"&6+2*(ROW()-54)))*IF(VLOOKUP("MesesAdin",TabPostergacao[#All],2,FALSE)>2,0,1) -> 0 | M63: =DSUM(MercadoBase,M$53,INDIRECT("r"&5+2*(ROW()-54)&":r"&6+2*(ROW()-54)))*IF(VLOOKUP("MesesAdin",TabPostergacao[#All],2,FALSE)>2,0,1) -> 263657.9225 | N63: =DSUM(MercadoBase,N$53,INDIRECT("r"&5+2*(ROW()-54)&":r"&6+2*(ROW()-54)))*IF(VLOOKUP("MesesAdin",TabPostergacao[#All],2,FALSE)>2,0,1) -> 0 | O63: =DSUM(MercadoBase,O$53,INDIRECT("r"&5+2*(ROW()-54)&":r"&6+2*(ROW()-54)))*IF(VLOOKUP("MesesAdin",TabPostergacao[#All],2,FALSE)>2,0,1) -> 0 | P63: =DSUM(MercadoBase,P$53,INDIRECT("r"&5+2*(ROW()-54)&":r"&6+2*(ROW()-54)))*IF(VLOOKUP("MesesAdin",TabPostergacao[#All],2,FALSE)>2,0,1) -> 0 | Q63: =DSUM(MercadoBase,Q$53,INDIRECT("r"&5+2*(ROW()-54)&":r"&6+2*(ROW()-54)))*IF(VLOOKUP("MesesAdin",TabPostergacao[#All],2,FALSE)>2,0,1) -> 15539.26517 | R63: =VLOOKUP(CAPA!$C$15,Índices!B:F,5,FALSE)/VLOOKUP(DATE(YEAR(B63),MONTH(B63),1),Índices!B:F,5,FALSE) -> 1.005214064 | S63: 0 | T63: 0 | U63: 0 | V63: 0 | W63: 0 | X63: 19702.21489 | Y63: 0 | Z63: 4048968.335 | AA63: 170177.5472 | AB63: 0
B64: 43922 | D64: =DSUM(MercadoBase,D$53,INDIRECT("r"&5+2*(ROW()-54)&":r"&6+2*(ROW()-54))) -> 131197.9451 | E64: 0 | F64: 0 | G64: 219886.3438 | H64: 1106038.168 | I64: 19377.90987 | J64: 0 | K64: =DSUM(MercadoBase,K$53,INDIRECT("r"&5+2*(ROW()-54)&":r"&6+2*(ROW()-54)))*IF(VLOOKUP("MesesAdin",TabPostergacao[#All],2,FALSE)>1,0,1) -> 590021.0107 | L64: =DSUM(MercadoBase,L$53,INDIRECT("r"&5+2*(ROW()-54)&":r"&6+2*(ROW()-54)))*IF(VLOOKUP("MesesAdin",TabPostergacao[#All],2,FALSE)>1,0,1) -> 0 | M64: =DSUM(MercadoBase,M$53,INDIRECT("r"&5+2*(ROW()-54)&":r"&6+2*(ROW()-54)))*IF(VLOOKUP("MesesAdin",TabPostergacao[#All],2,FALSE)>1,0,1) -> 244948.2725 | N64: =DSUM(MercadoBase,N$53,INDIRECT("r"&5+2*(ROW()-54)&":r"&6+2*(ROW()-54)))*IF(VLOOKUP("MesesAdin",TabPostergacao[#All],2,FALSE)>1,0,1) -> 0 | O64: =DSUM(MercadoBase,O$53,INDIRECT("r"&5+2*(ROW()-54)&":r"&6+2*(ROW()-54)))*IF(VLOOKUP("MesesAdin",TabPostergacao[#All],2,FALSE)>1,0,1) -> 0 | P64: =DSUM(MercadoBase,P$53,INDIRECT("r"&5+2*(ROW()-54)&":r"&6+2*(ROW()-54)))*IF(VLOOKUP("MesesAdin",TabPostergacao[#All],2,FALSE)>1,0,1) -> 0 | Q64: =DSUM(MercadoBase,Q$53,INDIRECT("r"&5+2*(ROW()-54)&":r"&6+2*(ROW()-54)))*IF(VLOOKUP("MesesAdin",TabPostergacao[#All],2,FALSE)>1,0,1) -> 14416.69329 | R64: =VLOOKUP(CAPA!$C$15,Índices!B:F,5,FALSE)/VLOOKUP(DATE(YEAR(B64),MONTH(B64),1),Índices!B:F,5,FALSE) -> 1.002358096 | S64: =DSUM(MercadoBase,S$53,INDIRECT("r"&5+2*(ROW()-54)&":r"&6+2*(ROW()-54))) -> 0 | T64: 0 | U64: 0 | V64: 0 | W64: 0 | X64: 18319.4177 | Y64: 0 | Z64: =DSUM(MercadoBase,Z$53,INDIRECT("r"&5+2*(ROW()-54)&":r"&6+2*(ROW()-54))) -> 3839601.091 | AA64: =DSUM(MercadoBase,AA$53,INDIRECT("r"&5+2*(ROW()-54)&":r"&6+2*(ROW()-54))) -> 158233.6599 | AB64: 0
B65: =DATE(YEAR(CAPA!$C$10),MONTH(CAPA!$C$10)-1,1) -> 43952 | D65: 131197.9451 | E65: 0 | F65: 0 | G65: 219886.3438 | H65: 1106038.168 | I65: 19377.90987 | J65: 0 | K65: =DSUM(MercadoBase,K$53,INDIRECT("r"&5+2*(ROW()-54)&":r"&6+2*(ROW()-54)))*IF(VLOOKUP("MesesAdin",TabPostergacao[#All],2,FALSE)>0,0,1) -> 590021.0107 | L65: =DSUM(MercadoBase,L$53,INDIRECT("r"&5+2*(ROW()-54)&":r"&6+2*(ROW()-54)))*IF(VLOOKUP("MesesAdin",TabPostergacao[#All],2,FALSE)>0,0,1) -> 0 | M65: =DSUM(MercadoBase,M$53,INDIRECT("r"&5+2*(ROW()-54)&":r"&6+2*(ROW()-54)))*IF(VLOOKUP("MesesAdin",TabPostergacao[#All],2,FALSE)>0,0,1) -> 244948.2725 | N65: =DSUM(MercadoBase,N$53,INDIRECT("r"&5+2*(ROW()-54)&":r"&6+2*(ROW()-54)))*IF(VLOOKUP("MesesAdin",TabPostergacao[#All],2,FALSE)>0,0,1) -> 0 | O65: =DSUM(MercadoBase,O$53,INDIRECT("r"&5+2*(ROW()-54)&":r"&6+2*(ROW()-54)))*IF(VLOOKUP("MesesAdin",TabPostergacao[#All],2,FALSE)>0,0,1) -> 0 | P65: =DSUM(MercadoBase,P$53,INDIRECT("r"&5+2*(ROW()-54)&":r"&6+2*(ROW()-54)))*IF(VLOOKUP("MesesAdin",TabPostergacao[#All],2,FALSE)>0,0,1) -> 0 | Q65: =DSUM(MercadoBase,Q$53,INDIRECT("r"&5+2*(ROW()-54)&":r"&6+2*(ROW()-54)))*IF(VLOOKUP("MesesAdin",TabPostergacao[#All],2,FALSE)>0,0,1) -> 14416.69329 | R65: =VLOOKUP(CAPA!$C$15,Índices!B:F,5,FALSE)/VLOOKUP(DATE(YEAR(B65),MONTH(B65),1),Índices!B:F,5,FALSE) -> 1 | S65: 0 | T65: 0 | U65: 0 | V65: 0 | W65: 0 | X65: 18319.4177 | Y65: 0 | Z65: 3839601.091 | AA65: 158233.6599 | AB65: 0
B66: Total Bruto | D66: =SUM(D54:D65) -> 1695182.675 | E66: =SUM(E54:E65) -> 0 | F66: 0 | G66: =SUM(G54:G65) -> 2876620.121 | H66: 14435788.37 | I66: 250597.906 | J66: 0 | K66: 7709517.494 | L66: 0 | M66: 3197015.733 | N66: 0 | O66: 0 | P66: 0 | Q66: 188603.5725 | S66: =SUM(S54:S65) -> 0 | T66: 0 | U66: 0 | V66: 0 | W66: 0 | X66: 239908.3916 | Y66: 0 | Z66: 48663307.49 | AA66: 2072204.666 | AB66: 0
B67: Total Atualizado pelo SELIC | D67: =SUMPRODUCT(D54:D65,$R$54:$R$65) -> 1727868.181 | E67: 0 | F67: 0 | G67: 2932213.989 | H67: 14714644.24 | I67: 255429.1857 | J67: 0 | K67: 7858558.449 | L67: 0 | M67: 3258772.429 | N67: 0 | O67: 0 | P67: 0 | Q67: 192248.5454 | R67: 12.46231963 | S67: 0 | T67: 0 | U67: 0 | V67: 0 | W67: 0 | X67: 244548.7744 | Y67: 0 | Z67: 49597530.33 | AA67: 2112285.894 | AB67: 0

Sheet Mercado_Receita
A1: Código | B1: TipoMercado | C1: Modalidade | D1: Subgrupo | E1: Classe | F1: Subclasse | G1: Detalhe | H1: Agente | I1: Posto | J1: OPÇÃO | K1: AnoMes | L1: D | M1: Daj | N1: TUSD_E | O1: TUSD_Eaj | P1: TE_E | Q1: TE_Eaj | R1: TUSD/KW | S1: TUSD/MWh | T1: TE | U1: ReceitaD | V1: ReceitaE | W1: Total | X1: Total com Tar de aplicação | Y1: CCC | Z1: CDE | AA1: CFURH | AB1: Conexao_D | AC1: Conexao_T | AD1: CUSD | AE1: DISTRIBUICAO | AF1: EnergiaRevenda | AG1: ESSERR | AH1: ITAIPU | AI1: ONS | AJ1: OUTROS | AK1: PeD | AL1: PROINFA | AM1: RGR | AN1: TFSEE | AO1: TUST_FR | AP1: TUST_RB | AQ1: TUSDG_ONS | AR1: TUSDG_T | AS1: TUST_CI | AT1: TUST_ITAIPU | AU1: CVA_CCC | AV1: CVA_CDE | AW1: CVA_PROINFA | AX1: CVA_TranItaipu | AY1: CVA_ESSERR | AZ1: CVA_CFURH | BA1: CVA_CDE_E | BB1: CVA_Energia | BC1: CVA_RB | BD1: perdasnt | BE1: perdasrb_d | BF1: perdasrb_c | BG1: perdastec | BH1: RI | BI1: PisPasep | BJ1: Cofins | BK1: ICMS | BL1: UC | BM1: total_dummy | BN1: Subs_CarFI | BO1: Subs_GerFI | BP1: Subs_Dist | BQ1: Subs_AguaEsgoto | BR1: Subs_Rural | BS1: Subs_Irrigante | BT1: Subs_BaixaRenda | BU1: CDE_E | BV1: DespesaEnergia | BW1: RTE_CUSD | BX1: RTE_Energia | BY1: RTE_CDE_USO | BZ1: RTE_CDE_E | CA1: RTE_PeD | CB1: Dif_Subs_Car | CC1: Dif_Subs_Ger | CD1: Dif_Subs_D | CE1: Dif_Subs_Agua | CF1: Dif_Subs_Ru | CG1: Dif_Subs_Irr | CH1: dif_subs_baixa | CI1: FinTotAj | CJ1: FinAj | CK1: RTE_CDE_E_Dec | CL1: RTE_CDE_E_ACR | CM1: CDE_E_Dec | CN1: CDE_E_ACR | CO1: FinPostTUSD | CP1: FinPostTE | CQ1: FinPostQtddias | CR1: FinCT_Geral | CS1: finCT_TUST_FR | CT1: finCT_TUST_RB | CU1: FINCT_TUSDG_ONS | CV1: FINCT_TUSDG_T | CW1: FINCT_TUST_CI | CX1: FINCT_TUST_ITAIPU | CY1: FinCT_Itaipu | CZ1: FinCT_CUSD | DA1: FinCT_Conexao_D | DB1: FinCT_Conexao_T | DC1: FinCT_EnergiaRevenda | DD1: FINCT_perdasrb_c | DE1: FINCT_perdasrb_d | DF1: FinCT_perdasnt | DG1: FinCT_perdastec | DH1: FinCT_CCC | DI1: FinCT_CDE | DJ1: FinCT_CDE_E | DK1: FinCT_CFURH | DL1: FinCT_ONS | DM1: FinCT_ESSERR | DN1: FinCT_Ped | DO1: finCT_PROINFA | DP1: finCT_TFSEE | DQ1: FINCT_Liminar | DR1: FinCT_Posterg | DS1: FINCT_RGR | DT1: Tipo_ato | DU1: DIST_D | DV1: DIST_E | DW1: FIN_RI | DX1: FINCT_RI | DY1: idsreag | DZ1: FinCTAn3En | EA1: An3En | EB1: CVA_An3En | EC1: Fin_An3En | ED1: FIN_CFURH | EE1: TEAngra | EF1: TUSDAngra | EG1: teCheia | EH1: tusdcheia | EI1: AngraIII_TE | EJ1: AngraIII_TUSD | EK1: AngraIII_Desc_TE | EL1: AngraIII_Desc_TUSD
A2: 850 | B2: Regular | C2: Distribuição | D2: A3 | E2: Não se aplica | F2: Não se aplica | G2: Não se aplica | H2: EMG | I2: Fora ponta | J2: DISTRIBUIÇÃO | K2: 2019-06-01 | L2: 2669 | M2: 2669 | N2: 0 | O2: 0 | P2: 0 | Q2: 0 | R2: 10.71 | U2: 28584.99 | W2: 28584.99 | X2: 28771.82 | Y2: 0 | Z2: 0 | AA2: 0 | AB2: 0 | AC2: 0 | AD2: 25461.18655 | AE2: 3119.904414 | AI2: 0 | AJ2: 0 | AK2: 0 | AL2: 0 | AM2: 0 | AN2: 0 | AO2: 0 | AP2: 0 | AQ2: 0 | AR2: 0 | AU2: 0 | AV2: 0 | AW2: 0 | AZ2: 0 | BB2: 0 | BC2: 0 | BD2: 0 | BE2: 0 | BG2: 0 | BH2: 0 | BI2: 0 | BJ2: 0 | BK2: 0 | BL2: 0 | BV2: 0 | CI2: 28771.82 | CJ2: 186.8 | CO2: 186.83 | CP2: 0 | CQ2: 30 | CR2: 192.8089461 | CS2: 0 | CT2: 0 | CU2: 0 | CV2: 0 | CZ2: 192.8089461 | DA2: 0 | DB2: 0 | DE2: 0 | DF2: 0 | DG2: 0 | DH2: 0 | DI2: 0 | DK2: 0 | DL2: 0 | DN2: 0 | DO2: 0 | DP2: 0 | DQ2: 0 | DR2: 0 | DS2: 0 | DT2: C | DU2: 3119.904414 | DW2: 0 | DX2: 0 | DY2: 152 | ED2: 0 | EE2: -48.80228751 | EF2: -3.028738663 | EG2: -48.80228751 | EH2: -3.028738663 | EI2: 0 | EJ2: 0 | EK2: 0 | EL2: 0
A3: 872 | B3: Regular | C3: Distribuição | D3: A3 | E3: Não se aplica | F3: Não se aplica | G3: Não se aplica | H3: EMG | I3: Fora ponta | J3: DISTRIBUIÇÃO | K3: 2019-07-01 | L3: 2669 | M3: 2669 | N3: 0 | O3: 0 | P3: 0 | Q3: 0 | R3: 10.71 | U3: 28584.99 | W3: 28584.99 | X3: 28771.82 | Y3: 0 | Z3: 0 | AA3: 0 | AB3: 0 | AC3: 0 | AD3: 25461.18655 | AE3: 3119.904414 | AI3: 0 | AJ3: 0 | AK3: 0 | AL3: 0 | AM3: 0 | AN3: 0 | AO3: 0 | AP3: 0 | AQ3: 0 | AR3: 0 | AU3: 0 | AV3: 0 | AW3: 0 | AZ3: 0 | BB3: 0 | BC3: 0 | BD3: 0 | BE3: 0 | BG3: 0 | BH3: 0 | BI3: 0 | BJ3: 0 | BK3: 0 | BL3: 0 | BV3: 0 | CI3: 28771.82 | CJ3: 186.8 | CO3: 186.83 | CP3: 0 | CQ3: 31 | CR3: 192.8089461 | CS3: 0 | CT3: 0 | CU3: 0 | CV3: 0 | CZ3: 192.8089461 | DA3: 0 | DB3: 0 | DE3: 0 | DF3: 0 | DG3: 0 | DH3: 0 | DI3: 0 | DK3: 0 | DL3: 0 | DN3: 0 | DO3: 0 | DP3: 0 | DQ3: 0 | DR3: 0 | DS3: 0 | DT3: C | DU3: 3119.904414 | DW3: 0 | DX3: 0 | DY3: 152 | ED3: 0 | EE3: -48.80228751 | EF3: -3.028738663 | EG3: -48.80228751 | EH3: -3.028738663 | EI3: 0 | EJ3: 0 | EK3: 0 | EL3: 0
A4: 894 | B4: Regular | C4: Distribuição | D4: A3 | E4: Não se aplica | F4: Não se aplica | G4: Não se aplica | H4: EMG | I4: Fora ponta | J4: DISTRIBUIÇÃO | K4: 2019-08-01 | L4: 2669 | M4: 2669 | N4: 0 | O4: 0 | P4: 0 | Q4: 0 | R4: 10.71 | U4: 28584.99 | W4: 28584.99 | X4: 28771.82 | Y4: 0 | Z4: 0 | AA4: 0 | AB4: 0 | AC4: 0 | AD4: 25461.18655 | AE4: 3119.904414 | AI4: 0 | AJ4: 0 | AK4: 0 | AL4: 0 | AM4: 0 | AN4: 0 | AO4: 0 | AP4: 0 | AQ4: 0 | AR4: 0 | AU4: 0 | AV4: 0 | AW4: 0 | AZ4: 0 | BB4: 0 | BC4: 0 | BD4: 0 | BE4: 0 | BG4: 0 | BH4: 0 | BI4: 0 | BJ4: 0 | BK4: 0 | BL4: 0 | BV4: 0 | CI4: 28771.82 | CJ4: 186.8 | CO4: 186.83 | CP4: 0 | CQ4: 31 | CR4: 192.8089461 | CS4: 0 | CT4: 0 | CU4: 0 | CV4: 0 | CZ4: 192.8089461 | DA4: 0 | DB4: 0 | DE4: 0 | DF4: 0 | DG4: 0 | DH4: 0 | DI4: 0 | DK4: 0 | DL4: 0 | DN4: 0 | DO4: 0 | DP4: 0 | DQ4: 0 | DR4: 0 | DS4: 0 | DT4: C | DU4: 3119.904414 | DW4: 0 | DX4: 0 | DY4: 152 | ED4: 0 | EE4: -48.80228751 | EF4: -3.028738663 | EG4: -48.80228751 | EH4: -3.028738663 | EI4: 0 | EJ4: 0 | EK4: 0 | EL4: 0
A5: 916 | B5: Regular | C5: Distribuição | D5: A3 | E5: Não se aplica | F5: Não se aplica | G5: Não se aplica | H5: EMG | I5: Fora ponta | J5: DISTRIBUIÇÃO | K5: 2019-09-01 | L5: 2669 | M5: 2669 | N5: 0 | O5: 0 | P5: 0 | Q5: 0 | R5: 10.71 | U5: 28584.99 | W5: 28584.99 | X5: 28771.82 | Y5: 0 | Z5: 0 | AA5: 0 | AB5: 0 | AC5: 0 | AD5: 25461.18655 | AE5: 3119.904414 | AI5: 0 | AJ5: 0 | AK5: 0 | AL5: 0 | AM5: 0 | AN5: 0 | AO5: 0 | AP5: 0 | AQ5: 0 | AR5: 0 | AU5: 0 | AV5: 0 | AW5: 0 | AZ5: 0 | BB5: 0 | BC5: 0 | BD5: 0 | BE5: 0 | BG5: 0 | BH5: 0 | BI5: 0 | BJ5: 0 | BK5: 0 | BL5: 0 | BV5: 0 | CI5: 28771.82 | CJ5: 186.8 | CO5: 186.83 | CP5: 0 | CQ5: 30 | CR5: 192.8089461 | CS5: 0 | CT5: 0 | CU5: 0 | CV5: 0 | CZ5: 192.8089461 | DA5: 0 | DB5: 0 | DE5: 0 | DF5: 0 | DG5: 0 | DH5: 0 | DI5: 0 | DK5: 0 | DL5: 0 | DN5: 0 | DO5: 0 | DP5: 0 | DQ5: 0 | DR5: 0 | DS5: 0 | DT5: C | DU5: 3119.904414 | DW5: 0 | DX5: 0 | DY5: 152 | ED5: 0 | EE5: -48.80228751 | EF5: -3.028738663 | EG5: -48.80228751 | EH5: -3.028738663 | EI5: 0 | EJ5: 0 | EK5: 0 | EL5: 0
A6: 938 | B6: Regular | C6: Distribuição | D6: A3 | E6: Não se aplica | F6: Não se aplica | G6: Não se aplica | H6: EMG | I6: Fora ponta | J6: DISTRIBUIÇÃO | K6: 2019-10-01 | L6: 2669 | M6: 2669 | N6: 0 | O6: 0 | P6: 0 | Q6: 0 | R6: 10.71 | U6: 28584.99 | W6: 28584.99 | X6: 28771.82 | Y6: 0 | Z6: 0 | AA6: 0 | AB6: 0 | AC6: 0 | AD6: 25461.18655 | AE6: 3119.904414 | AI6: 0 | AJ6: 0 | AK6: 0 | AL6: 0 | AM6: 0 | AN6: 0 | AO6: 0 | AP6: 0 | AQ6: 0 | AR6: 0 | AU6: 0 | AV6: 0 | AW6: 0 | AZ6: 0 | BB6: 0 | BC6: 0 | BD6: 0 | BE6: 0 | BG6: 0 | BH6: 0 | BI6: 0 | BJ6: 0 | BK6: 0 | BL6: 0 | BV6: 0 | CI6: 28771.82 | CJ6: 186.8 | CO6: 186.83 | CP6: 0 | CQ6: 31 | CR6: 192.8089461 | CS6: 0 | CT6: 0 | CU6: 0 | CV6: 0 | CZ6: 192.8089461 | DA6: 0 | DB6: 0 | DE6: 0 | DF6: 0 | DG6: 0 | DH6: 0 | DI6: 0 | DK6: 0 | DL6: 0 | DN6: 0 | DO6: 0 | DP6: 0 | DQ6: 0 | DR6: 0 | DS6: 0 | DT6: C | DU6: 3119.904414 | DW6: 0 | DX6: 0 | DY6: 152 | ED6: 0 | EE6: -48.80228751 | EF6: -3.028738663 | EG6: -48.80228751 | EH6: -3.028738663 | EI6: 0 | EJ6: 0 | EK6: 0 | EL6: 0
A7: 960 | B7: Regular | C7: Distribuição | D7: A3 | E7: Não se aplica | F7: Não se aplica | G7: Não se aplica | H7: EMG | I7: Fora ponta | J7: DISTRIBUIÇÃO | K7: 2019-11-01 | L7: 2669 | M7: 2669 | N7: 0 | O7: 0 | P7: 0 | Q7: 0 | R7: 10.71 | U7: 28584.99 | W7: 28584.99 | X7: 28771.82 | Y7: 0 | Z7: 0 | AA7: 0 | AB7: 0 | AC7: 0 | AD7: 25461.18655 | AE7: 3119.904414 | AI7: 0 | AJ7: 0 | AK7: 0 | AL7: 0 | AM7: 0 | AN7: 0 | AO7: 0 | AP7: 0 | AQ7: 0 | AR7: 0 | AU7: 0 | AV7: 0 | AW7: 0 | AZ7: 0 | BB7: 0 | BC7: 0 | BD7: 0 | BE7: 0 | BG7: 0 | BH7: 0 | BI7: 0 | BJ7: 0 | BK7: 0 | BL7: 0 | BV7: 0 | CI7: 28771.82 | CJ7: 186.8 | CO7: 186.83 | CP7: 0 | CQ7: 30 | CR7: 192.8089461 | CS7: 0 | CT7: 0 | CU7: 0 | CV7: 0 | CZ7: 192.8089461 | DA7: 0 | DB7: 0 | DE7: 0 | DF7: 0 | DG7: 0 | DH7: 0 | DI7: 0 | DK7: 0 | DL7: 0 | DN7: 0 | DO7: 0 | DP7: 0 | DQ7: 0 | DR7: 0 | DS7: 0 | DT7: C | DU7: 3119.904414 | DW7: 0 | DX7: 0 | DY7: 152 | ED7: 0 | EE7: -48.80228751 | EF7: -3.028738663 | EG7: -48.80228751 | EH7: -3.028738663 | EI7: 0 | EJ7: 0 | EK7: 0 | EL7: 0
A8: 982 | B8: Regular | C8: Distribuição | D8: A3 | E8: Não se aplica | F8: Não se aplica | G8: Não se aplica | H8: EMG | I8: Fora ponta | J8: DISTRIBUIÇÃO | K8: 2019-12-01 | L8: 2669 | M8: 2669 | N8: 0 | O8: 0 | P8: 0 | Q8: 0 | R8: 10.71 | U8: 28584.99 | W8: 28584.99 | X8: 28771.82 | Y8: 0 | Z8: 0 | AA8: 0 | AB8: 0 | AC8: 0 | AD8: 25461.18655 | AE8: 3119.904414 | AI8: 0 | AJ8: 0 | AK8: 0 | AL8: 0 | AM8: 0 | AN8: 0 | AO8: 0 | AP8: 0 | AQ8: 0 | AR8: 0 | AU8: 0 | AV8: 0 | AW8: 0 | AZ8: 0 | BB8: 0 | BC8: 0 | BD8: 0 | BE8: 0 | BG8: 0 | BH8: 0 | BI8: 0 | BJ8: 0 | BK8: 0 | BL8: 0 | BV8: 0 | CI8: 28771.82 | CJ8: 186.8 | CO8: 186.83 | CP8: 0 | CR8: 192.8089461 | CS8: 0 | CT8: 0 | CU8: 0 | CV8: 0 | CZ8: 192.8089461 | DA8: 0 | DB8: 0 | DE8: 0 | DF8: 0 | DG8: 0 | DH8: 0 | DI8: 0 | DK8: 0 | DL8: 0 | DN8: 0 | DO8: 0 | DP8: 0 | DQ8: 0 | DR8: 0 | DS8: 0 | DT8: C | DU8: 3119.904414 | DW8: 0 | DX8: 0 | DY8: 152 | ED8: 0 | EE8: -48.80228751 | EF8: -3.028738663 | EG8: -48.80228751 | EH8: -3.028738663 | EI8: 0 | EJ8: 0 | EK8: 0 | EL8: 0
A9: 1004 | B9: Regular | C9: Distribuição | D9: A3 | E9: Não se aplica | F9: Não se aplica | G9: Não se aplica | H9: EMG | I9: Fora ponta | J9: DISTRIBUIÇÃO | K9: 2020-01-01 | L9: 2782 | M9: 2782 | N9: 0 | O9: 0 | P9: 0 | Q9: 0 | R9: 10.71 | U9: 29795.22 | W9: 29795.22 | X9: 29989.96 | Y9: 0 | Z9: 0 | AA9: 0 | AB9: 0 | AC9: 0 | AD9: 26539.1611 | AE9: 3251.994784 | AI9: 0 | AJ9: 0 | AK9: 0 | AL9: 0 | AM9: 0 | AN9: 0 | AO9: 0 | AP9: 0 | AQ9: 0 | AR9: 0 | AU9: 0 | AV9: 0 | AW9: 0 | AZ9: 0 | BB9: 0 | BC9: 0 | BD9: 0 | BE9: 0 | BG9: 0 | BH9: 0 | BI9: 0 | BJ9: 0 | BK9: 0 | BL9: 0 | BV9: 0 | CI9: 29989.96 | CJ9: 194.71 | CO9: 194.74 | CP9: 0 | CQ9: 31 | CR9: 200.9720824 | CS9: 0 | CT9: 0 | CU9: 0 | CV9: 0 | CZ9: 200.9720824 | DA9: 0 | DB9: 0 | DE9: 0 | DF9: 0 | DG9: 0 | DH9: 0 | DI9: 0 | DK9: 0 | DL9: 0 | DN9: 0 | DO9: 0 | DP9: 0 | DQ9: 0 | DR9: 0 | DS9: 0 | DT9: C | DU9: 3251.994784 | DW9: 0 | DX9: 0 | DY9: 152 | ED9: 0 | EE9: -48.80228751 | EF9: -3.028738663 | EG9: -48.80228751 | EH9: -3.028738663 | EI9: 0 | EJ9: 0 | EK9: 0 | EL9: 0
A10: 1026 | B10: Regular | C10: Distribuição | D10: A3 | E10: Não se aplica | F10: Não se aplica | G10: Não se aplica | H10: EMG | I10: Fora ponta | J10: DISTRIBUIÇÃO | K10: 2020-02-01 | L10: 2738 | M10: 2738 | N10: 0 | O10: 0 | P10: 0 | Q10: 0 | R10: 10.71 | U10: 29323.98 | W10: 29323.98 | X10: 29515.64 | Y10: 0 | Z10: 0 | AA10: 0 | AB10: 0 | AC10: 0 | AD10: 26119.4188 | AE10: 3200.561365 | AI10: 0 | AJ10: 0 | AK10: 0 | AL10: 0 | AM10: 0 | AN10: 0 | AO10: 0 | AP10: 0 | AQ10: 0 | AR10: 0 | AU10: 0 | AV10: 0 | AW10: 0 | AZ10: 0 | BB10: 0 | BC10: 0 | BD10: 0 | BE10: 0 | BG10: 0 | BH10: 0 | BI10: 0 | BJ10: 0 | BK10: 0 | BL10: 0 | BV10: 0 | CI10: 29515.64 | CJ10: 191.63 | CO10: 191.66 | CP10: 0 | CQ10: 29 | CR10: 197.7935161 | CS10: 0 | CT10: 0 | CU10: 0 | CV10: 0 | CZ10: 197.7935161 | DA10: 0 | DB10: 0 | DE10: 0 | DF10: 0 | DG10: 0 | DH10: 0 | DI10: 0 | DK10: 0 | DL10: 0 | DN10: 0 | DO10: 0 | DP10: 0 | DQ10: 0 | DR10: 0 | DS10: 0 | DT10: C | DU10: 3200.561365 | DW10: 0 | DX10: 0 | DY10: 152 | ED10: 0 | EE10: -48.80228751 | EF10: -3.028738663 | EG10: -48.80228751 | EH10: -3.028738663 | EI10: 0 | EJ10: 0 | EK10: 0 | EL10: 0
A11: 1048 | B11: Regular | C11: Distribuição | D11: A3 | E11: Não se aplica | F11: Não se aplica | G11: Não se aplica | H11: EMG | I11: Fora ponta | J11: DISTRIBUIÇÃO | K11: 2020-03-01 | L11: 2738 | M11: 2738 | N11: 0 | O11: 0 | P11: 0 | Q11: 0 | R11: 10.71 | U11: 29323.98 | W11: 29323.98 | X11: 29515.64 | Y11: 0 | Z11: 0 | AA11: 0 | AB11: 0 | AC11: 0 | AD11: 26119.4188 | AE11: 3200.561365 | AI11: 0 | AJ11: 0 | AK11: 0 | AL11: 0 | AM11: 0 | AN11: 0 | AO11: 0 | AP11: 0 | AQ11: 0 | AR11: 0 | AU11: 0 | AV11: 0 | AW11: 0 | AZ11: 0 | BB11: 0 | BC11: 0 | BD11: 0 | BE11: 0 | BG11: 0 | BH11: 0 | BI11: 0 | BJ11: 0 | BK11: 0 | BL11: 0 | BV11: 0 | CI11: 29515.64 | CJ11: 191.63 | CO11: 191.66 | CP11: 0 | CQ11: 31 | CR11: 197.7935161 | CS11: 0 | CT11: 0 | CU11: 0 | CV11: 0 | CZ11: 197.7935161 | DA11: 0 | DB11: 0 | DE11: 0 | DF11: 0 | DG11: 0 | DH11: 0 | DI11: 0 | DK11: 0 | DL11: 0 | DN11: 0 | DO11: 0 | DP11: 0 | DQ11: 0 | DR11: 0 | DS11: 0 | DT11: C | DU11: 3200.561365 | DW11: 0 | DX11: 0 | DY11: 152 | ED11: 0 | EE11: -48.80228751 | EF11: -3.028738663 | EG11: -48.80228751 | EH11: -3.028738663 | EI11: 0 | EJ11: 0 | EK11: 0 | EL11: 0
A12: 1070 | B12: Regular | C12: Distribuição | D12: A3 | E12: Não se aplica | F12: Não se aplica | G12: Não se aplica | H12: EMG | I12: Fora ponta | J12: DISTRIBUIÇÃO | K12: 2020-04-01 | L12: 2738 | M12: 2738 | N12: 0 | O12: 0 | P12: 0 | Q12: 0 | R12: 10.71 | U12: 29323.98 | W12: 29323.98 | X12: 29515.64 | Y12: 0 | Z12: 0 | AA12: 0 | AB12: 0 | AC12: 0 | AD12: 26119.4188 | AE12: 3200.561365 | AI12: 0 | AJ12: 0 | AK12: 0 | AL12: 0 | AM12: 0 | AN12: 0 | AO12: 0 | AP12: 0 | AQ12: 0 | AR12: 0 | AU12: 0 | AV12: 0 | AW12: 0 | AZ12: 0 | BB12: 0 | BC12: 0 | BD12: 0 | BE12: 0 | BG12: 0 | BH12: 0 | BI12: 0 | BJ12: 0 | BK12: 0 | BL12: 0 | BV12: 0 | CI12: 29515.64 | CJ12: 191.63 | CO12: 191.66 | CP12: 0 | CQ12: 30 | CR12: 197.7935161 | CS12: 0 | CT12: 0 | CU12: 0 | CV12: 0 | CZ12: 197.7935161 | DA12: 0 | DB12: 0 | DE12: 0 | DF12: 0 | DG12: 0 | DH12: 0 | DI12: 0 | DK12: 0 | DL12: 0 | DN12: 0 | DO12: 0 | DP12: 0 | DQ12: 0 | DR12: 0 | DS12: 0 | DT12: C | DU12: 3200.561365 | DW12: 0 | DX12: 0 | DY12: 152 | ED12: 0 | EE12: -48.80228751 | EF12: -3.028738663 | EG12: -48.80228751 | EH12: -3.028738663 | EI12: 0 | EJ12: 0 | EK12: 0 | EL12: 0
A13: 1092 | B13: PROJETADO | C13: Distribuição | D13: A3 | E13: Não se aplica | F13: Não se aplica | G13: Não se aplica | H13: EMG | I13: Fora ponta | J13: DISTRIBUIÇÃO | K13: 2020-05-01 | L13: 2738 | M13: 2738 | N13: 0 | O13: 0 | P13: 0 | Q13: 0 | R13: 10.71 | U13: 29323.98 | W13: 29323.98 | X13: 29515.64 | Y13: 0 | Z13: 0 | AA13: 0 | AB13: 0 | AC13: 0 | AD13: 26119.4188 | AE13: 3200.561365 | AI13: 0 | AJ13: 0 | AK13: 0 | AL13: 0 | AM13: 0 | AN13: 0 | AO13: 0 | AP13: 0 | AQ13: 0 | AR13: 0 | AU13: 0 | AV13: 0 | AW13: 0 | AZ13: 0 | BB13: 0 | BC13: 0 | BD13: 0 | BE13: 0 | BG13: 0 | BH13: 0 | BI13: 0 | BJ13: 0 | BK13: 0 | BL13: 0 | BV13: 0 | CI13: 29515.64 | CJ13: 191.63 | CO13: 191.66 | CP13: 0 | CQ13: 31 | CR13: 197.7935161 | CS13: 0 | CT13: 0 | CU13: 0 | CV13: 0 | CZ13: 197.7935161 | DA13: 0 | DB13: 0 | DE13: 0 | DF13: 0 | DG13: 0 | DH13: 0 | DI13: 0 | DK13: 0 | DL13: 0 | DN13: 0 | DO13: 0 | DP13: 0 | DQ13: 0 | DR13: 0 | DS13: 0 | DT13: C | DU13: 3200.561365 | DW13: 0 | DX13: 0 | DY13: 152 | ED13: 0 | EE13: -48.80228751 | EF13: -3.028738663 | EG13: -48.80228751 | EH13: -3.028738663 | EI13: 0 | EJ13: 0 | EK13: 0 | EL13: 0
A14: 851 | B14: Regular | C14: Distribuição | D14: A3 | E14: Não se aplica | F14: Não se aplica | G14: Não se aplica | H14: EMG | I14: Não se aplica | J14: DISTRIBUIÇÃO | K14: 2019-06-01 | L14: 0 | M14: 0 | N14: 901.819 | O14: 901.819 | P14: 0 | Q14: 0 | S14: 0.08 | V14: 72.14552 | W14: 72.14552 | X14: 81.16371 | Y14: 0 | Z14: 0 | AA14: 0 | AB14: 0 | AC14: 0 | AD14: 0 | AE14: 0 | AI14: 0 | AJ14: 0 | AK14: 0 | AL14: 0 | AM14: 0 | AN14: 0 | AO14: 0 | AP14: 0 | AQ14: 0 | AR14: 0 | AU14: 0 | AV14: 0 | AW14: 0 | AZ14: 0 | BB14: 7.355940466 | BC14: 0 | BD14: 0 | BE14: 0 | BG14: 74.53893529 | BH14: 0 | BI14: 5345.9 | BJ14: 0 | BK14: 0 | BL14: 0 | BV14: 74.53893529 | CI14: 81.1638 | CJ14: 8.98828 | CO14: 9.01819 | CP14: 0 | CQ14: 30 | CR14: 0.01551190769 | CS14: 0 | CT14: 0 | CU14: 0 | CV14: 0 | CZ14: 0 | DA14: 0 | DB14: 0 | DE14: 0 | DF14: 0 | DG14: 0.01551190769 | DH14: 0 | DI14: 0 | DK14: 0 | DL14: 0 | DN14: 0 | DO14: 0 | DP14: 0 | DQ14: 0 | DR14: 0 | DS14: 0 | DT14: C | DV14: 0 | DW14: 0 | DX14: 0 | DY14: 152 | ED14: 0 | EE14: -48.80228751 | EF14: -3.028738663 | EG14: -48.80228751 | EH14: -3.028738663 | EI14: 0 | EJ14: 0 | EK14: 0 | EL14: 0
A15: 873 | B15: Regular | C15: Distribuição | D15: A3 | E15: Não se aplica | F15: Não se aplica | G15: Não se aplica | H15: EMG | I15: Não se aplica | J15: DISTRIBUIÇÃO | K15: 2019-07-01 | L15: 0 | M15: 0 | N15: 981.276 | O15: 981.276 | P15: 0 | Q15: 0 | S15: 0.08 | V15: 78.50208 | W15: 78.50208 | X15: 88.31484 | Y15: 0 | Z15: 0 | AA15: 0 | AB15: 0 | AC15: 0 | AD15: 0 | AE15: 0 | AI15: 0 | AJ15: 0 | AK15: 0 | AL15: 0 | AM15: 0 | AN15: 0 | AO15: 0 | AP15: 0 | AQ15: 0 | AR15: 0 | AU15: 0 | AV15: 0 | AW15: 0 | AZ15: 0 | BB15: 8.004053847 | BC15: 0 | BD15: 0 | BE15: 0 | BG15: 81.10637309 | BH15: 0 | BI15: 5498.15 | BJ15: 0 | BK15: 0 | BL15: 0 | BV15: 81.10637309 | CI15: 88.3152 | CJ15: 9.78312 | CO15: 9.81276 | CP15: 0 | CQ15: 31 | CR15: 0.0168786228 | CS15: 0 | CT15: 0 | CU15: 0 | CV15: 0 | CZ15: 0 | DA15: 0 | DB15: 0 | DE15: 0 | DF15: 0 | DG15: 0.0168786228 | DH15: 0 | DI15: 0 | DK15: 0 | DL15: 0 | DN15: 0 | DO15: 0 | DP15: 0 | DQ15: 0 | DR15: 0 | DS15: 0 | DT15: C | DV15: 0 | DW15: 0 | DX15: 0 | DY15: 152 | ED15: 0 | EE15: -48.80228751 | EF15: -3.028738663 | EG15: -48.80228751 | EH15: -3.028738663 | EI15: 0 | EJ15: 0 | EK15: 0 | EL15: 0
A16: 895 | B16: Regular | C16: Distribuição | D16: A3 | E16: Não se aplica | F16: Não se aplica | G16: Não se aplica | H16: EMG | I16: Não se aplica | J16: DISTRIBUIÇÃO | K16: 2019-08-01 | L16: 0 | M16: 0 | N16: 1020.422 | O16: 1020.422 | P16: 0 | Q16: 0 | S16: 0.08 | V16: 81.63376 | W16: 81.63376 | X16: 91.83798 | Y16: 0 | Z16: 0 | AA16: 0 | AB16: 0 | AC16: 0 | AD16: 0 | AE16: 0 | AI16: 0 | AJ16: 0 | AK16: 0 | AL16: 0 | AM16: 0 | AN16: 0 | AO16: 0 | AP16: 0 | AQ16: 0 | AR16: 0 | AU16: 0 | AV16: 0 | AW16: 0 | AZ16: 0 | BB16: 8.323359213 | BC16: 0 | BD16: 0 | BE16: 0 | BG16: 84.34194603 | BH16: 0 | BI16: 5535.99 | BJ16: 0 | BK16: 0 | BL16: 0 | BV16: 84.34194603 | CI16: 91.8378 | CJ16: 10.17404 | CO16: 10.20422 | CP16: 0 | CQ16: 31 | CR16: 0.01755196095 | CS16: 0 | CT16: 0 | CU16: 0 | CV16: 0 | CZ16: 0 | DA16: 0 | DB16: 0 | DE16: 0 | DF16: 0 | DG16: 0.01755196095 | DH16: 0 | DI16: 0 | DK16: 0 | DL16: 0 | DN16: 0 | DO16: 0 | DP16: 0 | DQ16: 0 | DR16: 0 | DS16: 0 | DT16: C | DV16: 0 | DW16: 0 | DX16: 0 | DY16: 152 | ED16: 0 | EE16: -48.80228751 | EF16: -3.028738663 | EG16: -48.80228751 | EH16: -3.028738663 | EI16: 0 | EJ16: 0 | EK16: 0 | EL16: 0
A17: 917 | B17: Regular | C17: Distribuição | D17: A3 | E17: Não se aplica | F17: Não se aplica | G17: Não se aplica | H17: EMG | I17: Não se aplica | J17: DISTRIBUIÇÃO | K17: 2019-09-01 | L17: 0 | M17: 0 | N17: 1032.024 | O17: 1032.024 | P17: 0 | Q17: 0 | S17: 0.08 | V17: 82.56192 | W17: 82.56192 | X17: 92.88216 | Y17: 0 | Z17: 0 | AA17: 0 | AB17: 0 | AC17: 0 | AD17: 0 | AE17: 0 | AI17: 0 | AJ17: 0 | AK17: 0 | AL17: 0 | AM17: 0 | AN17: 0 | AO17: 0 | AP17: 0 | AQ17: 0 | AR17: 0 | AU17: 0 | AV17: 0 | AW17: 0 | AZ17: 0 | BB17: 8.417994191 | BC17: 0 | BD17: 0 | BE17: 0 | BG17: 85.30089758 | BH17: 0 | BI17: 5682.85 | BJ17: 0 | BK17: 0 | BL17: 0 | BV17: 85.30089758 | CI17: 92.8818 | CJ17: 10.28988 | CO17: 10.32024 | CP17: 0 | CQ17: 30 | CR17: 0.01775152334 | CS17: 0 | CT17: 0 | CU17: 0 | CV17: 0 | CZ17: 0 | DA17: 0 | DB17: 0 | DE17: 0 | DF17: 0 | DG17: 0.01775152334 | DH17: 0 | DI17: 0 | DK17: 0 | DL17: 0 | DN17: 0 | DO17: 0 | DP17: 0 | DQ17: 0 | DR17: 0 | DS17: 0 | DT17: C | DV17: 0 | DW17: 0 | DX17: 0 | DY17: 152 | ED17: 0 | EE17: -48.80228751 | EF17: -3.028738663 | EG17: -48.80228751 | EH17: -3.028738663 | EI17: 0 | EJ17: 0 | EK17: 0 | EL17: 0
A18: 939 | B18: Regular | C18: Distribuição | D18: A3 | E18: Não se aplica | F18: Não se aplica | G18: Não se aplica | H18: EMG | I18: Não se aplica | J18: DISTRIBUIÇÃO | K18: 2019-10-01 | L18: 0 | M18: 0 | N18: 1108.654 | O18: 1108.654 | P18: 0 | Q18: 0 | S18: 0.08 | V18: 88.69232 | W18: 88.69232 | X18: 99.77886 | Y18: 0 | Z18: 0 | AA18: 0 | AB18: 0 | AC18: 0 | AD18: 0 | AE18: 0 | AI18: 0 | AJ18: 0 | AK18: 0 | AL18: 0 | AM18: 0 | AN18: 0 | AO18: 0 | AP18: 0 | AQ18: 0 | AR18: 0 | AU18: 0 | AV18: 0 | AW18: 0 | AZ18: 0 | BB18: 9.043048351 | BC18: 0 | BD18: 0 | BE18: 0 | BG18: 91.63467256 | BH18: 0 | BI18: 6286.98 | BJ18: 0 | BK18: 0 | BL18: 0 | BV18: 91.63467256 | CI18: 99.7785 | CJ18: 11.05618 | CO18: 11.08654 | CP18: 0 | CQ18: 31 | CR18: 0.0190696121 | CS18: 0 | CT18: 0 | CU18: 0 | CV18: 0 | CZ18: 0 | DA18: 0 | DB18: 0 | DE18: 0 | DF18: 0 | DG18: 0.0190696121 | DH18: 0 | DI18: 0 | DK18: 0 | DL18: 0 | DN18: 0 | DO18: 0 | DP18: 0 | DQ18: 0 | DR18: 0 | DS18: 0 | DT18: C | DV18: 0 | DW18: 0 | DX18: 0 | DY18: 152 | ED18: 0 | EE18: -48.80228751 | EF18: -3.028738663 | EG18: -48.80228751 | EH18: -3.028738663 | EI18: 0 | EJ18: 0 | EK18: 0 | EL18: 0
A19: 961 | B19: Regular | C19: Distribuição | D19: A3 | E19: Não se aplica | F19: Não se aplica | G19: Não se aplica | H19: EMG | I19: Não se aplica | J19: DISTRIBUIÇÃO | K19: 2019-11-01 | L19: 0 | M19: 0 | N19: 989.773 | O19: 989.773 | P19: 0 | Q19: 0 | S19: 0.08 | V19: 79.18184 | W19: 79.18184 | X19: 89.07957 | Y19: 0 | Z19: 0 | AA19: 0 | AB19: 0 | AC19: 0 | AD19: 0 | AE19: 0 | AI19: 0 | AJ19: 0 | AK19: 0 | AL19: 0 | AM19: 0 | AN19: 0 | AO19: 0 | AP19: 0 | AQ19: 0 | AR19: 0 | AU19: 0 | AV19: 0 | AW19: 0 | AZ19: 0 | BB19: 8.073362019 | BC19: 0 | BD19: 0 | BE19: 0 | BG19: 81.80868401 | BH19: 0 | BI19: 5251.96 | BJ19: 0 | BK19: 0 | BL19: 0 | BV19: 81.80868401 | CI19: 89.0793 | CJ19: 9.86746 | CO19: 9.89773 | CP19: 0 | CQ19: 30 | CR19: 0.01702477705 | CS19: 0 | CT19: 0 | CU19: 0 | CV19: 0 | CZ19: 0 | DA19: 0 | DB19: 0 | DE19: 0 | DF19: 0 | DG19: 0.01702477705 | DH19: 0 | DI19: 0 | DK19: 0 | DL19: 0 | DN19: 0 | DO19: 0 | DP19: 0 | DQ19: 0 | DR19: 0 | DS19: 0 | DT19: C | DV19: 0 | DW19: 0 | DX19: 0 | DY19: 152 | ED19: 0 | EE19: -48.80228751 | EF19: -3.028738663 | EG19: -48.80228751 | EH19: -3.028738663 | EI19: 0 | EJ19: 0 | EK19: 0 | EL19: 0
A20: 983 | B20: Regular | C20: Distribuição | D20: A3 | E20: Não se aplica | F20: Não se aplica | G20: Não se aplica | H20: EMG | I20: Não se aplica | J20: DISTRIBUIÇÃO | K20: 2019-12-01 | L20: 0 | M20: 0 | N20: 942.048 | O20: 942.048 | P20: 0 | Q20: 0 | S20: 0.08 | V20: 75.36384 | W20: 75.36384 | X20: 84.78432 | Y20: 0 | Z20: 0 | AA20: 0 | AB20: 0 | AC20: 0 | AD20: 0 | AE20: 0 | AI20: 0 | AJ20: 0 | AK20: 0 | AL20: 0 | AM20: 0 | AN20: 0 | AO20: 0 | AP20: 0 | AQ20: 0 | AR20: 0 | AU20: 0 | AV20: 0 | AW20: 0 | AZ20: 0 | BB20: 7.684079625 | BC20: 0 | BD20: 0 | BE20: 0 | BG20: 77.86402251 | BH20: 0 | BI20: 4656.08 | BJ20: 0 | BK20: 0 | BL20: 0 | BV20: 77.86402251 | CI20: 84.7845 | CJ20: 9.39066 | CO20: 9.42048 | CP20: 0 | CR20: 0.01620387419 | CS20: 0 | CT20: 0 | CU20: 0 | CV20: 0 | CZ20: 0 | DA20: 0 | DB20: 0 | DE20: 0 | DF20: 0 | DG20: 0.01620387419 | DH20: 0 | DI20: 0 | DK20: 0 | DL20: 0 | DN20: 0 | DO20: 0 | DP20: 0 | DQ20: 0 | DR20: 0 | DS20: 0 | DT20: C | DV20: 0 | DW20: 0 | DX20: 0 | DY20: 152 | ED20: 0 | EE20: -48.80228751 | EF20: -3.028738663 | EG20: -48.80228751 | EH20: -3.028738663 | EI20: 0 | EJ20: 0 | EK20: 0 | EL20: 0
A21: 1005 | B21: Regular | C21: Distribuição | D21: A3 | E21: Não se aplica | F21: Não se aplica | G21: Não se aplica | H21: EMG | I21: Não se aplica | J21: DISTRIBUIÇÃO | K21: 2020-01-01 | L21: 0 | M21: 0 | N21: 1092.149 | O21: 1092.149 | P21: 0 | Q21: 0 | S21: 0.08 | V21: 87.37192 | W21: 87.37192 | X21: 98.29341 | Y21: 0 | Z21: 0 | AA21: 0 | AB21: 0 | AC21: 0 | AD21: 0 | AE21: 0 | AI21: 0 | AJ21: 0 | AK21: 0 | AL21: 0 | AM21: 0 | AN21: 0 | AO21: 0 | AP21: 0 | AQ21: 0 | AR21: 0 | AU21: 0 | AV21: 0 | AW21: 0 | AZ21: 0 | BB21: 8.908420674 | BC21: 0 | BD21: 0 | BE21: 0 | BG21: 90.27046851 | BH21: 0 | BI21: 5829.91 | BJ21: 0 | BK21: 0 | BL21: 0 | BV21: 90.27046851 | CI21: 98.2935 | CJ21: 10.89158 | CO21: 10.92149 | CP21: 0 | CQ21: 31 | CR21: 0.01878571473 | CS21: 0 | CT21: 0 | CU21: 0 | CV21: 0 | CZ21: 0 | DA21: 0 | DB21: 0 | DE21: 0 | DF21: 0 | DG21: 0.01878571473 | DH21: 0 | DI21: 0 | DK21: 0 | DL21: 0 | DN21: 0 | DO21: 0 | DP21: 0 | DQ21: 0 | DR21: 0 | DS21: 0 | DT21: C | DV21: 0 | DW21: 0 | DX21: 0 | DY21: 152 | ED21: 0 | EE21: -48.80228751 | EF21: -3.028738663 | EG21: -48.80228751 | EH21: -3.028738663 | EI21: 0 | EJ21: 0 | EK21: 0 | EL21: 0
A22: 1027 | B22: Regular | C22: Distribuição | D22: A3 | E22: Não se aplica | F22: Não se aplica | G22: Não se aplica | H22: EMG | I22: Não se aplica | J22: DISTRIBUIÇÃO | K22: 2020-02-01 | L22: 0 | M22: 0 | N22: 1009.869 | O22: 1009.869 | P22: 0 | Q22: 0 | S22: 0.08 | V22: 80.78952 | W22: 80.78952 | X22: 90.88821 | Y22: 0 | Z22: 0 | AA22: 0 | AB22: 0 | AC22: 0 | AD22: 0 | AE22: 0 | AI22: 0 | AJ22: 0 | AK22: 0 | AL22: 0 | AM22: 0 | AN22: 0 | AO22: 0 | AP22: 0 | AQ22: 0 | AR22: 0 | AU22: 0 | AV22: 0 | AW22: 0 | AZ22: 0 | BB22: 8.237280698 | BC22: 0 | BD22: 0 | BE22: 0 | BG22: 83.46969852 | BH22: 0 | BI22: 6392.86 | BJ22: 0 | BK22: 0 | BL22: 0 | BV22: 83.46969852 | CI22: 90.8883 | CJ22: 10.06878 | CO22: 10.09869 | CP22: 0 | CQ22: 29 | CR22: 0.01737044208 | CS22: 0 | CT22: 0 | CU22: 0 | CV22: 0 | CZ22: 0 | DA22: 0 | DB22: 0 | DE22: 0 | DF22: 0 | DG22: 0.01737044208 | DH22: 0 | DI22: 0 | DK22: 0 | DL22: 0 | DN22: 0 | DO22: 0 | DP22: 0 | DQ22: 0 | DR22: 0 | DS22: 0 | DT22: C | DV22: 0 | DW22: 0 | DX22: 0 | DY22: 152 | ED22: 0 | EE22: -48.80228751 | EF22: -3.028738663 | EG22: -48.80228751 | EH22: -3.028738663 | EI22: 0 | EJ22: 0 | EK22: 0 | EL22: 0
A23: 1049 | B23: Regular | C23: Distribuição | D23: A3 | E23: Não se aplica | F23: Não se aplica | G23: Não se aplica | H23: EMG | I23: Não se aplica | J23: DISTRIBUIÇÃO | K23: 2020-03-01 | L23: 0 | M23: 0 | N23: 1050.589 | O23: 1050.589 | P23: 0 | Q23: 0 | S23: 0.08 | V23: 84.04712 | W23: 84.04712 | X23: 94.55301 | Y23: 0 | Z23: 0 | AA23: 0 | AB23: 0 | AC23: 0 | AD23: 0 | AE23: 0 | AI23: 0 | AJ23: 0 | AK23: 0 | AL23: 0 | AM23: 0 | AN23: 0 | AO23: 0 | AP23: 0 | AQ23: 0 | AR23: 0 | AU23: 0 | AV23: 0 | AW23: 0 | AZ23: 0 | BB23: 8.569424838 | BC23: 0 | BD23: 0 | BE23: 0 | BG23: 86.83536884 | BH23: 0 | BI23: 5294.12 | BJ23: 0 | BK23: 0 | BL23: 0 | BV23: 86.83536884 | CI23: 94.5531 | CJ23: 10.47598 | CO23: 10.50589 | CP23: 0 | CQ23: 31 | CR23: 0.01807085412 | CS23: 0 | CT23: 0 | CU23: 0 | CV23: 0 | CZ23: 0 | DA23: 0 | DB23: 0 | DE23: 0 | DF23: 0 | DG23: 0.01807085412 | DH23: 0 | DI23: 0 | DK23: 0 | DL23: 0 | DN23: 0 | DO23: 0 | DP23: 0 | DQ23: 0 | DR23: 0 | DS23: 0 | DT23: C | DV23: 0 | DW23: 0 | DX23: 0 | DY23: 152 | ED23: 0 | EE23: -48.80228751 | EF23: -3.028738663 | EG23: -48.80228751 | EH23: -3.028738663 | EI23: 0 | EJ23: 0 | EK23: 0 | EL23: 0
A24: 1071 | B24: Regular | C24: Distribuição | D24: A3 | E24: Não se aplica | F24: Não se aplica | G24: Não se aplica | H24: EMG | I24: Não se aplica | J24: DISTRIBUIÇÃO | K24: 2020-04-01 | L24: 0 | M24: 0 | N24: 890.593 | O24: 890.593 | P24: 0 | Q24: 0 | S24: 0.08 | V24: 71.24744 | W24: 71.24744 | X24: 80.15337 | Y24: 0 | Z24: 0 | AA24: 0 | AB24: 0 | AC24: 0 | AD24: 0 | AE24: 0 | AI24: 0 | AJ24: 0 | AK24: 0 | AL24: 0 | AM24: 0 | AN24: 0 | AO24: 0 | AP24: 0 | AQ24: 0 | AR24: 0 | AU24: 0 | AV24: 0 | AW24: 0 | AZ24: 0 | BB24: 7.264372437 | BC24: 0 | BD24: 0 | BE24: 0 | BG24: 73.61106164 | BH24: 0 | BI24: 5040.64 | BJ24: 0 | BK24: 0 | BL24: 0 | BV24: 73.61106164 | CI24: 80.1531 | CJ24: 8.87566 | CO24: 8.90593 | CP24: 0 | CQ24: 30 | CR24: 0.01531881276 | CS24: 0 | CT24: 0 | CU24: 0 | CV24: 0 | CZ24: 0 | DA24: 0 | DB24: 0 | DE24: 0 | DF24: 0 | DG24: 0.01531881276 | DH24: 0 | DI24: 0 | DK24: 0 | DL24: 0 | DN24: 0 | DO24: 0 | DP24: 0 | DQ24: 0 | DR24: 0 | DS24: 0 | DT24: C | DV24: 0 | DW24: 0 | DX24: 0 | DY24: 152 | ED24: 0 | EE24: -48.80228751 | EF24: -3.028738663 | EG24: -48.80228751 | EH24: -3.028738663 | EI24: 0 | EJ24: 0 | EK24: 0 | EL24: 0
A25: 1093 | B25: PROJETADO | C25: Distribuição | D25: A3 | E25: Não se aplica | F25: Não se aplica | G25: Não se aplica | H25: EMG | I25: Não se aplica | J25: DISTRIBUIÇÃO | K25: 2020-05-01 | L25: 0 | M25: 0 | N25: 890.593 | O25: 890.593 | P25: 0 | Q25: 0 | S25: 0.08 | V25: 71.24744 | W25: 71.24744 | X25: 80.15337 | Y25: 0 | Z25: 0 | AA25: 0 | AB25: 0 | AC25: 0 | AD25: 0 | AE25: 0 | AI25: 0 | AJ25: 0 | AK25: 0 | AL25: 0 | AM25: 0 | AN25: 0 | AO25: 0 | AP25: 0 | AQ25: 0 | AR25: 0 | AU25: 0 | AV25: 0 | AW25: 0 | AZ25: 0 | BB25: 7.264372437 | BC25: 0 | BD25: 0 | BE25: 0 | BG25: 73.61106164 | BH25: 0 | BI25: 5040.64 | BJ25: 0 | BK25: 0 | BL25: 0 | BV25: 73.61106164 | CI25: 80.1531 | CJ25: 8.87566 | CO25: 8.90593 | CP25: 0 | CQ25: 31 | CR25: 0.01531881276 | CS25: 0 | CT25: 0 | CU25: 0 | CV25: 0 | CZ25: 0 | DA25: 0 | DB25: 0 | DE25: 0 | DF25: 0 | DG25: 0.01531881276 | DH25: 0 | DI25: 0 | DK25: 0 | DL25: 0 | DN25: 0 | DO25: 0 | DP25: 0 | DQ25: 0 | DR25: 0 | DS25: 0 | DT25: C | DV25: 0 | DW25: 0 | DX25: 0 | DY25: 152 | ED25: 0 | EE25: -48.80228751 | EF25: -3.028738663 | EG25: -48.80228751 | EH25: -3.028738663 | EI25: 0 | EJ25: 0 | EK25: 0 | EL25: 0
A26: 849 | B26: Regular | C26: Distribuição | D26: A3 | E26: Não se aplica | F26: Não se aplica | G26: Não se aplica | H26: EMG | I26: Ponta | J26: DISTRIBUIÇÃO | K26: 2019-06-01 | L26: 2610 | M26: 2610 | N26: 0 | O26: 0 | P26: 0 | Q26: 0 | R26: 28.14 | U26: 73445.4 | W26: 73445.4 | X26: 73941.3 | Y26: 0 | Z26: 0 | AA26: 0 | AB26: 0 | AC26: 0 | AD26: 66025.22698 | AE26: 7425.263201 | AI26: 0 | AJ26: 0 | AK26: 0 | AL26: 0 | AM26: 0 | AN26: 0 | AO26: 0 | AP26: 0 | AQ26: 0 | AR26: 0 | AU26: 0 | AV26: 0 | AW26: 0 | AZ26: 0 | BB26: 0 | BC26: 0 | BD26: 0 | BE26: 0 | BG26: 0 | BH26: 0 | BI26: 0 | BJ26: 0 | BK26: 0 | BL26: 0 | BV26: 0 | CI26: 73941.3 | CJ26: 495.87 | CO26: 495.9 | CP26: 0 | CQ26: 30 | CR26: 499.9866917 | CS26: 0 | CT26: 0 | CU26: 0 | CV26: 0 | CZ26: 499.9866917 | DA26: 0 | DB26: 0 | DE26: 0 | DF26: 0 | DG26: 0 | DH26: 0 | DI26: 0 | DK26: 0 | DL26: 0 | DN26: 0 | DO26: 0 | DP26: 0 | DQ26: 0 | DR26: 0 | DS26: 0 | DT26: C | DU26: 7425.263201 | DW26: 0 | DX26: 0 | DY26: 152 | ED26: 0 | EE26: -48.80228751 | EF26: -3.028738663 | EG26: -48.80228751 | EH26: -3.028738663 | EI26: 0 | EJ26: 0 | EK26: 0 | EL26: 0
A27: 871 | B27: Regular | C27: Distribuição | D27: A3 | E27: Não se aplica | F27: Não se aplica | G27: Não se aplica | H27: EMG | I27: Ponta | J27: DISTRIBUIÇÃO | K27: 2019-07-01 | L27: 2610 | M27: 2610 | N27: 0 | O27: 0 | P27: 0 | Q27: 0 | R27: 28.14 | U27: 73445.4 | W27: 73445.4 | X27: 73941.3 | Y27: 0 | Z27: 0 | AA27: 0 | AB27: 0 | AC27: 0 | AD27: 66025.22698 | AE27: 7425.263201 | AI27: 0 | AJ27: 0 | AK27: 0 | AL27: 0 | AM27: 0 | AN27: 0 | AO27: 0 | AP27: 0 | AQ27: 0 | AR27: 0 | AU27: 0 | AV27: 0 | AW27: 0 | AZ27: 0 | BB27: 0 | BC27: 0 | BD27: 0 | BE27: 0 | BG27: 0 | BH27: 0 | BI27: 0 | BJ27: 0 | BK27: 0 | BL27: 0 | BV27: 0 | CI27: 73941.3 | CJ27: 495.87 | CO27: 495.9 | CP27: 0 | CQ27: 31 | CR27: 499.9866917 | CS27: 0 | CT27: 0 | CU27: 0 | CV27: 0 | CZ27: 499.9866917 | DA27: 0 | DB27: 0 | DE27: 0 | DF27: 0 | DG27: 0 | DH27: 0 | DI27: 0 | DK27: 0 | DL27: 0 | DN27: 0 | DO27: 0 | DP27: 0 | DQ27: 0 | DR27: 0 | DS27: 0 | DT27: C | DU27: 7425.263201 | DW27: 0 | DX27: 0 | DY27: 152 | ED27: 0 | EE27: -48.80228751 | EF27: -3.028738663 | EG27: -48.80228751 | EH27: -3.028738663 | EI27: 0 | EJ27: 0 | EK27: 0 | EL27: 0
A28: 893 | B28: Regular | C28: Distribuição | D28: A3 | E28: Não se aplica | F28: Não se aplica | G28: Não se aplica | H28: EMG | I28: Ponta | J28: DISTRIBUIÇÃO | K28: 2019-08-01 | L28: 2610 | M28: 2610 | N28: 0 | O28: 0 | P28: 0 | Q28: 0 | R28: 28.14 | U28: 73445.4 | W28: 73445.4 | X28: 73941.3 | Y28: 0 | Z28: 0 | AA28: 0 | AB28: 0 | AC28: 0 | AD28: 66025.22698 | AE28: 7425.263201 | AI28: 0 | AJ28: 0 | AK28: 0 | AL28: 0 | AM28: 0 | AN28: 0 | AO28: 0 | AP28: 0 | AQ28: 0 | AR28: 0 | AU28: 0 | AV28: 0 | AW28: 0 | AZ28: 0 | BB28: 0 | BC28: 0 | BD28: 0 | BE28: 0 | BG28: 0 | BH28: 0 | BI28: 0 | BJ28: 0 | BK28: 0 | BL28: 0 | BV28: 0 | CI28: 73941.3 | CJ28: 495.87 | CO28: 495.9 | CP28: 0 | CQ28: 31 | CR28: 499.9866917 | CS28: 0 | CT28: 0 | CU28: 0 | CV28: 0 | CZ28: 499.9866917 | DA28: 0 | DB28: 0 | DE28: 0 | DF28: 0 | DG28: 0 | DH28: 0 | DI28: 0 | DK28: 0 | DL28: 0 | DN28: 0 | DO28: 0 | DP28: 0 | DQ28: 0 | DR28: 0 | DS28: 0 | DT28: C | DU28: 7425.263201 | DW28: 0 | DX28: 0 | DY28: 152 | ED28: 0 | EE28: -48.80228751 | EF28: -3.028738663 | EG28: -48.80228751 | EH28: -3.028738663 | EI28: 0 | EJ28: 0 | EK28: 0 | EL28: 0
A29: 915 | B29: Regular | C29: Distribuição | D29: A3 | E29: Não se aplica | F29: Não se aplica | G29: Não se aplica | H29: EMG | I29: Ponta | J29: DISTRIBUIÇÃO | K29: 2019-09-01 | L29: 2610 | M29: 2610 | N29: 0 | O29: 0 | P29: 0 | Q29: 0 | R29: 28.14 | U29: 73445.4 | W29: 73445.4 | X29: 73941.3 | Y29: 0 | Z29: 0 | AA29: 0 | AB29: 0 | AC29: 0 | AD29: 66025.22698 | AE29: 7425.263201 | AI29: 0 | AJ29: 0 | AK29: 0 | AL29: 0 | AM29: 0 | AN29: 0 | AO29: 0 | AP29: 0 | AQ29: 0 | AR29: 0 | AU29: 0 | AV29: 0 | AW29: 0 | AZ29: 0 | BB29: 0 | BC29: 0 | BD29: 0 | BE29: 0 | BG29: 0 | BH29: 0 | BI29: 0 | BJ29: 0 | BK29: 0 | BL29: 0 | BV29: 0 | CI29: 73941.3 | CJ29: 495.87 | CO29: 495.9 | CP29: 0 | CQ29: 30 | CR29: 499.9866917 | CS29: 0 | CT29: 0 | CU29: 0 | CV29: 0 | CZ29: 499.9866917 | DA29: 0 | DB29: 0 | DE29: 0 | DF29: 0 | DG29: 0 | DH29: 0 | DI29: 0 | DK29: 0 | DL29: 0 | DN29: 0 | DO29: 0 | DP29: 0 | DQ29: 0 | DR29: 0 | DS29: 0 | DT29: C | DU29: 7425.263201 | DW29: 0 | DX29: 0 | DY29: 152 | ED29: 0 | EE29: -48.80228751 | EF29: -3.028738663 | EG29: -48.80228751 | EH29: -3.028738663 | EI29: 0 | EJ29: 0 | EK29: 0 | EL29: 0
A30: 937 | B30: Regular | C30: Distribuição | D30: A3 | E30: Não se aplica | F30: Não se aplica | G30: Não se aplica | H30: EMG | I30: Ponta | J30: DISTRIBUIÇÃO | K30: 2019-10-01 | L30: 2610 | M30: 2610 | N30: 0 | O30: 0 | P30: 0 | Q30: 0 | R30: 28.14 | U30: 73445.4 | W30: 73445.4 | X30: 73941.3 | Y30: 0 | Z30: 0 | AA30: 0 | AB30: 0 | AC30: 0 | AD30: 66025.22698 | AE30: 7425.263201 | AI30: 0 | AJ30: 0 | AK30: 0 | AL30: 0 | AM30: 0 | AN30: 0 | AO30: 0 | AP30: 0 | AQ30: 0 | AR30: 0 | AU30: 0 | AV30: 0 | AW30: 0 | AZ30: 0 | BB30: 0 | BC30: 0 | BD30: 0 | BE30: 0 | BG30: 0 | BH30: 0 | BI30: 0 | BJ30: 0 | BK30: 0 | BL30: 0 | BV30: 0 | CI30: 73941.3 | CJ30: 495.87 | CO30: 495.9 | CP30: 0 | CQ30: 31 | CR30: 499.9866917 | CS30: 0 | CT30: 0 | CU30: 0 | CV30: 0 | CZ30: 499.9866917 | DA30: 0 | DB30: 0 | DE30: 0 | DF30: 0 | DG30: 0 | DH30: 0 | DI30: 0 | DK30: 0 | DL30: 0 | DN30: 0 | DO30: 0 | DP30: 0 | DQ30: 0 | DR30: 0 | DS30: 0 | DT30: C | DU30: 7425.263201 | DW30: 0 | DX30: 0 | DY30: 152 | ED30: 0 | EE30: -48.80228751 | EF30: -3.028738663 | EG30: -48.80228751 | EH30: -3.028738663 | EI30: 0 | EJ30: 0 | EK30: 0 | EL30: 0
A31: 959 | B31: Regular | C31: Distribuição | D31: A3 | E31: Não se aplica | F31: Não se aplica | G31: Não se aplica | H31: EMG | I31: Ponta | J31: DISTRIBUIÇÃO | K31: 2019-11-01 | L31: 2610 | M31: 2610 | N31: 0 | O31: 0 | P31: 0 | Q31: 0 | R31: 28.14 | U31: 73445.4 | W31: 73445.4 | X31: 73941.3 | Y31: 0 | Z31: 0 | AA31: 0 | AB31: 0 | AC31: 0 | AD31: 66025.22698 | AE31: 7425.263201 | AI31: 0 | AJ31: 0 | AK31: 0 | AL31: 0 | AM31: 0 | AN31: 0 | AO31: 0 | AP31: 0 | AQ31: 0 | AR31: 0 | AU31: 0 | AV31: 0 | AW31: 0 | AZ31: 0 | BB31: 0 | BC31: 0 | BD31: 0 | BE31: 0 | BG31: 0 | BH31: 0 | BI31: 0 | BJ31: 0 | BK31: 0 | BL31: 0 | BV31: 0 | CI31: 73941.3 | CJ31: 495.87 | CO31: 495.9 | CP31: 0 | CQ31: 30 | CR31: 499.9866917 | CS31: 0 | CT31: 0 | CU31: 0 | CV31: 0 | CZ31: 499.9866917 | DA31: 0 | DB31: 0 | DE31: 0 | DF31: 0 | DG31: 0 | DH31: 0 | DI31: 0 | DK31: 0 | DL31: 0 | DN31: 0 | DO31: 0 | DP31: 0 | DQ31: 0 | DR31: 0 | DS31: 0 | DT31: C | DU31: 7425.263201 | DW31: 0 | DX31: 0 | DY31: 152 | ED31: 0 | EE31: -48.80228751 | EF31: -3.028738663 | EG31: -48.80228751 | EH31: -3.028738663 | EI31: 0 | EJ31: 0 | EK31: 0 | EL31: 0
A32: 981 | B32: Regular | C32: Distribuição | D32: A3 | E32: Não se aplica | F32: Não se aplica | G32: Não se aplica | H32: EMG | I32: Ponta | J32: DISTRIBUIÇÃO | K32: 2019-12-01 | L32: 2610 | M32: 2610 | N32: 0 | O32: 0 | P32: 0 | Q32: 0 | R32: 28.14 | U32: 73445.4 | W32: 73445.4 | X32: 73941.3 | Y32: 0 | Z32: 0 | AA32: 0 | AB32: 0 | AC32: 0 | AD32: 66025.22698 | AE32: 7425.263201 | AI32: 0 | AJ32: 0 | AK32: 0 | AL32: 0 | AM32: 0 | AN32: 0 | AO32: 0 | AP32: 0 | AQ32: 0 | AR32: 0 | AU32: 0 | AV32: 0 | AW32: 0 | AZ32: 0 | BB32: 0 | BC32: 0 | BD32: 0 | BE32: 0 | BG32: 0 | BH32: 0 | BI32: 0 | BJ32: 0 | BK32: 0 | BL32: 0 | BV32: 0 | CI32: 73941.3 | CJ32: 495.87 | CO32: 495.9 | CP32: 0 | CR32: 499.9866917 | CS32: 0 | CT32: 0 | CU32: 0 | CV32: 0 | CZ32: 499.9866917 | DA32: 0 | DB32: 0 | DE32: 0 | DF32: 0 | DG32: 0 | DH32: 0 | DI32: 0 | DK32: 0 | DL32: 0 | DN32: 0 | DO32: 0 | DP32: 0 | DQ32: 0 | DR32: 0 | DS32: 0 | DT32: C | DU32: 7425.263201 | DW32: 0 | DX32: 0 | DY32: 152 | ED32: 0 | EE32: -48.80228751 | EF32: -3.028738663 | EG32: -48.80228751 | EH32: -3.028738663 | EI32: 0 | EJ32: 0 | EK32: 0 | EL32: 0
A33: 1003 | B33: Regular | C33: Distribuição | D33: A3 | E33: Não se aplica | F33: Não se aplica | G33: Não se aplica | H33: EMG | I33: Ponta | J33: DISTRIBUIÇÃO | K33: 2020-01-01 | L33: 2678 | M33: 2678 | N33: 0 | O33: 0 | P33: 0 | Q33: 0 | R33: 28.14 | U33: 75358.92 | W33: 75358.92 | X33: 75867.74 | Y33: 0 | Z33: 0 | AA33: 0 | AB33: 0 | AC33: 0 | AD33: 67745.42447 | AE33: 7618.718334 | AI33: 0 | AJ33: 0 | AK33: 0 | AL33: 0 | AM33: 0 | AN33: 0 | AO33: 0 | AP33: 0 | AQ33: 0 | AR33: 0 | AU33: 0 | AV33: 0 | AW33: 0 | AZ33: 0 | BB33: 0 | BC33: 0 | BD33: 0 | BE33: 0 | BG33: 0 | BH33: 0 | BI33: 0 | BJ33: 0 | BK33: 0 | BL33: 0 | BV33: 0 | CI33: 75867.74 | CJ33: 508.79 | CO33: 508.82 | CP33: 0 | CQ33: 31 | CR33: 513.0131649 | CS33: 0 | CT33: 0 | CU33: 0 | CV33: 0 | CZ33: 513.0131649 | DA33: 0 | DB33: 0 | DE33: 0 | DF33: 0 | DG33: 0 | DH33: 0 | DI33: 0 | DK33: 0 | DL33: 0 | DN33: 0 | DO33: 0 | DP33: 0 | DQ33: 0 | DR33: 0 | DS33: 0 | DT33: C | DU33: 7618.718334 | DW33: 0 | DX33: 0 | DY33: 152 | ED33: 0 | EE33: -48.80228751 | EF33: -3.028738663 | EG33: -48.80228751 | EH33: -3.028738663 | EI33: 0 | EJ33: 0 | EK33: 0 | EL33: 0
A34: 1025 | B34: Regular | C34: Distribuição | D34: A3 | E34: Não se aplica | F34: Não se aplica | G34: Não se aplica | H34: EMG | I34: Ponta | J34: DISTRIBUIÇÃO | K34: 2020-02-01 | L34: 2678 | M34: 2678 | N34: 0 | O34: 0 | P34: 0 | Q34: 0 | R34: 28.14 | U34: 75358.92 | W34: 75358.92 | X34: 75867.74 | Y34: 0 | Z34: 0 | AA34: 0 | AB34: 0 | AC34: 0 | AD34: 67745.42447 | AE34: 7618.718334 | AI34: 0 | AJ34: 0 | AK34: 0 | AL34: 0 | AM34: 0 | AN34: 0 | AO34: 0 | AP34: 0 | AQ34: 0 | AR34: 0 | AU34: 0 | AV34: 0 | AW34: 0 | AZ34: 0 | BB34: 0 | BC34: 0 | BD34: 0 | BE34: 0 | BG34: 0 | BH34: 0 | BI34: 0 | BJ34: 0 | BK34: 0 | BL34: 0 | BV34: 0 | CI34: 75867.74 | CJ34: 508.79 | CO34: 508.82 | CP34: 0 | CQ34: 29 | CR34: 513.0131649 | CS34: 0 | CT34: 0 | CU34: 0 | CV34: 0 | CZ34: 513.0131649 | DA34: 0 | DB34: 0 | DE34: 0 | DF34: 0 | DG34: 0 | DH34: 0 | DI34: 0 | DK34: 0 | DL34: 0 | DN34: 0 | DO34: 0 | DP34: 0 | DQ34: 0 | DR34: 0 | DS34: 0 | DT34: C | DU34: 7618.718334 | DW34: 0 | DX34: 0 | DY34: 152 | ED34: 0 | EE34: -48.80228751 | EF34: -3.028738663 | EG34: -48.80228751 | EH34: -3.028738663 | EI34: 0 | EJ34: 0 | EK34: 0 | EL34: 0
A35: 1047 | B35: Regular | C35: Distribuição | D35: A3 | E35: Não se aplica | F35: Não se aplica | G35: Não se aplica | H35: EMG | I35: Ponta | J35: DISTRIBUIÇÃO | K35: 2020-03-01 | L35: 2678 | M35: 2678 | N35: 0 | O35: 0 | P35: 0 | Q35: 0 | R35: 28.14 | U35: 75358.92 | W35: 75358.92 | X35: 75867.74 | Y35: 0 | Z35: 0 | AA35: 0 | AB35: 0 | AC35: 0 | AD35: 67745.42447 | AE35: 7618.718334 | AI35: 0 | AJ35: 0 | AK35: 0 | AL35: 0 | AM35: 0 | AN35: 0 | AO35: 0 | AP35: 0 | AQ35: 0 | AR35: 0 | AU35: 0 | AV35: 0 | AW35: 0 | AZ35: 0 | BB35: 0 | BC35: 0 | BD35: 0 | BE35: 0 | BG35: 0 | BH35: 0 | BI35: 0 | BJ35: 0 | BK35: 0 | BL35: 0 | BV35: 0 | CI35: 75867.74 | CJ35: 508.79 | CO35: 508.82 | CP35: 0 | CQ35: 31 | CR35: 513.0131649 | CS35: 0 | CT35: 0 | CU35: 0 | CV35: 0 | CZ35: 513.0131649 | DA35: 0 | DB35: 0 | DE35: 0 | DF35: 0 | DG35: 0 | DH35: 0 | DI35: 0 | DK35: 0 | DL35: 0 | DN35: 0 | DO35: 0 | DP35: 0 | DQ35: 0 | DR35: 0 | DS35: 0 | DT35: C | DU35: 7618.718334 | DW35: 0 | DX35: 0 | DY35: 152 | ED35: 0 | EE35: -48.80228751 | EF35: -3.028738663 | EG35: -48.80228751 | EH35: -3.028738663 | EI35: 0 | EJ35: 0 | EK35: 0 | EL35: 0
A36: 1069 | B36: Regular | C36: Distribuição | D36: A3 | E36: Não se aplica | F36: Não se aplica | G36: Não se aplica | H36: EMG | I36: Ponta | J36: DISTRIBUIÇÃO | K36: 2020-04-01 | L36: 2678 | M36: 2678 | N36: 0 | O36: 0 | P36: 0 | Q36: 0 | R36: 28.14 | U36: 75358.92 | W36: 75358.92 | X36: 75867.74 | Y36: 0 | Z36: 0 | AA36: 0 | AB36: 0 | AC36: 0 | AD36: 67745.42447 | AE36: 7618.718334 | AI36: 0 | AJ36: 0 | AK36: 0 | AL36: 0 | AM36: 0 | AN36: 0 | AO36: 0 | AP36: 0 | AQ36: 0 | AR36: 0 | AU36: 0 | AV36: 0 | AW36: 0 | AZ36: 0 | BB36: 0 | BC36: 0 | BD36: 0 | BE36: 0 | BG36: 0 | BH36: 0 | BI36: 0 | BJ36: 0 | BK36: 0 | BL36: 0 | BV36: 0 | CI36: 75867.74 | CJ36: 508.79 | CO36: 508.82 | CP36: 0 | CQ36: 30 | CR36: 513.0131649 | CS36: 0 | CT36: 0 | CU36: 0 | CV36: 0 | CZ36: 513.0131649 | DA36: 0 | DB36: 0 | DE36: 0 | DF36: 0 | DG36: 0 | DH36: 0 | DI36: 0 | DK36: 0 | DL36: 0 | DN36: 0 | DO36: 0 | DP36: 0 | DQ36: 0 | DR36: 0 | DS36: 0 | DT36: C | DU36: 7618.718334 | DW36: 0 | DX36: 0 | DY36: 152 | ED36: 0 | EE36: -48.80228751 | EF36: -3.028738663 | EG36: -48.80228751 | EH36: -3.028738663 | EI36: 0 | EJ36: 0 | EK36: 0 | EL36: 0
A37: 1091 | B37: PROJETADO | C37: Distribuição | D37: A3 | E37: Não se aplica | F37: Não se aplica | G37: Não se aplica | H37: EMG | I37: Ponta | J37: DISTRIBUIÇÃO | K37: 2020-05-01 | L37: 2678 | M37: 2678 | N37: 0 | O37: 0 | P37: 0 | Q37: 0 | R37: 28.14 | U37: 75358.92 | W37: 75358.92 | X37: 75867.74 | Y37: 0 | Z37: 0 | AA37: 0 | AB37: 0 | AC37: 0 | AD37: 67745.42447 | AE37: 7618.718334 | AI37: 0 | AJ37: 0 | AK37: 0 | AL37: 0 | AM37: 0 | AN37: 0 | AO37: 0 | AP37: 0 | AQ37: 0 | AR37: 0 | AU37: 0 | AV37: 0 | AW37: 0 | AZ37: 0 | BB37: 0 | BC37: 0 | BD37: 0 | BE37: 0 | BG37: 0 | BH37: 0 | BI37: 0 | BJ37: 0 | BK37: 0 | BL37: 0 | BV37: 0 | CI37: 75867.74 | CJ37: 508.79 | CO37: 508.82 | CP37: 0 | CQ37: 31 | CR37: 513.0131649 | CS37: 0 | CT37: 0 | CU37: 0 | CV37: 0 | CZ37: 513.0131649 | DA37: 0 | DB37: 0 | DE37: 0 | DF37: 0 | DG37: 0 | DH37: 0 | DI37: 0 | DK37: 0 | DL37: 0 | DN37: 0 | DO37: 0 | DP37: 0 | DQ37: 0 | DR37: 0 | DS37: 0 | DT37: C | DU37: 7618.718334 | DW37: 0 | DX37: 0 | DY37: 152 | ED37: 0 | EE37: -48.80228751 | EF37: -3.028738663 | EG37: -48.80228751 | EH37: -3.028738663 | EI37: 0 | EJ37: 0 | EK37: 0 | EL37: 0
A38: 32 | B38: Regular | C38: Azul | D38: A4 | E38: Comercial | F38: Não se aplica | G38: Não se aplica | H38: Não se aplica | I38: Fora ponta | J38: CATIVO | K38: 2019-06-01 | L38: 491 | M38: 491 | N38: 103.817 | O38: 103.817 | P38: 103.817 | Q38: 103.817 | R38: 19.99 | S38: 62.31 | T38: 251.12 | U38: 9815.09 | V38: 32539.36231 | W38: 42354.45231 | X38: 46140.29222 | Y38: 0 | Z38: 4670.95452 | AA38: 0 | AB38: 0 | AC38: 0 | AD38: 3302.511259 | AE38: 6513.134205 | AF38: 25027.81177 | AG38: 0 | AH38: 0 | AI38: 0 | AJ38: 0 | AK38: 308.3613204 | AL38: 992.7728618 | AM38: 0 | AN38: 62.57230001 | AO38: 0 | AP38: 0 | AQ38: 0 | AR38: 0 | AS38: 0 | AT38: 0 | AU38: 0 | AV38: 1034.450957 | AW38: 65.09045358 | AX38: 0 | AY38: 0 | AZ38: 0 | BA38: 87.58911575 | BB38: 2537.135925 | BC38: 0 | BD38: 1.506746542e-07 | BE38: 0 | BF38: 0 | BG38: 681.397195 | BH38: 38.26160916 | BI38: 0 | BJ38: 0 | BK38: 0 | BL38: 0 | BU38: 756.5495028 | BV38: 25709.20896 | CI38: 46141.3412 | CJ38: 3786.85889 | CM38: 0 | CN38: 756.5495028 | CO38: 1170.68968 | CP38: 2615.15023 | CQ38: 30 | CR38: 62.88514835 | CS38: 0 | CT38: 0 | CU38: 0 | CV38: 0 | CW38: 0 | CX38: 0 | CY38: 0 | CZ38: 25.00879973 | DA38: 0 | DB38: 0 | DC38: 5.208406913 | DD38: 0 | DE38: 0 | DF38: 3.135611366e-11 | DG38: 0.1418020039 | DH38: 0 | DI38: -15.98921103 | DJ38: 55.94479215 | DK38: 0 | DL38: 0 | DM38: 0 | DN38: -2.756647351 | DO38: -4.373188099 | DP38: -0.2996059656 | DQ38: 0 | DR38: 0 | DS38: 0 | DU38: 6513.134205 | DV38: 0 | DW38: 38.64117923 | DX38: 0.379570063 | DY38: 152 | DZ38: 0 | EA38: 0 | EB38: 0 | ED38: 0 | EE38: -48.80228751 | EF38: -3.028738663 | EG38: -48.80228751 | EH38: -3.028738663 | EI38: 0 | EJ38: 0 | EK38: 0 | EL38: 0
A39: 33 | B39: Sistema de Compensação | C39: Azul | D39: A4 | E39: Comercial | F39: Não se aplica | G39: Não se aplica | H39: Não se aplica | I39: Fora ponta | J39: CATIVO | K39: 2019-06-01 | L39: 55 | M39: 55 | N39: 13.409 | O39: 13.409 | P39: 13.409 | Q39: 13.409 | R39: 19.99 | S39: 62.31 | T39: 251.12 | U39: 1099.45 | V39: 4202.78287 | W39: 5302.23287 | X39: 5790.79094 | Y39: 0 | Z39: 603.3003184 | AA39: 0 | AB39: 0 | AC39: 0 | AD39: 369.9350697 | AE39: 729.5771513 | AF39: 3232.591271 | AG39: 0 | AH39: 0 | AI39: 0 | AJ39: 0 | AK39: 39.8279371 | AL39: 128.2265073 | AM39: 0 | AN39: 8.081836027 | AO39: 0 | AP39: 0 | AQ39: 0 | AR39: 0 | AS39: 0 | AT39: 0 | AU39: 0 | AV39: 133.6096485 | AW39: 8.407080652 | AX39: 0 | AY39: 0 | AZ39: 0 | BA39: 11.31300705 | BB39: 327.6963852 | BC39: 0 | BD39: 1.946113293e-08 | BE39: 0 | BF39: 0 | BG39: 88.00923728 | BH39: 4.941868069 | BI39: 0 | BJ39: 0 | BK39: 0 | BL39: 0 | BU39: 97.71590667 | BV39: 3320.600508 | CI39: 5791.1406 | CJ39: 488.87773 | CM39: 0 | CN39: 97.71590667 | CO39: 150.78536 | CP39: 337.77271 | CQ39: 30 | CR39: 7.693500876 | CS39: 0 | CT39: 0 | CU39: 0 | CV39: 0 | CW39: 0 | CX39: 0 | CY39: 0 | CZ39: 2.801393045 | DA39: 0 | DB39: 0 | DC39: 0.6727176503 | DD39: 0 | DE39: 0 | DF39: 4.049954517e-12 | DG39: 0.01831514174 | DH39: 0 | DI39: -2.065165923 | DJ39: 7.225827349 | DK39: 0 | DL39: 0 | DM39: 0 | DN39: -0.3560484731 | DO39: -0.5648408182 | DP39: -0.03869709578 | DQ39: 0 | DR39: 0 | DS39: 0 | DU39: 729.5771513 | DV39: 0 | DW39: 4.990893324 | DX39: 0.04902525573 | DY39: 152 | DZ39: 0 | EA39: 0 | EB39: 0 | ED39: 0 | EE39: -48.80228751 | EF39: -3.028738663 | EG39: -48.80228751 | EH39: -3.028738663 | EI39: 0 | EJ39: 0 | EK39: 0 | EL39: 0
A40: 96 | B40: Regular | C40: Azul | D40: A4 | E40: Comercial | F40: Não se aplica | G40: Não se aplica | H40: Não se aplica | I40: Fora ponta | J40: CATIVO | K40: 2019-07-01 | L40: 491 | M40: 491 | N40: 102.792 | O40: 102.792 | P40: 102.792 | Q40: 102.792 | R40: 19.99 | S40: 62.31 | T40: 251.12 | U40: 9815.09 | V40: 32218.09656 | W40: 42033.18656 | X40: 45781.89072 | Y40: 0 | Z40: 4624.837522 | AA40: 0 | AB40: 0 | AC40: 0 | AD40: 3302.511259 | AE40: 6513.134205 | AF40: 24780.70862 | AG40: 0 | AH40: 0 | AI40: 0 | AJ40: 0 | AK40: 305.3168253 | AL40: 982.9710742 | AM40: 0 | AN40: 61.9545148 | AO40: 0 | AP40: 0 | AQ40: 0 | AR40: 0 | AS40: 0 | AT40: 0 | AU40: 0 | AV40: 1024.237675 | AW40: 64.44780628 | AX40: 0 | AY40: 0 | AZ40: 0 | BA40: 86.72433596 | BB40: 2512.086421 | BC40: 0 | BD40: 1.491870219e-07 | BE40: 0 | BF40: 0 | BG40: 674.6696636 | BH40: 37.88384686 | BI40: 0 | BJ40: 0 | BK40: 0 | BL40: 0 | BU40: 749.079982 | BV40: 25455.37829 | CI40: 45781.1914 | CJ40: 3747.97484 | CM40: 0 | CN40: 749.079982 | CO40: 1159.37368 | CP40: 2589.33048 | CQ40: 31 | CR40: 62.51118977 | CS40: 0 | CT40: 0 | CU40: 0 | CV40: 0 | CW40: 0 | CX40: 0 | CY40: 0 | CZ40: 25.00879973 | DA40: 0 | DB40: 0 | DC40: 5.156983571 | DD40: 0 | DE40: 0 | DF40: 3.104653029e-11 | DG40: 0.1404019725 | DH40: 0 | DI40: -15.83134727 | DJ40: 55.39244126 | DK40: 0 | DL40: 0 | DM40: 0 | DN40: -2.72943058 | DO40: -4.330010991 | DP40: -0.2966479133 | DQ40: 0 | DR40: 0 | DS40: 0 | DU40: 6513.134205 | DV40: 0 | DW40: 38.25966937 | DX40: 0.3758225138 | DY40: 152 | DZ40: 0 | EA40: 0 | EB40: 0 | ED40: 0 | EE40: -48.80228751 | EF40: -3.028738663 | EG40: -48.80228751 | EH40: -3.028738663 | EI40: 0 | EJ40: 0 | EK40: 0 | EL40: 0
A41: 97 | B41: Sistema de Compensação | C41: Azul | D41: A4 | E41: Comercial | F41: Não se aplica | G41: Não se aplica | H41: Não se aplica | I41: Fora ponta | J41: CATIVO | K41: 2019-07-01 | L41: 55 | M41: 55 | N41: 15.211 | O41: 15.211 | P41: 15.211 | Q41: 15.211 | R41: 19.99 | S41: 62.31 | T41: 251.12 | U41: 1099.45 | V41: 4767.58373 | W41: 5867.03373 | X41: 6420.87826 | Y41: 0 | Z41: 684.3762505 | AA41: 0 | AB41: 0 | AC41: 0 | AD41: 369.9350697 | AE41: 729.5771513 | AF41: 3667.010651 | AG41: 0 | AH41: 0 | AI41: 0 | AJ41: 0 | AK41: 45.18030809 | AL41: 145.458528 | AM41: 0 | AN41: 9.167932569 | AO41: 0 | AP41: 0 | AQ41: 0 | AR41: 0 | AS41: 0 | AT41: 0 | AU41: 0 | AV41: 151.5650953 | AW41: 9.536885957 | AX41: 0 | AY41: 0 | AZ41: 0 | BA41: 12.83333211 | BB41: 371.7346345 | BC41: 0 | BD41: 2.207646305e-08 | BE41: 0 | BF41: 0 | BG41: 99.83656562 | BH41: 5.605992631 | BI41: 0 | BJ41: 0 | BK41: 0 | BL41: 0 | BU41: 110.8476886 | BV41: 3766.847217 | CI41: 6420.5286 | CJ41: 553.46487 | CM41: 0 | CN41: 110.8476886 | CO41: 170.67944 | CP41: 383.16509 | CQ41: 31 | CR41: 8.350938292 | CS41: 0 | CT41: 0 | CU41: 0 | CV41: 0 | CW41: 0 | CX41: 0 | CY41: 0 | CZ41: 2.801393045 | DA41: 0 | DB41: 0 | DC41: 0.7631223938 | DD41: 0 | DE41: 0 | DF41: 4.594217179e-12 | DG41: 0.02077646513 | DH41: 0 | DI41: -2.342698103 | DJ41: 8.196887151 | DK41: 0 | DL41: 0 | DM41: 0 | DN41: -0.4038968845 | DO41: -0.6407482799 | DP41: -0.043897496 | DQ41: 0 | DR41: 0 | DS41: 0 | DU41: 729.5771513 | DV41: 0 | DW41: 5.661606261 | DX41: 0.05561363002 | DY41: 152 | DZ41: 0 | EA41: 0 | EB41: 0 | ED41: 0 | EE41: -48.80228751 | EF41: -3.028738663 | EG41: -48.80228751 | EH41: -3.028738663 | EI41: 0 | EJ41: 0 | EK41: 0 | EL41: 0
A42: 162 | B42: Regular | C42: Azul | D42: A4 | E42: Comercial | F42: Não se aplica | G42: Não se aplica | H42: Não se aplica | I42: Fora ponta | J42: CATIVO | K42: 2019-08-01 | L42: 491 | M42: 491 | N42: 98.006 | O42: 98.006 | P42: 98.006 | Q42: 98.006 | R42: 19.99 | S42: 62.31 | T42: 251.12 | U42: 9815.09 | V42: 30718.02058 | W42: 40533.11058 | X42: 44108.41796 | Y42: 0 | Z42: 4409.504885 | AA42: 0 | AB42: 0 | AC42: 0 | AD42: 3302.511259 | AE42: 6513.134205 | AF42: 23626.91775 | AG42: 0 | AH42: 0 | AI42: 0 | AJ42: 0 | AK42: 291.1012606 | AL42: 937.2038981 | AM42: 0 | AN42: 59.06990989 | AO42: 0 | AP42: 0 | AQ42: 0 | AR42: 0 | AS42: 0 | AT42: 0 | AU42: 0 | AV42: 976.5491244 | AW42: 61.44711361 | AX42: 0 | AY42: 0 | AZ42: 0 | BA42: 82.68644709 | BB42: 2395.123568 | BC42: 0 | BD42: 1.422408677e-07 | BE42: 0 | BF42: 0 | BG42: 643.2570146 | BH42: 36.1199733 | BI42: 0 | BJ42: 0 | BK42: 0 | BL42: 0 | BU42: 714.2027854 | BV42: 24270.17476 | CI42: 44109.8166 | CJ42: 3576.67602 | CM42: 0 | CN42: 714.2027854 | CO42: 1106.53624 | CP42: 2468.77114 | CQ42: 31 | CR42: 60.76507686 | CS42: 0 | CT42: 0 | CU42: 0 | CV42: 0 | CW42: 0 | CX42: 0 | CY42: 0 | CZ42: 25.00879973 | DA42: 0 | DB42: 0 | DC42: 4.916874191 | DD42: 0 | DE42: 0 | DF42: 2.960100249e-11 | DG42: 0.1338648506 | DH42: 0 | DI42: -15.09423905 | DJ42: 52.81336678 | DK42: 0 | DL42: 0 | DM42: 0 | DN42: -2.602348173 | DO42: -4.128405491 | DP42: -0.2828359735 | DQ42: 0 | DR42: 0 | DS42: 0 | DU42: 6513.134205 | DV42: 0 | DW42: 36.4782975 | DX42: 0.3583242011 | DY42: 152 | DZ42: 0 | EA42: 0 | EB42: 0 | ED42: 0 | EE42: -48.80228751 | EF42: -3.028738663 | EG42: -48.80228751 | EH42: -3.028738663 | EI42: 0 | EJ42: 0 | EK42: 0 | EL42: 0
A43: 163 | B43: Sistema de Compensação | C43: Azul | D43: A4 | E43: Comercial | F43: Não se aplica | G43: Não se aplica | H43: Não se aplica | I43: Fora ponta | J43: CATIVO | K43: 2019-08-01 | L43: 56 | M43: 56 | N43: 15.821 | O43: 15.821 | P43: 15.821 | Q43: 15.821 | R43: 19.99 | S43: 62.31 | T43: 251.12 | U43: 1119.44 | V43: 4958.77603 | W43: 6078.21603 | X43: 6654.21086 | Y43: 0 | Z43: 711.8214884 | AA43: 0 | AB43: 0 | AC43: 0 | AD43: 376.6611619 | AE43: 742.8421904 | AF43: 3814.067156 | AG43: 0 | AH43: 0 | AI43: 0 | AJ43: 0 | AK43: 46.99215399 | AL43: 151.291787 | AM43: 0 | AN43: 9.53559011 | AO43: 0 | AP43: 0 | AQ43: 0 | AR43: 0 | AS43: 0 | AT43: 0 | AU43: 0 | AV43: 157.6432432 | AW43: 9.919339473 | AX43: 0 | AY43: 0 | AZ43: 0 | BA43: 13.34798155 | BB43: 386.6421441 | BC43: 0 | BD43: 2.296178568e-08 | BE43: 0 | BF43: 0 | BG43: 103.8402672 | BH43: 5.830807272 | BI43: 0 | BJ43: 0 | BK43: 0 | BL43: 0 | BU43: 115.2929644 | BV43: 3917.907424 | CI43: 6653.8612 | CJ43: 575.61517 | CM43: 0 | CN43: 115.2929644 | CO43: 177.46384 | CP43: 398.53099 | CQ43: 31 | CR43: 8.624423667 | CS43: 0 | CT43: 0 | CU43: 0 | CV43: 0 | CW43: 0 | CX43: 0 | CY43: 0 | CZ43: 2.852327464 | DA43: 0 | DB43: 0 | DC43: 0.7937255533 | DD43: 0 | DE43: 0 | DF43: 4.778457037e-12 | DG43: 0.02160965452 | DH43: 0 | DI43: -2.436646288 | DJ43: 8.525603288 | DK43: 0 | DL43: 0 | DM43: 0 | DN43: -0.4200941824 | DO43: -0.6664439246 | DP43: -0.04565789785 | DQ43: 0 | DR43: 0 | DS43: 0 | DU43: 742.8421904 | DV43: 0 | DW43: 5.888651151 | DX43: 0.05784387881 | DY43: 152 | DZ43: 0 | EA43: 0 | EB43: 0 | ED43: 0 | EE43: -48.80228751 | EF43: -3.028738663 | EG43: -48.80228751 | EH43: -3.028738663 | EI43: 0 | EJ43: 0 | EK43: 0 | EL43: 0
A44: 235 | B44: Regular | C44: Azul | D44: A4 | E44: Comercial | F44: Não se aplica | G44: Não se aplica | H44: Não se aplica | I44: Fora ponta | J44: CATIVO | K44: 2019-09-01 | L44: 491 | M44: 491 | N44: 106.661 | O44: 106.661 | P44: 106.661 | Q44: 106.661 | R44: 19.99 | S44: 62.31 | T44: 251.12 | U44: 9815.09 | V44: 33430.75723 | W44: 43245.84723 | X44: 47134.72526 | Y44: 0 | Z44: 4798.912317 | AA44: 0 | AB44: 0 | AC44: 0 | AD44: 3302.511259 | AE44: 6513.134205 | AF44: 25713.43259 | AG44: 0 | AH44: 0 | AI44: 0 | AJ44: 0 | AK44: 316.8086806 | AL44: 1019.969236 | AM44: 0 | AN44: 64.28642796 | AO44: 0 | AP44: 0 | AQ44: 0 | AR44: 0 | AS44: 0 | AT44: 0 | AU44: 0 | AV44: 1062.789076 | AW44: 66.87356473 | AX44: 0 | AY44: 0 | AZ44: 0 | BA44: 89.98856329 | BB44: 2606.639133 | BC44: 0 | BD44: 1.548022895e-07 | BE44: 0 | BF44: 0 | BG44: 700.0636332 | BH44: 39.30976136 | BI44: 0 | BJ44: 0 | BK44: 0 | BL44: 0 | BU44: 777.2746903 | BV44: 26413.49622 | CI44: 47134.3756 | CJ44: 3888.49837 | CM44: 0 | CN44: 777.2746903 | CO44: 1202.08744 | CP44: 2686.79059 | CQ44: 30 | CR44: 63.92274658 | CS44: 0 | CT44: 0 | CU44: 0 | CV44: 0 | CW44: 0 | CX44: 0 | CY44: 0 | CZ44: 25.00879973 | DA44: 0 | DB44: 0 | DC44: 5.351087873 | DD44: 0 | DE44: 0 | DF44: 3.221509424e-11 | DG44: 0.1456865786 | DH44: 0 | DI44: -16.42722519 | DJ44: 57.47736378 | DK44: 0 | DL44: 0 | DM44: 0 | DN44: -2.832163934 | DO44: -4.492988777 | DP44: -0.3078134785 | DQ44: 0 | DR44: 0 | DS44: 0 | DU44: 6513.134205 | DV44: 0 | DW44: 39.6997295 | DX44: 0.3899681409 | DY44: 152 | DZ44: 0 | EA44: 0 | EB44: 0 | ED44: 0 | EE44: -48.80228751 | EF44: -3.028738663 | EG44: -48.80228751 | EH44: -3.028738663 | EI44: 0 | EJ44: 0 | EK44: 0 | EL44: 0
A45: 236 | B45: Sistema de Compensação | C45: Azul | D45: A4 | E45: Comercial | F45: Não se aplica | G45: Não se aplica | H45: Não se aplica | I45: Fora ponta | J45: CATIVO | K45: 2019-09-01 | L45: 55 | M45: 55 | N45: 14.166 | O45: 14.166 | P45: 14.166 | Q45: 14.166 | R45: 19.99 | S45: 62.31 | T45: 251.12 | U45: 1099.45 | V45: 4440.04938 | W45: 5539.49938 | X45: 6055.48356 | Y45: 0 | Z45: 637.3594086 | AA45: 0 | AB45: 0 | AC45: 0 | AD45: 369.9350697 | AE45: 729.5771513 | AF45: 3415.085983 | AG45: 0 | AH45: 0 | AI45: 0 | AJ45: 0 | AK45: 42.07640815 | AL45: 135.465486 | AM45: 0 | AN45: 8.538093009 | AO45: 0 | AP45: 0 | AQ45: 0 | AR45: 0 | AS45: 0 | AT45: 0 | AU45: 0 | AV45: 141.1525304 | AW45: 8.881699196 | AX45: 0 | AY45: 0 | AZ45: 0 | BA45: 11.95167857 | BB45: 346.1963601 | BC45: 0 | BD45: 2.05598038e-08 | BE45: 0 | BF45: 0 | BG45: 92.97776533 | BH45: 5.220859353 | BI45: 0 | BJ45: 0 | BK45: 0 | BL45: 0 | BU45: 103.2324211 | BV45: 3508.063748 | CI45: 6056.8822 | CJ45: 517.35282 | CM45: 0 | CN45: 103.2324211 | CO45: 159.14264 | CP45: 356.84154 | CQ45: 30 | CR45: 7.969682964 | CS45: 0 | CT45: 0 | CU45: 0 | CV45: 0 | CW45: 0 | CX45: 0 | CY45: 0 | CZ45: 2.801393045 | DA45: 0 | DB45: 0 | DC45: 0.7106956696 | DD45: 0 | DE45: 0 | DF45: 4.27859316e-12 | DG45: 0.0193491161 | DH45: 0 | DI45: -2.181754081 | DJ45: 7.633758687 | DK45: 0 | DL45: 0 | DM45: 0 | DN45: -0.3761490543 | DO45: -0.596728692 | DP45: -0.04088172562 | DQ45: 0 | DR45: 0 | DS45: 0 | DU45: 729.5771513 | DV45: 0 | DW45: 5.272652311 | DX45: 0.05179295791 | DY45: 152 | DZ45: 0 | EA45: 0 | EB45: 0 | ED45: 0 | EE45: -48.80228751 | EF45: -3.028738663 | EG45: -48.80228751 | EH45: -3.028738663 | EI45: 0 | EJ45: 0 | EK45: 0 | EL45: 0
A46: 302 | B46: Regular | C46: Azul | D46: A4 | E46: Comercial | F46: Não se aplica | G46: Não se aplica | H46: Não se aplica | I46: Fora ponta | J46: CATIVO | K46: 2019-10-01 | L46: 491 | M46: 491 | N46: 109.058 | O46: 109.058 | P46: 109.058 | Q46: 109.058 | R46: 19.99 | S46: 62.31 | T46: 251.12 | U46: 9815.09 | V46: 34182.04894 | W46: 43997.13894 | X46: 47972.86028 | Y46: 0 | Z46: 4906.758604 | AA46: 0 | AB46: 0 | AC46: 0 | AD46: 3302.511259 | AE46: 6513.134205 | AF46: 26291.29233 | AG46: 0 | AH46: 0 | AI46: 0 | AJ46: 0 | AK46: 323.9283439 | AL46: 1042.891075 | AM46: 0 | AN46: 65.73114128 | AO46: 0 | AP46: 0 | AQ46: 0 | AR46: 0 | AS46: 0 | AT46: 0 | AU46: 0 | AV46: 1086.673208 | AW46: 68.37641896 | AX46: 0 | AY46: 0 | AZ46: 0 | BA46: 92.01088247 | BB46: 2665.218314 | BC46: 0 | BD46: 1.58281172e-07 | BE46: 0 | BF46: 0 | BG46: 715.7962115 | BH46: 40.19317233 | BI46: 0 | BJ46: 0 | BK46: 0 | BL46: 0 | BU46: 794.7424379 | BV46: 27007.08854 | CI46: 47973.5596 | CJ46: 3976.39066 | CM46: 0 | CN46: 794.7424379 | CO46: 1228.55032 | CP46: 2747.17102 | CQ46: 31 | CR46: 64.79726239 | CS46: 0 | CT46: 0 | CU46: 0 | CV46: 0 | CW46: 0 | CX46: 0 | CY46: 0 | CZ46: 25.00879973 | DA46: 0 | DB46: 0 | DC46: 5.47134324 | DD46: 0 | DE46: 0 | DF46: 3.293906628e-11 | DG46: 0.1489606031 | DH46: 0 | DI46: -16.79639535 | DJ46: 58.76905653 | DK46: 0 | DL46: 0 | DM46: 0 | DN46: -2.895811349 | DO46: -4.593960023 | DP46: -0.314730992 | DQ46: 0 | DR46: 0 | DS46: 0 | DU46: 6513.134205 | DV46: 0 | DW46: 40.59190426 | DX46: 0.3987319218 | DY46: 152 | DZ46: 0 | EA46: 0 | EB46: 0 | ED46: 0 | EE46: -48.80228751 | EF46: -3.028738663 | EG46: -48.80228751 | EH46: -3.028738663 | EI46: 0 | EJ46: 0 | EK46: 0 | EL46: 0
A47: 303 | B47: Sistema de Compensação | C47: Azul | D47: A4 | E47: Comercial | F47: Não se aplica | G47: Não se aplica | H47: Não se aplica | I47: Fora ponta | J47: CATIVO | K47: 2019-10-01 | L47: 55 | M47: 55 | N47: 11.79 | O47: 11.79 | P47: 11.79 | Q47: 11.79 | R47: 19.99 | S47: 62.31 | T47: 251.12 | U47: 1099.45 | V47: 3695.3397 | W47: 4794.7897 | X47: 5224.6914 | Y47: 0 | Z47: 530.4579576 | AA47: 0 | AB47: 0 | AC47: 0 | AD47: 369.9350697 | AE47: 729.5771513 | AF47: 2842.288842 | AG47: 0 | AH47: 0 | AI47: 0 | AJ47: 0 | AK47: 35.01911987 | AL47: 112.7444642 | AM47: 0 | AN47: 7.106036749 | AO47: 0 | AP47: 0 | AQ47: 0 | AR47: 0 | AS47: 0 | AT47: 0 | AU47: 0 | AV47: 117.477646 | AW47: 7.392011402 | AX47: 0 | AY47: 0 | AZ47: 0 | BA47: 9.947076824 | BB47: 288.1303886 | BC47: 0 | BD47: 1.71113996e-08 | BE47: 0 | BF47: 0 | BG47: 77.38301943 | BH47: 4.345187898 | BI47: 0 | BJ47: 0 | BK47: 0 | BL47: 0 | BU47: 85.91770749 | BV47: 2919.671862 | CI47: 5224.6914 | CJ47: 429.8717 | CM47: 0 | CN47: 85.91770749 | CO47: 132.9116 | CP47: 296.9901 | CQ47: 31 | CR47: 7.102828747 | CS47: 0 | CT47: 0 | CU47: 0 | CV47: 0 | CW47: 0 | CX47: 0 | CY47: 0 | CZ47: 2.801393045 | DA47: 0 | DB47: 0 | DC47: 0.5914938546 | DD47: 0 | DE47: 0 | DF47: 3.560963812e-12 | DG47: 0.01610377516 | DH47: 0 | DI47: -1.815818199 | DJ47: 6.353382388 | DK47: 0 | DL47: 0 | DM47: 0 | DN47: -0.3130592511 | DO47: -0.4966420499 | DP47: -0.03402481611 | DQ47: 0 | DR47: 0 | DS47: 0 | DU47: 729.5771513 | DV47: 0 | DW47: 4.388293854 | DX47: 0.04310595608 | DY47: 152 | DZ47: 0 | EA47: 0 | EB47: 0 | ED47: 0 | EE47: -48.80228751 | EF47: -3.028738663 | EG47: -48.80228751 | EH47: -3.028738663 | EI47: 0 | EJ47: 0 | EK47: 0 | EL47: 0
A48: 369 | B48: Regular | C48: Azul | D48: A4 | E48: Comercial | F48: Não se aplica | G48: Não se aplica | H48: Não se aplica | I48: Fora ponta | J48: CATIVO | K48: 2019-11-01 | L48: 494 | M48: 494 | N48: 111.349 | O48: 111.349 | P48: 111.349 | Q48: 111.349 | R48: 19.99 | S48: 62.31 | T48: 251.12 | U48: 9875.06 | V48: 34900.11707 | W48: 44775.17707 | X48: 48834.05134 | Y48: 0 | Z48: 5009.835719 | AA48: 0 | AB48: 0 | AC48: 0 | AD48: 3322.689535 | AE48: 6552.929323 | AF48: 26843.59799 | AG48: 0 | AH48: 0 | AI48: 0 | AJ48: 0 | AK48: 330.7331619 | AL48: 1064.799266 | AM48: 0 | AN48: 67.11196657 | AO48: 0 | AP48: 0 | AQ48: 0 | AR48: 0 | AS48: 0 | AT48: 0 | AU48: 0 | AV48: 1109.501137 | AW48: 69.81281405 | AX48: 0 | AY48: 0 | AZ48: 0 | BA48: 93.94377076 | BB48: 2721.20701 | BC48: 0 | BD48: 1.616062116e-07 | BE48: 0 | BF48: 0 | BG48: 730.8330645 | BH48: 41.03751716 | BI48: 0 | BJ48: 0 | BK48: 0 | BL48: 0 | BU48: 811.4377278 | BV48: 27574.43105 | CI48: 48834.401 | CJ48: 4059.19393 | CM48: 0 | CN48: 811.4377278 | CO48: 1253.99296 | CP48: 2804.88131 | CQ48: 30 | CR48: 65.78590866 | CS48: 0 | CT48: 0 | CU48: 0 | CV48: 0 | CW48: 0 | CX48: 0 | CY48: 0 | CZ48: 25.16160298 | DA48: 0 | DB48: 0 | DC48: 5.58628068 | DD48: 0 | DE48: 0 | DF48: 3.363102286e-11 | DG48: 0.1520898439 | DH48: 0 | DI48: -17.14924009 | DJ48: 60.00362812 | DK48: 0 | DL48: 0 | DM48: 0 | DN48: -2.956644151 | DO48: -4.690466125 | DP48: -0.3213425996 | DQ48: 0 | DR48: 0 | DS48: 0 | DU48: 6552.929323 | DV48: 0 | DW48: 41.44462531 | DX48: 0.4071081513 | DY48: 152 | DZ48: 0 | EA48: 0 | EB48: 0 | ED48: 0 | EE48: -48.80228751 | EF48: -3.028738663 | EG48: -48.80228751 | EH48: -3.028738663 | EI48: 0 | EJ48: 0 | EK48: 0 | EL48: 0
A49: 370 | B49: Sistema de Compensação | C49: Azul | D49: A4 | E49: Comercial | F49: Não se aplica | G49: Não se aplica | H49: Não se aplica | I49: Fora ponta | J49: CATIVO | K49: 2019-11-01 | L49: 55 | M49: 55 | N49: 12.939 | O49: 12.939 | P49: 12.939 | Q49: 12.939 | R49: 19.99 | S49: 62.31 | T49: 251.12 | U49: 1099.45 | V49: 4055.47077 | W49: 5154.92077 | X49: 5626.45074 | Y49: 0 | Z49: 582.1539876 | AA49: 0 | AB49: 0 | AC49: 0 | AD49: 369.9350697 | AE49: 729.5771513 | AF49: 3119.285439 | AG49: 0 | AH49: 0 | AI49: 0 | AJ49: 0 | AK49: 38.43192468 | AL49: 123.732029 | AM49: 0 | AN49: 7.798558905 | AO49: 0 | AP49: 0 | AQ49: 0 | AR49: 0 | AS49: 0 | AT49: 0 | AU49: 0 | AV49: 128.9264853 | AW49: 8.112403353 | AX49: 0 | AY49: 0 | AZ49: 0 | BA49: 10.91647388 | BB49: 316.2102713 | BC49: 0 | BD49: 1.877899911e-08 | BE49: 0 | BF49: 0 | BG49: 84.92441802 | BH49: 4.76865023 | BI49: 0 | BJ49: 0 | BK49: 0 | BL49: 0 | BU49: 94.29085811 | BV49: 3204.209857 | CI49: 5626.8004 | CJ49: 471.84963 | CM49: 0 | CN49: 94.29085811 | CO49: 145.59656 | CP49: 325.93341 | CQ49: 30 | CR49: 7.522027188 | CS49: 0 | CT49: 0 | CU49: 0 | CV49: 0 | CW49: 0 | CX49: 0 | CY49: 0 | CZ49: 2.801393045 | DA49: 0 | DB49: 0 | DC49: 0.6491381667 | DD49: 0 | DE49: 0 | DF49: 3.907999216e-12 | DG49: 0.01767317615 | DH49: 0 | DI49: -1.992779617 | DJ49: 6.97255426 | DK49: 0 | DL49: 0 | DM49: 0 | DN49: -0.3435685877 | DO49: -0.5450425346 | DP49: -0.03734072058 | DQ49: 0 | DR49: 0 | DS49: 0 | DU49: 729.5771513 | DV49: 0 | DW49: 4.815957098 | DX49: 0.04730686732 | DY49: 152 | DZ49: 0 | EA49: 0 | EB49: 0 | ED49: 0 | EE49: -48.80228751 | EF49: -3.028738663 | EG49: -48.80228751 | EH49: -3.028738663 | EI49: 0 | EJ49: 0 | EK49: 0 | EL49: 0
A50: 433 | B50: Regular | C50: Azul | D50: A4 | E50: Comercial | F50: Não se aplica | G50: Não se aplica | H50: Não se aplica | I50: Fora ponta | J50: CATIVO | K50: 2019-12-01 | L50: 492 | M50: 492 | N50: 110.927 | O50: 110.927 | P50: 110.927 | Q50: 110.927 | R50: 19.99 | S50: 62.31 | T50: 251.12 | U50: 9835.08 | V50: 34767.84961 | W50: 44602.92961 | X50: 48646.41482 | Y50: 0 | Z50: 4990.849013 | AA50: 0 | AB50: 0 | AC50: 0 | AD50: 3309.237351 | AE50: 6526.399244 | AF50: 26741.86382 | AG50: 0 | AH50: 0 | AI50: 0 | AJ50: 0 | AK50: 329.479721 | AL50: 1060.763798 | AM50: 0 | AN50: 66.85761988 | AO50: 0 | AP50: 0 | AQ50: 0 | AR50: 0 | AS50: 0 | AT50: 0 | AU50: 0 | AV50: 1105.296254 | AW50: 69.54823145 | AX50: 0 | AY50: 0 | AZ50: 0 | BA50: 93.5877346 | BB50: 2710.893946 | BC50: 0 | BD50: 1.609937425e-07 | BE50: 0 | BF50: 0 | BG50: 728.0632906 | BH50: 40.88198965 | BI50: 0 | BJ50: 0 | BK50: 0 | BL50: 0 | BU50: 808.3624714 | BV50: 27469.92711 | CI50: 48647.4638 | CJ50: 4044.50419 | CM50: 0 | CN50: 808.3624714 | CO50: 1249.23408 | CP50: 2794.25113 | CR50: 65.53007834 | CS50: 0 | CT50: 0 | CU50: 0 | CV50: 0 | CW50: 0 | CX50: 0 | CY50: 0 | CZ50: 25.05973415 | DA50: 0 | DB50: 0 | DC50: 5.565109314 | DD50: 0 | DE50: 0 | DF50: 3.350356512e-11 | DG50: 0.1515134408 | DH50: 0 | DI50: -17.08424643 | DJ50: 59.77622122 | DK50: 0 | DL50: 0 | DM50: 0 | DN50: -2.945438808 | DO50: -4.672689793 | DP50: -0.3201247478 | DQ50: 0 | DR50: 0 | DS50: 0 | DU50: 6526.399244 | DV50: 0 | DW50: 41.28755491 | DX50: 0.4055652578 | DY50: 152 | DZ50: 0 | EA50: 0 | EB50: 0 | ED50: 0 | EE50: -48.80228751 | EF50: -3.028738663 | EG50: -48.80228751 | EH50: -3.028738663 | EI50: 0 | EJ50: 0 | EK50: 0 | EL50: 0
A51: 434 | B51: Sistema de Compensação | C51: Azul | D51: A4 | E51: Comercial | F51: Não se aplica | G51: Não se aplica | H51: Não se aplica | I51: Fora ponta | J51: CATIVO | K51: 2019-12-01 | L51: 55 | M51: 55 | N51: 13.323 | O51: 13.323 | P51: 13.323 | Q51: 13.323 | R51: 19.99 | S51: 62.31 | T51: 251.12 | U51: 1099.45 | V51: 4175.82789 | W51: 5275.27789 | X51: 5760.72018 | Y51: 0 | Z51: 599.4309898 | AA51: 0 | AB51: 0 | AC51: 0 | AD51: 369.9350697 | AE51: 729.5771513 | AF51: 3211.858715 | AG51: 0 | AH51: 0 | AI51: 0 | AJ51: 0 | AK51: 39.57249653 | AL51: 127.4041134 | AM51: 0 | AN51: 8.030002341 | AO51: 0 | AP51: 0 | AQ51: 0 | AR51: 0 | AS51: 0 | AT51: 0 | AU51: 0 | AV51: 132.7527293 | AW51: 8.353160976 | AX51: 0 | AY51: 0 | AZ51: 0 | BA51: 11.24044992 | BB51: 325.5946707 | BC51: 0 | BD51: 1.933631696e-08 | BE51: 0 | BF51: 0 | BG51: 87.44478099 | BH51: 4.91017289 | BI51: 0 | BJ51: 0 | BK51: 0 | BL51: 0 | BU51: 97.08919566 | BV51: 3299.303496 | CI51: 5759.6712 | CJ51: 484.36331 | CM51: 0 | CN51: 97.08919566 | CO51: 149.83592 | CP51: 335.60637 | CR51: 7.662124839 | CS51: 0 | CT51: 0 | CU51: 0 | CV51: 0 | CW51: 0 | CX51: 0 | CY51: 0 | CZ51: 2.801393045 | DA51: 0 | DB51: 0 | DC51: 0.6684031064 | DD51: 0 | DE51: 0 | DF51: 4.023979717e-12 | DG51: 0.01819767569 | DH51: 0 | DI51: -2.051920769 | DJ51: 7.179483763 | DK51: 0 | DL51: 0 | DM51: 0 | DN51: -0.3537649196 | DO51: -0.5612181535 | DP51: -0.03844890798 | DQ51: 0 | DR51: 0 | DS51: 0 | DU51: 729.5771513 | DV51: 0 | DW51: 4.958883717 | DX51: 0.04871082721 | DY51: 152 | DZ51: 0 | EA51: 0 | EB51: 0 | ED51: 0 | EE51: -48.80228751 | EF51: -3.028738663 | EG51: -48.80228751 | EH51: -3.028738663 | EI51: 0 | EJ51: 0 | EK51: 0 | EL51: 0
A52: 498 | B52: Regular | C52: Azul | D52: A4 | E52: Comercial | F52: Não se aplica | G52: Não se aplica | H52: Não se aplica | I52: Fora ponta | J52: CATIVO | K52: 2020-01-01 | L52: 497 | M52: 497 | N52: 89.623 | O52: 89.623 | P52: 89.623 | Q52: 89.623 | R52: 19.99 | S52: 62.31 | T52: 251.12 | U52: 9935.03 | V52: 28090.53689 | W52: 38025.56689 | X52: 41297.45818 | Y52: 0 | Z52: 4032.33533 | AA52: 0 | AB52: 0 | AC52: 0 | AD52: 3342.867812 | AE52: 6592.72444 | AF52: 21605.97565 | AG52: 0 | AH52: 0 | AI52: 0 | AJ52: 0 | AK52: 266.2017456 | AL52: 857.0396196 | AM52: 0 | AN52: 54.01733092 | AO52: 0 | AP52: 0 | AQ52: 0 | AR52: 0 | AS52: 0 | AT52: 0 | AU52: 0 | AV52: 893.0194291 | AW52: 56.19119914 | AX52: 0 | AY52: 0 | AZ52: 0 | BA52: 75.61381393 | BB52: 2190.255286 | BC52: 0 | BD52: 1.300742126e-07 | BE52: 0 | BF52: 0 | BG52: 588.2356532 | BH52: 33.03043045 | BI52: 0 | BJ52: 0 | BK52: 0 | BL52: 0 | BU52: 653.1130363 | BV52: 22194.2113 | CI52: 41296.4092 | CJ52: 3270.81231 | CM52: 0 | CN52: 653.1130363 | CO52: 1014.28792 | CP52: 2257.60337 | CQ52: 31 | CR52: 58.01224949 | CS52: 0 | CT52: 0 | CU52: 0 | CV52: 0 | CW52: 0 | CX52: 0 | CY52: 0 | CZ52: 25.31440624 | DA52: 0 | DB52: 0 | DC52: 4.496306508 | DD52: 0 | DE52: 0 | DF52: 2.706906359e-11 | DG52: 0.122414643 | DH52: 0 | DI52: -13.80314457 | DJ52: 48.29594485 | DK52: 0 | DL52: 0 | DM52: 0 | DN52: -2.379754814 | DO52: -3.775279935 | DP52: -0.2586434346 | DQ52: 0 | DR52: 0 | DS52: 0 | DU52: 6592.72444 | DV52: 0 | DW52: 33.35810518 | DX52: 0.327674733 | DY52: 152 | DZ52: 0 | EA52: 0 | EB52: 0 | ED52: 0 | EE52: -48.80228751 | EF52: -3.028738663 | EG52: -48.80228751 | EH52: -3.028738663 | EI52: 0 | EJ52: 0 | EK52: 0 | EL52: 0
A53: 499 | B53: Sistema de Compensação | C53: Azul | D53: A4 | E53: Comercial | F53: Não se aplica | G53: Não se aplica | H53: Não se aplica | I53: Fora ponta | J53: CATIVO | K53: 2020-01-01 | L53: 55 | M53: 55 | N53: 12.984 | O53: 12.984 | P53: 12.984 | Q53: 12.984 | R53: 19.99 | S53: 62.31 | T53: 251.12 | U53: 1099.45 | V53: 4069.57512 | W53: 5169.02512 | X53: 5642.18544 | Y53: 0 | Z53: 584.1786363 | AA53: 0 | AB53: 0 | AC53: 0 | AD53: 369.9350697 | AE53: 729.5771513 | AF53: 3130.13387 | AG53: 0 | AH53: 0 | AI53: 0 | AJ53: 0 | AK53: 38.56558545 | AL53: 124.1623514 | AM53: 0 | AN53: 7.825681183 | AO53: 0 | AP53: 0 | AQ53: 0 | AR53: 0 | AS53: 0 | AT53: 0 | AU53: 0 | AV53: 129.3748733 | AW53: 8.140617137 | AX53: 0 | AY53: 0 | AZ53: 0 | BA53: 10.95443982 | BB53: 317.3100056 | BC53: 0 | BD53: 1.884430979e-08 | BE53: 0 | BF53: 0 | BG53: 85.21977306 | BH53: 4.785234917 | BI53: 0 | BJ53: 0 | BK53: 0 | BL53: 0 | BU53: 94.61878829 | BV53: 3215.353643 | CI53: 5640.7868 | CJ53: 471.73168 | CM53: 0 | CN53: 94.61878829 | CO53: 146.09336 | CP53: 327.06696 | CQ53: 31 | CR53: 7.538444881 | CS53: 0 | CT53: 0 | CU53: 0 | CV53: 0 | CW53: 0 | CX53: 0 | CY53: 0 | CZ53: 2.801393045 | DA53: 0 | DB53: 0 | DC53: 0.6513957768 | DD53: 0 | DE53: 0 | DF53: 3.921590681e-12 | DG53: 0.01773464094 | DH53: 0 | DI53: -1.999710221 | DJ53: 6.996803811 | DK53: 0 | DL53: 0 | DM53: 0 | DN53: -0.3447634704 | DO53: -0.546938115 | DP53: -0.03747058629 | DQ53: 0 | DR53: 0 | DS53: 0 | DU53: 729.5771513 | DV53: 0 | DW53: 4.832706311 | DX53: 0.04747139387 | DY53: 152 | DZ53: 0 | EA53: 0 | EB53: 0 | ED53: 0 | EE53: -48.80228751 | EF53: -3.028738663 | EG53: -48.80228751 | EH53: -3.028738663 | EI53: 0 | EJ53: 0 | EK53: 0 | EL53: 0
A54: 571 | B54: Regular | C54: Azul | D54: A4 | E54: Comercial | F54: Não se aplica | G54: Não se aplica | H54: Não se aplica | I54: Fora ponta | J54: CATIVO | K54: 2020-02-01 | L54: 495 | M54: 495 | N54: 82.255 | O54: 82.255 | P54: 82.255 | Q54: 82.255 | R54: 19.99 | S54: 62.31 | T54: 251.12 | U54: 9895.05 | V54: 25781.18465 | W54: 35676.23465 | X54: 38681.0833 | Y54: 0 | Z54: 3700.83285 | AA54: 0 | AB54: 0 | AC54: 0 | AD54: 3329.415628 | AE54: 6566.194362 | AF54: 19829.72593 | AG54: 0 | AH54: 0 | AI54: 0 | AJ54: 0 | AK54: 244.3170233 | AL54: 786.5815015 | AM54: 0 | AN54: 49.57650999 | AO54: 0 | AP54: 0 | AQ54: 0 | AR54: 0 | AS54: 0 | AT54: 0 | AU54: 0 | AV54: 819.6033735 | AW54: 51.57166225 | AX54: 0 | AY54: 0 | AZ54: 0 | BA54: 69.39752368 | BB54: 2010.192122 | BC54: 0 | BD54: 1.193806764e-07 | BE54: 0 | BF54: 0 | BG54: 539.8761886 | BH54: 30.31496443 | BI54: 0 | BJ54: 0 | BK54: 0 | BL54: 0 | BU54: 599.4199346 | BV54: 20369.60212 | CI54: 38682.8316 | CJ54: 3006.56695 | CM54: 0 | CN54: 599.4199346 | CO54: 932.8452 | CP54: 2072.00345 | CQ54: 29 | CR54: 55.22225697 | CS54: 0 | CT54: 0 | CU54: 0 | CV54: 0 | CW54: 0 | CX54: 0 | CY54: 0 | CZ54: 25.2125374 | DA54: 0 | DB54: 0 | DC54: 4.126660476 | DD54: 0 | DE54: 0 | DF54: 2.484368773e-11 | DG54: 0.1123508079 | DH54: 0 | DI54: -12.66837371 | DJ54: 44.32548502 | DK54: 0 | DL54: 0 | DM54: 0 | DN54: -2.184112697 | DO54: -3.464910247 | DP54: -0.237380089 | DQ54: 0 | DR54: 0 | DS54: 0 | DU54: 6566.194362 | DV54: 0 | DW54: 30.61570068 | DX54: 0.3007362525 | DY54: 152 | DZ54: 0 | EA54: 0 | EB54: 0 | ED54: 0 | EE54: -48.80228751 | EF54: -3.028738663 | EG54: -48.80228751 | EH54: -3.028738663 | EI54: 0 | EJ54: 0 | EK54: 0 | EL54: 0
A55: 572 | B55: Sistema de Compensação | C55: Azul | D55: A4 | E55: Comercial | F55: Não se aplica | G55: Não se aplica | H55: Não se aplica | I55: Fora ponta | J55: CATIVO | K55: 2020-02-01 | L55: 55 | M55: 55 | N55: 14.184 | O55: 14.184 | P55: 14.184 | Q55: 14.184 | R55: 19.99 | S55: 62.31 | T55: 251.12 | U55: 1099.45 | V55: 4445.69112 | W55: 5545.14112 | X55: 6061.77744 | Y55: 0 | Z55: 638.1692681 | AA55: 0 | AB55: 0 | AC55: 0 | AD55: 369.9350697 | AE55: 729.5771513 | AF55: 3419.425355 | AG55: 0 | AH55: 0 | AI55: 0 | AJ55: 0 | AK55: 42.12987246 | AL55: 135.6376149 | AM55: 0 | AN55: 8.54894192 | AO55: 0 | AP55: 0 | AQ55: 0 | AR55: 0 | AS55: 0 | AT55: 0 | AU55: 0 | AV55: 141.3318856 | AW55: 8.89298471 | AX55: 0 | AY55: 0 | AZ55: 0 | BA55: 11.96686494 | BB55: 346.6362538 | BC55: 0 | BD55: 2.058592807e-08 | BE55: 0 | BF55: 0 | BG55: 93.09590735 | BH55: 5.227493227 | BI55: 0 | BJ55: 0 | BK55: 0 | BL55: 0 | BU55: 103.3635931 | BV55: 3512.521263 | CI55: 6060.3788 | CJ55: 515.20768 | CM55: 0 | CN55: 103.3635931 | CO55: 159.34136 | CP55: 357.29496 | CQ55: 29 | CR55: 7.976250042 | CS55: 0 | CT55: 0 | CU55: 0 | CV55: 0 | CW55: 0 | CX55: 0 | CY55: 0 | CZ55: 2.801393045 | DA55: 0 | DB55: 0 | DC55: 0.7115987136 | DD55: 0 | DE55: 0 | DF55: 4.284029746e-12 | DG55: 0.01937370202 | DH55: 0 | DI55: -2.184526322 | DJ55: 7.643458507 | DK55: 0 | DL55: 0 | DM55: 0 | DN55: -0.3766270074 | DO55: -0.5974869241 | DP55: -0.0409336719 | DQ55: 0 | DR55: 0 | DS55: 0 | DU55: 729.5771513 | DV55: 0 | DW55: 5.279351996 | DX55: 0.05185876853 | DY55: 152 | DZ55: 0 | EA55: 0 | EB55: 0 | ED55: 0 | EE55: -48.80228751 | EF55: -3.028738663 | EG55: -48.80228751 | EH55: -3.028738663 | EI55: 0 | EJ55: 0 | EK55: 0 | EL55: 0
A56: 646 | B56: Regular | C56: Azul | D56: A4 | E56: Comercial | F56: Não se aplica | G56: Não se aplica | H56: Não se aplica | I56: Fora ponta | J56: CATIVO | K56: 2020-03-01 | L56: 371 | M56: 371 | N56: 73.998 | O56: 73.998 | P56: 73.998 | Q56: 73.998 | R56: 19.99 | S56: 62.31 | T56: 251.12 | U56: 7416.29 | V56: 23193.19314 | W56: 30609.48314 | X56: 33308.98068 | Y56: 0 | Z56: 3329.332311 | AA56: 0 | AB56: 0 | AC56: 0 | AD56: 2495.380198 | AE56: 4921.329512 | AF56: 17839.15944 | AG56: 0 | AH56: 0 | AI56: 0 | AJ56: 0 | AK56: 219.7917585 | AL56: 707.6221257 | AM56: 0 | AN56: 44.59987339 | AO56: 0 | AP56: 0 | AQ56: 0 | AR56: 0 | AS56: 0 | AT56: 0 | AU56: 0 | AV56: 737.3291646 | AW56: 46.39474637 | AX56: 0 | AY56: 0 | AZ56: 0 | BA56: 62.43119515 | BB56: 1808.403096 | BC56: 0 | BD56: 1.073968913e-07 | BE56: 0 | BF56: 0 | BG56: 485.6818212 | BH56: 27.2718587 | BI56: 0 | BJ56: 0 | BK56: 0 | BL56: 0 | BU56: 539.24839 | BV56: 18324.84126 | CI56: 33309.68 | CJ56: 2700.16686 | CM56: 0 | CN56: 539.24839 | CO56: 835.48792 | CP56: 1864.00962 | CQ56: 31 | CR56: 45.89392467 | CS56: 0 | CT56: 0 | CU56: 0 | CV56: 0 | CW56: 0 | CX56: 0 | CY56: 0 | CZ56: 18.89666945 | DA56: 0 | DB56: 0 | DC56: 3.712414101 | DD56: 0 | DE56: 0 | DF56: 2.234980493e-11 | DG56: 0.1010727018 | DH56: 0 | DI56: -11.39668491 | DJ56: 39.87596183 | DK56: 0 | DL56: 0 | DM56: 0 | DN56: -1.964865009 | DO56: -3.117092316 | DP56: -0.2135511741 | DQ56: 0 | DR56: 0 | DS56: 0 | DU56: 4921.329512 | DV56: 0 | DW56: 27.54240616 | DX56: 0.2705474587 | DY56: 152 | DZ56: 0 | EA56: 0 | EB56: 0 | ED56: 0 | EE56: -48.80228751 | EF56: -3.028738663 | EG56: -48.80228751 | EH56: -3.028738663 | EI56: 0 | EJ56: 0 | EK56: 0 | EL56: 0
A57: 647 | B57: Sistema de Compensação | C57: Azul | D57: A4 | E57: Comercial | F57: Não se aplica | G57: Não se aplica | H57: Não se aplica | I57: Fora ponta | J57: CATIVO | K57: 2020-03-01 | L57: 55 | M57: 55 | N57: 12.997 | O57: 12.997 | P57: 12.997 | Q57: 12.997 | R57: 19.99 | S57: 62.31 | T57: 251.12 | U57: 1099.45 | V57: 4073.64971 | W57: 5173.09971 | X57: 5646.73102 | Y57: 0 | Z57: 584.7635348 | AA57: 0 | AB57: 0 | AC57: 0 | AD57: 369.9350697 | AE57: 729.5771513 | AF57: 3133.267861 | AG57: 0 | AH57: 0 | AI57: 0 | AJ57: 0 | AK57: 38.60419856 | AL57: 124.2866668 | AM57: 0 | AN57: 7.833516507 | AO57: 0 | AP57: 0 | AQ57: 0 | AR57: 0 | AS57: 0 | AT57: 0 | AU57: 0 | AV57: 129.5044076 | AW57: 8.148767786 | AX57: 0 | AY57: 0 | AZ57: 0 | BA57: 10.96540776 | BB57: 317.6277066 | BC57: 0 | BD57: 1.886317732e-08 | BE57: 0 | BF57: 0 | BG57: 85.30509784 | BH57: 4.790026049 | BI57: 0 | BJ57: 0 | BK57: 0 | BL57: 0 | BU57: 94.71352368 | BV57: 3218.572959 | CI57: 5647.78 | CJ57: 474.65029 | CM57: 0 | CN57: 94.71352368 | CO57: 146.23688 | CP57: 327.39443 | CQ57: 31 | CR57: 7.54318777 | CS57: 0 | CT57: 0 | CU57: 0 | CV57: 0 | CW57: 0 | CX57: 0 | CY57: 0 | CZ57: 2.801393045 | DA57: 0 | DB57: 0 | DC57: 0.6520479753 | DD57: 0 | DE57: 0 | DF57: 3.925517105e-12 | DG57: 0.01775239743 | DH57: 0 | DI57: -2.001712395 | DJ57: 7.003809237 | DK57: 0 | DL57: 0 | DM57: 0 | DN57: -0.3451086587 | DO57: -0.547485727 | DP57: -0.03750810305 | DQ57: 0 | DR57: 0 | DS57: 0 | DU57: 729.5771513 | DV57: 0 | DW57: 4.837544972 | DX57: 0.04751892376 | DY57: 152 | DZ57: 0 | EA57: 0 | EB57: 0 | ED57: 0 | EE57: -48.80228751 | EF57: -3.028738663 | EG57: -48.80228751 | EH57: -3.028738663 | EI57: 0 | EJ57: 0 | EK57: 0 | EL57: 0
A58: 720 | B58: Regular | C58: Azul | D58: A4 | E58: Comercial | F58: Não se aplica | G58: Não se aplica | H58: Não se aplica | I58: Fora ponta | J58: CATIVO | K58: 2020-04-01 | L58: 371 | M58: 371 | N58: 64.017 | O58: 64.017 | P58: 64.017 | Q58: 64.017 | R58: 19.99 | S58: 62.31 | T58: 251.12 | U58: 7416.29 | V58: 20064.84831 | W58: 27481.13831 | X58: 29819.02422 | Y58: 0 | Z58: 2880.265231 | AA58: 0 | AB58: 0 | AC58: 0 | AD58: 2495.380198 | AE58: 4921.329512 | AF58: 15432.97751 | AG58: 0 | AH58: 0 | AI58: 0 | AJ58: 0 | AK58: 190.1458013 | AL58: 612.1766213 | AM58: 0 | AN58: 38.58415221 | AO58: 0 | AP58: 0 | AQ58: 0 | AR58: 0 | AS58: 0 | AT58: 0 | AU58: 0 | AV58: 637.8767146 | AW58: 40.13692909 | AX58: 0 | AY58: 0 | AZ58: 0 | BA58: 54.0103492 | BB58: 1564.482026 | BC58: 0 | BD58: 9.291098121e-08 | BE58: 0 | BF58: 0 | BG58: 420.1720742 | BH58: 23.59337521 | BI58: 0 | BJ58: 0 | BK58: 0 | BL58: 0 | BU58: 466.5134758 | BV58: 15853.14958 | CI58: 29820.0732 | CJ58: 2338.90489 | CM58: 0 | CN58: 466.5134758 | CO58: 725.29768 | CP58: 1612.58823 | CQ58: 30 | CR58: 42.25248025 | CS58: 0 | CT58: 0 | CU58: 0 | CV58: 0 | CW58: 0 | CX58: 0 | CY58: 0 | CZ58: 18.89666945 | DA58: 0 | DB58: 0 | DC58: 3.211676174 | DD58: 0 | DE58: 0 | DF58: 1.933521801e-11 | DG58: 0.08743981121 | DH58: 0 | DI58: -9.859476987 | DJ58: 34.4974114 | DK58: 0 | DL58: 0 | DM58: 0 | DN58: -1.69984004 | DO58: -2.696652596 | DP58: -0.1847469595 | DQ58: 0 | DR58: 0 | DS58: 0 | DU58: 4921.329512 | DV58: 0 | DW58: 23.82743068 | DX58: 0.2340554699 | DY58: 152 | DZ58: 0 | EA58: 0 | EB58: 0 | ED58: 0 | EE58: -48.80228751 | EF58: -3.028738663 | EG58: -48.80228751 | EH58: -3.028738663 | EI58: 0 | EJ58: 0 | EK58: 0 | EL58: 0
A59: 721 | B59: Sistema de Compensação | C59: Azul | D59: A4 | E59: Comercial | F59: Não se aplica | G59: Não se aplica | H59: Não se aplica | I59: Fora ponta | J59: CATIVO | K59: 2020-04-01 | L59: 55 | M59: 55 | N59: 14.269 | O59: 14.269 | P59: 14.269 | Q59: 14.269 | R59: 19.99 | S59: 62.31 | T59: 251.12 | U59: 1099.45 | V59: 4472.33267 | W59: 5571.78267 | X59: 6091.49854 | Y59: 0 | Z59: 641.9936045 | AA59: 0 | AB59: 0 | AC59: 0 | AD59: 369.9350697 | AE59: 729.5771513 | AF59: 3439.916835 | AG59: 0 | AH59: 0 | AI59: 0 | AJ59: 0 | AK59: 42.38234279 | AL59: 136.4504461 | AM59: 0 | AN59: 8.600172889 | AO59: 0 | AP59: 0 | AQ59: 0 | AR59: 0 | AS59: 0 | AT59: 0 | AU59: 0 | AV59: 142.1788406 | AW59: 8.946277413 | AX59: 0 | AY59: 0 | AZ59: 0 | BA59: 12.03857839 | BB59: 348.7135297 | BC59: 0 | BD59: 2.07092927e-08 | BE59: 0 | BF59: 0 | BG59: 93.65380019 | BH59: 5.258819858 | BI59: 0 | BJ59: 0 | BK59: 0 | BL59: 0 | BU59: 103.9830168 | BV59: 3533.570636 | CI59: 6091.8482 | CJ59: 520.03553 | CM59: 0 | CN59: 103.9830168 | CO59: 160.27976 | CP59: 359.43611 | CQ59: 30 | CR59: 8.007261241 | CS59: 0 | CT59: 0 | CU59: 0 | CV59: 0 | CW59: 0 | CX59: 0 | CY59: 0 | CZ59: 2.801393045 | DA59: 0 | DB59: 0 | DC59: 0.7158630883 | DD59: 0 | DE59: 0 | DF59: 4.309702513e-12 | DG59: 0.01948980218 | DH59: 0 | DI59: -2.197617463 | DJ59: 7.689263215 | DK59: 0 | DL59: 0 | DM59: 0 | DN59: -0.3788840079 | DO59: -0.6010674647 | DP59: -0.0411789738 | DQ59: 0 | DR59: 0 | DS59: 0 | DU59: 729.5771513 | DV59: 0 | DW59: 5.310989399 | DX59: 0.05216954091 | DY59: 152 | DZ59: 0 | EA59: 0 | EB59: 0 | ED59: 0 | EE59: -48.80228751 | EF59: -3.028738663 | EG59: -48.80228751 | EH59: -3.028738663 | EI59: 0 | EJ59: 0 | EK59: 0 | EL59: 0
A60: 794 | B60: PROJETADO | C60: Azul | D60: A4 | E60: Comercial | F60: Não se aplica | G60: Não se aplica | H60: Não se aplica | I60: Fora ponta | J60: CATIVO | K60: 2020-05-01 | L60: 371 | M60: 371 | N60: 64.017 | O60: 64.017 | P60: 64.017 | Q60: 64.017 | R60: 19.99 | S60: 62.31 | T60: 251.12 | U60: 7416.29 | V60: 20064.84831 | W60: 27481.13831 | X60: 29819.02422 | Y60: 0 | Z60: 2880.265231 | AA60: 0 | AB60: 0 | AC60: 0 | AD60: 2495.380198 | AE60: 4921.329512 | AF60: 15432.97751 | AG60: 0 | AH60: 0 | AI60: 0 | AJ60: 0 | AK60: 190.1458013 | AL60: 612.1766213 | AM60: 0 | AN60: 38.58415221 | AO60: 0 | AP60: 0 | AQ60: 0 | AR60: 0 | AS60: 0 | AT60: 0 | AU60: 0 | AV60: 637.8767146 | AW60: 40.13692909 | AX60: 0 | AY60: 0 | AZ60: 0 | BA60: 54.0103492 | BB60: 1564.482026 | BC60: 0 | BD60: 9.291098121e-08 | BE60: 0 | BF60: 0 | BG60: 420.1720742 | BH60: 23.59337521 | BI60: 0 | BJ60: 0 | BK60: 0 | BL60: 0 | BU60: 466.5134758 | BV60: 15853.14958 | CI60: 29820.0732 | CJ60: 2338.90489 | CM60: 0 | CN60: 466.5134758 | CO60: 725.29768 | CP60: 1612.58823 | CQ60: 31 | CR60: 42.25248025 | CS60: 0 | CT60: 0 | CU60: 0 | CV60: 0 | CW60: 0 | CX60: 0 | CY60: 0 | CZ60: 18.89666945 | DA60: 0 | DB60: 0 | DC60: 3.211676174 | DD60: 0 | DE60: 0 | DF60: 1.933521801e-11 | DG60: 0.08743981121 | DH60: 0 | DI60: -9.859476987 | DJ60: 34.4974114 | DK60: 0 | DL60: 0 | DM60: 0 | DN60: -1.69984004 | DO60: -2.696652596 | DP60: -0.1847469595 | DQ60: 0 | DR60: 0 | DS60: 0 | DU60: 4921.329512 | DV60: 0 | DW60: 23.82743068 | DX60: 0.2340554699 | DY60: 152 | DZ60: 0 | EA60: 0 | EB60: 0 | ED60: 0 | EE60: -48.80228751 | EF60: -3.028738663 | EG60: -48.80228751 | EH60: -3.028738663 | EI60: 0 | EJ60: 0 | EK60: 0 | EL60: 0
A61: 795 | B61: PROJETADO | C61: Azul | D61: A4 | E61: Comercial | F61: Não se aplica | G61: Não se aplica | H61: Não se aplica | I61: Fora ponta | J61: CATIVO | K61: 2020-05-01 | L61: 55 | M61: 55 | N61: 14.269 | O61: 14.269 | P61: 14.269 | Q61: 14.269 | R61: 19.99 | S61: 62.31 | T61: 251.12 | U61: 1099.45 | V61: 4472.33267 | W61: 5571.78267 | X61: 6091.49854 | Y61: 0 | Z61: 641.9936045 | AA61: 0 | AB61: 0 | AC61: 0 | AD61: 369.9350697 | AE61: 729.5771513 | AF61: 3439.916835 | AG61: 0 | AH61: 0 | AI61: 0 | AJ61: 0 | AK61: 42.38234279 | AL61: 136.4504461 | AM61: 0 | AN61: 8.600172889 | AO61: 0 | AP61: 0 | AQ61: 0 | AR61: 0 | AS61: 0 | AT61: 0 | AU61: 0 | AV61: 142.1788406 | AW61: 8.946277413 | AX61: 0 | AY61: 0 | AZ61: 0 | BA61: 12.03857839 | BB61: 348.7135297 | BC61: 0 | BD61: 2.07092927e-08 | BE61: 0 | BF61: 0 | BG61: 93.65380019 | BH61: 5.258819858 | BI61: 0 | BJ61: 0 | BK61: 0 | BL61: 0 | BU61: 103.9830168 | BV61: 3533.570636 | CI61: 6091.8482 | CJ61: 520.03553 | CM61: 0 | CN61: 103.9830168 | CO61: 160.27976 | CP61: 359.43611 | CQ61: 31 | CR61: 8.007261241 | CS61: 0 | CT61: 0 | CU61: 0 | CV61: 0 | CW61: 0 | CX61: 0 | CY61: 0 | CZ61: 2.801393045 | DA61: 0 | DB61: 0 | DC61: 0.7158630883 | DD61: 0 | DE61: 0 | DF61: 4.309702513e-12 | DG61: 0.01948980218 | DH61: 0 | DI61: -2.197617463 | DJ61: 7.689263215 | DK61: 0 | DL61: 0 | DM61: 0 | DN61: -0.3788840079 | DO61: -0.6010674647 | DP61: -0.0411789738 | DQ61: 0 | DR61: 0 | DS61: 0 | DU61: 729.5771513 | DV61: 0 | DW61: 5.310989399 | DX61: 0.05216954091 | DY61: 152 | DZ61: 0 | EA61: 0 | EB61: 0 | ED61: 0 | EE61: -48.80228751 | EF61: -3.028738663 | EG61: -48.80228751 | EH61: -3.028738663 | EI61: 0 | EJ61: 0 | EK61: 0 | EL61: 0
A62: 34 | B62: Regular | C62: Azul | D62: A4 | E62: Comercial | F62: Não se aplica | G62: Não se aplica | H62: Não se aplica | I62: Não se aplica | J62: CATIVO | K62: 2019-06-01 | L62: 0 | M62: 0 | N62: 0 | O62: 0 | P62: 0 | Q62: 0 | AA62: 0 | AZ62: 0 | BI62: 972.48 | BJ62: 4479.43 | BK62: 32149.18 | BL62: 6 | CJ62: -0.03 | CO62: 0 | CP62: 0 | CQ62: 30 | DK62: 0 | DY62: 152 | ED62: 0 | EE62: -48.80228751 | EF62: -3.028738663 | EG62: -48.80228751 | EH62: -3.028738663 | EI62: 0 | EJ62: 0 | EK62: 0 | EL62: 0
A63: 35 | B63: Sistema de Compensação | C63: Azul | D63: A4 | E63: Comercial | F63: Não se aplica | G63: Não se aplica | H63: Não se aplica | I63: Não se aplica | J63: CATIVO | K63: 2019-06-01 | L63: 0 | M63: 0 | N63: 0 | O63: 0 | P63: 0 | Q63: 0 | AA63: 0 | AZ63: 0 | BI63: 113.52 | BJ63: 522.91 | BK63: 3752.92 | BL63: 1 | CJ63: -0.03 | CO63: 0 | CP63: 0 | CQ63: 30 | DK63: 0 | DY63: 152 | ED63: 0 | EE63: -48.80228751 | EF63: -3.028738663 | EG63: -48.80228751 | EH63: -3.028738663 | EI63: 0 | EJ63: 0 | EK63: 0 | EL63: 0
A64: 98 | B64: Regular | C64: Azul | D64: A4 | E64: Comercial | F64: Não se aplica | G64: Não se aplica | H64: Não se aplica | I64: Não se aplica | J64: CATIVO | K64: 2019-07-01 | L64: 0 | M64: 0 | N64: 0 | O64: 0 | P64: 0 | Q64: 0 | AA64: 0 | AZ64: 0 | BI64: 1044.56 | BJ64: 4811.36 | BK64: 34604.38 | BL64: 6 | CJ64: -0.03 | CO64: 0 | CP64: 0 | CQ64: 31 | DK64: 0 | DY64: 152 | ED64: 0 | EE64: -48.80228751 | EF64: -3.028738663 | EG64: -48.80228751 | EH64: -3.028738663 | EI64: 0 | EJ64: 0 | EK64: 0 | EL64: 0
A65: 99 | B65: Sistema de Compensação | C65: Azul | D65: A4 | E65: Comercial | F65: Não se aplica | G65: Não se aplica | H65: Não se aplica | I65: Não se aplica | J65: CATIVO | K65: 2019-07-01 | L65: 0 | M65: 0 | N65: 0 | O65: 0 | P65: 0 | Q65: 0 | AA65: 0 | AZ65: 0 | BI65: 133.02 | BJ65: 612.68 | BK65: 4406.57 | BL65: 1 | CJ65: -0.03 | CO65: 0 | CP65: 0 | CQ65: 31 | DK65: 0 | DY65: 152 | ED65: 0 | EE65: -48.80228751 | EF65: -3.028738663 | EG65: -48.80228751 | EH65: -3.028738663 | EI65: 0 | EJ65: 0 | EK65: 0 | EL65: 0
A66: 164 | B66: Regular | C66: Azul | D66: A4 | E66: Comercial | F66: Não se aplica | G66: Não se aplica | H66: Não se aplica | I66: Não se aplica | J66: CATIVO | K66: 2019-08-01 | L66: 0 | M66: 0 | N66: 0 | O66: 0 | P66: 0 | Q66: 0 | AA66: 0 | AZ66: 0 | BI66: 1067.73 | BJ66: 4917.94 | BK66: 35142.56 | BL66: 6 | CJ66: -0.03 | CO66: 0 | CP66: 0 | CQ66: 31 | DK66: 0 | DY66: 152 | ED66: 0 | EE66: -48.80228751 | EF66: -3.028738663 | EG66: -48.80228751 | EH66: -3.028738663 | EI66: 0 | EJ66: 0 | EK66: 0 | EL66: 0
A67: 165 | B67: Sistema de Compensação | C67: Azul | D67: A4 | E67: Comercial | F67: Não se aplica | G67: Não se aplica | H67: Não se aplica | I67: Não se aplica | J67: CATIVO | K67: 2019-08-01 | L67: 0 | M67: 0 | N67: 0 | O67: 0 | P67: 0 | Q67: 0 | AA67: 0 | AZ67: 0 | BI67: 144.74 | BJ67: 666.68 | BK67: 4763.93 | BL67: 1 | CJ67: -0.03 | CO67: 0 | CP67: 0 | CQ67: 31 | DK67: 0 | DY67: 152 | ED67: 0 | EE67: -48.80228751 | EF67: -3.028738663 | EG67: -48.80228751 | EH67: -3.028738663 | EI67: 0 | EJ67: 0 | EK67: 0 | EL67: 0
A68: 237 | B68: Regular | C68: Azul | D68: A4 | E68: Comercial | F68: Não se aplica | G68: Não se aplica | H68: Não se aplica | I68: Não se aplica | J68: CATIVO | K68: 2019-09-01 | L68: 0 | M68: 0 | N68: 0 | O68: 0 | P68: 0 | Q68: 0 | AA68: 0 | AZ68: 0 | BI68: 1159.02 | BJ68: 5338.43 | BK68: 37212.17 | BL68: 6 | CJ68: -0.03 | CO68: 0 | CP68: 0 | CQ68: 30 | DK68: 0 | DY68: 152 | ED68: 0 | EE68: -48.80228751 | EF68: -3.028738663 | EG68: -48.80228751 | EH68: -3.028738663 | EI68: 0 | EJ68: 0 | EK68: 0 | EL68: 0
A69: 238 | B69: Sistema de Compensação | C69: Azul | D69: A4 | E69: Comercial | F69: Não se aplica | G69: Não se aplica | H69: Não se aplica | I69: Não se aplica | J69: CATIVO | K69: 2019-09-01 | L69: 0 | M69: 0 | N69: 0 | O69: 0 | P69: 0 | Q69: 0 | AA69: 0 | AZ69: 0 | BI69: 137.43 | BJ69: 633.02 | BK69: 4412.54 | BL69: 1 | CJ69: -0.03 | CO69: 0 | CP69: 0 | CQ69: 30 | DK69: 0 | DY69: 152 | ED69: 0 | EE69: -48.80228751 | EF69: -3.028738663 | EG69: -48.80228751 | EH69: -3.028738663 | EI69: 0 | EJ69: 0 | EK69: 0 | EL69: 0
A70: 304 | B70: Regular | C70: Azul | D70: A4 | E70: Comercial | F70: Não se aplica | G70: Não se aplica | H70: Não se aplica | I70: Não se aplica | J70: CATIVO | K70: 2019-10-01 | L70: 0 | M70: 0 | N70: 0 | O70: 0 | P70: 0 | Q70: 0 | AA70: 0 | AZ70: 0 | BI70: 1265.58 | BJ70: 5829.7 | BK70: 36938.25 | BL70: 6 | CJ70: -0.03 | CO70: 0 | CP70: 0 | CQ70: 31 | DK70: 0 | DY70: 152 | ED70: 0 | EE70: -48.80228751 | EF70: -3.028738663 | EG70: -48.80228751 | EH70: -3.028738663 | EI70: 0 | EJ70: 0 | EK70: 0 | EL70: 0
A71: 305 | B71: Sistema de Compensação | C71: Azul | D71: A4 | E71: Comercial | F71: Não se aplica | G71: Não se aplica | H71: Não se aplica | I71: Não se aplica | J71: CATIVO | K71: 2019-10-01 | L71: 0 | M71: 0 | N71: 0 | O71: 0 | P71: 0 | Q71: 0 | AA71: 0 | AZ71: 0 | BI71: 132.08 | BJ71: 608.41 | BK71: 3855.02 | BL71: 1 | CJ71: -0.03 | CO71: 0 | CP71: 0 | CQ71: 31 | DK71: 0 | DY71: 152 | ED71: 0 | EE71: -48.80228751 | EF71: -3.028738663 | EG71: -48.80228751 | EH71: -3.028738663 | EI71: 0 | EJ71: 0 | EK71: 0 | EL71: 0
A72: 371 | B72: Regular | C72: Azul | D72: A4 | E72: Comercial | F72: Não se aplica | G72: Não se aplica | H72: Não se aplica | I72: Não se aplica | J72: CATIVO | K72: 2019-11-01 | L72: 0 | M72: 0 | N72: 0 | O72: 0 | P72: 0 | Q72: 0 | AA72: 0 | AZ72: 0 | BI72: 1113.83 | BJ72: 5130.63 | BK72: 38542.55 | BL72: 6 | CJ72: -0.03 | CO72: 0 | CP72: 0 | CQ72: 30 | DK72: 0 | DY72: 152 | ED72: 0 | EE72: -48.80228751 | EF72: -3.028738663 | EG72: -48.80228751 | EH72: -3.028738663 | EI72: 0 | EJ72: 0 | EK72: 0 | EL72: 0
A73: 372 | B73: Sistema de Compensação | C73: Azul | D73: A4 | E73: Comercial | F73: Não se aplica | G73: Não se aplica | H73: Não se aplica | I73: Não se aplica | J73: CATIVO | K73: 2019-11-01 | L73: 0 | M73: 0 | N73: 0 | O73: 0 | P73: 0 | Q73: 0 | AA73: 0 | AZ73: 0 | BI73: 119.22 | BJ73: 549.13 | BK73: 4125.22 | BL73: 1 | CJ73: -0.03 | CO73: 0 | CP73: 0 | CQ73: 30 | DK73: 0 | DY73: 152 | ED73: 0 | EE73: -48.80228751 | EF73: -3.028738663 | EG73: -48.80228751 | EH73: -3.028738663 | EI73: 0 | EJ73: 0 | EK73: 0 | EL73: 0
A74: 435 | B74: Regular | C74: Azul | D74: A4 | E74: Comercial | F74: Não se aplica | G74: Não se aplica | H74: Não se aplica | I74: Não se aplica | J74: CATIVO | K74: 2019-12-01 | L74: 0 | M74: 0 | N74: 0 | O74: 0 | P74: 0 | Q74: 0 | AA74: 0 | AZ74: 0 | BI74: 949.96 | BJ74: 4375.84 | BK74: 36873.14 | BL74: 6 | CJ74: -0.03 | CO74: 0 | CP74: 0 | DK74: 0 | DY74: 152 | ED74: 0 | EE74: -48.80228751 | EF74: -3.028738663 | EG74: -48.80228751 | EH74: -3.028738663 | EI74: 0 | EJ74: 0 | EK74: 0 | EL74: 0
A75: 436 | B75: Sistema de Compensação | C75: Azul | D75: A4 | E75: Comercial | F75: Não se aplica | G75: Não se aplica | H75: Não se aplica | I75: Não se aplica | J75: CATIVO | K75: 2019-12-01 | L75: 0 | M75: 0 | N75: 0 | O75: 0 | P75: 0 | Q75: 0 | AA75: 0 | AZ75: 0 | BI75: 103.69 | BJ75: 477.61 | BK75: 4024.61 | BL75: 1 | CJ75: -0.03 | CO75: 0 | CP75: 0 | DK75: 0 | DY75: 152 | ED75: 0 | EE75: -48.80228751 | EF75: -3.028738663 | EG75: -48.80228751 | EH75: -3.028738663 | EI75: 0 | EJ75: 0 | EK75: 0 | EL75: 0
A76: 500 | B76: Regular | C76: Azul | D76: A4 | E76: Comercial | F76: Não se aplica | G76: Não se aplica | H76: Não se aplica | I76: Não se aplica | J76: CATIVO | K76: 2020-01-01 | L76: 0 | M76: 0 | N76: 0 | O76: 0 | P76: 0 | Q76: 0 | AA76: 0 | AZ76: 0 | BI76: 1030.08 | BJ76: 4744.99 | BK76: 33222.16 | BL76: 6 | CJ76: -0.03 | CO76: 0 | CP76: 0 | CQ76: 31 | DK76: 0 | DY76: 152 | ED76: 0 | EE76: -48.80228751 | EF76: -3.028738663 | EG76: -48.80228751 | EH76: -3.028738663 | EI76: 0 | EJ76: 0 | EK76: 0 | EL76: 0
A77: 501 | B77: Sistema de Compensação | C77: Azul | D77: A4 | E77: Comercial | F77: Não se aplica | G77: Não se aplica | H77: Não se aplica | I77: Não se aplica | J77: CATIVO | K77: 2020-01-01 | L77: 0 | M77: 0 | N77: 0 | O77: 0 | P77: 0 | Q77: 0 | AA77: 0 | AZ77: 0 | BI77: 124.49 | BJ77: 573.48 | BK77: 4015.25 | BL77: 1 | CJ77: -0.03 | CO77: 0 | CP77: 0 | CQ77: 31 | DK77: 0 | DY77: 152 | ED77: 0 | EE77: -48.80228751 | EF77: -3.028738663 | EG77: -48.80228751 | EH77: -3.028738663 | EI77: 0 | EJ77: 0 | EK77: 0 | EL77: 0
A78: 573 | B78: Regular | C78: Azul | D78: A4 | E78: Comercial | F78: Não se aplica | G78: Não se aplica | H78: Não se aplica | I78: Não se aplica | J78: CATIVO | K78: 2020-02-01 | L78: 0 | M78: 0 | N78: 0 | O78: 0 | P78: 0 | Q78: 0 | AA78: 0 | AZ78: 0 | BI78: 1088.08 | BJ78: 5011.8 | BK78: 32141.92 | BL78: 6 | CJ78: -0.03 | CO78: 0 | CP78: 0 | CQ78: 29 | DK78: 0 | DY78: 152 | ED78: 0 | EE78: -48.80228751 | EF78: -3.028738663 | EG78: -48.80228751 | EH78: -3.028738663 | EI78: 0 | EJ78: 0 | EK78: 0 | EL78: 0
A79: 574 | B79: Sistema de Compensação | C79: Azul | D79: A4 | E79: Comercial | F79: Não se aplica | G79: Não se aplica | H79: Não se aplica | I79: Não se aplica | J79: CATIVO | K79: 2020-02-01 | L79: 0 | M79: 0 | N79: 0 | O79: 0 | P79: 0 | Q79: 0 | AA79: 0 | AZ79: 0 | BI79: 142.01 | BJ79: 654.09 | BK79: 4179.31 | BL79: 1 | CJ79: -0.03 | CO79: 0 | CP79: 0 | CQ79: 29 | DK79: 0 | DY79: 152 | ED79: 0 | EE79: -48.80228751 | EF79: -3.028738663 | EG79: -48.80228751 | EH79: -3.028738663 | EI79: 0 | EJ79: 0 | EK79: 0 | EL79: 0
A80: 648 | B80: Regular | C80: Azul | D80: A4 | E80: Comercial | F80: Não se aplica | G80: Não se aplica | H80: Não se aplica | I80: Não se aplica | J80: CATIVO | K80: 2020-03-01 | L80: 0 | M80: 0 | N80: 0 | O80: 0 | P80: 0 | Q80: 0 | AA80: 0 | AZ80: 0 | BI80: 730.39 | BJ80: 3364.41 | BK80: 27417.22 | BL80: 5 | CJ80: -0.03 | CO80: 0 | CP80: 0 | CQ80: 31 | DK80: 0 | DY80: 152 | ED80: 0 | EE80: -48.80228751 | EF80: -3.028738663 | EG80: -48.80228751 | EH80: -3.028738663 | EI80: 0 | EJ80: 0 | EK80: 0 | EL80: 0
A81: 649 | B81: Sistema de Compensação | C81: Azul | D81: A4 | E81: Comercial | F81: Não se aplica | G81: Não se aplica | H81: Não se aplica | I81: Não se aplica | J81: CATIVO | K81: 2020-03-01 | L81: 0 | M81: 0 | N81: 0 | O81: 0 | P81: 0 | Q81: 0 | AA81: 0 | AZ81: 0 | BI81: 114.12 | BJ81: 525.71 | BK81: 4284.12 | BL81: 1 | CJ81: -0.03 | CO81: 0 | CP81: 0 | CQ81: 31 | DK81: 0 | DY81: 152 | ED81: 0 | EE81: -48.80228751 | EF81: -3.028738663 | EG81: -48.80228751 | EH81: -3.028738663 | EI81: 0 | EJ81: 0 | EK81: 0 | EL81: 0
A82: 722 | B82: Regular | C82: Azul | D82: A4 | E82: Comercial | F82: Não se aplica | G82: Não se aplica | H82: Não se aplica | I82: Não se aplica | J82: CATIVO | K82: 2020-04-01 | L82: 0 | M82: 0 | N82: 0 | O82: 0 | P82: 0 | Q82: 0 | AA82: 0 | AZ82: 0 | BI82: 636.12 | BJ82: 2930.05 | BK82: 25018 | BL82: 5 | CJ82: -0.03 | CO82: 0 | CP82: 0 | CQ82: 30 | DK82: 0 | DY82: 152 | ED82: 0 | EE82: -48.80228751 | EF82: -3.028738663 | EG82: -48.80228751 | EH82: -3.028738663 | EI82: 0 | EJ82: 0 | EK82: 0 | EL82: 0
A83: 723 | B83: Sistema de Compensação | C83: Azul | D83: A4 | E83: Comercial | F83: Não se aplica | G83: Não se aplica | H83: Não se aplica | I83: Não se aplica | J83: CATIVO | K83: 2020-04-01 | L83: 0 | M83: 0 | N83: 0 | O83: 0 | P83: 0 | Q83: 0 | AA83: 0 | AZ83: 0 | BI83: 114.7 | BJ83: 528.35 | BK83: 4511.21 | BL83: 1 | CJ83: -0.03 | CO83: 0 | CP83: 0 | CQ83: 30 | DK83: 0 | DY83: 152 | ED83: 0 | EE83: -48.80228751 | EF83: -3.028738663 | EG83: -48.80228751 | EH83: -3.028738663 | EI83: 0 | EJ83: 0 | EK83: 0 | EL83: 0
A84: 796 | B84: PROJETADO | C84: Azul | D84: A4 | E84: Comercial | F84: Não se aplica | G84: Não se aplica | H84: Não se aplica | I84: Não se aplica | J84: CATIVO | K84: 2020-05-01 | L84: 0 | M84: 0 | N84: 0 | O84: 0 | P84: 0 | Q84: 0 | AA84: 0 | AZ84: 0 | BI84: 636.12 | BJ84: 2930.05 | BK84: 25018 | BL84: 5 | CJ84: -0.03 | CO84: 0 | CP84: 0 | CQ84: 31 | DK84: 0 | DY84: 152 | ED84: 0 | EE84: -48.80228751 | EF84: -3.028738663 | EG84: -48.80228751 | EH84: -3.028738663 | EI84: 0 | EJ84: 0 | EK84: 0 | EL84: 0
A85: 797 | B85: PROJETADO | C85: Azul | D85: A4 | E85: Comercial | F85: Não se aplica | G85: Não se aplica | H85: Não se aplica | I85: Não se aplica | J85: CATIVO | K85: 2020-05-01 | L85: 0 | M85: 0 | N85: 0 | O85: 0 | P85: 0 | Q85: 0 | AA85: 0 | AZ85: 0 | BI85: 114.7 | BJ85: 528.35 | BK85: 4511.21 | BL85: 1 | CJ85: -0.03 | CO85: 0 | CP85: 0 | CQ85: 31 | DK85: 0 | DY85: 152 | ED85: 0 | EE85: -48.80228751 | EF85: -3.028738663 | EG85: -48.80228751 | EH85: -3.028738663 | EI85: 0 | EJ85: 0 | EK85: 0 | EL85: 0
A86: 30 | B86: Regular | C86: Azul | D86: A4 | E86: Comercial | F86: Não se aplica | G86: Não se aplica | H86: Não se aplica | I86: Ponta | J86: CATIVO | K86: 2019-06-01 | L86: 343 | M86: 343 | N86: 11.827 | O86: 11.827 | P86: 11.827 | Q86: 11.827 | R86: 61.8 | S86: 62.31 | T86: 424.69 | U86: 21197.4 | V86: 5759.749 | W86: 26957.149 | X86: 27657.42907 | Y86: 0 | Z86: 532.1226688 | AA86: 0 | AB86: 0 | AC86: 0 | AD86: 9101.916664 | AE86: 12094.85805 | AF86: 4904.0789 | AG86: 0 | AH86: 0 | AI86: 0 | AJ86: 0 | AK86: 35.12901872 | AL86: 113.0982848 | AM86: 0 | AN86: 7.128337288 | AO86: 0 | AP86: 0 | AQ86: 0 | AR86: 0 | AS86: 0 | AT86: 0 | AU86: 0 | AV86: 117.8463206 | AW86: 7.415209402 | AX86: 0 | AY86: 0 | AZ86: 0 | BA86: 9.978293266 | BB86: 491.6239217 | BC86: 0 | BD86: 1.71650995e-08 | BE86: 0 | BF86: 0 | BG86: 77.62586691 | BH86: 4.358824196 | BI86: 0 | BJ86: 0 | BK86: 0 | BL86: 0 | BU86: 86.18733897 | BV86: 4981.704767 | CI86: 27659.0503 | CJ86: 701.8713 | CM86: 0 | CN86: 86.18733897 | CO86: 199.17008 | CP86: 501.10999 | CQ86: 30 | CR86: 73.6678803 | CS86: 0 | CT86: 0 | CU86: 0 | CV86: 0 | CW86: 0 | CX86: 0 | CY86: 0 | CZ86: 68.92573352 | DA86: 0 | DB86: 0 | DC86: 1.020562192 | DD86: 0 | DE86: 0 | DF86: 3.572139016e-12 | DG86: 0.01615431287 | DH86: 0 | DI86: -1.821516696 | DJ86: 6.373320908 | DK86: 0 | DL86: 0 | DM86: 0 | DN86: -0.3140417101 | DO86: -0.4982006381 | DP86: -0.03413159458 | DQ86: 0 | DR86: 0 | DS86: 0 | DU86: 12094.85805 | DV86: 0 | DW86: 4.40206543 | DX86: 0.04324123346 | DY86: 152 | DZ86: 0 | EA86: 0 | EB86: 0 | ED86: 0 | EE86: -48.80228751 | EF86: -3.028738663 | EG86: -48.80228751 | EH86: -3.028738663 | EI86: 0 | EJ86: 0 | EK86: 0 | EL86: 0
A87: 31 | B87: Sistema de Compensação | C87: Azul | D87: A4 | E87: Comercial | F87: Não se aplica | G87: Não se aplica | H87: Não se aplica | I87: Ponta | J87: CATIVO | K87: 2019-06-01 | L87: 36 | M87: 36 | N87: 1.075 | O87: 1.075 | P87: 1.075 | Q87: 1.075 | R87: 61.8 | S87: 62.31 | T87: 424.69 | U87: 2224.8 | V87: 523.525 | W87: 2748.325 | X87: 2812.94075 | Y87: 0 | Z87: 48.36660767 | AA87: 0 | AB87: 0 | AC87: 0 | AD87: 955.3032067 | AE87: 1269.431166 | AF87: 445.7499635 | AG87: 0 | AH87: 0 | AI87: 0 | AJ87: 0 | AK87: 3.193007113 | AL87: 10.27992358 | AM87: 0 | AN87: 0.6479210776 | AO87: 0 | AP87: 0 | AQ87: 0 | AR87: 0 | AS87: 0 | AT87: 0 | AU87: 0 | AV87: 10.7114902 | AW87: 0.6739959506 | AX87: 0 | AY87: 0 | AZ87: 0 | BA87: 0.9069641718 | BB87: 44.68552598 | BC87: 0 | BD87: 1.560199709e-09 | BE87: 0 | BF87: 0 | BG87: 7.055703638 | BH87: 0.3961897363 | BI87: 0 | BJ87: 0 | BK87: 0 | BL87: 0 | BU87: 7.833887663 | BV87: 452.8056671 | CI87: 2815.6428 | CJ87: 67.2878 | CM87: 0 | CN87: 7.833887663 | CO87: 19.068 | CP87: 45.54775 | CQ87: 30 | CR87: 7.665219125 | CS87: 0 | CT87: 0 | CU87: 0 | CV87: 0 | CW87: 0 | CX87: 0 | CY87: 0 | CZ87: 7.234187775 | DA87: 0 | DB87: 0 | DC87: 0.09276269187 | DD87: 0 | DE87: 0 | DF87: 3.246849956e-13 | DG87: 0.001468325555 | DH87: 0 | DI87: -0.1655644245 | DJ87: 0.5792948319 | DK87: 0 | DL87: 0 | DM87: 0 | DN87: -0.02854441857 | DO87: -0.04528330819 | DP87: -0.003102347525 | DQ87: 0 | DR87: 0 | DS87: 0 | DU87: 1269.431166 | DV87: 0 | DW87: 0.4001200927 | DX87: 0.00393035647 | DY87: 152 | DZ87: 0 | EA87: 0 | EB87: 0 | ED87: 0 | EE87: -48.80228751 | EF87: -3.028738663 | EG87: -48.80228751 | EH87: -3.028738663 | EI87: 0 | EJ87: 0 | EK87: 0 | EL87: 0
A88: 94 | B88: Regular | C88: Azul | D88: A4 | E88: Comercial | F88: Não se aplica | G88: Não se aplica | H88: Não se aplica | I88: Ponta | J88: CATIVO | K88: 2019-07-01 | L88: 343 | M88: 343 | N88: 11.636 | O88: 11.636 | P88: 11.636 | Q88: 11.636 | R88: 61.8 | S88: 62.31 | T88: 424.69 | U88: 21197.4 | V88: 5666.732 | W88: 26864.132 | X88: 27554.21076 | Y88: 0 | Z88: 523.5291599 | AA88: 0 | AB88: 0 | AC88: 0 | AD88: 9101.916664 | AE88: 12094.85805 | AF88: 4824.880535 | AG88: 0 | AH88: 0 | AI88: 0 | AJ88: 0 | AK88: 34.56170304 | AL88: 111.2718054 | AM88: 0 | AN88: 7.013218287 | AO88: 0 | AP88: 0 | AQ88: 0 | AR88: 0 | AS88: 0 | AT88: 0 | AU88: 0 | AV88: 115.9431628 | AW88: 7.295457564 | AX88: 0 | AY88: 0 | AZ88: 0 | BA88: 9.817148934 | BB88: 483.6844468 | BC88: 0 | BD88: 1.688789192e-08 | BE88: 0 | BF88: 0 | BG88: 76.37224887 | BH88: 4.288431415 | BI88: 0 | BJ88: 0 | BK88: 0 | BL88: 0 | BU88: 84.79545753 | BV88: 4901.252784 | CI88: 27556.3724 | CJ88: 692.2104 | CM88: 0 | CN88: 84.79545753 | CO88: 197.06144 | CP88: 493.01732 | CQ88: 31 | CR88: 73.59129705 | CS88: 0 | CT88: 0 | CU88: 0 | CV88: 0 | CW88: 0 | CX88: 0 | CY88: 0 | CZ88: 68.92573352 | DA88: 0 | DB88: 0 | DC88: 1.004080635 | DD88: 0 | DE88: 0 | DF88: 3.514450798e-12 | DG88: 0.01589342898 | DH88: 0 | DI88: -1.792100133 | DJ88: 6.270395036 | DK88: 0 | DL88: 0 | DM88: 0 | DN88: -0.3089700971 | DO88: -0.4901549527 | DP88: -0.03358038679 | DQ88: 0 | DR88: 0 | DS88: 0 | DU88: 12094.85805 | DV88: 0 | DW88: 4.330974325 | DX88: 0.04254290966 | DY88: 152 | DZ88: 0 | EA88: 0 | EB88: 0 | ED88: 0 | EE88: -48.80228751 | EF88: -3.028738663 | EG88: -48.80228751 | EH88: -3.028738663 | EI88: 0 | EJ88: 0 | EK88: 0 | EL88: 0
A89: 95 | B89: Sistema de Compensação | C89: Azul | D89: A4 | E89: Comercial | F89: Não se aplica | G89: Não se aplica | H89: Não se aplica | I89: Ponta | J89: CATIVO | K89: 2019-07-01 | L89: 36 | M89: 36 | N89: 1.178 | O89: 1.178 | P89: 1.178 | Q89: 1.178 | R89: 61.8 | S89: 62.31 | T89: 424.69 | U89: 2224.8 | V89: 573.686 | W89: 2798.486 | X89: 2868.60298 | Y89: 0 | Z89: 53.00080357 | AA89: 0 | AB89: 0 | AC89: 0 | AD89: 955.3032067 | AE89: 1269.431166 | AF89: 488.4590297 | AG89: 0 | AH89: 0 | AI89: 0 | AJ89: 0 | AK89: 3.498941748 | AL89: 11.2648837 | AM89: 0 | AN89: 0.7100009576 | AO89: 0 | AP89: 0 | AQ89: 0 | AR89: 0 | AS89: 0 | AT89: 0 | AU89: 0 | AV89: 11.73780043 | AW89: 0.7385741672 | AX89: 0 | AY89: 0 | AZ89: 0 | BA89: 0.9938639948 | BB89: 48.96702289 | BC89: 0 | BD89: 1.709688612e-09 | BE89: 0 | BF89: 0 | BG89: 7.731738498 | BH89: 0.4341502412 | BI89: 0 | BJ89: 0 | BK89: 0 | BL89: 0 | BU89: 8.584483411 | BV89: 496.1907682 | CI89: 2869.6838 | CJ89: 71.1678 | CM89: 0 | CN89: 8.584483411 | CO89: 20.20512 | CP89: 49.91186 | CQ89: 31 | CR89: 7.706517943 | CS89: 0 | CT89: 0 | CU89: 0 | CV89: 0 | CW89: 0 | CX89: 0 | CY89: 0 | CZ89: 7.234187775 | DA89: 0 | DB89: 0 | DC89: 0.1016506521 | DD89: 0 | DE89: 0 | DF89: 3.557943486e-13 | DG89: 0.001609011631 | DH89: 0 | DI89: -0.1814278065 | DJ89: 0.6347993599 | DK89: 0 | DL89: 0 | DM89: 0 | DN89: -0.03127937216 | DO89: -0.04962208098 | DP89: -0.003399595706 | DQ89: 0 | DR89: 0 | DS89: 0 | DU89: 1269.431166 | DV89: 0 | DW89: 0.4384571807 | DX89: 0.004306939462 | DY89: 152 | DZ89: 0 | EA89: 0 | EB89: 0 | ED89: 0 | EE89: -48.80228751 | EF89: -3.028738663 | EG89: -48.80228751 | EH89: -3.028738663 | EI89: 0 | EJ89: 0 | EK89: 0 | EL89: 0
A90: 160 | B90: Regular | C90: Azul | D90: A4 | E90: Comercial | F90: Não se aplica | G90: Não se aplica | H90: Não se aplica | I90: Ponta | J90: CATIVO | K90: 2019-08-01 | L90: 343 | M90: 343 | N90: 12.033 | O90: 12.033 | P90: 12.033 | Q90: 12.033 | R90: 61.8 | S90: 62.31 | T90: 424.69 | U90: 21197.4 | V90: 5860.071 | W90: 27057.471 | X90: 27768.75353 | Y90: 0 | Z90: 541.3910606 | AA90: 0 | AB90: 0 | AC90: 0 | AD90: 9101.916664 | AE90: 12094.85805 | AF90: 4989.497033 | AG90: 0 | AH90: 0 | AI90: 0 | AJ90: 0 | AK90: 35.74088799 | AL90: 115.0682051 | AM90: 0 | AN90: 7.252497048 | AO90: 0 | AP90: 0 | AQ90: 0 | AR90: 0 | AS90: 0 | AT90: 0 | AU90: 0 | AV90: 119.898941 | AW90: 7.544365836 | AX90: 0 | AY90: 0 | AZ90: 0 | BA90: 10.15209291 | BB90: 500.1869155 | BC90: 0 | BD90: 1.746407731e-08 | BE90: 0 | BF90: 0 | BG90: 78.97793663 | BH90: 4.434745206 | BI90: 0 | BJ90: 0 | BK90: 0 | BL90: 0 | BU90: 87.68853046 | BV90: 5068.47497 | CI90: 27767.1323 | CJ90: 709.6313 | CM90: 0 | CN90: 87.68853046 | CO90: 201.44432 | CP90: 509.83821 | CQ90: 31 | CR90: 73.75047793 | CS90: 0 | CT90: 0 | CU90: 0 | CV90: 0 | CW90: 0 | CX90: 0 | CY90: 0 | CZ90: 68.92573352 | DA90: 0 | DB90: 0 | DC90: 1.038338113 | DD90: 0 | DE90: 0 | DF90: 3.634357722e-12 | DG90: 0.01643568503 | DH90: 0 | DI90: -1.85324346 | DJ90: 6.484329964 | DK90: 0 | DL90: 0 | DM90: 0 | DN90: -0.3195116173 | DO90: -0.5068781837 | DP90: -0.03472609095 | DQ90: 0 | DR90: 0 | DS90: 0 | DU90: 12094.85805 | DV90: 0 | DW90: 4.478739606 | DX90: 0.04399439945 | DY90: 152 | DZ90: 0 | EA90: 0 | EB90: 0 | ED90: 0 | EE90: -48.80228751 | EF90: -3.028738663 | EG90: -48.80228751 | EH90: -3.028738663 | EI90: 0 | EJ90: 0 | EK90: 0 | EL90: 0
A91: 161 | B91: Sistema de Compensação | C91: Azul | D91: A4 | E91: Comercial | F91: Não se aplica | G91: Não se aplica | H91: Não se aplica | I91: Ponta | J91: CATIVO | K91: 2019-08-01 | L91: 36 | M91: 36 | N91: 1.353 | O91: 1.353 | P91: 1.353 | Q91: 1.353 | R91: 61.8 | S91: 62.31 | T91: 424.69 | U91: 2224.8 | V91: 658.911 | W91: 2883.711 | X91: 2963.17473 | Y91: 0 | Z91: 60.87443738 | AA91: 0 | AB91: 0 | AC91: 0 | AD91: 955.3032067 | AE91: 1269.431166 | AF91: 561.0229773 | AG91: 0 | AH91: 0 | AI91: 0 | AJ91: 0 | AK91: 4.018733604 | AL91: 12.93835963 | AM91: 0 | AN91: 0.8154764818 | AO91: 0 | AP91: 0 | AQ91: 0 | AR91: 0 | AS91: 0 | AT91: 0 | AU91: 0 | AV91: 13.48153139 | AW91: 0.8482944382 | AX91: 0 | AY91: 0 | AZ91: 0 | BA91: 1.141509325 | BB91: 56.24141084 | BC91: 0 | BD91: 1.963674611e-09 | BE91: 0 | BF91: 0 | BG91: 8.880341416 | BH91: 0.4986462448 | BI91: 0 | BJ91: 0 | BK91: 0 | BL91: 0 | BU91: 9.859767449 | BV91: 569.9033187 | CI91: 2961.5535 | CJ91: 77.8125 | CM91: 0 | CN91: 9.859767449 | CO91: 22.13712 | CP91: 57.32661 | CQ91: 31 | CR91: 7.776685837 | CS91: 0 | CT91: 0 | CU91: 0 | CV91: 0 | CW91: 0 | CX91: 0 | CY91: 0 | CZ91: 7.234187775 | DA91: 0 | DB91: 0 | DC91: 0.1167515554 | DD91: 0 | DE91: 0 | DF91: 4.086500456e-13 | DG91: 0.001848041373 | DH91: 0 | DI91: -0.2083801547 | DJ91: 0.7291031698 | DK91: 0 | DL91: 0 | DM91: 0 | DN91: -0.03592613797 | DO91: -0.05699378231 | DP91: -0.003904629024 | DQ91: 0 | DR91: 0 | DS91: 0 | DU91: 1269.431166 | DV91: 0 | DW91: 0.5035930098 | DX91: 0.004946764934 | DY91: 152 | DZ91: 0 | EA91: 0 | EB91: 0 | ED91: 0 | EE91: -48.80228751 | EF91: -3.028738663 | EG91: -48.80228751 | EH91: -3.028738663 | EI91: 0 | EJ91: 0 | EK91: 0 | EL91: 0
A92: 233 | B92: Regular | C92: Azul | D92: A4 | E92: Comercial | F92: Não se aplica | G92: Não se aplica | H92: Não se aplica | I92: Ponta | J92: CATIVO | K92: 2019-09-01 | L92: 344 | M92: 344 | N92: 13.089 | O92: 13.089 | P92: 13.089 | Q92: 13.089 | R92: 61.8 | S92: 62.31 | T92: 424.69 | U92: 21259.2 | V92: 6374.343 | W92: 27633.543 | X92: 28401.42649 | Y92: 0 | Z92: 588.9028166 | AA92: 0 | AB92: 0 | AC92: 0 | AD92: 9128.452864 | AE92: 12130.12003 | AF92: 5427.368625 | AG92: 0 | AH92: 0 | AI92: 0 | AJ92: 0 | AK92: 38.87746056 | AL92: 125.166437 | AM92: 0 | AN92: 7.888966497 | AO92: 0 | AP92: 0 | AQ92: 0 | AR92: 0 | AS92: 0 | AT92: 0 | AU92: 0 | AV92: 130.4211119 | AW92: 8.2064493 | AX92: 0 | AY92: 0 | AZ92: 0 | BA92: 11.04302702 | BB92: 544.0826508 | BC92: 0 | BD92: 1.899670139e-08 | BE92: 0 | BF92: 0 | BG92: 85.90893481 | BH92: 4.823932519 | BI92: 0 | BJ92: 0 | BK92: 0 | BL92: 0 | BU92: 95.38395872 | BV92: 5513.27756 | CI92: 28401.9669 | CJ92: 768.3939 | CM92: 0 | CN92: 95.38395872 | CO92: 213.30256 | CP92: 554.58093 | CQ92: 30 | CR92: 74.37484071 | CS92: 0 | CT92: 0 | CU92: 0 | CV92: 0 | CW92: 0 | CX92: 0 | CY92: 0 | CZ92: 69.12668318 | DA92: 0 | DB92: 0 | DC92: 1.129461278 | DD92: 0 | DE92: 0 | DF92: 3.953304099e-12 | DG92: 0.01787805878 | DH92: 0 | DI92: -2.01588163 | DJ92: 7.053386097 | DK92: 0 | DL92: 0 | DM92: 0 | DN92: -0.3475515299 | DO92: -0.5513611358 | DP92: -0.03777360628 | DQ92: 0 | DR92: 0 | DS92: 0 | DU92: 12130.12003 | DV92: 0 | DW92: 4.871787808 | DX92: 0.04785528915 | DY92: 152 | DZ92: 0 | EA92: 0 | EB92: 0 | ED92: 0 | EE92: -48.80228751 | EF92: -3.028738663 | EG92: -48.80228751 | EH92: -3.028738663 | EI92: 0 | EJ92: 0 | EK92: 0 | EL92: 0
A93: 234 | B93: Sistema de Compensação | C93: Azul | D93: A4 | E93: Comercial | F93: Não se aplica | G93: Não se aplica | H93: Não se aplica | I93: Ponta | J93: CATIVO | K93: 2019-09-01 | L93: 36 | M93: 36 | N93: 1.114 | O93: 1.114 | P93: 1.114 | Q93: 1.114 | R93: 61.8 | S93: 62.31 | T93: 424.69 | U93: 2224.8 | V93: 542.518 | W93: 2767.318 | X93: 2834.01674 | Y93: 0 | Z93: 50.12130321 | AA93: 0 | AB93: 0 | AC93: 0 | AD93: 955.3032067 | AE93: 1269.431166 | AF93: 461.9213575 | AG93: 0 | AH93: 0 | AI93: 0 | AJ93: 0 | AK93: 3.308846441 | AL93: 10.65286965 | AM93: 0 | AN93: 0.6714270516 | AO93: 0 | AP93: 0 | AQ93: 0 | AR93: 0 | AS93: 0 | AT93: 0 | AU93: 0 | AV93: 11.1000931 | AW93: 0.6984478967 | AX93: 0 | AY93: 0 | AZ93: 0 | BA93: 0.9398679883 | BB93: 46.3066753 | BC93: 0 | BD93: 1.616802304e-09 | BE93: 0 | BF93: 0 | BG93: 7.311678002 | BH93: 0.4105631314 | BI93: 0 | BJ93: 0 | BK93: 0 | BL93: 0 | BU93: 8.11809382 | BV93: 469.2330355 | CI93: 2831.8551 | CJ93: 64.5071 | CM93: 0 | CN93: 8.11809382 | CO93: 19.49856 | CP93: 47.20018 | CQ93: 30 | CR93: 7.680856542 | CS93: 0 | CT93: 0 | CU93: 0 | CV93: 0 | CW93: 0 | CX93: 0 | CY93: 0 | CZ93: 7.234187775 | DA93: 0 | DB93: 0 | DC93: 0.09612803604 | DD93: 0 | DE93: 0 | DF93: 3.364642652e-13 | DG93: 0.00152159504 | DH93: 0 | DI93: -0.1715709478 | DJ93: 0.6003111095 | DK93: 0 | DL93: 0 | DM93: 0 | DN93: -0.02957998352 | DO93: -0.04692614449 | DP93: -0.003214897807 | DQ93: 0 | DR93: 0 | DS93: 0 | DU93: 1269.431166 | DV93: 0 | DW93: 0.4146360775 | DX93: 0.004072946147 | DY93: 152 | DZ93: 0 | EA93: 0 | EB93: 0 | ED93: 0 | EE93: -48.80228751 | EF93: -3.028738663 | EG93: -48.80228751 | EH93: -3.028738663 | EI93: 0 | EJ93: 0 | EK93: 0 | EL93: 0
A94: 300 | B94: Regular | C94: Azul | D94: A4 | E94: Comercial | F94: Não se aplica | G94: Não se aplica | H94: Não se aplica | I94: Ponta | J94: CATIVO | K94: 2019-10-01 | L94: 346 | M94: 346 | N94: 13.251 | O94: 13.251 | P94: 13.251 | Q94: 13.251 | R94: 61.8 | S94: 62.31 | T94: 424.69 | U94: 21382.8 | V94: 6453.237 | W94: 27836.037 | X94: 28612.97291 | Y94: 0 | Z94: 596.1915519 | AA94: 0 | AB94: 0 | AC94: 0 | AD94: 9181.525265 | AE94: 12200.64398 | AF94: 5494.542108 | AG94: 0 | AH94: 0 | AI94: 0 | AJ94: 0 | AK94: 39.35863931 | AL94: 126.7155976 | AM94: 0 | AN94: 7.986606697 | AO94: 0 | AP94: 0 | AQ94: 0 | AR94: 0 | AS94: 0 | AT94: 0 | AU94: 0 | AV94: 132.0353085 | AW94: 8.308018922 | AX94: 0 | AY94: 0 | AZ94: 0 | BA94: 11.17970441 | BB94: 550.8166556 | BC94: 0 | BD94: 1.923181986e-08 | BE94: 0 | BF94: 0 | BG94: 86.97221294 | BH94: 4.883637391 | BI94: 0 | BJ94: 0 | BK94: 0 | BL94: 0 | BU94: 96.56450737 | BV94: 5581.514321 | CI94: 28612.4325 | CJ94: 776.3655 | CM94: 0 | CN94: 96.56450737 | CO94: 215.49104 | CP94: 561.44487 | CQ94: 31 | CR94: 74.84169546 | CS94: 0 | CT94: 0 | CU94: 0 | CV94: 0 | CW94: 0 | CX94: 0 | CY94: 0 | CZ94: 69.5285825 | DA94: 0 | DB94: 0 | DC94: 1.1434404 | DD94: 0 | DE94: 0 | DF94: 4.002233373e-12 | DG94: 0.01809933203 | DH94: 0 | DI94: -2.040831803 | DJ94: 7.140684481 | DK94: 0 | DL94: 0 | DM94: 0 | DN94: -0.3518531074 | DO94: -0.558185225 | DP94: -0.03824112284 | DQ94: 0 | DR94: 0 | DS94: 0 | DU94: 12200.64398 | DV94: 0 | DW94: 4.932084976 | DX94: 0.04844758473 | DY94: 152 | DZ94: 0 | EA94: 0 | EB94: 0 | ED94: 0 | EE94: -48.80228751 | EF94: -3.028738663 | EG94: -48.80228751 | EH94: -3.028738663 | EI94: 0 | EJ94: 0 | EK94: 0 | EL94: 0
A95: 301 | B95: Sistema de Compensação | C95: Azul | D95: A4 | E95: Comercial | F95: Não se aplica | G95: Não se aplica | H95: Não se aplica | I95: Ponta | J95: CATIVO | K95: 2019-10-01 | L95: 36 | M95: 36 | N95: 1.035 | O95: 1.035 | P95: 1.035 | Q95: 1.035 | R95: 61.8 | S95: 62.31 | T95: 424.69 | U95: 2224.8 | V95: 504.045 | W95: 2728.845 | X95: 2791.32435 | Y95: 0 | Z95: 46.56691995 | AA95: 0 | AB95: 0 | AC95: 0 | AD95: 955.3032067 | AE95: 1269.431166 | AF95: 429.1639183 | AG95: 0 | AH95: 0 | AI95: 0 | AJ95: 0 | AK95: 3.074197546 | AL95: 9.897414796 | AM95: 0 | AN95: 0.6238123863 | AO95: 0 | AP95: 0 | AQ95: 0 | AR95: 0 | AS95: 0 | AT95: 0 | AU95: 0 | AV95: 10.31292312 | AW95: 0.6489170315 | AX95: 0 | AY95: 0 | AZ95: 0 | BA95: 0.8732166678 | BB95: 43.02280874 | BC95: 0 | BD95: 1.502145767e-09 | BE95: 0 | BF95: 0 | BG95: 6.793165828 | BH95: 0.3814477926 | BI95: 0 | BJ95: 0 | BK95: 0 | BL95: 0 | BU95: 7.542394169 | BV95: 435.9570841 | CI95: 2794.0264 | CJ95: 65.1514 | CM95: 0 | CN95: 7.542394169 | CO95: 18.6264 | CP95: 43.85295 | CQ95: 31 | CR95: 7.64918075 | CS95: 0 | CT95: 0 | CU95: 0 | CV95: 0 | CW95: 0 | CX95: 0 | CY95: 0 | CZ95: 7.234187775 | DA95: 0 | DB95: 0 | DC95: 0.08931105683 | DD95: 0 | DE95: 0 | DF95: 3.126036934e-13 | DG95: 0.001413690186 | DH95: 0 | DI95: -0.1594038877 | DJ95: 0.5577396753 | DK95: 0 | DL95: 0 | DM95: 0 | DN95: -0.02748230067 | DO95: -0.04359834789 | DP95: -0.002986911338 | DQ95: 0 | DR95: 0 | DS95: 0 | DU95: 1269.431166 | DV95: 0 | DW95: 0.3852319032 | DX95: 0.003784110648 | DY95: 152 | DZ95: 0 | EA95: 0 | EB95: 0 | ED95: 0 | EE95: -48.80228751 | EF95: -3.028738663 | EG95: -48.80228751 | EH95: -3.028738663 | EI95: 0 | EJ95: 0 | EK95: 0 | EL95: 0
A96: 367 | B96: Regular | C96: Azul | D96: A4 | E96: Comercial | F96: Não se aplica | G96: Não se aplica | H96: Não se aplica | I96: Ponta | J96: CATIVO | K96: 2019-11-01 | L96: 349 | M96: 349 | N96: 13.534 | O96: 13.534 | P96: 13.534 | Q96: 13.534 | R96: 61.8 | S96: 62.31 | T96: 424.69 | U96: 21568.2 | V96: 6591.058 | W96: 28159.258 | X96: 28951.90894 | Y96: 0 | Z96: 608.9243426 | AA96: 0 | AB96: 0 | AC96: 0 | AD96: 9261.133865 | AE96: 12306.42991 | AF96: 5611.888377 | AG96: 0 | AH96: 0 | AI96: 0 | AJ96: 0 | AK96: 40.19921699 | AL96: 129.4218472 | AM96: 0 | AN96: 8.157175687 | AO96: 0 | AP96: 0 | AQ96: 0 | AR96: 0 | AS96: 0 | AT96: 0 | AU96: 0 | AV96: 134.8551706 | AW96: 8.485452274 | AX96: 0 | AY96: 0 | AZ96: 0 | BA96: 11.418468 | BB96: 562.5803801 | BC96: 0 | BD96: 1.964255151e-08 | BE96: 0 | BF96: 0 | BG96: 88.82966794 | BH96: 4.987936643 | BI96: 0 | BJ96: 0 | BK96: 0 | BL96: 0 | BU96: 98.62682384 | BV96: 5700.718045 | CI96: 28949.7473 | CJ96: 790.4593 | CM96: 0 | CN96: 98.62682384 | CO96: 219.21536 | CP96: 573.43558 | CQ96: 30 | CR96: 75.55801595 | CS96: 0 | CT96: 0 | CU96: 0 | CV96: 0 | CW96: 0 | CX96: 0 | CY96: 0 | CZ96: 70.13143148 | DA96: 0 | DB96: 0 | DC96: 1.167860718 | DD96: 0 | DE96: 0 | DF96: 4.087708586e-12 | DG96: 0.01848587727 | DH96: 0 | DI96: -2.084417601 | DJ96: 7.293187213 | DK96: 0 | DL96: 0 | DM96: 0 | DN96: -0.3593675915 | DO96: -0.5701063191 | DP96: -0.03905783386 | DQ96: 0 | DR96: 0 | DS96: 0 | DU96: 12306.42991 | DV96: 0 | DW96: 5.037418917 | DX96: 0.04948227392 | DY96: 152 | DZ96: 0 | EA96: 0 | EB96: 0 | ED96: 0 | EE96: -48.80228751 | EF96: -3.028738663 | EG96: -48.80228751 | EH96: -3.028738663 | EI96: 0 | EJ96: 0 | EK96: 0 | EL96: 0
A97: 368 | B97: Sistema de Compensação | C97: Azul | D97: A4 | E97: Comercial | F97: Não se aplica | G97: Não se aplica | H97: Não se aplica | I97: Ponta | J97: CATIVO | K97: 2019-11-01 | L97: 36 | M97: 36 | N97: 0.987 | O97: 0.987 | P97: 0.987 | Q97: 0.987 | R97: 61.8 | S97: 62.31 | T97: 424.69 | U97: 2224.8 | V97: 480.669 | W97: 2705.469 | X97: 2765.38467 | Y97: 0 | Z97: 44.40729467 | AA97: 0 | AB97: 0 | AC97: 0 | AD97: 955.3032067 | AE97: 1269.431166 | AF97: 409.2606641 | AG97: 0 | AH97: 0 | AI97: 0 | AJ97: 0 | AK97: 2.931626066 | AL97: 9.438404255 | AM97: 0 | AN97: 0.5948819568 | AO97: 0 | AP97: 0 | AQ97: 0 | AR97: 0 | AS97: 0 | AT97: 0 | AU97: 0 | AV97: 9.834642632 | AW97: 0.6188223286 | AX97: 0 | AY97: 0 | AZ97: 0 | BA97: 0.8327196629 | BB97: 41.02754804 | BC97: 0 | BD97: 1.432481036e-09 | BE97: 0 | BF97: 0 | BG97: 6.478120456 | BH97: 0.3637574602 | BI97: 0 | BJ97: 0 | BK97: 0 | BL97: 0 | BU97: 7.192601975 | BV97: 415.7387846 | CI97: 2767.0059 | CJ97: 61.5069 | CM97: 0 | CN97: 7.192601975 | CO97: 18.09648 | CP97: 41.81919 | CQ97: 30 | CR97: 7.629934699 | CS97: 0 | CT97: 0 | CU97: 0 | CV97: 0 | CW97: 0 | CX97: 0 | CY97: 0 | CZ97: 7.234187775 | DA97: 0 | DB97: 0 | DC97: 0.08516909477 | DD97: 0 | DE97: 0 | DF97: 2.981061308e-13 | DG97: 0.001348127742 | DH97: 0 | DI97: -0.1520112437 | DJ97: 0.5318734875 | DK97: 0 | DL97: 0 | DM97: 0 | DN97: -0.02620775919 | DO97: -0.04157639552 | DP97: -0.002848387914 | DQ97: 0 | DR97: 0 | DS97: 0 | DU97: 1269.431166 | DV97: 0 | DW97: 0.3673660759 | DX97: 0.003608615662 | DY97: 152 | DZ97: 0 | EA97: 0 | EB97: 0 | ED97: 0 | EE97: -48.80228751 | EF97: -3.028738663 | EG97: -48.80228751 | EH97: -3.028738663 | EI97: 0 | EJ97: 0 | EK97: 0 | EL97: 0
A98: 431 | B98: Regular | C98: Azul | D98: A4 | E98: Comercial | F98: Não se aplica | G98: Não se aplica | H98: Não se aplica | I98: Ponta | J98: CATIVO | K98: 2019-12-01 | L98: 354 | M98: 354 | N98: 12.567 | O98: 12.567 | P98: 12.567 | Q98: 12.567 | R98: 61.8 | S98: 62.31 | T98: 424.69 | U98: 21877.2 | V98: 6120.129 | W98: 27997.329 | X98: 28739.33247 | Y98: 0 | Z98: 565.4168917 | AA98: 0 | AB98: 0 | AC98: 0 | AD98: 9393.814866 | AE98: 12482.7398 | AF98: 5210.920736 | AG98: 0 | AH98: 0 | AI98: 0 | AJ98: 0 | AK98: 37.32699571 | AL98: 120.1746973 | AM98: 0 | AN98: 7.574348076 | AO98: 0 | AP98: 0 | AQ98: 0 | AR98: 0 | AS98: 0 | AT98: 0 | AU98: 0 | AV98: 125.2198115 | AW98: 7.879169405 | AX98: 0 | AY98: 0 | AZ98: 0 | BA98: 10.60262209 | BB98: 522.3841907 | BC98: 0 | BD98: 1.823909744e-08 | BE98: 0 | BF98: 0 | BG98: 82.48281639 | BH98: 4.631550154 | BI98: 0 | BJ98: 0 | BK98: 0 | BL98: 0 | BU98: 91.57996862 | BV98: 5293.403552 | CI98: 28740.9537 | CJ98: 743.5947 | CM98: 0 | CN98: 91.57996862 | CO98: 209.53968 | CP98: 532.46379 | CR98: 76.17503651 | CS98: 0 | CT98: 0 | CU98: 0 | CV98: 0 | CW98: 0 | CX98: 0 | CY98: 0 | CZ98: 71.13617979 | DA98: 0 | DB98: 0 | DC98: 1.084417441 | DD98: 0 | DE98: 0 | DF98: 3.795643106e-12 | DG98: 0.01716506721 | DH98: 0 | DI98: -1.935486625 | DJ98: 6.772091304 | DK98: 0 | DL98: 0 | DM98: 0 | DN98: -0.3336908913 | DO98: -0.5293724038 | DP98: -0.03626716404 | DQ98: 0 | DR98: 0 | DS98: 0 | DU98: 12482.7398 | DV98: 0 | DW98: 4.677496935 | DX98: 0.04594678117 | DY98: 152 | DZ98: 0 | EA98: 0 | EB98: 0 | ED98: 0 | EE98: -48.80228751 | EF98: -3.028738663 | EG98: -48.80228751 | EH98: -3.028738663 | EI98: 0 | EJ98: 0 | EK98: 0 | EL98: 0
A99: 432 | B99: Sistema de Compensação | C99: Azul | D99: A4 | E99: Comercial | F99: Não se aplica | G99: Não se aplica | H99: Não se aplica | I99: Ponta | J99: CATIVO | K99: 2019-12-01 | L99: 36 | M99: 36 | N99: 1.058 | O99: 1.058 | P99: 1.058 | Q99: 1.058 | R99: 61.8 | S99: 62.31 | T99: 424.69 | U99: 2224.8 | V99: 515.246 | W99: 2740.046 | X99: 2803.75378 | Y99: 0 | Z99: 47.60174039 | AA99: 0 | AB99: 0 | AC99: 0 | AD99: 955.3032067 | AE99: 1269.431166 | AF99: 438.7008943 | AG99: 0 | AH99: 0 | AI99: 0 | AJ99: 0 | AK99: 3.142513047 | AL99: 10.11735735 | AM99: 0 | AN99: 0.6376748838 | AO99: 0 | AP99: 0 | AQ99: 0 | AR99: 0 | AS99: 0 | AT99: 0 | AU99: 0 | AV99: 10.54209919 | AW99: 0.66333741 | AX99: 0 | AY99: 0 | AZ99: 0 | BA99: 0.8926214826 | BB99: 43.97887115 | BC99: 0 | BD99: 1.535526784e-09 | BE99: 0 | BF99: 0 | BG99: 6.944125069 | BH99: 0.3899244102 | BI99: 0 | BJ99: 0 | BK99: 0 | BL99: 0 | BU99: 7.710002928 | BV99: 445.6450194 | CI99: 2804.8346 | CJ99: 64.7586 | CM99: 0 | CN99: 7.710002928 | CO99: 18.88032 | CP99: 44.82746 | CR99: 7.658402816 | CS99: 0 | CT99: 0 | CU99: 0 | CV99: 0 | CW99: 0 | CX99: 0 | CY99: 0 | CZ99: 7.234187775 | DA99: 0 | DB99: 0 | DC99: 0.09129574698 | DD99: 0 | DE99: 0 | DF99: 3.195504421e-13 | DG99: 0.001445105523 | DH99: 0 | DI99: -0.1629461964 | DJ99: 0.5701338903 | DK99: 0 | DL99: 0 | DM99: 0 | DN99: -0.02809301846 | DO99: -0.04456720006 | DP99: -0.003053287145 | DQ99: 0 | DR99: 0 | DS99: 0 | DU99: 1269.431166 | DV99: 0 | DW99: 0.3937926122 | DX99: 0.003868201996 | DY99: 152 | DZ99: 0 | EA99: 0 | EB99: 0 | ED99: 0 | EE99: -48.80228751 | EF99: -3.028738663 | EG99: -48.80228751 | EH99: -3.028738663 | EI99: 0 | EJ99: 0 | EK99: 0 | EL99: 0
A100: 496 | B100: Regular | C100: Azul | D100: A4 | E100: Comercial | F100: Não se aplica | G100: Não se aplica | H100: Não se aplica | I100: Ponta | J100: CATIVO | K100: 2020-01-01 | L100: 353 | M100: 353 | N100: 10.303 | O100: 10.303 | P100: 10.303 | Q100: 10.303 | R100: 61.8 | S100: 62.31 | T100: 424.69 | U100: 21815.4 | V100: 5017.561 | W100: 26832.961 | X100: 27453.84423 | Y100: 0 | Z100: 463.5545664 | AA100: 0 | AB100: 0 | AC100: 0 | AD100: 9367.278666 | AE100: 12447.47782 | AF100: 4272.15058 | AG100: 0 | AH100: 0 | AI100: 0 | AJ100: 0 | AK100: 30.60237422 | AL100: 98.52470014 | AM100: 0 | AN100: 6.209796151 | AO100: 0 | AP100: 0 | AQ100: 0 | AR100: 0 | AS100: 0 | AT100: 0 | AU100: 0 | AV100: 102.6609149 | AW100: 6.459702585 | AX100: 0 | AY100: 0 | AZ100: 0 | BA100: 8.692513361 | BB100: 428.2743946 | BC100: 0 | BD100: 1.495324429e-08 | BE100: 0 | BF100: 0 | BG100: 67.62317635 | BH100: 3.797156142 | BI100: 0 | BJ100: 0 | BK100: 0 | BL100: 0 | BU100: 75.08143683 | BV100: 4339.773757 | CI100: 27452.223 | CJ100: 619.232 | CM100: 0 | CN100: 75.08143683 | CO100: 184.34512 | CP100: 436.53811 | CQ100: 31 | CR100: 75.06631478 | CS100: 0 | CT100: 0 | CU100: 0 | CV100: 0 | CW100: 0 | CX100: 0 | CY100: 0 | CZ100: 70.93523013 | DA100: 0 | DB100: 0 | DC100: 0.8890548971 | DD100: 0 | DE100: 0 | DF100: 3.111841404e-12 | DG100: 0.0140727053 | DH100: 0 | DI100: -1.586800247 | DJ100: 5.552069444 | DK100: 0 | DL100: 0 | DM100: 0 | DN100: -0.2735750181 | DO100: -0.4340036505 | DP100: -0.02973347586 | DQ100: 0 | DR100: 0 | DS100: 0 | DU100: 12447.47782 | DV100: 0 | DW100: 3.83482541 | DX100: 0.03766926764 | DY100: 152 | DZ100: 0 | EA100: 0 | EB100: 0 | ED100: 0 | EE100: -48.80228751 | EF100: -3.028738663 | EG100: -48.80228751 | EH100: -3.028738663 | EI100: 0 | EJ100: 0 | EK100: 0 | EL100: 0
A101: 497 | B101: Sistema de Compensação | C101: Azul | D101: A4 | E101: Comercial | F101: Não se aplica | G101: Não se aplica | H101: Não se aplica | I101: Ponta | J101: CATIVO | K101: 2020-01-01 | L101: 36 | M101: 36 | N101: 1.079 | O101: 1.079 | P101: 1.079 | Q101: 1.079 | R101: 61.8 | S101: 62.31 | T101: 424.69 | U101: 2224.8 | V101: 525.473 | W101: 2750.273 | X101: 2815.10239 | Y101: 0 | Z101: 48.54657645 | AA101: 0 | AB101: 0 | AC101: 0 | AD101: 955.3032067 | AE101: 1269.431166 | AF101: 447.408568 | AG101: 0 | AH101: 0 | AI101: 0 | AJ101: 0 | AK101: 3.20488807 | AL101: 10.31817446 | AM101: 0 | AN101: 0.6503319467 | AO101: 0 | AP101: 0 | AQ101: 0 | AR101: 0 | AS101: 0 | AT101: 0 | AU101: 0 | AV101: 10.75134691 | AW101: 0.6765038425 | AX101: 0 | AY101: 0 | AZ101: 0 | BA101: 0.9103389223 | BB101: 44.85179771 | BC101: 0 | BD101: 1.566005104e-09 | BE101: 0 | BF101: 0 | BG101: 7.081957419 | BH101: 0.3976639306 | BI101: 0 | BJ101: 0 | BK101: 0 | BL101: 0 | BU101: 7.863037012 | BV101: 454.4905254 | CI101: 2815.6428 | CJ101: 65.3398 | CM101: 0 | CN101: 7.863037012 | CO101: 19.11216 | CP101: 45.71723 | CQ101: 31 | CR101: 7.666822963 | CS101: 0 | CT101: 0 | CU101: 0 | CV101: 0 | CW101: 0 | CX101: 0 | CY101: 0 | CZ101: 7.234187775 | DA101: 0 | DB101: 0 | DC101: 0.09310785538 | DD101: 0 | DE101: 0 | DF101: 3.258931258e-13 | DG101: 0.001473789092 | DH101: 0 | DI101: -0.1661804781 | DJ101: 0.5814503475 | DK101: 0 | DL101: 0 | DM101: 0 | DN101: -0.02865063036 | DO101: -0.04545180422 | DP101: -0.003113891144 | DQ101: 0 | DR101: 0 | DS101: 0 | DU101: 1269.431166 | DV101: 0 | DW101: 0.4016089117 | DX101: 0.003944981052 | DY101: 152 | DZ101: 0 | EA101: 0 | EB101: 0 | ED101: 0 | EE101: -48.80228751 | EF101: -3.028738663 | EG101: -48.80228751 | EH101: -3.028738663 | EI101: 0 | EJ101: 0 | EK101: 0 | EL101: 0
A102: 569 | B102: Regular | C102: Azul | D102: A4 | E102: Comercial | F102: Não se aplica | G102: Não se aplica | H102: Não se aplica | I102: Ponta | J102: CATIVO | K102: 2020-02-01 | L102: 356 | M102: 356 | N102: 10.699 | O102: 10.699 | P102: 10.699 | Q102: 10.699 | R102: 61.8 | S102: 62.31 | T102: 424.69 | U102: 22000.8 | V102: 5210.413 | W102: 27211.213 | X102: 27853.84659 | Y102: 0 | Z102: 481.3714749 | AA102: 0 | AB102: 0 | AC102: 0 | AD102: 9446.887266 | AE102: 12553.26375 | AF102: 4436.352427 | AG102: 0 | AH102: 0 | AI102: 0 | AJ102: 0 | AK102: 31.77858893 | AL102: 102.3115371 | AM102: 0 | AN102: 6.448472194 | AO102: 0 | AP102: 0 | AQ102: 0 | AR102: 0 | AS102: 0 | AT102: 0 | AU102: 0 | AV102: 106.606729 | AW102: 6.707983884 | AX102: 0 | AY102: 0 | AZ102: 0 | BA102: 9.026613651 | BB102: 444.7352953 | BC102: 0 | BD102: 1.552797832e-08 | BE102: 0 | BF102: 0 | BG102: 70.22230067 | BH102: 3.943101385 | BI102: 0 | BJ102: 0 | BK102: 0 | BL102: 0 | BU102: 77.96722242 | BV102: 4506.574728 | CI102: 27854.387 | CJ102: 643.144 | CM102: 0 | CN102: 77.96722242 | CO102: 189.31696 | CP102: 453.31663 | CQ102: 29 | CR102: 75.82794368 | CS102: 0 | CT102: 0 | CU102: 0 | CV102: 0 | CW102: 0 | CX102: 0 | CY102: 0 | CZ102: 71.53807911 | DA102: 0 | DB102: 0 | DC102: 0.9232260841 | DD102: 0 | DE102: 0 | DF102: 3.231446295e-12 | DG102: 0.01461359545 | DH102: 0 | DI102: -1.64778956 | DJ102: 5.765465494 | DK102: 0 | DL102: 0 | DM102: 0 | DN102: -0.2840899853 | DO102: -0.4506847575 | DP102: -0.03087629411 | DQ102: 0 | DR102: 0 | DS102: 0 | DU102: 12553.26375 | DV102: 0 | DW102: 3.982218486 | DX102: 0.03911710128 | DY102: 152 | DZ102: 0 | EA102: 0 | EB102: 0 | ED102: 0 | EE102: -48.80228751 | EF102: -3.028738663 | EG102: -48.80228751 | EH102: -3.028738663 | EI102: 0 | EJ102: 0 | EK102: 0 | EL102: 0
A103: 570 | B103: Sistema de Compensação | C103: Azul | D103: A4 | E103: Comercial | F103: Não se aplica | G103: Não se aplica | H103: Não se aplica | I103: Ponta | J103: CATIVO | K103: 2020-02-01 | L103: 36 | M103: 36 | N103: 1.142 | O103: 1.142 | P103: 1.142 | Q103: 1.142 | R103: 61.8 | S103: 62.31 | T103: 424.69 | U103: 2224.8 | V103: 556.154 | W103: 2780.954 | X103: 2849.14822 | Y103: 0 | Z103: 51.38108462 | AA103: 0 | AB103: 0 | AC103: 0 | AD103: 955.3032067 | AE103: 1269.431166 | AF103: 473.5315891 | AG103: 0 | AH103: 0 | AI103: 0 | AJ103: 0 | AK103: 3.392013138 | AL103: 10.92062579 | AM103: 0 | AN103: 0.6883031354 | AO103: 0 | AP103: 0 | AQ103: 0 | AR103: 0 | AS103: 0 | AT103: 0 | AU103: 0 | AV103: 11.37909006 | AW103: 0.71600314 | AX103: 0 | AY103: 0 | AZ103: 0 | BA103: 0.9634912412 | BB103: 47.47057737 | BC103: 0 | BD103: 1.657440063e-09 | BE103: 0 | BF103: 0 | BG103: 7.495454469 | BH103: 0.4208824919 | BI103: 0 | BJ103: 0 | BK103: 0 | BL103: 0 | BU103: 8.322139266 | BV103: 481.0270436 | CI103: 2848.0674 | CJ103: 67.0834 | CM103: 0 | CN103: 8.322139266 | CO103: 19.80768 | CP103: 48.38654 | CQ103: 29 | CR103: 7.692083405 | CS103: 0 | CT103: 0 | CU103: 0 | CV103: 0 | CW103: 0 | CX103: 0 | CY103: 0 | CZ103: 7.234187775 | DA103: 0 | DB103: 0 | DC103: 0.09854418058 | DD103: 0 | DE103: 0 | DF103: 3.449211767e-13 | DG103: 0.001559839799 | DH103: 0 | DI103: -0.1758833235 | DJ103: 0.6153997191 | DK103: 0 | DL103: 0 | DM103: 0 | DN103: -0.03032346605 | DO103: -0.0481056167 | DP103: -0.003295703138 | DQ103: 0 | DR103: 0 | DS103: 0 | DU103: 1269.431166 | DV103: 0 | DW103: 0.4250578102 | DX103: 0.004175318222 | DY103: 152 | DZ103: 0 | EA103: 0 | EB103: 0 | ED103: 0 | EE103: -48.80228751 | EF103: -3.028738663 | EG103: -48.80228751 | EH103: -3.028738663 | EI103: 0 | EJ103: 0 | EK103: 0 | EL103: 0
A104: 644 | B104: Regular | C104: Azul | D104: A4 | E104: Comercial | F104: Não se aplica | G104: Não se aplica | H104: Não se aplica | I104: Ponta | J104: CATIVO | K104: 2020-03-01 | L104: 261 | M104: 261 | N104: 8.571 | O104: 8.571 | P104: 8.571 | Q104: 8.571 | R104: 61.8 | S104: 62.31 | T104: 424.69 | U104: 16129.8 | V104: 4174.077 | W104: 20303.877 | X104: 20813.85411 | Y104: 0 | Z104: 385.6280878 | AA104: 0 | AB104: 0 | AC104: 0 | AD104: 6925.948249 | AE104: 9203.375953 | AF104: 3553.974825 | AG104: 0 | AH104: 0 | AI104: 0 | AJ104: 0 | AK104: 25.45791997 | AL104: 81.96206978 | AM104: 0 | AN104: 5.16588982 | AO104: 0 | AP104: 0 | AQ104: 0 | AR104: 0 | AS104: 0 | AT104: 0 | AU104: 0 | AV104: 85.40296048 | AW104: 5.373785388 | AX104: 0 | AY104: 0 | AZ104: 0 | BA104: 7.231246434 | BB104: 356.2787378 | BC104: 0 | BD104: 1.243950857e-08 | BE104: 0 | BF104: 0 | BG104: 56.25528919 | BH104: 3.158829981 | BI104: 0 | BJ104: 0 | BK104: 0 | BL104: 0 | BU104: 62.45976852 | BV104: 3610.230114 | CI104: 20813.3137 | CJ104: 509.4067 | CM104: 0 | CN104: 62.45976852 | CO104: 146.82384 | CP104: 363.15327 | CQ104: 31 | CR104: 55.88448435 | CS104: 0 | CT104: 0 | CU104: 0 | CV104: 0 | CW104: 0 | CX104: 0 | CY104: 0 | CZ104: 52.44786137 | DA104: 0 | DB104: 0 | DC104: 0.7395990996 | DD104: 0 | DE104: 0 | DF104: 2.58872102e-12 | DG104: 0.0117069938 | DH104: 0 | DI104: -1.320049007 | DJ104: 4.618731166 | DK104: 0 | DL104: 0 | DM104: 0 | DN104: -0.227585313 | DO104: -0.3610448693 | DP104: -0.02473508896 | DQ104: 0 | DR104: 0 | DS104: 0 | DU104: 9203.375953 | DV104: 0 | DW104: 3.190166805 | DX104: 0.03133682354 | DY104: 152 | DZ104: 0 | EA104: 0 | EB104: 0 | ED104: 0 | EE104: -48.80228751 | EF104: -3.028738663 | EG104: -48.80228751 | EH104: -3.028738663 | EI104: 0 | EJ104: 0 | EK104: 0 | EL104: 0
A105: 645 | B105: Sistema de Compensação | C105: Azul | D105: A4 | E105: Comercial | F105: Não se aplica | G105: Não se aplica | H105: Não se aplica | I105: Ponta | J105: CATIVO | K105: 2020-03-01 | L105: 36 | M105: 36 | N105: 1.037 | O105: 1.037 | P105: 1.037 | Q105: 1.037 | R105: 61.8 | S105: 62.31 | T105: 424.69 | U105: 2224.8 | V105: 505.019 | W105: 2729.819 | X105: 2792.40517 | Y105: 0 | Z105: 46.65690433 | AA105: 0 | AB105: 0 | AC105: 0 | AD105: 955.3032067 | AE105: 1269.431166 | AF105: 429.9932206 | AG105: 0 | AH105: 0 | AI105: 0 | AJ105: 0 | AK105: 3.080138024 | AL105: 9.916540236 | AM105: 0 | AN105: 0.6250178209 | AO105: 0 | AP105: 0 | AQ105: 0 | AR105: 0 | AS105: 0 | AT105: 0 | AU105: 0 | AV105: 10.33285148 | AW105: 0.6501709774 | AX105: 0 | AY105: 0 | AZ105: 0 | BA105: 0.874904043 | BB105: 43.1059446 | BC105: 0 | BD105: 1.505048464e-09 | BE105: 0 | BF105: 0 | BG105: 6.806292719 | BH105: 0.3821848898 | BI105: 0 | BJ105: 0 | BK105: 0 | BL105: 0 | BU105: 7.556968843 | BV105: 436.7995133 | CI105: 2794.0264 | CJ105: 64.1774 | CM105: 0 | CN105: 7.556968843 | CO105: 18.64848 | CP105: 43.93769 | CQ105: 31 | CR105: 7.649982668 | CS105: 0 | CT105: 0 | CU105: 0 | CV105: 0 | CW105: 0 | CX105: 0 | CY105: 0 | CZ105: 7.234187775 | DA105: 0 | DB105: 0 | DC105: 0.08948363858 | DD105: 0 | DE105: 0 | DF105: 3.132077585e-13 | DG105: 0.001416421954 | DH105: 0 | DI105: -0.1597119146 | DJ105: 0.5588174331 | DK105: 0 | DL105: 0 | DM105: 0 | DN105: -0.02753540656 | DO105: -0.0436825959 | DP105: -0.002992683147 | DQ105: 0 | DR105: 0 | DS105: 0 | DU105: 1269.431166 | DV105: 0 | DW105: 0.3859763127 | DX105: 0.003791422939 | DY105: 152 | DZ105: 0 | EA105: 0 | EB105: 0 | ED105: 0 | EE105: -48.80228751 | EF105: -3.028738663 | EG105: -48.80228751 | EH105: -3.028738663 | EI105: 0 | EJ105: 0 | EK105: 0 | EL105: 0
A106: 718 | B106: Regular | C106: Azul | D106: A4 | E106: Comercial | F106: Não se aplica | G106: Não se aplica | H106: Não se aplica | I106: Ponta | J106: CATIVO | K106: 2020-04-01 | L106: 261 | M106: 261 | N106: 6.573 | O106: 6.573 | P106: 6.573 | Q106: 6.573 | R106: 61.8 | S106: 62.31 | T106: 424.69 | U106: 16129.8 | V106: 3201.051 | W106: 19330.851 | X106: 19734.11493 | Y106: 0 | Z106: 295.7336858 | AA106: 0 | AB106: 0 | AC106: 0 | AD106: 6925.948249 | AE106: 9203.375953 | AF106: 2725.50187 | AG106: 0 | AH106: 0 | AI106: 0 | AJ106: 0 | AK106: 19.5233821 | AL106: 62.855756 | AM106: 0 | AN106: 3.961660691 | AO106: 0 | AP106: 0 | AQ106: 0 | AR106: 0 | AS106: 0 | AT106: 0 | AU106: 0 | AV106: 65.49453497 | AW106: 4.12109338 | AX106: 0 | AY106: 0 | AZ106: 0 | BA106: 5.545558606 | BB106: 273.2260114 | BC106: 0 | BD106: 9.539714131e-09 | BE106: 0 | BF106: 0 | BG106: 43.14152559 | BH106: 2.422469894 | BI106: 0 | BJ106: 0 | BK106: 0 | BL106: 0 | BU106: 47.89966847 | BV106: 2768.643395 | CI106: 19732.4937 | CJ106: 401.6127 | CM106: 0 | CN106: 47.89966847 | CO106: 124.76592 | CP106: 278.49801 | CQ106: 30 | CR106: 55.08336748 | CS106: 0 | CT106: 0 | CU106: 0 | CV106: 0 | CW106: 0 | CX106: 0 | CY106: 0 | CZ106: 52.44786137 | DA106: 0 | DB106: 0 | DC106: 0.567189929 | DD106: 0 | DE106: 0 | DF106: 1.985259978e-12 | DG106: 0.008977957091 | DH106: 0 | DI106: -1.012330197 | DJ106: 3.542051097 | DK106: 0 | DL106: 0 | DM106: 0 | DN106: -0.1745325239 | DO106: -0.2768811021 | DP106: -0.01896905142 | DQ106: 0 | DR106: 0 | DS106: 0 | DU106: 9203.375953 | DV106: 0 | DW106: 2.446501739 | DX106: 0.02403184472 | DY106: 152 | DZ106: 0 | EA106: 0 | EB106: 0 | ED106: 0 | EE106: -48.80228751 | EF106: -3.028738663 | EG106: -48.80228751 | EH106: -3.028738663 | EI106: 0 | EJ106: 0 | EK106: 0 | EL106: 0
A107: 719 | B107: Sistema de Compensação | C107: Azul | D107: A4 | E107: Comercial | F107: Não se aplica | G107: Não se aplica | H107: Não se aplica | I107: Ponta | J107: CATIVO | K107: 2020-04-01 | L107: 36 | M107: 36 | N107: 1.101 | O107: 1.101 | P107: 1.101 | Q107: 1.101 | R107: 61.8 | S107: 62.31 | T107: 424.69 | U107: 2224.8 | V107: 536.187 | W107: 2760.987 | X107: 2826.99141 | Y107: 0 | Z107: 49.5364047 | AA107: 0 | AB107: 0 | AC107: 0 | AD107: 955.3032067 | AE107: 1269.431166 | AF107: 456.5308928 | AG107: 0 | AH107: 0 | AI107: 0 | AJ107: 0 | AK107: 3.270233332 | AL107: 10.52855429 | AM107: 0 | AN107: 0.6635917269 | AO107: 0 | AP107: 0 | AQ107: 0 | AR107: 0 | AS107: 0 | AT107: 0 | AU107: 0 | AV107: 10.9705588 | AW107: 0.690297248 | AX107: 0 | AY107: 0 | AZ107: 0 | BA107: 0.9289000495 | BB107: 45.76629219 | BC107: 0 | BD107: 1.597934772e-09 | BE107: 0 | BF107: 0 | BG107: 7.226353214 | BH107: 0.4057719997 | BI107: 0 | BJ107: 0 | BK107: 0 | BL107: 0 | BU107: 8.023358434 | BV107: 463.757246 | CI107: 2826.451 | CJ107: 65.434 | CM107: 0 | CN107: 8.023358434 | CO107: 19.35504 | CP107: 46.64937 | CQ107: 30 | CR107: 7.67564407 | CS107: 0 | CT107: 0 | CU107: 0 | CV107: 0 | CW107: 0 | CX107: 0 | CY107: 0 | CZ107: 7.234187775 | DA107: 0 | DB107: 0 | DC107: 0.09500625465 | DD107: 0 | DE107: 0 | DF107: 3.32537842e-13 | DG107: 0.001503838545 | DH107: 0 | DI107: -0.1695687733 | DJ107: 0.5933056836 | DK107: 0 | DL107: 0 | DM107: 0 | DN107: -0.0292347952 | DO107: -0.04637853239 | DP107: -0.003177381046 | DQ107: 0 | DR107: 0 | DS107: 0 | DU107: 1269.431166 | DV107: 0 | DW107: 0.4097974159 | DX107: 0.004025416255 | DY107: 152 | DZ107: 0 | EA107: 0 | EB107: 0 | ED107: 0 | EE107: -48.80228751 | EF107: -3.028738663 | EG107: -48.80228751 | EH107: -3.028738663 | EI107: 0 | EJ107: 0 | EK107: 0 | EL107: 0
A108: 792 | B108: PROJETADO | C108: Azul | D108: A4 | E108: Comercial | F108: Não se aplica | G108: Não se aplica | H108: Não se aplica | I108: Ponta | J108: CATIVO | K108: 2020-05-01 | L108: 261 | M108: 261 | N108: 6.573 | O108: 6.573 | P108: 6.573 | Q108: 6.573 | R108: 61.8 | S108: 62.31 | T108: 424.69 | U108: 16129.8 | V108: 3201.051 | W108: 19330.851 | X108: 19734.11493 | Y108: 0 | Z108: 295.7336858 | AA108: 0 | AB108: 0 | AC108: 0 | AD108: 6925.948249 | AE108: 9203.375953 | AF108: 2725.50187 | AG108: 0 | AH108: 0 | AI108: 0 | AJ108: 0 | AK108: 19.5233821 | AL108: 62.855756 | AM108: 0 | AN108: 3.961660691 | AO108: 0 | AP108: 0 | AQ108: 0 | AR108: 0 | AS108: 0 | AT108: 0 | AU108: 0 | AV108: 65.49453497 | AW108: 4.12109338 | AX108: 0 | AY108: 0 | AZ108: 0 | BA108: 5.545558606 | BB108: 273.2260114 | BC108: 0 | BD108: 9.539714131e-09 | BE108: 0 | BF108: 0 | BG108: 43.14152559 | BH108: 2.422469894 | BI108: 0 | BJ108: 0 | BK108: 0 | BL108: 0 | BU108: 47.89966847 | BV108: 2768.643395 | CI108: 19732.4937 | CJ108: 401.6127 | CM108: 0 | CN108: 47.89966847 | CO108: 124.76592 | CP108: 278.49801 | CQ108: 31 | CR108: 55.08336748 | CS108: 0 | CT108: 0 | CU108: 0 | CV108: 0 | CW108: 0 | CX108: 0 | CY108: 0 | CZ108: 52.44786137 | DA108: 0 | DB108: 0 | DC108: 0.567189929 | DD108: 0 | DE108: 0 | DF108: 1.985259978e-12 | DG108: 0.008977957091 | DH108: 0 | DI108: -1.012330197 | DJ108: 3.542051097 | DK108: 0 | DL108: 0 | DM108: 0 | DN108: -0.1745325239 | DO108: -0.2768811021 | DP108: -0.01896905142 | DQ108: 0 | DR108: 0 | DS108: 0 | DU108: 9203.375953 | DV108: 0 | DW108: 2.446501739 | DX108: 0.02403184472 | DY108: 152 | DZ108: 0 | EA108: 0 | EB108: 0 | ED108: 0 | EE108: -48.80228751 | EF108: -3.028738663 | EG108: -48.80228751 | EH108: -3.028738663 | EI108: 0 | EJ108: 0 | EK108: 0 | EL108: 0
A109: 793 | B109: PROJETADO | C109: Azul | D109: A4 | E109: Comercial | F109: Não se aplica | G109: Não se aplica | H109: Não se aplica | I109: Ponta | J109: CATIVO | K109: 2020-05-01 | L109: 36 | M109: 36 | N109: 1.101 | O109: 1.101 | P109: 1.101 | Q109: 1.101 | R109: 61.8 | S109: 62.31 | T109: 424.69 | U109: 2224.8 | V109: 536.187 | W109: 2760.987 | X109: 2826.99141 | Y109: 0 | Z109: 49.5364047 | AA109: 0 | AB109: 0 | AC109: 0 | AD109: 955.3032067 | AE109: 1269.431166 | AF109: 456.5308928 | AG109: 0 | AH109: 0 | AI109: 0 | AJ109: 0 | AK109: 3.270233332 | AL109: 10.52855429 | AM109: 0 | AN109: 0.6635917269 | AO109: 0 | AP109: 0 | AQ109: 0 | AR109: 0 | AS109: 0 | AT109: 0 | AU109: 0 | AV109: 10.9705588 | AW109: 0.690297248 | AX109: 0 | AY109: 0 | AZ109: 0 | BA109: 0.9289000495 | BB109: 45.76629219 | BC109: 0 | BD109: 1.597934772e-09 | BE109: 0 | BF109: 0 | BG109: 7.226353214 | BH109: 0.4057719997 | BI109: 0 | BJ109: 0 | BK109: 0 | BL109: 0 | BU109: 8.023358434 | BV109: 463.757246 | CI109: 2826.451 | CJ109: 65.434 | CM109: 0 | CN109: 8.023358434 | CO109: 19.35504 | CP109: 46.64937 | CQ109: 31 | CR109: 7.67564407 | CS109: 0 | CT109: 0 | CU109: 0 | CV109: 0 | CW109: 0 | CX109: 0 | CY109: 0 | CZ109: 7.234187775 | DA109: 0 | DB109: 0 | DC109: 0.09500625465 | DD109: 0 | DE109: 0 | DF109: 3.32537842e-13 | DG109: 0.001503838545 | DH109: 0 | DI109: -0.1695687733 | DJ109: 0.5933056836 | DK109: 0 | DL109: 0 | DM109: 0 | DN109: -0.0292347952 | DO109: -0.04637853239 | DP109: -0.003177381046 | DQ109: 0 | DR109: 0 | DS109: 0 | DU109: 1269.431166 | DV109: 0 | DW109: 0.4097974159 | DX109: 0.004025416255 | DY109: 152 | DZ109: 0 | EA109: 0 | EB109: 0 | ED109: 0 | EE109: -48.80228751 | EF109: -3.028738663 | EG109: -48.80228751 | EH109: -3.028738663 | EI109: 0 | EJ109: 0 | EK109: 0 | EL109: 0
A110: 37 | B110: Regular | C110: Verde | D110: A4 | E110: Comercial | F110: Não se aplica | G110: Não se aplica | H110: Não se aplica | I110: Fora ponta | J110: CATIVO | K110: 2019-06-01 | L110: 0 | M110: 0 | N110: 1188.721 | O110: 1188.721 | P110: 1188.721 | Q110: 1188.721 | S110: 62.31 | T110: 251.12 | V110: 372580.823 | W110: 372580.823 | X110: 415648.1849 | Y110: 0 | Z110: 53483.16487 | AA110: 0 | AB110: 0 | AC110: 0 | AD110: 0 | AE110: 0 | AF110: 286572.3863 | AG110: 0 | AH110: 0 | AI110: 0 | AJ110: 0 | AK110: 3530.785682 | AL110: 11367.40562 | AM110: 0 | AN110: 716.4626896 | AO110: 0 | AP110: 0 | AQ110: 0 | AR110: 0 | AS110: 0 | AT110: 0 | AU110: 0 | AV110: 11844.62637 | AW110: 745.2959445 | AX110: 0 | AY110: 0 | AZ110: 0 | BA110: 1002.90917 | BB110: 29050.60591 | BC110: 0 | BD110: 1.72524852e-06 | BE110: 0 | BF110: 0 | BG110: 7802.105195 | BH110: 438.1014507 | BI110: 0 | BJ110: 0 | BK110: 0 | BL110: 0 | BU110: 8662.610955 | BV110: 294374.4915 | CI110: 415647.8352 | CJ110: 43066.98217 | CM110: 0 | CN110: 8662.610955 | CO110: 13123.47984 | CP110: 29943.88199 | CQ110: 30 | CR110: 433.6901568 | CS110: 0 | CT110: 0 | CU110: 0 | CV110: 0 | CW110: 0 | CX110: 0 | CY110: 0 | CZ110: 0 | DA110: 0 | DB110: 0 | DC110: 59.63707942 | DD110: 0 | DE110: 0 | DF110: 3.590324396e-10 | DG110: 1.623655276 | DH110: 0 | DI110: -183.0789844 | DJ110: 640.5766808 | DK110: 0 | DL110: 0 | DM110: 0 | DN110: -31.56404631 | DO110: -50.07369246 | DP110: -3.43053549 | DQ110: 0 | DR110: 0 | DS110: 0 | DV110: 0 | DW110: 442.4475877 | DX110: 4.346136999 | DY110: 152 | DZ110: 0 | EA110: 0 | EB110: 0 | ED110: 0 | EE110: -48.80228751 | EF110: -3.028738663 | EG110: -48.80228751 | EH110: -3.028738663 | EI110: 0 | EJ110: 0 | EK110: 0 | EL110: 0
A111: 101 | B111: Regular | C111: Verde | D111: A4 | E111: Comercial | F111: Não se aplica | G111: Não se aplica | H111: Não se aplica | I111: Fora ponta | J111: CATIVO | K111: 2019-07-01 | L111: 0 | M111: 0 | N111: 1182.352 | O111: 1182.352 | P111: 1182.352 | Q111: 1182.352 | S111: 62.31 | T111: 251.12 | V111: 370584.5874 | W111: 370584.5874 | X111: 413421.2003 | Y111: 0 | Z111: 53196.6096 | AA111: 0 | AB111: 0 | AC111: 0 | AD111: 0 | AE111: 0 | AF111: 285036.9718 | AG111: 0 | AH111: 0 | AI111: 0 | AJ111: 0 | AK111: 3511.868229 | AL111: 11306.50066 | AM111: 0 | AN111: 712.6239832 | AO111: 0 | AP111: 0 | AQ111: 0 | AR111: 0 | AS111: 0 | AT111: 0 | AU111: 0 | AV111: 11781.16452 | AW111: 741.3027536 | AX111: 0 | AY111: 0 | AZ111: 0 | BA111: 997.5357233 | BB111: 28894.95685 | BC111: 0 | BD111: 1.716004881e-06 | BE111: 0 | BF111: 0 | BG111: 7760.302612 | BH111: 435.7541647 | BI111: 0 | BJ111: 0 | BK111: 0 | BL111: 0 | BU111: 8616.197903 | BV111: 292797.2744 | CI111: 413420.501 | CJ111: 42835.88364 | CM111: 0 | CN111: 8616.197903 | CO111: 13053.16608 | CP111: 29783.44688 | CQ111: 31 | CR111: 431.3665059 | CS111: 0 | CT111: 0 | CU111: 0 | CV111: 0 | CW111: 0 | CX111: 0 | CY111: 0 | CZ111: 0 | DA111: 0 | DB111: 0 | DC111: 59.31755233 | DD111: 0 | DE111: 0 | DF111: 3.571087943e-10 | DG111: 1.61495596 | DH111: 0 | DI111: -182.0980729 | DJ111: 637.144561 | DK111: 0 | DL111: 0 | DM111: 0 | DN111: -31.39493059 | DO111: -49.80540466 | DP111: -3.412155164 | DQ111: 0 | DR111: 0 | DS111: 0 | DV111: 0 | DW111: 440.0770157 | DX111: 4.322851008 | DY111: 152 | DZ111: 0 | EA111: 0 | EB111: 0 | ED111: 0 | EE111: -48.80228751 | EF111: -3.028738663 | EG111: -48.80228751 | EH111: -3.028738663 | EI111: 0 | EJ111: 0 | EK111: 0 | EL111: 0
A112: 167 | B112: Regular | C112: Verde | D112: A4 | E112: Comercial | F112: Não se aplica | G112: Não se aplica | H112: Não se aplica | I112: Fora ponta | J112: CATIVO | K112: 2019-08-01 | L112: 0 | M112: 0 | N112: 1183.1 | O112: 1183.1 | P112: 1183.1 | Q112: 1183.1 | S112: 62.31 | T112: 251.12 | V112: 370819.033 | W112: 370819.033 | X112: 413682.746 | Y112: 0 | Z112: 53230.26376 | AA112: 0 | AB112: 0 | AC112: 0 | AD112: 0 | AE112: 0 | AF112: 285217.2968 | AG112: 0 | AH112: 0 | AI112: 0 | AJ112: 0 | AK112: 3514.089968 | AL112: 11313.65357 | AM112: 0 | AN112: 713.0748157 | AO112: 0 | AP112: 0 | AQ112: 0 | AR112: 0 | AS112: 0 | AT112: 0 | AU112: 0 | AV112: 11788.61773 | AW112: 741.7717294 | AX112: 0 | AY112: 0 | AZ112: 0 | BA112: 998.1668016 | BB112: 28913.23688 | BC112: 0 | BD112: 1.71709049e-06 | BE112: 0 | BF112: 0 | BG112: 7765.212069 | BH112: 436.0298391 | BI112: 0 | BJ112: 0 | BK112: 0 | BL112: 0 | BU112: 8621.648832 | BV112: 292982.5089 | CI112: 413682.746 | CJ112: 42863.683 | CM112: 0 | CN112: 8621.648832 | CO112: 13061.424 | CP112: 29802.289 | CQ112: 31 | CR112: 431.6394045 | CS112: 0 | CT112: 0 | CU112: 0 | CV112: 0 | CW112: 0 | CX112: 0 | CY112: 0 | CZ112: 0 | DA112: 0 | DB112: 0 | DC112: 59.35507883 | DD112: 0 | DE112: 0 | DF112: 3.573347147e-10 | DG112: 1.615977641 | DH112: 0 | DI112: -182.213275 | DJ112: 637.5476424 | DK112: 0 | DL112: 0 | DM112: 0 | DN112: -31.41479219 | DO112: -49.83691342 | DP112: -3.41431382 | DQ112: 0 | DR112: 0 | DS112: 0 | DV112: 0 | DW112: 440.3554249 | DX112: 4.325585805 | DY112: 152 | DZ112: 0 | EA112: 0 | EB112: 0 | ED112: 0 | EE112: -48.80228751 | EF112: -3.028738663 | EG112: -48.80228751 | EH112: -3.028738663 | EI112: 0 | EJ112: 0 | EK112: 0 | EL112: 0
A113: 240 | B113: Regular | C113: Verde | D113: A4 | E113: Comercial | F113: Não se aplica | G113: Não se aplica | H113: Não se aplica | I113: Fora ponta | J113: CATIVO | K113: 2019-09-01 | L113: 0 | M113: 0 | N113: 1287.207 | O113: 1287.207 | P113: 1287.207 | Q113: 1287.207 | S113: 62.31 | T113: 251.12 | V113: 403449.29 | W113: 403449.29 | X113: 450084.7996 | Y113: 0 | Z113: 57914.26601 | AA113: 0 | AB113: 0 | AC113: 0 | AD113: 0 | AE113: 0 | AF113: 310315.0207 | AG113: 0 | AH113: 0 | AI113: 0 | AJ113: 0 | AK113: 3823.312658 | AL113: 12309.19962 | AM113: 0 | AN113: 775.8219037 | AO113: 0 | AP113: 0 | AQ113: 0 | AR113: 0 | AS113: 0 | AT113: 0 | AU113: 0 | AV113: 12825.9583 | AW113: 807.0440052 | AX113: 0 | AY113: 0 | AZ113: 0 | BA113: 1086.000587 | BB113: 31457.45998 | BC113: 0 | BD113: 1.868186035e-06 | BE113: 0 | BF113: 0 | BG113: 8448.512663 | BH113: 474.3983273 | BI113: 0 | BJ113: 0 | BK113: 0 | BL113: 0 | BU113: 9380.311662 | BV113: 318763.5333 | CI113: 450085.8486 | CJ113: 46636.52859 | CM113: 0 | CN113: 9380.311662 | CO113: 14210.76528 | CP113: 32424.74433 | CQ113: 30 | CR113: 469.621556 | CS113: 0 | CT113: 0 | CU113: 0 | CV113: 0 | CW113: 0 | CX113: 0 | CY113: 0 | CZ113: 0 | DA113: 0 | DB113: 0 | DC113: 64.57803478 | DD113: 0 | DE113: 0 | DF113: 3.887784178e-10 | DG113: 1.758175751 | DH113: 0 | DI113: -198.2471499 | DJ113: 693.6487094 | DK113: 0 | DL113: 0 | DM113: 0 | DN113: -34.1791399 | DO113: -54.22231748 | DP113: -3.714756698 | DQ113: 0 | DR113: 0 | DS113: 0 | DV113: 0 | DW113: 479.1045435 | DX113: 4.70621615 | DY113: 152 | DZ113: 0 | EA113: 0 | EB113: 0 | ED113: 0 | EE113: -48.80228751 | EF113: -3.028738663 | EG113: -48.80228751 | EH113: -3.028738663 | EI113: 0 | EJ113: 0 | EK113: 0 | EL113: 0
A114: 307 | B114: Regular | C114: Verde | D114: A4 | E114: Comercial | F114: Não se aplica | G114: Não se aplica | H114: Não se aplica | I114: Fora ponta | J114: CATIVO | K114: 2019-10-01 | L114: 0 | M114: 0 | N114: 1278.525 | O114: 1278.525 | P114: 1278.525 | Q114: 1278.525 | S114: 62.31 | T114: 251.12 | V114: 400728.0908 | W114: 400728.0908 | X114: 447049.0515 | Y114: 0 | Z114: 57523.64379 | AA114: 0 | AB114: 0 | AC114: 0 | AD114: 0 | AE114: 0 | AF114: 308221.9968 | AG114: 0 | AH114: 0 | AI114: 0 | AJ114: 0 | AK114: 3797.525041 | AL114: 12226.17609 | AM114: 0 | AN114: 770.5891123 | AO114: 0 | AP114: 0 | AQ114: 0 | AR114: 0 | AS114: 0 | AT114: 0 | AU114: 0 | AV114: 12739.44931 | AW114: 801.6006258 | AX114: 0 | AY114: 0 | AZ114: 0 | BA114: 1078.675691 | BB114: 31245.28457 | BC114: 0 | BD114: 1.855585427e-06 | BE114: 0 | BF114: 0 | BG114: 8391.528831 | BH114: 471.1985884 | BI114: 0 | BJ114: 0 | BK114: 0 | BL114: 0 | BU114: 9317.042999 | BV114: 316613.5256 | CI114: 447050.7998 | CJ114: 46322.67905 | CM114: 0 | CN114: 9317.042999 | CO114: 14114.916 | CP114: 32206.04475 | CQ114: 31 | CR114: 466.4540357 | CS114: 0 | CT114: 0 | CU114: 0 | CV114: 0 | CW114: 0 | CX114: 0 | CY114: 0 | CZ114: 0 | DA114: 0 | DB114: 0 | DC114: 64.14246654 | DD114: 0 | DE114: 0 | DF114: 3.861561711e-10 | DG114: 1.746317144 | DH114: 0 | DI114: -196.9100054 | DJ114: 688.9701627 | DK114: 0 | DL114: 0 | DM114: 0 | DN114: -33.94860721 | DO114: -53.85659684 | DP114: -3.689701274 | DQ114: 0 | DR114: 0 | DS114: 0 | DV114: 0 | DW114: 475.8730619 | DX114: 4.674473494 | DY114: 152 | DZ114: 0 | EA114: 0 | EB114: 0 | ED114: 0 | EE114: -48.80228751 | EF114: -3.028738663 | EG114: -48.80228751 | EH114: -3.028738663 | EI114: 0 | EJ114: 0 | EK114: 0 | EL114: 0
A115: 374 | B115: Regular | C115: Verde | D115: A4 | E115: Comercial | F115: Não se aplica | G115: Não se aplica | H115: Não se aplica | I115: Fora ponta | J115: CATIVO | K115: 2019-11-01 | L115: 0 | M115: 0 | N115: 1382.627 | O115: 1382.627 | P115: 1382.627 | Q115: 1382.627 | S115: 62.31 | T115: 251.12 | V115: 433356.7806 | W115: 433356.7806 | X115: 483449.3568 | Y115: 0 | Z115: 62207.42109 | AA115: 0 | AB115: 0 | AC115: 0 | AD115: 0 | AE115: 0 | AF115: 333318.5153 | AG115: 0 | AH115: 0 | AI115: 0 | AJ115: 0 | AK115: 4106.73288 | AL115: 13221.67433 | AM115: 0 | AN115: 833.3331867 | AO115: 0 | AP115: 0 | AQ115: 0 | AR115: 0 | AS115: 0 | AT115: 0 | AU115: 0 | AV115: 13776.74006 | AW115: 866.8697666 | AX115: 0 | AY115: 0 | AZ115: 0 | BA115: 1166.505258 | BB115: 33789.38548 | BC115: 0 | BD115: 2.006673715e-06 | BE115: 0 | BF115: 0 | BG115: 9074.796608 | BH115: 509.565234 | BI115: 0 | BJ115: 0 | BK115: 0 | BL115: 0 | BU115: 10075.66939 | BV115: 342393.3119 | CI115: 483450.4058 | CJ115: 50093.59519 | CM115: 0 | CN115: 10075.66939 | CO115: 15264.20208 | CP115: 34828.37413 | CQ115: 30 | CR115: 504.434363 | CS115: 0 | CT115: 0 | CU115: 0 | CV115: 0 | CW115: 0 | CX115: 0 | CY115: 0 | CZ115: 0 | DA115: 0 | DB115: 0 | DC115: 69.36517165 | DD115: 0 | DE115: 0 | DF115: 4.175983641e-10 | DG115: 1.888508425 | DH115: 0 | DI115: -212.9431102 | DJ115: 745.0685353 | DK115: 0 | DL115: 0 | DM115: 0 | DN115: -36.71282215 | DO115: -58.24179028 | DP115: -3.990129722 | DQ115: 0 | DR115: 0 | DS115: 0 | DV115: 0 | DW115: 514.6203195 | DX115: 5.055085559 | DY115: 152 | DZ115: 0 | EA115: 0 | EB115: 0 | ED115: 0 | EE115: -48.80228751 | EF115: -3.028738663 | EG115: -48.80228751 | EH115: -3.028738663 | EI115: 0 | EJ115: 0 | EK115: 0 | EL115: 0
A116: 439 | B116: Regular | C116: Verde | D116: A4 | E116: Comercial | F116: Não se aplica | G116: Não se aplica | H116: Não se aplica | I116: Fora ponta | J116: CATIVO | K116: 2019-12-01 | L116: 0 | M116: 0 | N116: 1344.642 | O116: 1344.642 | P116: 1344.642 | Q116: 1344.642 | S116: 62.31 | T116: 251.12 | V116: 421451.1421 | W116: 421451.1421 | X116: 470167.5217 | Y116: 0 | Z116: 60498.39263 | AA116: 0 | AB116: 0 | AC116: 0 | AD116: 0 | AE116: 0 | AF116: 324161.2344 | AG116: 0 | AH116: 0 | AI116: 0 | AJ116: 0 | AK116: 3993.908345 | AL116: 12858.43442 | AM116: 0 | AN116: 810.4389708 | AO116: 0 | AP116: 0 | AQ116: 0 | AR116: 0 | AS116: 0 | AT116: 0 | AU116: 0 | AV116: 13398.2508 | AW116: 843.0541981 | AX116: 0 | AY116: 0 | AZ116: 0 | BA116: 1134.457784 | BB116: 32861.08753 | BC116: 0 | BD116: 1.95154424e-06 | BE116: 0 | BF116: 0 | BG116: 8825.484141 | BH116: 495.5659157 | BI116: 0 | BJ116: 0 | BK116: 0 | BL116: 0 | BU116: 9798.859884 | BV116: 332986.7185 | CI116: 470166.8224 | CJ116: 48715.65034 | CM116: 0 | CN116: 9798.859884 | CO116: 14844.84768 | CP116: 33871.53198 | CR116: 490.5760055 | CS116: 0 | CT116: 0 | CU116: 0 | CV116: 0 | CW116: 0 | CX116: 0 | CY116: 0 | CZ116: 0 | DA116: 0 | DB116: 0 | DC116: 67.45949785 | DD116: 0 | DE116: 0 | DF116: 4.061256575e-10 | DG116: 1.836625313 | DH116: 0 | DI116: -207.0929105 | DJ116: 724.5992198 | DK116: 0 | DL116: 0 | DM116: 0 | DN116: -35.70420844 | DO116: -56.64170986 | DP116: -3.880508633 | DQ116: 0 | DR116: 0 | DS116: 0 | DV116: 0 | DW116: 500.4821226 | DX116: 4.91620687 | DY116: 152 | DZ116: 0 | EA116: 0 | EB116: 0 | ED116: 0 | EE116: -48.80228751 | EF116: -3.028738663 | EG116: -48.80228751 | EH116: -3.028738663 | EI116: 0 | EJ116: 0 | EK116: 0 | EL116: 0
A117: 440 | B117: Sistema de Compensação | C117: Verde | D117: A4 | E117: Comercial | F117: Não se aplica | G117: Não se aplica | H117: Não se aplica | I117: Fora ponta | J117: CATIVO | K117: 2019-12-01 | L117: 0 | M117: 0 | N117: 29.03 | O117: 29.03 | P117: 29.03 | Q117: 29.03 | S117: 62.31 | T117: 251.12 | V117: 9098.8729 | W117: 9098.8729 | X117: 10150.6298 | Y117: 0 | Z117: 1306.123368 | AA117: 0 | AB117: 0 | AC117: 0 | AD117: 0 | AE117: 0 | AF117: 6998.44318 | AG117: 0 | AH117: 0 | AI117: 0 | AJ117: 0 | AK117: 86.22604325 | AL117: 277.6057503 | AM117: 0 | AN117: 17.49688268 | AO117: 0 | AP117: 0 | AQ117: 0 | AR117: 0 | AS117: 0 | AT117: 0 | AU117: 0 | AV117: 289.2600563 | AW117: 18.20102553 | AX117: 0 | AY117: 0 | AZ117: 0 | BA117: 24.49225108 | BB117: 709.4508212 | BC117: 0 | BD117: 4.21326489e-08 | BE117: 0 | BF117: 0 | BG117: 190.5368155 | BH117: 10.69896562 | BI117: 0 | BJ117: 0 | BK117: 0 | BL117: 0 | BU117: 211.5514036 | BV117: 7188.979995 | CI117: 10150.6298 | CJ117: 1051.7269 | CM117: 0 | CN117: 211.5514036 | CO117: 320.4912 | CP117: 731.2657 | CR117: 10.59123651 | CS117: 0 | CT117: 0 | CU117: 0 | CV117: 0 | CW117: 0 | CX117: 0 | CY117: 0 | CZ117: 0 | DA117: 0 | DB117: 0 | DC117: 1.456409381 | DD117: 0 | DE117: 0 | DF117: 8.768005043e-12 | DG117: 0.03965161941 | DH117: 0 | DI117: -4.471009528 | DJ117: 15.64365485 | DK117: 0 | DL117: 0 | DM117: 0 | DN117: -0.770832066 | DO117: -1.222859941 | DP117: -0.0837778127 | DQ117: 0 | DR117: 0 | DS117: 0 | DV117: 0 | DW117: 10.80510353 | DX117: 0.1061379054 | DY117: 152 | DZ117: 0 | EA117: 0 | EB117: 0 | ED117: 0 | EE117: -48.80228751 | EF117: -3.028738663 | EG117: -48.80228751 | EH117: -3.028738663 | EI117: 0 | EJ117: 0 | EK117: 0 | EL117: 0
A118: 504 | B118: Regular | C118: Verde | D118: A4 | E118: Comercial | F118: Não se aplica | G118: Não se aplica | H118: Não se aplica | I118: Fora ponta | J118: CATIVO | K118: 2020-01-01 | L118: 0 | M118: 0 | N118: 1342.593 | O118: 1342.593 | P118: 1342.593 | Q118: 1342.593 | S118: 62.31 | T118: 251.12 | V118: 420808.924 | W118: 420808.924 | X118: 469451.0684 | Y118: 0 | Z118: 60406.20362 | AA118: 0 | AB118: 0 | AC118: 0 | AD118: 0 | AE118: 0 | AF118: 323667.2692 | AG118: 0 | AH118: 0 | AI118: 0 | AJ118: 0 | AK118: 3987.822325 | AL118: 12838.84041 | AM118: 0 | AN118: 809.2040031 | AO118: 0 | AP118: 0 | AQ118: 0 | AR118: 0 | AS118: 0 | AT118: 0 | AU118: 0 | AV118: 13377.8342 | AW118: 841.7695305 | AX118: 0 | AY118: 0 | AZ118: 0 | BA118: 1132.729068 | BB118: 32811.01296 | BC118: 0 | BD118: 1.948570427e-06 | BE118: 0 | BF118: 0 | BG118: 8812.035641 | BH118: 494.8107596 | BI118: 0 | BJ118: 0 | BK118: 0 | BL118: 0 | BU118: 9783.928129 | BV118: 332479.3048 | CI118: 469450.0194 | CJ118: 48641.06541 | CM118: 0 | CN118: 9783.928129 | CO118: 14822.22672 | CP118: 33819.91767 | CQ118: 31 | CR118: 489.8284532 | CS118: 0 | CT118: 0 | CU118: 0 | CV118: 0 | CW118: 0 | CX118: 0 | CY118: 0 | CZ118: 0 | DA118: 0 | DB118: 0 | DC118: 67.35670134 | DD118: 0 | DE118: 0 | DF118: 4.055067928e-10 | DG118: 1.833826616 | DH118: 0 | DI118: -206.7773371 | DJ118: 723.4950569 | DK118: 0 | DL118: 0 | DM118: 0 | DN118: -35.64980145 | DO118: -56.55539776 | DP118: -3.874595414 | DQ118: 0 | DR118: 0 | DS118: 0 | DV118: 0 | DW118: 499.7194751 | DX118: 4.908715427 | DY118: 152 | DZ118: 0 | EA118: 0 | EB118: 0 | ED118: 0 | EE118: -48.80228751 | EF118: -3.028738663 | EG118: -48.80228751 | EH118: -3.028738663 | EI118: 0 | EJ118: 0 | EK118: 0 | EL118: 0
A119: 505 | B119: Sistema de Compensação | C119: Verde | D119: A4 | E119: Comercial | F119: Não se aplica | G119: Não se aplica | H119: Não se aplica | I119: Fora ponta | J119: CATIVO | K119: 2020-01-01 | L119: 0 | M119: 0 | N119: 46.125 | O119: 46.125 | P119: 46.125 | Q119: 46.125 | S119: 62.31 | T119: 251.12 | V119: 14456.95875 | W119: 14456.95875 | X119: 16128.0675 | Y119: 0 | Z119: 2075.264911 | AA119: 0 | AB119: 0 | AC119: 0 | AD119: 0 | AE119: 0 | AF119: 11119.64146 | AG119: 0 | AH119: 0 | AI119: 0 | AJ119: 0 | AK119: 137.0022819 | AL119: 441.080442 | AM119: 0 | AN119: 27.80033461 | AO119: 0 | AP119: 0 | AQ119: 0 | AR119: 0 | AS119: 0 | AT119: 0 | AU119: 0 | AV119: 459.597661 | AW119: 28.91912858 | AX119: 0 | AY119: 0 | AZ119: 0 | BA119: 38.91509063 | BB119: 1127.227665 | BC119: 0 | BD119: 6.694345265e-08 | BE119: 0 | BF119: 0 | BG119: 302.7389119 | BH119: 16.9993038 | BI119: 0 | BJ119: 0 | BK119: 0 | BL119: 0 | BU119: 336.1284358 | BV119: 11422.38037 | CI119: 16129.8158 | CJ119: 1672.82705 | CM119: 0 | CN119: 336.1284358 | CO119: 509.22 | CP119: 1161.88875 | CQ119: 31 | CR119: 16.82813586 | CS119: 0 | CT119: 0 | CU119: 0 | CV119: 0 | CW119: 0 | CX119: 0 | CY119: 0 | CZ119: 0 | DA119: 0 | DB119: 0 | DC119: 2.314050385 | DD119: 0 | DE119: 0 | DF119: 1.393125155e-11 | DG119: 0.06300141044 | DH119: 0 | DI119: -7.10386891 | DJ119: 24.85578988 | DK119: 0 | DL119: 0 | DM119: 0 | DN119: -1.224754704 | DO119: -1.942969852 | DP119: -0.1331123531 | DQ119: 0 | DR119: 0 | DS119: 0 | DV119: 0 | DW119: 17.16794351 | DX119: 0.1686397137 | DY119: 152 | DZ119: 0 | EA119: 0 | EB119: 0 | ED119: 0 | EE119: -48.80228751 | EF119: -3.028738663 | EG119: -48.80228751 | EH119: -3.028738663 | EI119: 0 | EJ119: 0 | EK119: 0 | EL119: 0
A120: 577 | B120: Regular | C120: Verde | D120: A4 | E120: Comercial | F120: Não se aplica | G120: Não se aplica | H120: Não se aplica | I120: Fora ponta | J120: CATIVO | K120: 2020-02-01 | L120: 0 | M120: 0 | N120: 1369.479 | O120: 1369.479 | P120: 1369.479 | Q120: 1369.479 | S120: 62.31 | T120: 251.12 | V120: 429235.803 | W120: 429235.803 | X120: 478852.0271 | Y120: 0 | Z120: 61615.86373 | AA120: 0 | AB120: 0 | AC120: 0 | AD120: 0 | AE120: 0 | AF120: 330148.8449 | AG120: 0 | AH120: 0 | AI120: 0 | AJ120: 0 | AK120: 4067.680175 | AL120: 13095.94369 | AM120: 0 | AN120: 825.4086599 | AO120: 0 | AP120: 0 | AQ120: 0 | AR120: 0 | AS120: 0 | AT120: 0 | AU120: 0 | AV120: 13645.73106 | AW120: 858.6263259 | AX120: 0 | AY120: 0 | AZ120: 0 | BA120: 1155.412453 | BB120: 33468.06756 | BC120: 0 | BD120: 1.987591384e-06 | BE120: 0 | BF120: 0 | BG120: 8988.50043 | BH120: 504.7195571 | BI120: 0 | BJ120: 0 | BK120: 0 | BL120: 0 | BU120: 9979.855482 | BV120: 339137.3453 | CI120: 478852.3768 | CJ120: 49616.54383 | CM120: 0 | CN120: 9979.855482 | CO120: 15119.04816 | CP120: 34497.17601 | CQ120: 29 | CR120: 499.6374778 | CS120: 0 | CT120: 0 | CU120: 0 | CV120: 0 | CW120: 0 | CX120: 0 | CY120: 0 | CZ120: 0 | DA120: 0 | DB120: 0 | DC120: 68.70554814 | DD120: 0 | DE120: 0 | DF120: 4.1362724e-10 | DG120: 1.870549779 | DH120: 0 | DI120: -210.9181418 | DJ120: 737.9833554 | DK120: 0 | DL120: 0 | DM120: 0 | DN120: -36.36370399 | DO120: -57.68794383 | DP120: -3.952185848 | DQ120: 0 | DR120: 0 | DS120: 0 | DV120: 0 | DW120: 509.7265716 | DX120: 5.007014557 | DY120: 152 | DZ120: 0 | EA120: 0 | EB120: 0 | ED120: 0 | EE120: -48.80228751 | EF120: -3.028738663 | EG120: -48.80228751 | EH120: -3.028738663 | EI120: 0 | EJ120: 0 | EK120: 0 | EL120: 0
A121: 578 | B121: Sistema de Compensação | C121: Verde | D121: A4 | E121: Comercial | F121: Não se aplica | G121: Não se aplica | H121: Não se aplica | I121: Fora ponta | J121: CATIVO | K121: 2020-02-01 | L121: 0 | M121: 0 | N121: 38.883 | O121: 38.883 | P121: 38.883 | Q121: 38.883 | S121: 62.31 | T121: 251.12 | V121: 12187.09869 | W121: 12187.09869 | X121: 13595.82978 | Y121: 0 | Z121: 1749.431448 | AA121: 0 | AB121: 0 | AC121: 0 | AD121: 0 | AE121: 0 | AF121: 9373.76735 | AG121: 0 | AH121: 0 | AI121: 0 | AJ121: 0 | AK121: 115.4918098 | AL121: 371.8272266 | AM121: 0 | AN121: 23.43545606 | AO121: 0 | AP121: 0 | AQ121: 0 | AR121: 0 | AS121: 0 | AT121: 0 | AU121: 0 | AV121: 387.4370916 | AW121: 24.37859028 | AX121: 0 | AY121: 0 | AZ121: 0 | BA121: 32.80510502 | BB121: 950.2437575 | BC121: 0 | BD121: 5.643278633e-08 | BE121: 0 | BF121: 0 | BG121: 255.2064414 | BH121: 14.3302749 | BI121: 0 | BJ121: 0 | BK121: 0 | BL121: 0 | BU121: 283.3535386 | BV121: 9628.973791 | CI121: 13594.7808 | CJ121: 1407.65211 | CM121: 0 | CN121: 283.3535386 | CO121: 429.26832 | CP121: 979.46277 | CQ121: 29 | CR121: 14.18598171 | CS121: 0 | CT121: 0 | CU121: 0 | CV121: 0 | CW121: 0 | CX121: 0 | CY121: 0 | CZ121: 0 | DA121: 0 | DB121: 0 | DC121: 1.950725661 | DD121: 0 | DE121: 0 | DF121: 1.17439318e-11 | DG121: 0.0531096768 | DH121: 0 | DI121: -5.988503736 | DJ121: 20.95322879 | DK121: 0 | DL121: 0 | DM121: 0 | DN121: -1.032458258 | DO121: -1.637907788 | DP121: -0.1122126315 | DQ121: 0 | DR121: 0 | DS121: 0 | DV121: 0 | DW121: 14.47243681 | DX121: 0.1421619076 | DY121: 152 | DZ121: 0 | EA121: 0 | EB121: 0 | ED121: 0 | EE121: -48.80228751 | EF121: -3.028738663 | EG121: -48.80228751 | EH121: -3.028738663 | EI121: 0 | EJ121: 0 | EK121: 0 | EL121: 0
A122: 652 | B122: Regular | C122: Verde | D122: A4 | E122: Comercial | F122: Não se aplica | G122: Não se aplica | H122: Não se aplica | I122: Fora ponta | J122: CATIVO | K122: 2020-03-01 | L122: 0 | M122: 0 | N122: 1127.998 | O122: 1127.998 | P122: 1127.998 | Q122: 1127.998 | S122: 62.31 | T122: 251.12 | V122: 353548.4131 | W122: 353548.4131 | X122: 394415.7807 | Y122: 0 | Z122: 50751.10393 | AA122: 0 | AB122: 0 | AC122: 0 | AD122: 0 | AE122: 0 | AF122: 271933.514 | AG122: 0 | AH122: 0 | AI122: 0 | AJ122: 0 | AK122: 3350.423849 | AL122: 10786.72859 | AM122: 0 | AN122: 679.8638881 | AO122: 0 | AP122: 0 | AQ122: 0 | AR122: 0 | AS122: 0 | AT122: 0 | AU122: 0 | AV122: 11239.57165 | AW122: 707.2242644 | AX122: 0 | AY122: 0 | AZ122: 0 | BA122: 951.6779274 | BB122: 27566.62444 | BC122: 0 | BD122: 1.637118281e-06 | BE122: 0 | BF122: 0 | BG122: 7403.553109 | BH122: 415.7220745 | BI122: 0 | BJ122: 0 | BK122: 0 | BL122: 0 | BU122: 8220.101968 | BV122: 279337.0671 | CI122: 394416.48 | CJ122: 40868.03686 | CM122: 0 | CN122: 8220.101968 | CO122: 12453.09792 | CP122: 28414.26962 | CQ122: 31 | CR122: 411.5361212 | CS122: 0 | CT122: 0 | CU122: 0 | CV122: 0 | CW122: 0 | CX122: 0 | CY122: 0 | CZ122: 0 | DA122: 0 | DB122: 0 | DC122: 56.59066031 | DD122: 0 | DE122: 0 | DF122: 3.406921169e-10 | DG122: 1.540714688 | DH122: 0 | DI122: -173.7268276 | DJ122: 607.8543365 | DK122: 0 | DL122: 0 | DM122: 0 | DN122: -29.95167168 | DO122: -47.51579635 | DP122: -3.255294701 | DQ122: 0 | DR122: 0 | DS122: 0 | DV122: 0 | DW122: 419.8461994 | DX122: 4.124124872 | DY122: 152 | DZ122: 0 | EA122: 0 | EB122: 0 | ED122: 0 | EE122: -48.80228751 | EF122: -3.028738663 | EG122: -48.80228751 | EH122: -3.028738663 | EI122: 0 | EJ122: 0 | EK122: 0 | EL122: 0
A123: 653 | B123: Sistema de Compensação | C123: Verde | D123: A4 | E123: Comercial | F123: Não se aplica | G123: Não se aplica | H123: Não se aplica | I123: Fora ponta | J123: CATIVO | K123: 2020-03-01 | L123: 0 | M123: 0 | N123: 34.686 | O123: 34.686 | P123: 34.686 | Q123: 34.686 | S123: 62.31 | T123: 251.12 | V123: 10871.63298 | W123: 10871.63298 | X123: 12128.30676 | Y123: 0 | Z123: 1560.599213 | AA123: 0 | AB123: 0 | AC123: 0 | AD123: 0 | AE123: 0 | AF123: 8361.97038 | AG123: 0 | AH123: 0 | AI123: 0 | AJ123: 0 | AK123: 103.025716 | AL123: 331.6924924 | AM123: 0 | AN123: 20.90585163 | AO123: 0 | AP123: 0 | AQ123: 0 | AR123: 0 | AS123: 0 | AT123: 0 | AU123: 0 | AV123: 345.6174411 | AW123: 21.74718469 | AX123: 0 | AY123: 0 | AZ123: 0 | BA123: 29.26414815 | BB123: 847.6752044 | BC123: 0 | BD123: 5.034147639e-08 | BE123: 0 | BF123: 0 | BG123: 227.6596618 | BH123: 12.78347646 | BI123: 0 | BJ123: 0 | BK123: 0 | BL123: 0 | BU123: 252.7685837 | BV123: 8589.630042 | CI123: 12129.7054 | CJ123: 1258.04242 | CM123: 0 | CN123: 252.7685837 | CO123: 382.93344 | CP123: 873.74034 | CQ123: 31 | CR123: 12.65475816 | CS123: 0 | CT123: 0 | CU123: 0 | CV123: 0 | CW123: 0 | CX123: 0 | CY123: 0 | CZ123: 0 | DA123: 0 | DB123: 0 | DC123: 1.74016589 | DD123: 0 | DE123: 0 | DF123: 1.047630117e-11 | DG123: 0.04737706065 | DH123: 0 | DI123: -5.34210942 | DJ123: 18.69155399 | DK123: 0 | DL123: 0 | DM123: 0 | DN123: -0.9210155371 | DO123: -1.461113328 | DP123: -0.1001004895 | DQ123: 0 | DR123: 0 | DS123: 0 | DV123: 0 | DW123: 12.91029352 | DX123: 0.1268170647 | DY123: 152 | DZ123: 0 | EA123: 0 | EB123: 0 | ED123: 0 | EE123: -48.80228751 | EF123: -3.028738663 | EG123: -48.80228751 | EH123: -3.028738663 | EI123: 0 | EJ123: 0 | EK123: 0 | EL123: 0
A124: 726 | B124: Regular | C124: Verde | D124: A4 | E124: Comercial | F124: Não se aplica | G124: Não se aplica | H124: Não se aplica | I124: Fora ponta | J124: CATIVO | K124: 2020-04-01 | L124: 0 | M124: 0 | N124: 920.341 | O124: 920.341 | P124: 920.341 | Q124: 920.341 | S124: 62.31 | T124: 251.12 | V124: 288462.4796 | W124: 288462.4796 | X124: 321806.4341 | Y124: 0 | Z124: 41408.16007 | AA124: 0 | AB124: 0 | AC124: 0 | AD124: 0 | AE124: 0 | AF124: 221872.3457 | AG124: 0 | AH124: 0 | AI124: 0 | AJ124: 0 | AK124: 2733.632892 | AL124: 8800.962929 | AM124: 0 | AN124: 554.7054255 | AO124: 0 | AP124: 0 | AQ124: 0 | AR124: 0 | AS124: 0 | AT124: 0 | AU124: 0 | AV124: 9170.440561 | AW124: 577.0289369 | AX124: 0 | AY124: 0 | AZ124: 0 | BA124: 776.4802911 | BB124: 22491.7905 | BC124: 0 | BD124: 1.335735591e-06 | BE124: 0 | BF124: 0 | BG124: 6040.60776 | BH124: 339.1903796 | BI124: 0 | BJ124: 0 | BK124: 0 | BL124: 0 | BU124: 6706.835354 | BV124: 227912.9534 | CI124: 321806.0844 | CJ124: 33343.57477 | CM124: 0 | CN124: 6706.835354 | CO124: 10160.56464 | CP124: 23183.38979 | CQ124: 30 | CR124: 335.7750327 | CS124: 0 | CT124: 0 | CU124: 0 | CV124: 0 | CW124: 0 | CX124: 0 | CY124: 0 | CZ124: 0 | DA124: 0 | DB124: 0 | DC124: 46.17269259 | DD124: 0 | DE124: 0 | DF124: 2.779729428e-10 | DG124: 1.257079265 | DH124: 0 | DI124: -141.7448632 | DJ124: 495.952358 | DK124: 0 | DL124: 0 | DM124: 0 | DN124: -24.43776626 | DO124: -38.7684513 | DP124: -2.656016394 | DQ124: 0 | DR124: 0 | DS124: 0 | DV124: 0 | DW124: 342.5552803 | DX124: 3.364900655 | DY124: 152 | DZ124: 0 | EA124: 0 | EB124: 0 | ED124: 0 | EE124: -48.80228751 | EF124: -3.028738663 | EG124: -48.80228751 | EH124: -3.028738663 | EI124: 0 | EJ124: 0 | EK124: 0 | EL124: 0
A125: 727 | B125: Sistema de Compensação | C125: Verde | D125: A4 | E125: Comercial | F125: Não se aplica | G125: Não se aplica | H125: Não se aplica | I125: Fora ponta | J125: CATIVO | K125: 2020-04-01 | L125: 0 | M125: 0 | N125: 29.794 | O125: 29.794 | P125: 29.794 | Q125: 29.794 | S125: 62.31 | T125: 251.12 | V125: 9338.33342 | W125: 9338.33342 | X125: 10417.77004 | Y125: 0 | Z125: 1340.497404 | AA125: 0 | AB125: 0 | AC125: 0 | AD125: 0 | AE125: 0 | AF125: 7182.625425 | AG125: 0 | AH125: 0 | AI125: 0 | AJ125: 0 | AK125: 88.49530598 | AL125: 284.9116681 | AM125: 0 | AN125: 17.95735868 | AO125: 0 | AP125: 0 | AQ125: 0 | AR125: 0 | AS125: 0 | AT125: 0 | AU125: 0 | AV125: 296.8726875 | AW125: 18.68003288 | AX125: 0 | AY125: 0 | AZ125: 0 | BA125: 25.13682841 | BB125: 728.1218659 | BC125: 0 | BD125: 4.32414792e-08 | BE125: 0 | BF125: 0 | BG125: 195.5512876 | BH125: 10.98053675 | BI125: 0 | BJ125: 0 | BK125: 0 | BL125: 0 | BU125: 217.1189293 | BV125: 7378.176713 | CI125: 10416.3714 | CJ125: 1078.00798 | CM125: 0 | CN125: 217.1189293 | CO125: 328.92576 | CP125: 750.51086 | CQ125: 30 | CR125: 10.86997246 | CS125: 0 | CT125: 0 | CU125: 0 | CV125: 0 | CW125: 0 | CX125: 0 | CY125: 0 | CZ125: 0 | DA125: 0 | DB125: 0 | DC125: 1.494738584 | DD125: 0 | DE125: 0 | DF125: 8.998757914e-12 | DG125: 0.04069515496 | DH125: 0 | DI125: -4.588675779 | DJ125: 16.05535834 | DK125: 0 | DL125: 0 | DM125: 0 | DN125: -0.7911185179 | DO125: -1.255042683 | DP125: -0.08598264387 | DQ125: 0 | DR125: 0 | DS125: 0 | DV125: 0 | DW125: 11.08946795 | DX125: 0.1089312006 | DY125: 152 | DZ125: 0 | EA125: 0 | EB125: 0 | ED125: 0 | EE125: -48.80228751 | EF125: -3.028738663 | EG125: -48.80228751 | EH125: -3.028738663 | EI125: 0 | EJ125: 0 | EK125: 0 | EL125: 0
A126: 800 | B126: PROJETADO | C126: Verde | D126: A4 | E126: Comercial | F126: Não se aplica | G126: Não se aplica | H126: Não se aplica | I126: Fora ponta | J126: CATIVO | K126: 2020-05-01 | L126: 0 | M126: 0 | N126: 920.341 | O126: 920.341 | P126: 920.341 | Q126: 920.341 | S126: 62.31 | T126: 251.12 | V126: 288462.4796 | W126: 288462.4796 | X126: 321806.4341 | Y126: 0 | Z126: 41408.16007 | AA126: 0 | AB126: 0 | AC126: 0 | AD126: 0 | AE126: 0 | AF126: 221872.3457 | AG126: 0 | AH126: 0 | AI126: 0 | AJ126: 0 | AK126: 2733.632892 | AL126: 8800.962929 | AM126: 0 | AN126: 554.7054255 | AO126: 0 | AP126: 0 | AQ126: 0 | AR126: 0 | AS126: 0 | AT126: 0 | AU126: 0 | AV126: 9170.440561 | AW126: 577.0289369 | AX126: 0 | AY126: 0 | AZ126: 0 | BA126: 776.4802911 | BB126: 22491.7905 | BC126: 0 | BD126: 1.335735591e-06 | BE126: 0 | BF126: 0 | BG126: 6040.60776 | BH126: 339.1903796 | BI126: 0 | BJ126: 0 | BK126: 0 | BL126: 0 | BU126: 6706.835354 | BV126: 227912.9534 | CI126: 321806.0844 | CJ126: 33343.57477 | CM126: 0 | CN126: 6706.835354 | CO126: 10160.56464 | CP126: 23183.38979 | CQ126: 31 | CR126: 335.7750327 | CS126: 0 | CT126: 0 | CU126: 0 | CV126: 0 | CW126: 0 | CX126: 0 | CY126: 0 | CZ126: 0 | DA126: 0 | DB126: 0 | DC126: 46.17269259 | DD126: 0 | DE126: 0 | DF126: 2.779729428e-10 | DG126: 1.257079265 | DH126: 0 | DI126: -141.7448632 | DJ126: 495.952358 | DK126: 0 | DL126: 0 | DM126: 0 | DN126: -24.43776626 | DO126: -38.7684513 | DP126: -2.656016394 | DQ126: 0 | DR126: 0 | DS126: 0 | DV126: 0 | DW126: 342.5552803 | DX126: 3.364900655 | DY126: 152 | DZ126: 0 | EA126: 0 | EB126: 0 | ED126: 0 | EE126: -48.80228751 | EF126: -3.028738663 | EG126: -48.80228751 | EH126: -3.028738663 | EI126: 0 | EJ126: 0 | EK126: 0 | EL126: 0
A127: 801 | B127: PROJETADO | C127: Verde | D127: A4 | E127: Comercial | F127: Não se aplica | G127: Não se aplica | H127: Não se aplica | I127: Fora ponta | J127: CATIVO | K127: 2020-05-01 | L127: 0 | M127: 0 | N127: 29.794 | O127: 29.794 | P127: 29.794 | Q127: 29.794 | S127: 62.31 | T127: 251.12 | V127: 9338.33342 | W127: 9338.33342 | X127: 10417.77004 | Y127: 0 | Z127: 1340.497404 | AA127: 0 | AB127: 0 | AC127: 0 | AD127: 0 | AE127: 0 | AF127: 7182.625425 | AG127: 0 | AH127: 0 | AI127: 0 | AJ127: 0 | AK127: 88.49530598 | AL127: 284.9116681 | AM127: 0 | AN127: 17.95735868 | AO127: 0 | AP127: 0 | AQ127: 0 | AR127: 0 | AS127: 0 | AT127: 0 | AU127: 0 | AV127: 296.8726875 | AW127: 18.68003288 | AX127: 0 | AY127: 0 | AZ127: 0 | BA127: 25.13682841 | BB127: 728.1218659 | BC127: 0 | BD127: 4.32414792e-08 | BE127: 0 | BF127: 0 | BG127: 195.5512876 | BH127: 10.98053675 | BI127: 0 | BJ127: 0 | BK127: 0 | BL127: 0 | BU127: 217.1189293 | BV127: 7378.176713 | CI127: 10416.3714 | CJ127: 1078.00798 | CM127: 0 | CN127: 217.1189293 | CO127: 328.92576 | CP127: 750.51086 | CQ127: 31 | CR127: 10.86997246 | CS127: 0 | CT127: 0 | CU127: 0 | CV127: 0 | CW127: 0 | CX127: 0 | CY127: 0 | CZ127: 0 | DA127: 0 | DB127: 0 | DC127: 1.494738584 | DD127: 0 | DE127: 0 | DF127: 8.998757914e-12 | DG127: 0.04069515496 | DH127: 0 | DI127: -4.588675779 | DJ127: 16.05535834 | DK127: 0 | DL127: 0 | DM127: 0 | DN127: -0.7911185179 | DO127: -1.255042683 | DP127: -0.08598264387 | DQ127: 0 | DR127: 0 | DS127: 0 | DV127: 0 | DW127: 11.08946795 | DX127: 0.1089312006 | DY127: 152 | DZ127: 0 | EA127: 0 | EB127: 0 | ED127: 0 | EE127: -48.80228751 | EF127: -3.028738663 | EG127: -48.80228751 | EH127: -3.028738663 | EI127: 0 | EJ127: 0 | EK127: 0 | EL127: 0
A128: 38 | B128: Regular | C128: Verde | D128: A4 | E128: Comercial | F128: Não se aplica | G128: Não se aplica | H128: Não se aplica | I128: Não se aplica | J128: CATIVO | K128: 2019-06-01 | L128: 5588 | M128: 5588 | N128: 0 | O128: 0 | P128: 0 | Q128: 0 | R128: 19.99 | U128: 111704.12 | W128: 111704.12 | X128: 111983.52 | Y128: 0 | Z128: 0 | AA128: 0 | AB128: 0 | AC128: 0 | AD128: 37585.40308 | AE128: 74125.03857 | AI128: 0 | AJ128: 0 | AK128: 0 | AL128: 0 | AM128: 0 | AN128: 0 | AO128: 0 | AP128: 0 | AQ128: 0 | AR128: 0 | AU128: 0 | AV128: 0 | AW128: 0 | AZ128: 0 | BB128: 0 | BC128: 0 | BD128: 0 | BE128: 0 | BG128: 0 | BH128: 0 | BI128: 9202.42 | BJ128: 42387.94 | BK128: 303278.73 | BL128: 61 | BV128: 0 | CI128: 111983.52 | CJ128: 279.37 | CO128: 279.4 | CP128: 0 | CQ128: 30 | CR128: 284.6215334 | CS128: 0 | CT128: 0 | CU128: 0 | CV128: 0 | CZ128: 284.6215334 | DA128: 0 | DB128: 0 | DE128: 0 | DF128: 0 | DG128: 0 | DH128: 0 | DI128: 0 | DK128: 0 | DL128: 0 | DN128: 0 | DO128: 0 | DP128: 0 | DQ128: 0 | DR128: 0 | DS128: 0 | DU128: 74125.03857 | DW128: 0 | DX128: 0 | DY128: 152 | ED128: 0 | EE128: -48.80228751 | EF128: -3.028738663 | EG128: -48.80228751 | EH128: -3.028738663 | EI128: 0 | EJ128: 0 | EK128: 0 | EL128: 0
A129: 102 | B129: Regular | C129: Verde | D129: A4 | E129: Comercial | F129: Não se aplica | G129: Não se aplica | H129: Não se aplica | I129: Não se aplica | J129: CATIVO | K129: 2019-07-01 | L129: 5629 | M129: 5629 | N129: 0 | O129: 0 | P129: 0 | Q129: 0 | R129: 19.99 | U129: 112523.71 | W129: 112523.71 | X129: 112805.16 | Y129: 0 | Z129: 0 | AA129: 0 | AB129: 0 | AC129: 0 | AD129: 37861.17286 | AE129: 74668.90518 | AI129: 0 | AJ129: 0 | AK129: 0 | AL129: 0 | AM129: 0 | AN129: 0 | AO129: 0 | AP129: 0 | AQ129: 0 | AR129: 0 | AU129: 0 | AV129: 0 | AW129: 0 | AZ129: 0 | BB129: 0 | BC129: 0 | BD129: 0 | BE129: 0 | BG129: 0 | BH129: 0 | BI129: 9988.08 | BJ129: 46005.94 | BK129: 329902.28 | BL129: 61 | BV129: 0 | CI129: 112805.16 | CJ129: 281.42 | CO129: 281.45 | CP129: 0 | CQ129: 31 | CR129: 286.7098445 | CS129: 0 | CT129: 0 | CU129: 0 | CV129: 0 | CZ129: 286.7098445 | DA129: 0 | DB129: 0 | DE129: 0 | DF129: 0 | DG129: 0 | DH129: 0 | DI129: 0 | DK129: 0 | DL129: 0 | DN129: 0 | DO129: 0 | DP129: 0 | DQ129: 0 | DR129: 0 | DS129: 0 | DU129: 74668.90518 | DW129: 0 | DX129: 0 | DY129: 152 | ED129: 0 | EE129: -48.80228751 | EF129: -3.028738663 | EG129: -48.80228751 | EH129: -3.028738663 | EI129: 0 | EJ129: 0 | EK129: 0 | EL129: 0
A130: 168 | B130: Regular | C130: Verde | D130: A4 | E130: Comercial | F130: Não se aplica | G130: Não se aplica | H130: Não se aplica | I130: Não se aplica | J130: CATIVO | K130: 2019-08-01 | L130: 5536 | M130: 5536 | N130: 0 | O130: 0 | P130: 0 | Q130: 0 | R130: 19.99 | U130: 110664.64 | W130: 110664.64 | X130: 110941.44 | Y130: 0 | Z130: 0 | AA130: 0 | AB130: 0 | AC130: 0 | AD130: 37235.64629 | AE130: 73435.25654 | AI130: 0 | AJ130: 0 | AK130: 0 | AL130: 0 | AM130: 0 | AN130: 0 | AO130: 0 | AP130: 0 | AQ130: 0 | AR130: 0 | AU130: 0 | AV130: 0 | AW130: 0 | AZ130: 0 | BB130: 0 | BC130: 0 | BD130: 0 | BE130: 0 | BG130: 0 | BH130: 0 | BI130: 10678.5 | BJ130: 49185.55 | BK130: 350202.38 | BL130: 61 | BV130: 0 | CI130: 110941.44 | CJ130: 276.77 | CO130: 276.8 | CP130: 0 | CQ130: 31 | CR130: 281.9729436 | CS130: 0 | CT130: 0 | CU130: 0 | CV130: 0 | CZ130: 281.9729436 | DA130: 0 | DB130: 0 | DE130: 0 | DF130: 0 | DG130: 0 | DH130: 0 | DI130: 0 | DK130: 0 | DL130: 0 | DN130: 0 | DO130: 0 | DP130: 0 | DQ130: 0 | DR130: 0 | DS130: 0 | DU130: 73435.25654 | DW130: 0 | DX130: 0 | DY130: 152 | ED130: 0 | EE130: -48.80228751 | EF130: -3.028738663 | EG130: -48.80228751 | EH130: -3.028738663 | EI130: 0 | EJ130: 0 | EK130: 0 | EL130: 0
A131: 241 | B131: Regular | C131: Verde | D131: A4 | E131: Comercial | F131: Não se aplica | G131: Não se aplica | H131: Não se aplica | I131: Não se aplica | J131: CATIVO | K131: 2019-09-01 | L131: 5639 | M131: 5639 | N131: 0 | O131: 0 | P131: 0 | Q131: 0 | R131: 19.99 | U131: 112723.61 | W131: 112723.61 | X131: 113005.56 | Y131: 0 | Z131: 0 | AA131: 0 | AB131: 0 | AC131: 0 | AD131: 37928.43379 | AE131: 74801.55557 | AI131: 0 | AJ131: 0 | AK131: 0 | AL131: 0 | AM131: 0 | AN131: 0 | AO131: 0 | AP131: 0 | AQ131: 0 | AR131: 0 | AU131: 0 | AV131: 0 | AW131: 0 | AZ131: 0 | BB131: 0 | BC131: 0 | BD131: 0 | BE131: 0 | BG131: 0 | BH131: 0 | BI131: 11875.66 | BJ131: 54699.68 | BK131: 380183.57 | BL131: 61 | BV131: 0 | CI131: 113005.56 | CJ131: 281.92 | CO131: 281.95 | CP131: 0 | CQ131: 30 | CR131: 287.2191887 | CS131: 0 | CT131: 0 | CU131: 0 | CV131: 0 | CZ131: 287.2191887 | DA131: 0 | DB131: 0 | DE131: 0 | DF131: 0 | DG131: 0 | DH131: 0 | DI131: 0 | DK131: 0 | DL131: 0 | DN131: 0 | DO131: 0 | DP131: 0 | DQ131: 0 | DR131: 0 | DS131: 0 | DU131: 74801.55557 | DW131: 0 | DX131: 0 | DY131: 152 | ED131: 0 | EE131: -48.80228751 | EF131: -3.028738663 | EG131: -48.80228751 | EH131: -3.028738663 | EI131: 0 | EJ131: 0 | EK131: 0 | EL131: 0
A132: 308 | B132: Regular | C132: Verde | D132: A4 | E132: Comercial | F132: Não se aplica | G132: Não se aplica | H132: Não se aplica | I132: Não se aplica | J132: CATIVO | K132: 2019-10-01 | L132: 5598 | M132: 5598 | N132: 0 | O132: 0 | P132: 0 | Q132: 0 | R132: 19.99 | U132: 111904.02 | W132: 111904.02 | X132: 112183.92 | Y132: 0 | Z132: 0 | AA132: 0 | AB132: 0 | AC132: 0 | AD132: 37652.66401 | AE132: 74257.68896 | AI132: 0 | AJ132: 0 | AK132: 0 | AL132: 0 | AM132: 0 | AN132: 0 | AO132: 0 | AP132: 0 | AQ132: 0 | AR132: 0 | AU132: 0 | AV132: 0 | AW132: 0 | AZ132: 0 | BB132: 0 | BC132: 0 | BD132: 0 | BE132: 0 | BG132: 0 | BH132: 0 | BI132: 12396.74 | BJ132: 57102.6 | BK132: 360793.65 | BL132: 61 | BV132: 0 | CI132: 112183.92 | CJ132: 279.87 | CO132: 279.9 | CP132: 0 | CQ132: 31 | CR132: 285.1308775 | CS132: 0 | CT132: 0 | CU132: 0 | CV132: 0 | CZ132: 285.1308775 | DA132: 0 | DB132: 0 | DE132: 0 | DF132: 0 | DG132: 0 | DH132: 0 | DI132: 0 | DK132: 0 | DL132: 0 | DN132: 0 | DO132: 0 | DP132: 0 | DQ132: 0 | DR132: 0 | DS132: 0 | DU132: 74257.68896 | DW132: 0 | DX132: 0 | DY132: 152 | ED132: 0 | EE132: -48.80228751 | EF132: -3.028738663 | EG132: -48.80228751 | EH132: -3.028738663 | EI132: 0 | EJ132: 0 | EK132: 0 | EL132: 0
A133: 375 | B133: Regular | C133: Verde | D133: A4 | E133: Comercial | F133: Não se aplica | G133: Não se aplica | H133: Não se aplica | I133: Não se aplica | J133: CATIVO | K133: 2019-11-01 | L133: 6134 | M133: 6134 | N133: 0 | O133: 0 | P133: 0 | Q133: 0 | R133: 19.99 | U133: 122618.66 | W133: 122618.66 | X133: 122925.36 | Y133: 0 | Z133: 0 | AA133: 0 | AB133: 0 | AC133: 0 | AD133: 41257.84941 | AE133: 81367.74993 | AI133: 0 | AJ133: 0 | AK133: 0 | AL133: 0 | AM133: 0 | AN133: 0 | AO133: 0 | AP133: 0 | AQ133: 0 | AR133: 0 | AU133: 0 | AV133: 0 | AW133: 0 | AZ133: 0 | BB133: 0 | BC133: 0 | BD133: 0 | BE133: 0 | BG133: 0 | BH133: 0 | BI133: 11943.36 | BJ133: 55013.52 | BK133: 412090.61 | BL133: 63 | BV133: 0 | CI133: 122925.36 | CJ133: 306.67 | CO133: 306.7 | CP133: 0 | CQ133: 30 | CR133: 312.4317261 | CS133: 0 | CT133: 0 | CU133: 0 | CV133: 0 | CZ133: 312.4317261 | DA133: 0 | DB133: 0 | DE133: 0 | DF133: 0 | DG133: 0 | DH133: 0 | DI133: 0 | DK133: 0 | DL133: 0 | DN133: 0 | DO133: 0 | DP133: 0 | DQ133: 0 | DR133: 0 | DS133: 0 | DU133: 81367.74993 | DW133: 0 | DX133: 0 | DY133: 152 | ED133: 0 | EE133: -48.80228751 | EF133: -3.028738663 | EG133: -48.80228751 | EH133: -3.028738663 | EI133: 0 | EJ133: 0 | EK133: 0 | EL133: 0
A134: 441 | B134: Regular | C134: Verde | D134: A4 | E134: Comercial | F134: Não se aplica | G134: Não se aplica | H134: Não se aplica | I134: Não se aplica | J134: CATIVO | K134: 2019-12-01 | L134: 5684 | M134: 5684 | N134: 0 | O134: 0 | P134: 0 | Q134: 0 | R134: 19.99 | U134: 113623.16 | W134: 113623.16 | X134: 113907.36 | Y134: 0 | Z134: 0 | AA134: 0 | AB134: 0 | AC134: 0 | AD134: 38231.10793 | AE134: 75398.48233 | AI134: 0 | AJ134: 0 | AK134: 0 | AL134: 0 | AM134: 0 | AN134: 0 | AO134: 0 | AP134: 0 | AQ134: 0 | AR134: 0 | AU134: 0 | AV134: 0 | AW134: 0 | AZ134: 0 | BB134: 0 | BC134: 0 | BD134: 0 | BE134: 0 | BG134: 0 | BH134: 0 | BI134: 9491.43 | BJ134: 43721.42 | BK134: 367433.76 | BL134: 63 | BV134: 0 | CI134: 113907.36 | CJ134: 284.17 | CO134: 284.2 | CP134: 0 | CR134: 289.5112376 | CS134: 0 | CT134: 0 | CU134: 0 | CV134: 0 | CZ134: 289.5112376 | DA134: 0 | DB134: 0 | DE134: 0 | DF134: 0 | DG134: 0 | DH134: 0 | DI134: 0 | DK134: 0 | DL134: 0 | DN134: 0 | DO134: 0 | DP134: 0 | DQ134: 0 | DR134: 0 | DS134: 0 | DU134: 75398.48233 | DW134: 0 | DX134: 0 | DY134: 152 | ED134: 0 | EE134: -48.80228751 | EF134: -3.028738663 | EG134: -48.80228751 | EH134: -3.028738663 | EI134: 0 | EJ134: 0 | EK134: 0 | EL134: 0
A135: 442 | B135: Refaturamento - Regular | C135: Verde | D135: A4 | E135: Comercial | F135: Não se aplica | G135: Não se aplica | H135: Não se aplica | I135: Não se aplica | J135: CATIVO | K135: 2019-12-01 | L135: -400 | M135: -400 | N135: 0 | O135: 0 | P135: 0 | Q135: 0 | R135: 19.99 | U135: -7996 | W135: -7996 | X135: -8016 | Y135: 0 | Z135: 0 | AA135: 0 | AB135: 0 | AC135: 0 | AD135: -2690.436871 | AE135: -5306.015646 | AI135: 0 | AJ135: 0 | AK135: 0 | AL135: 0 | AM135: 0 | AN135: 0 | AO135: 0 | AP135: 0 | AQ135: 0 | AR135: 0 | AU135: 0 | AV135: 0 | AW135: 0 | AZ135: 0 | BB135: 0 | BC135: 0 | BD135: 0 | BE135: 0 | BG135: 0 | BH135: 0 | BI135: -246.06 | BJ135: -1133.35 | BK135: -8513.96 | BL135: 0 | BV135: 0 | CI135: -8016 | CJ135: -20.03 | CO135: -20 | CP135: 0 | CR135: -20.3737676 | CS135: 0 | CT135: 0 | CU135: 0 | CV135: 0 | CZ135: -20.3737676 | DA135: 0 | DB135: 0 | DE135: 0 | DF135: 0 | DG135: 0 | DH135: 0 | DI135: 0 | DK135: 0 | DL135: 0 | DN135: 0 | DO135: 0 | DP135: 0 | DQ135: 0 | DR135: 0 | DS135: 0 | DU135: -5306.015646 | DW135: 0 | DX135: 0 | DY135: 152 | ED135: 0 | EE135: -48.80228751 | EF135: -3.028738663 | EG135: -48.80228751 | EH135: -3.028738663 | EI135: 0 | EJ135: 0 | EK135: 0 | EL135: 0
A136: 443 | B136: Sistema de Compensação | C136: Verde | D136: A4 | E136: Comercial | F136: Não se aplica | G136: Não se aplica | H136: Não se aplica | I136: Não se aplica | J136: CATIVO | K136: 2019-12-01 | L136: 100 | M136: 100 | N136: 0 | O136: 0 | P136: 0 | Q136: 0 | R136: 19.99 | U136: 1999 | W136: 1999 | X136: 2004 | Y136: 0 | Z136: 0 | AA136: 0 | AB136: 0 | AC136: 0 | AD136: 672.6092177 | AE136: 1326.503911 | AI136: 0 | AJ136: 0 | AK136: 0 | AL136: 0 | AM136: 0 | AN136: 0 | AO136: 0 | AP136: 0 | AQ136: 0 | AR136: 0 | AU136: 0 | AV136: 0 | AW136: 0 | AZ136: 0 | BB136: 0 | BC136: 0 | BD136: 0 | BE136: 0 | BG136: 0 | BH136: 0 | BI136: 221.95 | BJ136: 1022.37 | BK136: 8615.08 | BL136: 1 | BV136: 0 | CI136: 2004 | CJ136: 4.97 | CO136: 5 | CP136: 0 | CR136: 5.0934419 | CS136: 0 | CT136: 0 | CU136: 0 | CV136: 0 | CZ136: 5.0934419 | DA136: 0 | DB136: 0 | DE136: 0 | DF136: 0 | DG136: 0 | DH136: 0 | DI136: 0 | DK136: 0 | DL136: 0 | DN136: 0 | DO136: 0 | DP136: 0 | DQ136: 0 | DR136: 0 | DS136: 0 | DU136: 1326.503911 | DW136: 0 | DX136: 0 | DY136: 152 | ED136: 0 | EE136: -48.80228751 | EF136: -3.028738663 | EG136: -48.80228751 | EH136: -3.028738663 | EI136: 0 | EJ136: 0 | EK136: 0 | EL136: 0
A137: 506 | B137: Regular | C137: Verde | D137: A4 | E137: Comercial | F137: Não se aplica | G137: Não se aplica | H137: Não se aplica | I137: Não se aplica | J137: CATIVO | K137: 2020-01-01 | L137: 5707 | M137: 5707 | N137: 0 | O137: 0 | P137: 0 | Q137: 0 | R137: 19.99 | U137: 114082.93 | W137: 114082.93 | X137: 114368.28 | Y137: 0 | Z137: 0 | AA137: 0 | AB137: 0 | AC137: 0 | AD137: 38385.80805 | AE137: 75703.57823 | AI137: 0 | AJ137: 0 | AK137: 0 | AL137: 0 | AM137: 0 | AN137: 0 | AO137: 0 | AP137: 0 | AQ137: 0 | AR137: 0 | AU137: 0 | AV137: 0 | AW137: 0 | AZ137: 0 | BB137: 0 | BC137: 0 | BD137: 0 | BE137: 0 | BG137: 0 | BH137: 0 | BI137: 11505.66 | BJ137: 52999.82 | BK137: 370199.78 | BL137: 62 | BV137: 0 | CI137: 114368.28 | CJ137: 285.32 | CO137: 285.35 | CP137: 0 | CQ137: 31 | CR137: 290.6827292 | CS137: 0 | CT137: 0 | CU137: 0 | CV137: 0 | CZ137: 290.6827292 | DA137: 0 | DB137: 0 | DE137: 0 | DF137: 0 | DG137: 0 | DH137: 0 | DI137: 0 | DK137: 0 | DL137: 0 | DN137: 0 | DO137: 0 | DP137: 0 | DQ137: 0 | DR137: 0 | DS137: 0 | DU137: 75703.57823 | DW137: 0 | DX137: 0 | DY137: 152 | ED137: 0 | EE137: -48.80228751 | EF137: -3.028738663 | EG137: -48.80228751 | EH137: -3.028738663 | EI137: 0 | EJ137: 0 | EK137: 0 | EL137: 0
A138: 507 | B138: Refaturamento - Regular | C138: Verde | D138: A4 | E138: Comercial | F138: Não se aplica | G138: Não se aplica | H138: Não se aplica | I138: Não se aplica | J138: CATIVO | K138: 2020-01-01 | L138: 30 | M138: 30 | N138: 0 | O138: 0 | P138: 0 | Q138: 0 | R138: 19.99 | U138: 599.7 | W138: 599.7 | X138: 601.2 | Y138: 0 | Z138: 0 | AA138: 0 | AB138: 0 | AC138: 0 | AD138: 201.7827653 | AE138: 397.9511734 | AI138: 0 | AJ138: 0 | AK138: 0 | AL138: 0 | AM138: 0 | AN138: 0 | AO138: 0 | AP138: 0 | AQ138: 0 | AR138: 0 | AU138: 0 | AV138: 0 | AW138: 0 | AZ138: 0 | BB138: 0 | BC138: 0 | BD138: 0 | BE138: 0 | BG138: 0 | BH138: 0 | BI138: 6.14 | BJ138: 28.28 | BK138: 158.91 | BL138: 0 | BV138: 0 | CI138: 601.2 | CJ138: 1.47 | CO138: 1.5 | CP138: 0 | CQ138: 31 | CR138: 1.52803257 | CS138: 0 | CT138: 0 | CU138: 0 | CV138: 0 | CZ138: 1.52803257 | DA138: 0 | DB138: 0 | DE138: 0 | DF138: 0 | DG138: 0 | DH138: 0 | DI138: 0 | DK138: 0 | DL138: 0 | DN138: 0 | DO138: 0 | DP138: 0 | DQ138: 0 | DR138: 0 | DS138: 0 | DU138: 397.9511734 | DW138: 0 | DX138: 0 | DY138: 152 | ED138: 0 | EE138: -48.80228751 | EF138: -3.028738663 | EG138: -48.80228751 | EH138: -3.028738663 | EI138: 0 | EJ138: 0 | EK138: 0 | EL138: 0
A139: 508 | B139: Sistema de Compensação | C139: Verde | D139: A4 | E139: Comercial | F139: Não se aplica | G139: Não se aplica | H139: Não se aplica | I139: Não se aplica | J139: CATIVO | K139: 2020-01-01 | L139: 195 | M139: 195 | N139: 0 | O139: 0 | P139: 0 | Q139: 0 | R139: 19.99 | U139: 3898.05 | W139: 3898.05 | X139: 3907.8 | Y139: 0 | Z139: 0 | AA139: 0 | AB139: 0 | AC139: 0 | AD139: 1311.587975 | AE139: 2586.682627 | AI139: 0 | AJ139: 0 | AK139: 0 | AL139: 0 | AM139: 0 | AN139: 0 | AO139: 0 | AP139: 0 | AQ139: 0 | AR139: 0 | AU139: 0 | AV139: 0 | AW139: 0 | AZ139: 0 | BB139: 0 | BC139: 0 | BD139: 0 | BE139: 0 | BG139: 0 | BH139: 0 | BI139: 418.61 | BJ139: 1928.24 | BK139: 13500.68 | BL139: 2 | BV139: 0 | CI139: 3907.8 | CJ139: 9.72 | CO139: 9.75 | CP139: 0 | CQ139: 31 | CR139: 9.932211704 | CS139: 0 | CT139: 0 | CU139: 0 | CV139: 0 | CZ139: 9.932211704 | DA139: 0 | DB139: 0 | DE139: 0 | DF139: 0 | DG139: 0 | DH139: 0 | DI139: 0 | DK139: 0 | DL139: 0 | DN139: 0 | DO139: 0 | DP139: 0 | DQ139: 0 | DR139: 0 | DS139: 0 | DU139: 2586.682627 | DW139: 0 | DX139: 0 | DY139: 152 | ED139: 0 | EE139: -48.80228751 | EF139: -3.028738663 | EG139: -48.80228751 | EH139: -3.028738663 | EI139: 0 | EJ139: 0 | EK139: 0 | EL139: 0
A140: 579 | B140: Regular | C140: Verde | D140: A4 | E140: Comercial | F140: Não se aplica | G140: Não se aplica | H140: Não se aplica | I140: Não se aplica | J140: CATIVO | K140: 2020-02-01 | L140: 5754 | M140: 5754 | N140: 0 | O140: 0 | P140: 0 | Q140: 0 | R140: 19.99 | U140: 115022.46 | W140: 115022.46 | X140: 115310.16 | Y140: 0 | Z140: 0 | AA140: 0 | AB140: 0 | AC140: 0 | AD140: 38701.93439 | AE140: 76327.03507 | AI140: 0 | AJ140: 0 | AK140: 0 | AL140: 0 | AM140: 0 | AN140: 0 | AO140: 0 | AP140: 0 | AQ140: 0 | AR140: 0 | AU140: 0 | AV140: 0 | AW140: 0 | AZ140: 0 | BB140: 0 | BC140: 0 | BD140: 0 | BE140: 0 | BG140: 0 | BH140: 0 | BI140: 12892.87 | BJ140: 59385.27 | BK140: 378176.6 | BL140: 62 | BV140: 0 | CI140: 115310.16 | CJ140: 287.67 | CO140: 287.7 | CP140: 0 | CQ140: 29 | CR140: 293.0766469 | CS140: 0 | CT140: 0 | CU140: 0 | CV140: 0 | CZ140: 293.0766469 | DA140: 0 | DB140: 0 | DE140: 0 | DF140: 0 | DG140: 0 | DH140: 0 | DI140: 0 | DK140: 0 | DL140: 0 | DN140: 0 | DO140: 0 | DP140: 0 | DQ140: 0 | DR140: 0 | DS140: 0 | DU140: 76327.03507 | DW140: 0 | DX140: 0 | DY140: 152 | ED140: 0 | EE140: -48.80228751 | EF140: -3.028738663 | EG140: -48.80228751 | EH140: -3.028738663 | EI140: 0 | EJ140: 0 | EK140: 0 | EL140: 0
A141: 580 | B141: Sistema de Compensação | C141: Verde | D141: A4 | E141: Comercial | F141: Não se aplica | G141: Não se aplica | H141: Não se aplica | I141: Não se aplica | J141: CATIVO | K141: 2020-02-01 | L141: 195 | M141: 195 | N141: 0 | O141: 0 | P141: 0 | Q141: 0 | R141: 19.99 | U141: 3898.05 | W141: 3898.05 | X141: 3907.8 | Y141: 0 | Z141: 0 | AA141: 0 | AB141: 0 | AC141: 0 | AD141: 1311.587975 | AE141: 2586.682627 | AI141: 0 | AJ141: 0 | AK141: 0 | AL141: 0 | AM141: 0 | AN141: 0 | AO141: 0 | AP141: 0 | AQ141: 0 | AR141: 0 | AU141: 0 | AV141: 0 | AW141: 0 | AZ141: 0 | BB141: 0 | BC141: 0 | BD141: 0 | BE141: 0 | BG141: 0 | BH141: 0 | BI141: 420.87 | BJ141: 1938.57 | BK141: 12386.29 | BL141: 2 | BV141: 0 | CI141: 3907.8 | CJ141: 9.72 | CO141: 9.75 | CP141: 0 | CQ141: 29 | CR141: 9.932211704 | CS141: 0 | CT141: 0 | CU141: 0 | CV141: 0 | CZ141: 9.932211704 | DA141: 0 | DB141: 0 | DE141: 0 | DF141: 0 | DG141: 0 | DH141: 0 | DI141: 0 | DK141: 0 | DL141: 0 | DN141: 0 | DO141: 0 | DP141: 0 | DQ141: 0 | DR141: 0 | DS141: 0 | DU141: 2586.682627 | DW141: 0 | DX141: 0 | DY141: 152 | ED141: 0 | EE141: -48.80228751 | EF141: -3.028738663 | EG141: -48.80228751 | EH141: -3.028738663 | EI141: 0 | EJ141: 0 | EK141: 0 | EL141: 0
A142: 654 | B142: Regular | C142: Verde | D142: A4 | E142: Comercial | F142: Não se aplica | G142: Não se aplica | H142: Não se aplica | I142: Não se aplica | J142: CATIVO | K142: 2020-03-01 | L142: 5708 | M142: 5708 | N142: 0 | O142: 0 | P142: 0 | Q142: 0 | R142: 19.99 | U142: 114102.92 | W142: 114102.92 | X142: 114388.32 | Y142: 0 | Z142: 0 | AA142: 0 | AB142: 0 | AC142: 0 | AD142: 38392.53415 | AE142: 75716.84327 | AI142: 0 | AJ142: 0 | AK142: 0 | AL142: 0 | AM142: 0 | AN142: 0 | AO142: 0 | AP142: 0 | AQ142: 0 | AR142: 0 | AU142: 0 | AV142: 0 | AW142: 0 | AZ142: 0 | BB142: 0 | BC142: 0 | BD142: 0 | BE142: 0 | BG142: 0 | BH142: 0 | BI142: 8999.84 | BJ142: 41455.99 | BK142: 336370.73 | BL142: 62 | BV142: 0 | CI142: 114388.32 | CJ142: 285.37 | CO142: 285.4 | CP142: 0 | CQ142: 31 | CR142: 290.7336636 | CS142: 0 | CT142: 0 | CU142: 0 | CV142: 0 | CZ142: 290.7336636 | DA142: 0 | DB142: 0 | DE142: 0 | DF142: 0 | DG142: 0 | DH142: 0 | DI142: 0 | DK142: 0 | DL142: 0 | DN142: 0 | DO142: 0 | DP142: 0 | DQ142: 0 | DR142: 0 | DS142: 0 | DU142: 75716.84327 | DW142: 0 | DX142: 0 | DY142: 152 | ED142: 0 | EE142: -48.80228751 | EF142: -3.028738663 | EG142: -48.80228751 | EH142: -3.028738663 | EI142: 0 | EJ142: 0 | EK142: 0 | EL142: 0
